Workbook

Sheet START

Sheet Instructions
D2: 2020
X4: Yes
X5: No
W7: Type of Entities Range:
X8: Parent Municipality
X9: Consolidated Information
F14: START
F15: Instructions
F16: Template names
F17: Lookup and lists | W17: MTREF Range: | X17: 2013
F18: Org structure | X18: 2014
F19: Contacts | X19: 2015
F20: A1-Sum | X20: 2016
F21: A2-FinPerf SC | X21: 2017
F22: A2A | X22: 2018
F23: A3-FinPerf V | X23: 2019
F24: A3A | X24: 2020
F25: A4-FinPerf RE | X25: 2021
F26: A5-Capex | X26: 2022
F27: A5A | X27: 2023
F28: A6-FinPos | X28: 2024
F29: A7-CFlow | X29: 2025
F30: A8-ResRecon | X30: 2026
F31: A9-Asset | X31: 2027
F32: A10-SerDel
F33: SA1 | W33: MTREF Linked: | X33: 10
F34: SA2 | W34: MTREF: | X34: =INDEX(X17:X26,X33,1) -> 2022
F35: SA3
F36: SA4 | W36: Fin Year: | X36: =MTREF&"/"&RIGHT(MTREF,2)+1 -> 2022/23
F37: SA5
F38: SA6
F39: SA7
F40: SA8
F41: SA9
F42: SA10
F43: SA11
F44: SA12a
F45: SA12b
F46: SA13a
F47: SA13b
F48: SA14
F49: SA15
F50: SA16
F51: SA17
F52: SA18
F53: SA19
F54: SA20
F55: SA21
F56: SA22
F57: SA23
F58: SA24
F59: SA25
F60: SA26
F61: SA27
F62: SA28
F63: SA29
F64: SA30
F65: SA31
F66: SA32
F67: SA33
F68: SA34a
F69: SA34b
F70: SA34c
F71: SA34d
F72: SA34e
F73: SA35
F74: SA36
F75: SA37
F76: SA38
F77: LGDB_EXPORT

Sheet Template names
A1: Common sheet headings
A2: Head1 | B2: =HLOOKUP(MTREF,Headings,2) -> 2020/21 | C2: Prior year -1
A3: Head1A | B3: =HLOOKUP(MTREF,Headings,3) -> 2019/20 | C3: Prior year -2
A4: Head1B | B4: =HLOOKUP(MTREF,Headings,4) -> 2018/19 | C4: Prior year -3
A5: Head2 | B5: =HLOOKUP(MTREF,Headings,5) -> Current Year 2021/22 | C5: Year in which budget is being prepared
A6: Head2A | B6: =HLOOKUP(MTREF,Headings,6) -> 2021/22 | C6: Year in which budget is being prepared
A7: Head3 | B7: =HLOOKUP(MTREF,Headings,7) -> 2022/23 Medium Term Revenue & Expenditure Framework | C7: MTREF name
A8: Head4 | B8: LTFS | C8: Long term financial strategy
A9: Head5 | B9: Audited Outcome
A10: Head5A | B10: Outcome
A11: Head5B | B11: Pre-audit outcome
A12: Head6 | B12: Original Budget
A13: Head7 | B13: Adjusted Budget
A14: Head8 | B14: Full Year Forecast
A15: Head9 | B15: =HLOOKUP(MTREF,Headings,8) -> Budget Year 2022/23 | C15: 1st year of MTREF | D15: Year1
A16: Head10 | B16: =HLOOKUP(MTREF,Headings,9) -> Budget Year +1 2023/24 | C16: 2nd year of MTREF | D16: Year2
A17: Head11 | B17: =HLOOKUP(MTREF,Headings,10) -> Budget Year +2 2024/25 | C17: 3rd year of MTREF | D17: Year3
A18: Head12 | B18: =HLOOKUP(MTREF,Headings,11) -> Forecast 2025/26 | C18: 1st yr of long term forecast | D18: Year4
A19: Head13 | B19: =HLOOKUP(MTREF,Headings,12) -> Forecast 2026/27 | C19: Next yr of long term forecast | D19: Year5
A20: Head14 | B20: =HLOOKUP(MTREF,Headings,13) -> Forecast 2027/28 | C20: Next yr of long term forecast | D20: Year6
A21: Head15 | B21: =HLOOKUP(MTREF,Headings,14) -> Forecast 2028/29 | C21: Next yr of long term forecast | D21: Year7
A22: Head16 | B22: =HLOOKUP(MTREF,Headings,15) -> Forecast 2029/30 | C22: Next yr of long term forecast | D22: Year8
A23: Head17 | B23: =HLOOKUP(MTREF,Headings,16) -> Forecast 2030/31 | C23: Next yr of long term forecast | D23: Year9
A24: Head18 | B24: =HLOOKUP(MTREF,Headings,17) -> Forecast 2031/32 | C24: Next yr of long term forecast | D24: Year10
A25: Head19 | B25: =HLOOKUP(MTREF,Headings,18) -> Forecast 2032/33 | C25: Next yr of long term forecast | D25: Year11
A26: Head20 | B26: =HLOOKUP(MTREF,Headings,19) -> Forecast 2033/34 | C26: Next yr of long term forecast | D26: Year12
A27: Head21 | B27: =HLOOKUP(MTREF,Headings,20) -> Forecast 2034/35 | C27: Next yr of long term forecast | D27: Year13
A28: Head22 | B28: =HLOOKUP(MTREF,Headings,21) -> Forecast 2035/36 | C28: Next yr of long term forecast | D28: Year14
A29: Head23 | B29: =HLOOKUP(MTREF,Headings,22) -> Forecast 2036/37 | C29: Next yr of long term forecast | D29: Year15
A30: Head24 | B30: Description
A31: Head25
A32: Head26 | B32: Vote Description
A33: Head27 | B33: Ref
A34: Head27a | B34: References
A35: Head28 | B35: Surplus/(Deficit) for the year | D35: Result
A36: Head29 | B36: =HLOOKUP(MTREF,Headings,23) -> Annual target 2022/23
A37: Head30 | B37: =HLOOKUP(MTREF,Headings,24) -> Revised target 2022/23
A38: Head31 | B38: Quarter ended 30 September
A39: Head32 | B39: Quarter ended 31 December
A40: Head33 | B40: Quarter ended 31 March
A41: Head34 | B41: Quarter ended 30 June
A42: Head35 | B42: Variance explanation
A43: Head36 | B43: YTD Actual 31 Dec
A44: Head37 | B44: YTD Budget 31 Dec
A45: Head38 | B45: Monthly actual
A46: Head39 | B46: YTD actual
A47: Head40 | B47: YTD budget
A48: Head41 | B48: YTD variance
A49: Head42 | B49: Surplus/ (Deficit) for the yr/period
A50: Head43 | B50: =Head3&" Summary" -> 2022/23 Medium Term Revenue & Expenditure Framework Summary
A51: Head44 | B51: 2001 Census
A52: Head45 | B52: 2011 Census
A53: Head46 | B53: - Adjustments Budget - January 2007
A54: Head47 | B54: Previous target year to complete
A55: Head48 | B55: Present value
A56: Head49
A57: Head50 | B57: Other Adjusts.
A58: Head51 | B58: Accum. Funds
A59: Head52 | B59: Multi-year capital
A60: Head53 | B60: Unfore. Unavoid.
A61: Head54 | B61: Prior Adjusted
A62: Head55 | B62: Nat. or Prov. Govt
A63: Head56 | B63: Total Adjusts.
A64: SFPerf1 | B64: Budgeted Financial Performance
A65: SFPerf2 | B65: Forecast Financial Performance
A66: SFPos1 | B66: Budgeted Financial Position
A67: SFPos2 | B67: Forecast Financial Position
A68: Cash1 | B68: Budget Cash Flow
A69: Cash2 | B69: Forecast Cash Flow
A70: RandM | B70: Expenditure includes repairs & maintenance of R'000
A71: Depart1 | B71: Department 1 - | D71: DEP1
A72: Depart2 | B72: Department 2 - | D72: DEP2
A73: Depart3 | B73: Department 3 - | D73: DEP3
A74: Depart4 | B74: Department 4 - | D74: DEP4
A75: Depart5 | B75: Department 5 - | D75: DEP5
A76: Depart6 | B76: Department 6 - | D76: DEP6
A77: Depart7 | B77: Department 7 - | D77: DEP7
A78: Depart8 | B78: Department 8 - | D78: DEP8
A79: Depart9 | B79: Department 9 - | D79: DEP9
A80: Depart10 | B80: Department 10 - | D80: DEP10
A81: Depart11 | B81: Department 11 - | D81: DEP11
A82: Depart12 | B82: Department 12 - | D82: DEP12
A83: Depart13 | B83: Department 13 - | D83: DEP13
A84: Depart14 | B84: Department 14 - | D84: DEP14
A87: Base year of forecast column selection names
A88: Choose | B88: ACT
B89: APP
B90: ADJ
A92: Standard nomenclature
A93: Muni | B93: ='Lookup and lists'!B28 -> Choose name from list
A94: Municipal Entities | B94: 1 | C94: Type of report: | D94: 1
A95: =IF((MuniEntities=1)*(MuniType=2),"YES","NO") -> NO | B95: Does this municipality have entities (consolidated budget and entity budgets required)? YES/NO
A96: Entity 1 | B96: (Pty) Ltd Example 1 - Municipal entity - | D96: Ent1
A97: Entity 2 | B97: (Pty) Ltd Example 2 - Municipal entity - | D97: Ent2
A98: Entity 3 | B98: Municipal Entity Example 3 | D98: Ent3
A99: Budget approval tables | C99: Chart x-ref | D99: Sch/Tab/Ch | E99: Alternative for municipalities without entities | F99: Alternative for municipalities without entities
B100: =IF(Consolques="YES",E100,F100) -> Table A1 Budget Summary | D100: Table A1 | E100: =D100&"Consolidated Budget Summary" -> Table A1 Consolidated Budget Summary | F100: =D100&"Budget Summary" -> Table A1 Budget Summary
B101: Table A2 Budgeted Financial Performance (revenue and expenditure by functional classification) | C101: Charts 5, 6 | D101: Table A2 | E101: =D101&"Consolidated Budgeted Financial Performance (revenue and expenditure by functional classification)" -> Table A2 Consolidated Budgeted Financial Performance (revenue and expenditure by functional classification) | F101: =D101&"Budgeted Financial Performance (revenue and expenditure by functional classification)" -> Table A2 Budgeted Financial Performance (revenue and expenditure by functional classification)
B102: Table A3 Budgeted Financial Performance (revenue and expenditure by municipal vote) | D102: Table A3 | E102: =D102&"Consolidated Budgeted Financial Performance (revenue and expenditure by municipal vote)" -> Table A3 Consolidated Budgeted Financial Performance (revenue and expenditure by municipal vote) | F102: =D102&"Budgeted Financial Performance (revenue and expenditure by municipal vote)" -> Table A3 Budgeted Financial Performance (revenue and expenditure by municipal vote)
B103: Table A4 Budgeted Financial Performance (revenue and expenditure) | C103: Charts 1, 2, 3, 4 | D103: Table A4 | E103: =D103&"Consolidated Budgeted Financial Performance (revenue and expenditure)" -> Table A4 Consolidated Budgeted Financial Performance (revenue and expenditure) | F103: =D103&"Budgeted Financial Performance (revenue and expenditure)" -> Table A4 Budgeted Financial Performance (revenue and expenditure)
B104: Table A5 Budgeted Capital Expenditure by vote, functional classification and funding | C104: Charts 7, 8, 9, 10, 20 | D104: Table A5 | E104: =D104&"Consolidated Budgeted Capital Expenditure by vote, functional classification and funding" -> Table A5 Consolidated Budgeted Capital Expenditure by vote, functional classification and funding | F104: =D104&"Budgeted Capital Expenditure by vote, functional classification and funding" -> Table A5 Budgeted Capital Expenditure by vote, functional classification and funding
B105: Table A6 Budgeted Financial Position | D105: Table A6 | E105: =D105&"Consolidated Budgeted Financial Position" -> Table A6 Consolidated Budgeted Financial Position | F105: =D105&"Budgeted Financial Position" -> Table A6 Budgeted Financial Position
B106: Table A7 Budgeted Cash Flows | D106: Table A7 | E106: =D106&"Consolidated Budgeted Cash Flows" -> Table A7 Consolidated Budgeted Cash Flows | F106: =D106&"Budgeted Cash Flows" -> Table A7 Budgeted Cash Flows
B107: Table A8 Cash backed reserves/accumulated surplus reconciliation | D107: Table A8 | E107: =D107&"Consolidated Cash backed reserves/accumulated surplus reconciliation" -> Table A8 Consolidated Cash backed reserves/accumulated surplus reconciliation | F107: =D107&"Cash backed reserves/accumulated surplus reconciliation" -> Table A8 Cash backed reserves/accumulated surplus reconciliation
B108: Table A9 Asset Management | D108: Table A9 | E108: =D108&"Consolidated Asset Management" -> Table A9 Consolidated Asset Management | F108: =D108&"Asset Management" -> Table A9 Asset Management
B109: Table A10 Basic service delivery measurement | D109: Table A10 | E109: =D109&"Consolidated basic service delivery measurement" -> Table A10 Consolidated basic service delivery measurement | F109: =D109&"Basic service delivery measurement" -> Table A10 Basic service delivery measurement
A110: Supportinging Tables to the Budget Approval Tables | C110: =$C$99 -> Chart x-ref | D110: =$D$99 -> Sch/Tab/Ch
A111: Supporting Table SA1 | B111: =A111&" Supportinging detail to 'Budgeted Financial Performance'" -> Supporting Table SA1 Supportinging detail to 'Budgeted Financial Performance'
A112: Supporting Table SA2 | B112: =IF(Consolques="YES",E112,F112) -> Supporting Table SA2 Matrix Financial Performance Budget (revenue source/expenditure type and dept.) | E112: =A112&"Consolidated Matrix Financial Performance Budget (revenue source/expenditure type & dept.)" -> Supporting Table SA2 Consolidated Matrix Financial Performance Budget (revenue source/expenditure type & dept.) | F112: =A112&"Matrix Financial Performance Budget (revenue source/expenditure type and dept.)" -> Supporting Table SA2 Matrix Financial Performance Budget (revenue source/expenditure type and dept.)
A113: Supporting Table SA3 | B113: =A113&"Supportinging detail to 'Budgeted Financial Position'" -> Supporting Table SA3 Supportinging detail to 'Budgeted Financial Position'
A114: Supporting Table SA4 | B114: =A114&"Reconciliation of IDP strategic objectives and budget (revenue)" -> Supporting Table SA4 Reconciliation of IDP strategic objectives and budget (revenue) | C114: Chart 11
A115: Supporting Table SA5 | B115: =A115&"Reconciliation of IDP strategic objectives and budget (operating expenditure)" -> Supporting Table SA5 Reconciliation of IDP strategic objectives and budget (operating expenditure) | C115: Chart 12
A116: Supporting Table SA6 | B116: =A116&"Reconciliation of IDP strategic objectives and budget (capital expenditure)" -> Supporting Table SA6 Reconciliation of IDP strategic objectives and budget (capital expenditure) | C116: Chart 13
A117: Supporting Table SA7 | B117: =A117&" Measureable performance objectives" -> Supporting Table SA7 Measureable performance objectives
A118: Supporting Table SA8 | B118: =A118&" Performance indicators and benchmarks" -> Supporting Table SA8 Performance indicators and benchmarks | C118: Chts 15-19
A119: Supporting Table SA9 | B119: =A119&" Social, economic and demographic statistics and assumptions" -> Supporting Table SA9 Social, economic and demographic statistics and assumptions
A120: Supporting Table SA10 | B120: =A120&" Funding measurement" -> Supporting Table SA10 Funding measurement | C120: Chart 14
A121: Supporting Table SA11 | B121: =A121&" Property rates summary" -> Supporting Table SA11 Property rates summary
A122: Supporting Table SA12a | B122: =A122&" Property rates by category (current year)" -> Supporting Table SA12a Property rates by category (current year)
A123: Supporting Table SA12b | B123: =A123&" Property rates by category (budget year)" -> Supporting Table SA12b Property rates by category (budget year)
A124: Supporting Table SA13a | B124: =A124&" Service Tariffs by category" -> Supporting Table SA13a Service Tariffs by category
A125: Supporting Table SA13b | B125: =A125&" Service Tariffs by category - explanatory" -> Supporting Table SA13b Service Tariffs by category - explanatory
A126: Supporting Table SA14 | B126: =A126&" Household bills" -> Supporting Table SA14 Household bills
A127: Supporting Table SA15 | B127: =A127&" Investment particulars by type" -> Supporting Table SA15 Investment particulars by type
A128: Supporting Table SA16 | B128: =A128&" Investment particulars by maturity" -> Supporting Table SA16 Investment particulars by maturity
A129: Supporting Table SA17 | B129: =A129&" Borrowing" -> Supporting Table SA17 Borrowing
A130: Supporting Table SA18 | B130: =A130&" Transfers and grant receipts" -> Supporting Table SA18 Transfers and grant receipts
A131: Supporting Table SA19 | B131: =A131&" Expenditure on transfers and grant programme" -> Supporting Table SA19 Expenditure on transfers and grant programme
A132: Supporting Table SA20 | B132: =A132&" Reconciliation of transfers, grant receipts and unspent funds" -> Supporting Table SA20 Reconciliation of transfers, grant receipts and unspent funds
A133: Supporting Table SA21 | B133: =A133&" Transfers and grants made by the municipality" -> Supporting Table SA21 Transfers and grants made by the municipality
A134: Supporting Table SA22 | B134: =A134&" Summary councillor and staff benefits" -> Supporting Table SA22 Summary councillor and staff benefits
A135: Supporting Table SA23 | B135: =A135&" Salaries, allowances & benefits (political office bearers/councillors/senior managers)" -> Supporting Table SA23 Salaries, allowances & benefits (political office bearers/councillors/senior managers)
A136: Supporting Table SA24 | B136: =A136&" Summary of personnel numbers" -> Supporting Table SA24 Summary of personnel numbers
A137: Supporting Table SA25 | B137: =IF(Consolques="YES",E137,F137) -> Supporting Table SA25 Budgeted monthly revenue and expenditure | E137: =A137&" Consolidated budgeted monthly revenue and expenditure" -> Supporting Table SA25 Consolidated budgeted monthly revenue and expenditure | F137: =A137&" Budgeted monthly revenue and expenditure" -> Supporting Table SA25 Budgeted monthly revenue and expenditure
A138: Supporting Table SA26 | B138: Supporting Table SA26 Budgeted monthly revenue and expenditure (municipal vote) | E138: =A138&" Consolidated budgeted monthly revenue and expenditure (municipal vote)" -> Supporting Table SA26 Consolidated budgeted monthly revenue and expenditure (municipal vote) | F138: =A138&" Budgeted monthly revenue and expenditure (municipal vote)" -> Supporting Table SA26 Budgeted monthly revenue and expenditure (municipal vote)
A139: Supporting Table SA27 | B139: Supporting Table SA27 Budgeted monthly revenue and expenditure (functional classification) | E139: =A139&" Consolidated budgeted monthly revenue and expenditure (functional classification)" -> Supporting Table SA27 Consolidated budgeted monthly revenue and expenditure (functional classification) | F139: =A139&" Budgeted monthly revenue and expenditure (functional classification)" -> Supporting Table SA27 Budgeted monthly revenue and expenditure (functional classification)
A140: Supporting Table SA28 | B140: Supporting Table SA28 Budgeted monthly capital expenditure (municipal vote) | E140: =A140&" Consolidated budgeted monthly capital expenditure (municipal vote)" -> Supporting Table SA28 Consolidated budgeted monthly capital expenditure (municipal vote) | F140: =A140&" Budgeted monthly capital expenditure (municipal vote)" -> Supporting Table SA28 Budgeted monthly capital expenditure (municipal vote)
A141: Supporting Table SA29 | B141: Supporting Table SA29 Budgeted monthly capital expenditure (functional classification) | E141: =A141&" Consolidated budgeted monthly capital expenditure (functional classification)" -> Supporting Table SA29 Consolidated budgeted monthly capital expenditure (functional classification) | F141: =A141&" Budgeted monthly capital expenditure (functional classification)" -> Supporting Table SA29 Budgeted monthly capital expenditure (functional classification)
A142: Supporting Table SA30 | B142: Supporting Table SA30 Budgeted monthly cash flow | E142: =A142&" Consolidated budgeted monthly cash flow" -> Supporting Table SA30 Consolidated budgeted monthly cash flow | F142: =A142&" Budgeted monthly cash flow" -> Supporting Table SA30 Budgeted monthly cash flow
A143: Supporting Table SA31 | B143: NOT REQUIRED - municipality does not have entities | E143: =A143&" Aggregated entity budget" -> Supporting Table SA31 Aggregated entity budget | F143: NOT REQUIRED - municipality does not have entities
A144: Supporting Table SA32 | B144: =A144&" List of external mechanisms" -> Supporting Table SA32 List of external mechanisms
A145: Supporting Table SA33 | B145: =A145&" Contracts having future budgetary implications" -> Supporting Table SA33 Contracts having future budgetary implications
A146: Supporting Table SA34a | B146: =IF(Consolques="YES",E146,F146) -> Supporting Table SA34a Capital expenditure on new assets by asset class | E146: =A146&" Consolidated capital expenditure on new assets by asset class" -> Supporting Table SA34a Consolidated capital expenditure on new assets by asset class | F146: =A146&" Capital expenditure on new assets by asset class" -> Supporting Table SA34a Capital expenditure on new assets by asset class
A147: Supporting Table SA34b | B147: Supporting Table SA34b Capital expenditure on the renewal of existing assets by asset class | E147: =A147&" Consolidated capital expenditure on the renewal of existing assets by asset class" -> Supporting Table SA34b Consolidated capital expenditure on the renewal of existing assets by asset class | F147: =A147&" Capital expenditure on the renewal of existing assets by asset class" -> Supporting Table SA34b Capital expenditure on the renewal of existing assets by asset class
A148: Supporting Table SA34c | B148: Supporting Table SA34c Repairs and maintenance expenditure by asset class | E148: =A148&" Consolidated repairs and maintenance by asset class" -> Supporting Table SA34c Consolidated repairs and maintenance by asset class | F148: =A148&" Repairs and maintenance expenditure by asset class" -> Supporting Table SA34c Repairs and maintenance expenditure by asset class
A149: Supporting Table SA34d | B149: =IF(Consolques="YES",E149,F149) -> Supporting Table SA34d Depreciation by asset class | E149: =A149&" Consolidated Depreciation by asset class" -> Supporting Table SA34d Consolidated Depreciation by asset class | F149: =A149&" Depreciation by asset class" -> Supporting Table SA34d Depreciation by asset class
A150: Supporting Table SA34e | B150: =IF(Consolques="YES",E150,F150) -> Supporting Table SA34e Capital expenditure on the upgrading of existing assets by asset class | E150: =A150&" Consolidated capital expenditure on the upgrading of existing assets by asset class" -> Supporting Table SA34e Consolidated capital expenditure on the upgrading of existing assets by asset class | F150: =A150&" Capital expenditure on the upgrading of existing assets by asset class" -> Supporting Table SA34e Capital expenditure on the upgrading of existing assets by asset class
A151: Supporting Table SA35 | B151: Supporting Table SA35 Future financial implications of the capital budget | E151: =A151&" Consolidated future financial implications of the capital budget" -> Supporting Table SA35 Consolidated future financial implications of the capital budget | F151: =A151& " Future financial implications of the capital budget" -> Supporting Table SA35 Future financial implications of the capital budget
A152: Supporting Table SA36 | B152: Supporting Table SA36 Detailed capital budget | E152: =A152&" Consolidated detailed capital budget" -> Supporting Table SA36 Consolidated detailed capital budget | F152: =A152& " Detailed capital budget" -> Supporting Table SA36 Detailed capital budget
A153: Supporting Table SA37 | B153: Supporting Table SA37 Projects delayed from previous financial year/s | E153: =A153&" Consolidated projects delayed from previous financial year/s" -> Supporting Table SA37 Consolidated projects delayed from previous financial year/s | F153: =A153& " Projects delayed from previous financial year/s" -> Supporting Table SA37 Projects delayed from previous financial year/s
A154: Supporting Table SA38 | B154: =IF(Consolques="YES",E154,F154) -> Supporting Table SA38 Detailed operational projects | E154: =A154&" Consolidated detailed operational projects" -> Supporting Table SA38 Consolidated detailed operational projects | F154: =A154& " Detailed operational projects" -> Supporting Table SA38 Detailed operational projects
A156: Budget Charts | B156: Charts | C156: Cross reference
A157: Chart A1 | B157: =A157&"Revenue by Municipal Vote" -> Chart A1 Revenue by Municipal Vote
A158: Chart A2 | B158: =A158&"Expenditure by Municipal Vote" -> Chart A2 Expenditure by Municipal Vote
A159: Chart A3 | B159: =A159&"Revenue by Standard Classification" -> Chart A3 Revenue by Standard Classification | C159: A2
A160: Chart A4 | B160: =A160&"Expenditure by Standard Classification" -> Chart A4 Expenditure by Standard Classification | C160: A2
A161: Chart A5 | B161: =A161&"Revenue by Major Source (refer 'Minor' source for 'Other Revenue' allocation" -> Chart A5 Revenue by Major Source (refer 'Minor' source for 'Other Revenue' allocation | C161: A3
A162: Chart A6 | B162: =A162&"Revenue by Minor Source (Other)" -> Chart A6 Revenue by Minor Source (Other) | C162: A3
A163: Chart A7 | B163: =A163&"Expenditure by Major Type" -> Chart A7 Expenditure by Major Type | C163: A3
A164: Chart A8 | B164: =A164&"Expenditure by Minor Type (Other)" -> Chart A8 Expenditure by Minor Type (Other) | C164: A3
A165: Chart A9 | B165: =A165&"Capital Expenditure by Municipal Vote/Appropriation (Major)" -> Chart A9 Capital Expenditure by Municipal Vote/Appropriation (Major) | C165: A5
A166: Chart A10 | B166: =A166&"Capital Expenditure by Municipal Vote/Appropriation (Minor)" -> Chart A10 Capital Expenditure by Municipal Vote/Appropriation (Minor) | C166: A5
A167: Chart A11 | B167: =A166&"Capital Expenditure by Standard Classification" -> Chart A10 Capital Expenditure by Standard Classification | C167: A5
A168: Chart A12 | B168: =A168&"Capital expenditure performance trend" -> Chart A12 Capital expenditure performance trend | C168: A5
A169: Chart A13 | B169: =A169&"Capital funding by Source" -> Chart A13 Capital funding by Source | C169: A5
A170: Chart A14 | B170: =A170&"Cash flow trend" -> Chart A14 Cash flow trend | C170: A7
A171: Chart A15 | B171: =A171&"IDP Strategic Objective - Revenue" -> Chart A15 IDP Strategic Objective - Revenue | C171: Table A4
A172: Chart A16 | B172: =A172&"IDP Strategic Objective - Expenditure" -> Chart A16 IDP Strategic Objective - Expenditure | C172: Table A5
A173: Chart A17 | B173: =A173&"IDP Strategic Objective - Capital Expenditure" -> Chart A17 IDP Strategic Objective - Capital Expenditure | C173: Table A6
A174: Chart A18 | B174: =A174&"Debt (borrowing to Total Revenue)" -> Chart A18 Debt (borrowing to Total Revenue) | C174: Table A8
A175: Chart A19 | B175: =A175&"Debtors' trend analysis" -> Chart A19 Debtors' trend analysis | C175: Table A8
A176: Chart A20 | B176: =A176&"Distribution losses" -> Chart A20 Distribution losses | C176: Table A8
A177: Chart A21 | B177: =A177&"Borrowed funding of capital expenditure" -> Chart A21 Borrowed funding of capital expenditure | C177: Table A8
A178: Chart A22 | B178: =A178&"Expenditure analysis (% of Revenue)" -> Chart A22 Expenditure analysis (% of Revenue) | C178: Table A8
A179: Chart A23 | B179: =A179&"Increases in service charges" -> Chart A23 Increases in service charges | C179: Table A10

Sheet Lookup and lists
A1: Description | B1: 2013 | C1: 2014 | D1: 2015 | E1: 2016 | F1: 2017 | G1: 2018 | H1: 2019 | I1: 2020 | J1: 2021 | K1: 2022 | L1: 2023 | M1: 2024 | N1: 2025 | O1: 2026 | Q1: Lists | Y1: Grants: | Z1: National - opex | AA1: Provincial - opex | AB1: National - capex | AC1: Provincial - capex
A2: ='Template names'!C2 -> Prior year -1 | B2: =B1-2&"/"&RIGHT(B1,2)-1 -> 2011/12 | C2: 2012/13 | D2: 2013/14 | E2: 2014/15 | F2: 2015/16 | G2: 2016/17 | H2: 2017/18 | I2: 2018/19 | J2: =J1-2&"/"&RIGHT(J1,2)-1 -> 2019/20 | K2: 2020/21 | L2: 2021/22 | M2: 2022/23 | N2: 2023/24 | O2: 2024/25 | Q2: Yes | R2: <1 | S2: <4 | T2: Market | U2: Land & impr. | V2: Yes | W2: Uniform | X2: Yrs | Z2: Local Government Equitable Share | AA2: Health subsidy | AB2: Municipal Infrastructure Grant (MIG) | AC2: Agriculture
A3: ='Template names'!C3 -> Prior year -2 | B3: =B1-3&"/"&RIGHT(B1,2)-2 -> 2010/11 | C3: 2011/12 | D3: 2012/13 | E3: 2013/14 | F3: 2014/15 | G3: 2015/16 | H3: 2016/17 | I3: 2017/18 | J3: =J1-3&"/"&RIGHT(J1,2)-2 -> 2018/19 | K3: 2019/20 | L3: 2020/21 | M3: 2021/22 | N3: 2022/23 | O3: 2023/24 | Q3: No | R3: 1 | S3: 4 | T3: Dep.Replace | U3: Land only | V3: No | W3: Variable | X3: Mths | Z3: RSC Levy Replacement | AA3: Ambulance subsidy | AB3: Public Transport and Systems | AC3: Education
A4: ='Template names'!C4 -> Prior year -3 | B4: =B1-4&"/"&RIGHT(B1,2)-3 -> 2009/10 | C4: 2010/11 | D4: 2011/12 | E4: 2012/13 | F4: 2013/14 | G4: 2014/15 | H4: 2015/16 | I4: 2016/17 | J4: =J1-4&"/"&RIGHT(J1,2)-3 -> 2017/18 | K4: 2018/19 | L4: 2019/20 | M4: 2020/21 | N4: 2021/22 | O4: 2022/23 | R4: 2 | S4: 5 | T4: Other | U4: Other | Z4: Finance Management | AA4: Housing | AB4: Rural Transport Services and Infrastructure | AC4: Health
A5: ='Template names'!C5 -> Year in which budget is being prepared | B5: ="Current Year "& B1-1&"/"&RIGHT(B1,2) -> Current Year 2012/13 | C5: Current Year 2013/14 | D5: Current Year 2014/15 | E5: Current Year 2015/16 | F5: Current Year 2016/17 | G5: Current Year 2017/18 | H5: Current Year 2018/19 | I5: Current Year 2019/20 | J5: ="Current Year "& J1-1&"/"&RIGHT(J1,2) -> Current Year 2020/21 | K5: Current Year 2021/22 | L5: Current Year 2022/23 | M5: Current Year 2023/24 | N5: Current Year 2024/25 | O5: Current Year 2025/26 | R5: 3 | S5: 6 | Z5: Municipal Systems Improvement | AA5: Sport and Recreation | AB5: Regional Bulk Infrastructure | AC5: Housing and Local Government
A6: ='Template names'!C6 -> Year in which budget is being prepared | B6: =B1-1&"/"&RIGHT(B1,2) -> 2012/13 | C6: 2013/14 | D6: 2014/15 | E6: 2015/16 | F6: 2016/17 | G6: 2017/18 | H6: 2018/19 | I6: 2019/20 | J6: =J1-1&"/"&RIGHT(J1,2) -> 2020/21 | K6: 2021/22 | L6: 2022/23 | M6: 2023/24 | N6: 2024/25 | O6: 2025/26 | R6: 4 | S6: 6-10 | Z6: Water Services Operating Subsidy | AB6: Rural Households Infrastructure | AC6: Other Departments
A7: ='Template names'!C7 -> MTREF name | B7: =B1&"/"&RIGHT(B1,2)+1&" Medium Term Revenue & Expenditure Framework" -> 2013/14 Medium Term Revenue & Expenditure Framework | C7: 2014/15 Medium Term Revenue & Expenditure Framework | D7: 2015/16 Medium Term Revenue & Expenditure Framework | E7: 2016/17 Medium Term Revenue & Expenditure Framework | F7: 2017/18 Medium Term Revenue & Expenditure Framework | G7: 2018/19 Medium Term Revenue & Expenditure Framework | H7: 2019/20 Medium Term Revenue & Expenditure Framework | I7: 2020/21 Medium Term Revenue & Expenditure Framework | J7: =J1&"/"&RIGHT(J1,2)+1&" Medium Term Revenue & Expenditure Framework" -> 2021/22 Medium Term Revenue & Expenditure Framework | K7: 2022/23 Medium Term Revenue & Expenditure Framework | L7: 2023/24 Medium Term Revenue & Expenditure Framework | M7: 2024/25 Medium Term Revenue & Expenditure Framework | N7: 2025/26 Medium Term Revenue & Expenditure Framework | O7: 2026/27 Medium Term Revenue & Expenditure Framework | R7: 5 | S7: >10 | Z7: Energy Efficiency and Demand Management | AB7: Neighbourhood Development Partnership | AC7: Public Works, Roads, Transport
A8: ='Template names'!C15 -> 1st year of MTREF | B8: ="Budget Year "&B1&"/"&RIGHT(B1,2)+1 -> Budget Year 2013/14 | C8: Budget Year 2014/15 | D8: Budget Year 2015/16 | E8: Budget Year 2016/17 | F8: Budget Year 2017/18 | G8: Budget Year 2018/19 | H8: Budget Year 2019/20 | I8: Budget Year 2020/21 | J8: ="Budget Year "&J1&"/"&RIGHT(J1,2)+1 -> Budget Year 2021/22 | K8: Budget Year 2022/23 | L8: Budget Year 2023/24 | M8: Budget Year 2024/25 | N8: Budget Year 2025/26 | O8: Budget Year 2026/27 | R8: >5 | Z8: Integrated National Electrification Programme | AB8: 2010 FIFA World Cup Stadiums Development | AC8: Sport and Recreation
A9: ='Template names'!C16 -> 2nd year of MTREF | B9: ="Budget Year +1 "&B1+1&"/"&RIGHT(B1,2)+2 -> Budget Year +1 2014/15 | C9: Budget Year +1 2015/16 | D9: Budget Year +1 2016/17 | E9: Budget Year +1 2017/18 | F9: Budget Year +1 2018/19 | G9: Budget Year +1 2019/20 | H9: Budget Year +1 2020/21 | I9: Budget Year +1 2021/22 | J9: ="Budget Year +1 "&J1+1&"/"&RIGHT(J1,2)+2 -> Budget Year +1 2022/23 | K9: Budget Year +1 2023/24 | L9: Budget Year +1 2024/25 | M9: Budget Year +1 2025/26 | N9: Budget Year +1 2026/27 | O9: Budget Year +1 2027/28 | Z9: Municipal Drought Relief
A10: ='Template names'!C17 -> 3rd year of MTREF | B10: ="Budget Year +2 "&B1+2&"/"&RIGHT(B1,2)+3 -> Budget Year +2 2015/16 | C10: Budget Year +2 2016/17 | D10: Budget Year +2 2017/18 | E10: Budget Year +2 2018/19 | F10: Budget Year +2 2019/20 | G10: Budget Year +2 2020/21 | H10: Budget Year +2 2021/22 | I10: Budget Year +2 2022/23 | J10: ="Budget Year +2 "&J1+2&"/"&RIGHT(J1,2)+3 -> Budget Year +2 2023/24 | K10: Budget Year +2 2024/25 | L10: Budget Year +2 2025/26 | M10: Budget Year +2 2026/27 | N10: Budget Year +2 2027/28 | O10: Budget Year +2 2028/29 | Z10: 2010 FIFA World Cup Operating
A11: ='Template names'!C18 -> 1st yr of long term forecast | B11: ="Forecast "&B1+3&"/"&RIGHT(B1,2)+4 -> Forecast 2016/17 | C11: Forecast 2017/18 | D11: Forecast 2018/19 | E11: Forecast 2019/20 | F11: Forecast 2020/21 | G11: Forecast 2021/22 | H11: Forecast 2022/23 | I11: Forecast 2023/24 | J11: ="Forecast "&J1+3&"/"&RIGHT(J1,2)+4 -> Forecast 2024/25 | K11: Forecast 2025/26 | L11: Forecast 2026/27 | M11: Forecast 2027/28 | N11: Forecast 2028/29 | O11: Forecast 2029/30 | Z11: Electricity Demand Side Management
A12: ='Template names'!C19 -> Next yr of long term forecast | B12: ="Forecast "&B1+4&"/"&RIGHT(B1,2)+5 -> Forecast 2017/18 | C12: Forecast 2018/19 | D12: Forecast 2019/20 | E12: Forecast 2020/21 | F12: Forecast 2021/22 | G12: Forecast 2022/23 | H12: Forecast 2023/24 | I12: Forecast 2024/25 | J12: ="Forecast "&J1+4&"/"&RIGHT(J1,2)+5 -> Forecast 2025/26 | K12: Forecast 2026/27 | L12: Forecast 2027/28 | M12: Forecast 2028/29 | N12: Forecast 2029/30 | O12: Forecast 2030/31 | Z12: EPWP Incentive
A13: ='Template names'!C20 -> Next yr of long term forecast | B13: ="Forecast "&B1+5&"/"&RIGHT(B1,2)+6 -> Forecast 2018/19 | C13: Forecast 2019/20 | D13: Forecast 2020/21 | E13: Forecast 2021/22 | F13: Forecast 2022/23 | G13: Forecast 2023/24 | H13: Forecast 2024/25 | I13: Forecast 2025/26 | J13: ="Forecast "&J1+5&"/"&RIGHT(J1,2)+6 -> Forecast 2026/27 | K13: Forecast 2027/28 | L13: Forecast 2028/29 | M13: Forecast 2029/30 | N13: Forecast 2030/31 | O13: Forecast 2031/32
A14: ='Template names'!C21 -> Next yr of long term forecast | B14: ="Forecast "&B1+6&"/"&RIGHT(B1,2)+7 -> Forecast 2019/20 | C14: Forecast 2020/21 | D14: Forecast 2021/22 | E14: Forecast 2022/23 | F14: Forecast 2023/24 | G14: Forecast 2024/25 | H14: Forecast 2025/26 | I14: Forecast 2026/27 | J14: ="Forecast "&J1+6&"/"&RIGHT(J1,2)+7 -> Forecast 2027/28 | K14: Forecast 2028/29 | L14: Forecast 2029/30 | M14: Forecast 2030/31 | N14: Forecast 2031/32 | O14: Forecast 2032/33 | Z14: Asset Class | AA14: Asset sub-class old | AB14: Asset sub-class | AC14: IUDF | AD14: MTSF
A15: ='Template names'!C22 -> Next yr of long term forecast | B15: ="Forecast "&B1+7&"/"&RIGHT(B1,2)+8 -> Forecast 2020/21 | C15: Forecast 2021/22 | D15: Forecast 2022/23 | E15: Forecast 2023/24 | F15: Forecast 2024/25 | G15: Forecast 2025/26 | H15: Forecast 2026/27 | I15: Forecast 2027/28 | J15: ="Forecast "&J1+7&"/"&RIGHT(J1,2)+8 -> Forecast 2028/29 | K15: Forecast 2029/30 | L15: Forecast 2030/31 | M15: Forecast 2031/32 | N15: Forecast 2032/33 | O15: Forecast 2033/34
A16: ='Template names'!C23 -> Next yr of long term forecast | B16: ="Forecast "&B1+8&"/"&RIGHT(B1,2)+9 -> Forecast 2021/22 | C16: Forecast 2022/23 | D16: Forecast 2023/24 | E16: Forecast 2024/25 | F16: Forecast 2025/26 | G16: Forecast 2026/27 | H16: Forecast 2027/28 | I16: Forecast 2028/29 | J16: ="Forecast "&J1+8&"/"&RIGHT(J1,2)+9 -> Forecast 2029/30 | K16: Forecast 2030/31 | L16: Forecast 2031/32 | M16: Forecast 2032/33 | N16: Forecast 2033/34 | O16: Forecast 2034/35 | Z16: Roads Infrastructure | AA16: Roads, Pavements & Bridges | AB16: Roads | AC16: Spatial integration | AD16: Quality basic education
A17: ='Template names'!C24 -> Next yr of long term forecast | B17: ="Forecast "&B1+9&"/"&RIGHT(B1,2)+10 -> Forecast 2022/23 | C17: Forecast 2023/24 | D17: Forecast 2024/25 | E17: Forecast 2025/26 | F17: Forecast 2026/27 | G17: Forecast 2027/28 | H17: Forecast 2028/29 | I17: Forecast 2029/30 | J17: ="Forecast "&J1+9&"/"&RIGHT(J1,2)+10 -> Forecast 2030/31 | K17: Forecast 2031/32 | L17: Forecast 2032/33 | M17: Forecast 2033/34 | N17: Forecast 2034/35 | O17: Forecast 2035/36 | Z17: Storm water Infrastructure | AA17: Storm water | AB17: Road Structures | AC17: Inclusion and access | AD17: A long and healthy life for all South Africans
A18: ='Template names'!C25 -> Next yr of long term forecast | B18: ="Forecast "&B1+10&"/"&RIGHT(B1,2)+11 -> Forecast 2023/24 | C18: Forecast 2024/25 | D18: Forecast 2025/26 | E18: Forecast 2026/27 | F18: Forecast 2027/28 | G18: Forecast 2028/29 | H18: Forecast 2029/30 | I18: Forecast 2030/31 | J18: ="Forecast "&J1+10&"/"&RIGHT(J1,2)+11 -> Forecast 2031/32 | K18: Forecast 2032/33 | L18: Forecast 2033/34 | M18: Forecast 2034/35 | N18: Forecast 2035/36 | O18: Forecast 2036/37 | Z18: Electrical Infrastructure | AA18: Generation | AB18: Road Furniture | AC18: Growth | AD18: All people in South Africa are and feel safe
A19: ='Template names'!C26 -> Next yr of long term forecast | B19: ="Forecast "&B1+11&"/"&RIGHT(B1,2)+12 -> Forecast 2024/25 | C19: Forecast 2025/26 | D19: Forecast 2026/27 | E19: Forecast 2027/28 | F19: Forecast 2028/29 | G19: Forecast 2029/30 | H19: Forecast 2030/31 | I19: Forecast 2031/32 | J19: ="Forecast "&J1+11&"/"&RIGHT(J1,2)+12 -> Forecast 2032/33 | K19: Forecast 2033/34 | L19: Forecast 2034/35 | M19: Forecast 2035/36 | N19: Forecast 2036/37 | O19: Forecast 2037/38 | Z19: Water Supply Infrastructure | AA19: Transmission & Reticulation | AB19: Capital Spares | AC19: Governance | AD19: Decent employment through inclusive growth
A20: ='Template names'!C27 -> Next yr of long term forecast | B20: ="Forecast "&B1+12&"/"&RIGHT(B1,2)+13 -> Forecast 2025/26 | C20: Forecast 2026/27 | D20: Forecast 2027/28 | E20: Forecast 2028/29 | F20: Forecast 2029/30 | G20: Forecast 2030/31 | H20: Forecast 2031/32 | I20: Forecast 2032/33 | J20: ="Forecast "&J1+12&"/"&RIGHT(J1,2)+13 -> Forecast 2033/34 | K20: Forecast 2034/35 | L20: Forecast 2035/36 | M20: Forecast 2036/37 | N20: Forecast 2037/38 | O20: Forecast 2038/39 | Z20: Sanitation Infrastructure | AA20: Street Lighting | AB20: Drainage Collection | AD20: A skilled and capable workforce to support an inclusive growth path
A21: ='Template names'!C28 -> Next yr of long term forecast | B21: ="Forecast "&B1+13&"/"&RIGHT(B1,2)+14 -> Forecast 2026/27 | C21: Forecast 2027/28 | D21: Forecast 2028/29 | E21: Forecast 2029/30 | F21: Forecast 2030/31 | G21: Forecast 2031/32 | H21: Forecast 2032/33 | I21: Forecast 2033/34 | J21: ="Forecast "&J1+13&"/"&RIGHT(J1,2)+14 -> Forecast 2034/35 | K21: Forecast 2035/36 | L21: Forecast 2036/37 | M21: Forecast 2037/38 | N21: Forecast 2038/39 | O21: Forecast 2039/40 | Z21: Solid Waste Infrastructure | AA21: Dams & Reservoirs | AB21: Storm water Conveyance | AD21: An efficient, competitive and responsive economic infrastructure network
A22: ='Template names'!C29 -> Next yr of long term forecast | B22: ="Forecast "&B1+14&"/"&RIGHT(B1,2)+15 -> Forecast 2027/28 | C22: Forecast 2028/29 | D22: Forecast 2029/30 | E22: Forecast 2030/31 | F22: Forecast 2031/32 | G22: Forecast 2032/33 | H22: Forecast 2033/34 | I22: Forecast 2034/35 | J22: ="Forecast "&J1+14&"/"&RIGHT(J1,2)+15 -> Forecast 2035/36 | K22: Forecast 2036/37 | L22: Forecast 2037/38 | M22: Forecast 2038/39 | N22: Forecast 2039/40 | O22: Forecast 2040/41 | Z22: Rail Infrastructure | AA22: Water purification | AB22: Attenuation | AD22: Vibrant, equitable, sustainable rural communities contributing towards food security for all
A23: Adjustments Budget | B23: ="Annual target " & B1&"/"&RIGHT(B1,2)+1 -> Annual target 2013/14 | C23: Annual target 2014/15 | D23: Annual target 2015/16 | E23: Annual target 2016/17 | F23: Annual target 2017/18 | G23: Annual target 2018/19 | H23: Annual target 2019/20 | I23: Annual target 2020/21 | J23: ="Annual target " & J1&"/"&RIGHT(J1,2)+1 -> Annual target 2021/22 | K23: Annual target 2022/23 | L23: Annual target 2023/24 | M23: Annual target 2024/25 | N23: Annual target 2025/26 | O23: Annual target 2026/27 | Z23: Coastal Infrastructure | AA23: Reticulation | AB23: Power Plants | AD23: Sustainable human settlements and improved quality of household life
A24: =A23 -> Adjustments Budget | B24: ="Revised target "& B1&"/"&RIGHT(B1,2)+1 -> Revised target 2013/14 | C24: Revised target 2014/15 | D24: Revised target 2015/16 | E24: Revised target 2016/17 | F24: Revised target 2017/18 | G24: Revised target 2018/19 | H24: Revised target 2019/20 | I24: Revised target 2020/21 | J24: ="Revised target "& J1&"/"&RIGHT(J1,2)+1 -> Revised target 2021/22 | K24: Revised target 2022/23 | L24: Revised target 2023/24 | M24: Revised target 2024/25 | N24: Revised target 2025/26 | O24: Revised target 2026/27 | Z24: Information and Communication Infrastructure | AA24: Sewerage purification | AB24: HV Substations | AD24: Responsive, accountable, effective and efficient local government
A25: NOTE: This sheet should not be directly amended - select headings from sheet 'S' | Z25: Community Facilities | AA25: Waste Management | AB25: HV Switching Station | AD25: Protect and enhance our environmental assets and natural resources
Z26: Sport and Recreation Facilities | AA26: Transportation | AB26: HV Transmission Conductors | AD26: Create a better South Africa and contribute to a better Africa and a better world
A27: Name link | B27: 1 | Z27: Heritage assets | AA27: Gas | AB27: MV Substations | AD27: An efficient, effective and development-oriented public service
A28: Name of Muni | B28: =INDEX(B29:B307,B27,1) -> Choose name from list | Z28: Revenue Generating | AA28: Parks & gardens | AB28: MV Switching Stations | AD28: A comprehensive, responsive and sustainable social protection system
B29: Choose name from list | C29: Set name on 'Instructions' sheet | Z29: Non-revenue Generating | AA29: Sportsfields & stadia | AB29: MV Networks | AD29: A diverse, socially cohesive society with a common national identity
B30: BUF Buffalo City | C30: EC EASTERN CAPE | Z30: Operational Buildings | AA30: Swimming pools | AB30: LV Networks
B31: NMA Nelson Mandela Bay | C31: EC EASTERN CAPE | Z31: Housing | AA31: Community halls | AB31: Capital Spares
B32: EC101 Dr Beyers Naude | C32: EC EASTERN CAPE | Z32: Biological or Cultivated Assets | AA32: Libraries | AB32: Dams and Weirs
B33: EC102 Blue Crane Route | C33: EC EASTERN CAPE | Z33: Servitudes | AA33: Recreational facilities | AB33: Boreholes
B34: EC104 Makana | C34: EC EASTERN CAPE | Z34: Licences and Rights | AA34: Fire, safety & emergency | AB34: Reservoirs
B35: EC105 Ndlambe | C35: EC EASTERN CAPE | Z35: Computer Equipment | AA35: Security and policing | AB35: Pump Stations
B36: EC106 Sundays River Valley | C36: EC EASTERN CAPE | Z36: Furniture and Office Equipment | AA36: Buses | AB36: Water Treatment Works
B37: EC108 Kouga | C37: EC EASTERN CAPE | Z37: Machinery and Equipment | AA37: Clinics | AB37: Bulk Mains
B38: EC109 Kou-Kamma | C38: EC EASTERN CAPE | Z38: Transport Assets | AA38: Museums & Art Galleries | AB38: Distribution
B39: DC10 Sarah Baartman | C39: EC EASTERN CAPE | Z39: Land | AA39: Cemeteries | AB39: Distribution Points
B40: EC121 Mbhashe | C40: EC EASTERN CAPE | Z40: Zoo's, Marine and Non-biological Animals | AA40: Social rental housing | AB40: PRV Stations
B41: EC122 Mnquma | C41: EC EASTERN CAPE | AA41: Buildings | AB41: Capital Spares
B42: EC123 Great Kei | C42: EC EASTERN CAPE | AA42: Housing development | AB42: Pump Station
B43: EC124 Amahlathi | C43: EC EASTERN CAPE | AA43: General vehicles | AB43: Reticulation
B44: EC126 Ngqushwa | C44: EC EASTERN CAPE | AA44: Specialised vehicles - Refuse | AB44: Waste Water Treatment Works
B45: EC129 Raymond Mhlaba | C45: EC EASTERN CAPE | AA45: Specialised vehicles - Fire | AB45: Outfall Sewers
B46: DC12 Amathole | C46: EC EASTERN CAPE | AA46: Specialised vehicles - Conservancy | AB46: Toilet Facilities
B47: EC131 Inxuba Yethemba | C47: EC EASTERN CAPE | AA47: Specialised vehicles - Ambulances | AB47: Capital Spares
B48: EC135 Intsika Yethu | C48: EC EASTERN CAPE | AA48: Plant & equipment | AB48: Landfill Sites
B49: EC136 Emalahleni (Ec) | C49: EC EASTERN CAPE | AA49: Computers - hardware/equipment | AB49: Waste Transfer Stations
B50: EC137 Engcobo | C50: EC EASTERN CAPE | AA50: Furniture and other office equipment | AB50: Waste Processing Facilities
B51: EC138 Sakhisizwe | C51: EC EASTERN CAPE | AA51: Abattoirs | AB51: Waste Drop-off Points
B52: EC139 Enoch Mgijima | C52: EC EASTERN CAPE | AA52: Markets | AB52: Waste Separation Facilities
B53: DC13 Chris Hani | C53: EC EASTERN CAPE | AA53: Civic Land and Buildings | AB53: Electricity Generation Facilities
B54: EC141 Elundini | C54: EC EASTERN CAPE | AA54: Other Buildings | AB54: Capital Spares
B55: EC142 Senqu | C55: EC EASTERN CAPE | AA55: Other Land | AB55: Rail Lines
B56: EC145 Walter Sisulu | C56: EC EASTERN CAPE | AA56: Surplus Assets - (Investment or Inventory) | AB56: Rail Structures
B57: DC14 Joe Gqabi | C57: EC EASTERN CAPE | AA57: Computers - software & programming | AB57: Rail Furniture
B58: EC153 Ngquza Hills | C58: EC EASTERN CAPE | AA58: Other | AB58: Drainage Collection
B59: EC154 Port St Johns | C59: EC EASTERN CAPE | AB59: Storm water Conveyance
B60: EC155 Nyandeni | C60: EC EASTERN CAPE | Z60: SA16 - Investments | AB60: Attenuation
B61: EC156 Mhlontlo | C61: EC EASTERN CAPE | Z61: Security | AA61: Interest rate | AB61: MV Substations
B62: EC157 King Sabata Dalindyebo | C62: EC EASTERN CAPE | Z62: Yes | AA62: Fixed | AB62: LV Networks
B63: DC15 O .R. Tambo | C63: EC EASTERN CAPE | Z63: No | AA63: Variable | AB63: Capital Spares
B64: EC441 Matatiele | C64: EC EASTERN CAPE | AB64: Sand Pumps
B65: EC442 Umzimvubu | C65: EC EASTERN CAPE | AB65: Piers
B66: EC443 Winnie Madikizela Mandela | C66: EC EASTERN CAPE | Z66: SA36, SA37 - Capital projects | AB66: Revetments
B67: EC444 Ntabankulu | C67: EC EASTERN CAPE | Z67: Yes | AB67: Promenades
B68: DC44 Alfred Nzo | C68: EC EASTERN CAPE | Z68: No | AB68: Capital Spares
B69: MAN Mangaung | C69: FS FREE STATE | AB69: Data Centres
B70: FS161 Letsemeng | C70: FS FREE STATE | AB70: Core Layers
B71: FS162 Kopanong | C71: FS FREE STATE | AB71: Distribution Layers
B72: FS163 Mohokare | C72: FS FREE STATE | AB72: Capital Spares
B73: DC16 Xhariep | C73: FS FREE STATE | AB73: Halls
B74: FS181 Masilonyana | C74: FS FREE STATE | AB74: Centres
B75: FS182 Tokologo | C75: FS FREE STATE | AB75: Crèches
B76: FS183 Tswelopele | C76: FS FREE STATE | AB76: Clinics/Care Centres
B77: FS184 Matjhabeng | C77: FS FREE STATE | AB77: Fire/Ambulance Stations
B78: FS185 Nala | C78: FS FREE STATE | AB78: Testing Stations
B79: DC18 Lejweleputswa | C79: FS FREE STATE | AB79: Museums
B80: FS191 Setsoto | C80: FS FREE STATE | AB80: Galleries
B81: FS192 Dihlabeng | C81: FS FREE STATE | AB81: Theatres
B82: FS193 Nketoana | C82: FS FREE STATE | AB82: Libraries
B83: FS194 Maluti-a-Phofung | C83: FS FREE STATE | AB83: Cemeteries/Crematoria
B84: FS195 Phumelela | C84: FS FREE STATE | AB84: Police
B85: FS196 Mantsopa | C85: FS FREE STATE | AB85: Purls
B86: DC19 Thabo Mofutsanyana | C86: FS FREE STATE | AB86: Public Open Space
B87: FS201 Moqhaka | C87: FS FREE STATE | AB87: Nature Reserves
B88: FS203 Ngwathe | C88: FS FREE STATE | AB88: Public Ablution Facilities
B89: FS204 Metsimaholo | C89: FS FREE STATE | AB89: Markets
B90: FS205 Mafube | C90: FS FREE STATE | AB90: Stalls
B91: DC20 Fezile Dabi | C91: FS FREE STATE | AB91: Abattoirs
B92: EKU City of Ekurhuleni | C92: GT GAUTENG | AB92: Airports
B93: JHB City Of Johannesburg | C93: GT GAUTENG | AB93: Taxi Ranks/Bus Terminals
B94: TSH City Of Tshwane | C94: GT GAUTENG | AB94: Capital Spares
B95: GT421 Emfuleni | C95: GT GAUTENG | AB95: Indoor Facilities
B96: GT422 Midvaal | C96: GT GAUTENG | AB96: Outdoor Facilities
B97: GT423 Lesedi | C97: GT GAUTENG | AB97: Capital Spares
B98: DC42 Sedibeng | C98: GT GAUTENG | AB98: Monuments
B99: GT481 Mogale City | C99: GT GAUTENG | AB99: Historic Buildings
B100: GT484 Merafong City | C100: GT GAUTENG | AB100: Works of Art
B101: GT485 Rand West City | C101: GT GAUTENG | AB101: Conservation Areas
B102: DC48 West Rand | C102: GT GAUTENG | AB102: Other Heritage
B103: ETH eThekwini | C103: KZN KWAZULU-NATAL | AB103: Improved Property
B104: KZN212 Umdoni | C104: KZN KWAZULU-NATAL | AB104: Unimproved Property
B105: KZN213 Umzumbe | C105: KZN KWAZULU-NATAL | AB105: Municipal Offices
B106: KZN214 uMuziwabantu | C106: KZN KWAZULU-NATAL | AB106: Pay/Enquiry Points
B107: KZN216 Ray Nkonyeni | C107: KZN KWAZULU-NATAL | AB107: Building Plan Offices
B108: DC21 Ugu | C108: KZN KWAZULU-NATAL | AB108: Workshops
B109: KZN221 uMshwathi | C109: KZN KWAZULU-NATAL | AB109: Yards
B110: KZN222 uMngeni | C110: KZN KWAZULU-NATAL | AB110: Stores
B111: KZN223 Mpofana | C111: KZN KWAZULU-NATAL | AB111: Laboratories
B112: KZN224 Impendle | C112: KZN KWAZULU-NATAL | AB112: Training Centres
B113: KZN225 Msunduzi | C113: KZN KWAZULU-NATAL | AB113: Manufacturing Plant
B114: KZN226 Mkhambathini | C114: KZN KWAZULU-NATAL | AB114: Depots
B115: KZN227 Richmond | C115: KZN KWAZULU-NATAL | AB115: Capital Spares
B116: DC22 uMgungundlovu | C116: KZN KWAZULU-NATAL | AB116: Staff Housing
B117: KZN235 Okhahlamba | C117: KZN KWAZULU-NATAL | AB117: Social Housing
B118: KZN237 Inkosi Langalibalele | C118: KZN KWAZULU-NATAL | AB118: Capital Spares
B119: KZN238 Alfred Duma | C119: KZN KWAZULU-NATAL | AB119: Water Rights
B120: DC23 Uthukela | C120: KZN KWAZULU-NATAL | AB120: Effluent Licenses
B121: KZN241 Endumeni | C121: KZN KWAZULU-NATAL | AB121: Solid Waste Licenses
B122: KZN242 Nquthu | C122: KZN KWAZULU-NATAL | AB122: Computer Software and Applications
B123: KZN244 Msinga | C123: KZN KWAZULU-NATAL | AB123: Load Settlement Software Applications
B124: KZN245 Umvoti | C124: KZN KWAZULU-NATAL | AB124: Unspecified
B125: DC24 Umzinyathi | C125: KZN KWAZULU-NATAL
B126: KZN252 Newcastle | C126: KZN KWAZULU-NATAL
B127: KZN253 Emadlangeni | C127: KZN KWAZULU-NATAL
B128: KZN254 Dannhauser | C128: KZN KWAZULU-NATAL
B129: DC25 Amajuba | C129: KZN KWAZULU-NATAL
B130: KZN261 eDumbe | C130: KZN KWAZULU-NATAL
B131: KZN262 uPhongolo | C131: KZN KWAZULU-NATAL
B132: KZN263 Abaqulusi | C132: KZN KWAZULU-NATAL
B133: KZN265 Nongoma | C133: KZN KWAZULU-NATAL
B134: KZN266 Ulundi | C134: KZN KWAZULU-NATAL
B135: DC26 Zululand | C135: KZN KWAZULU-NATAL
B136: KZN271 Umhlabuyalingana | C136: KZN KWAZULU-NATAL
B137: KZN272 Jozini | C137: KZN KWAZULU-NATAL
B138: KZN275 Mtubatuba | C138: KZN KWAZULU-NATAL
B139: KZN276 Hlabisa Big Five | C139: KZN KWAZULU-NATAL
B140: DC27 Umkhanyakude | C140: KZN KWAZULU-NATAL
B141: KZN281 Mfolozi | C141: KZN KWAZULU-NATAL
B142: KZN282 uMhlathuze | C142: KZN KWAZULU-NATAL
B143: KZN284 uMlalazi | C143: KZN KWAZULU-NATAL
B144: KZN285 Mthonjaneni | C144: KZN KWAZULU-NATAL
B145: KZN286 Nkandla | C145: KZN KWAZULU-NATAL
B146: DC28 King Cetshwayo | C146: KZN KWAZULU-NATAL
B147: KZN291 Mandeni | C147: KZN KWAZULU-NATAL
B148: KZN292 KwaDukuza | C148: KZN KWAZULU-NATAL
B149: KZN293 Ndwedwe | C149: KZN KWAZULU-NATAL
B150: KZN294 Maphumulo | C150: KZN KWAZULU-NATAL
B151: DC29 iLembe | C151: KZN KWAZULU-NATAL
B152: KZN433 Greater Kokstad | C152: KZN KWAZULU-NATAL
B153: KZN434 Ubuhlebezwe | C153: KZN KWAZULU-NATAL
B154: KZN435 Umzimkhulu | C154: KZN KWAZULU-NATAL
B155: KZN436 Dr Nkosazana Dlamini Zuma | C155: KZN KWAZULU-NATAL
B156: DC43 Harry Gwala | C156: KZN KWAZULU-NATAL
B157: LIM331 Greater Giyani | C157: LIM LIMPOPO
B158: LIM332 Greater Letaba | C158: LIM LIMPOPO
B159: LIM333 Greater Tzaneen | C159: LIM LIMPOPO
B160: LIM334 Ba-Phalaborwa | C160: LIM LIMPOPO
B161: LIM335 Maruleng | C161: LIM LIMPOPO
B162: DC33 Mopani | C162: LIM LIMPOPO
B163: LIM341 Musina | C163: LIM LIMPOPO
B164: LIM343 Thulamela | C164: LIM LIMPOPO
B165: LIM344 Makhado | C165: LIM LIMPOPO
B166: LIM345 Collins Chabane | C166: LIM LIMPOPO
B167: DC34 Vhembe | C167: LIM LIMPOPO
B168: LIM351 Blouberg | C168: LIM LIMPOPO
B169: LIM353 Molemole | C169: LIM LIMPOPO
B170: LIM354 Polokwane | C170: LIM LIMPOPO
B171: LIM355 Lepelle-Nkumpi | C171: LIM LIMPOPO
B172: DC35 Capricorn | C172: LIM LIMPOPO
B173: LIM361 Thabazimbi | C173: LIM LIMPOPO
B174: LIM362 Lephalale | C174: LIM LIMPOPO
B175: LIM366 Bela Bela | C175: LIM LIMPOPO
B176: LIM367 Mogalakwena | C176: LIM LIMPOPO
B177: LIM368 Modimolle-Mookgopong | C177: LIM LIMPOPO
B178: DC36 Waterberg | C178: LIM LIMPOPO
B179: LIM471 Ephraim Mogale | C179: LIM LIMPOPO
B180: LIM472 Elias Motsoaledi | C180: LIM LIMPOPO
B181: LIM473 Makhuduthamaga | C181: LIM LIMPOPO
B182: LIM476 Tubatse Fetakgomo | C182: LIM LIMPOPO
B183: DC47 Sekhukhune | C183: LIM LIMPOPO
B184: MP301 Albert Luthuli | C184: MP MPUMALANGA
B185: MP302 Msukaligwa | C185: MP MPUMALANGA
B186: MP303 Mkhondo | C186: MP MPUMALANGA
B187: MP304 Pixley Ka Seme (MP) | C187: MP MPUMALANGA
B188: MP305 Lekwa | C188: MP MPUMALANGA
B189: MP306 Dipaleseng | C189: MP MPUMALANGA
B190: MP307 Govan Mbeki | C190: MP MPUMALANGA
B191: DC30 Gert Sibande | C191: MP MPUMALANGA
B192: MP311 Victor Khanye | C192: MP MPUMALANGA
B193: MP312 Emalahleni (Mp) | C193: MP MPUMALANGA
B194: MP313 Steve Tshwete | C194: MP MPUMALANGA
B195: MP314 Emakhazeni | C195: MP MPUMALANGA
B196: MP315 Thembisile Hani | C196: MP MPUMALANGA
B197: MP316 Dr J.S. Moroka | C197: MP MPUMALANGA
B198: DC31 Nkangala | C198: MP MPUMALANGA
B199: MP321 Thaba Chweu | C199: MP MPUMALANGA
B200: MP324 Nkomazi | C200: MP MPUMALANGA
... 87 more rows

Sheet Org structure
A1: Organisational Structure Votes | C1: Organisational Structure Sub-Votes | E1: Display Sub-Votes
A2: =B2&" - "&C2 -> Vote 1 - Executive & Council | B2: Vote 1 | C2: Executive & Council
A3: =B13&" - "& C13 -> Vote 2 - Planning and Economic Development | B3: 1.1 | C3: [Name of sub-vote] | D3: =CONCATENATE(B3, " - ", C3) -> 1.1 - [Name of sub-vote] | E3: 1.1 - [Name of sub-vote]
A4: =B24&" - "&C24 -> Vote 3 - Budget and Treasury | B4: 1.2 | C4: [Name of sub-vote] | D4: 1.2 - [Name of sub-vote]
A5: =B35&" - "&C35 -> Vote 4 - Corporate Services | B5: 1.3 | C5: [Name of sub-vote] | D5: 1.3 - [Name of sub-vote]
A6: =B46&" - "&C46 -> Vote 5 - Engineering Services | B6: 1.4 | C6: [Name of sub-vote] | D6: 1.4 - [Name of sub-vote]
A7: =B57&" - "&C57 -> Vote 6 - Community Services | B7: 1.5 | C7: [Name of sub-vote] | D7: 1.5 - [Name of sub-vote]
A8: =B68&" - "&C68 -> Vote 7 - Electrical Engineering | B8: 1.6 | C8: [Name of sub-vote] | D8: 1.6 - [Name of sub-vote]
A9: =B79&" - "&C79 -> Vote 8 - Office of the Speaker | B9: 1.7 | C9: [Name of sub-vote] | D9: 1.7 - [Name of sub-vote]
A10: =B90&" - "&C90 -> Vote 9 - COMMUNITY & SOCIAL SERVICES | B10: 1.8 | C10: [Name of sub-vote] | D10: 1.8 - [Name of sub-vote]
A11: =B101&" - "&C101 -> Vote 10 - Office of the Municipal Manager | B11: 1.9 | C11: [Name of sub-vote] | D11: 1.9 - [Name of sub-vote]
A12: =B112&" - "&C112 -> Vote 11 - [NAME OF VOTE 11] | B12: 1.10 | C12: [Name of sub-vote] | D12: 1.10 - [Name of sub-vote]
A13: =B123&" - "&C123 -> Vote 12 - [NAME OF VOTE 12] | B13: Vote 2 | C13: Planning and Economic Development
A14: =B134&" - "&C134 -> Vote 13 - [NAME OF VOTE 13] | B14: 2.1 | C14: [Name of sub-vote] | D14: =CONCATENATE(B14, " - ", C14) -> 2.1 - [Name of sub-vote] | E14: 2.1 - [Name of sub-vote]
A15: =B145&" - "&C145 -> Vote 14 - [NAME OF VOTE 14] | B15: 2.2 | C15: [Name of sub-vote] | D15: 2.2 - [Name of sub-vote]
A16: =B156&" - "&C156 -> Vote 15 - [NAME OF VOTE 15] | B16: 2.3 | C16: [Name of sub-vote] | D16: 2.3 - [Name of sub-vote]
B17: 2.4 | C17: [Name of sub-vote] | D17: 2.4 - [Name of sub-vote]
B18: 2.5 | C18: [Name of sub-vote] | D18: 2.5 - [Name of sub-vote]
B19: 2.6 | C19: [Name of sub-vote] | D19: 2.6 - [Name of sub-vote]
B20: 2.7 | C20: [Name of sub-vote] | D20: 2.7 - [Name of sub-vote]
B21: 2.8 | C21: [Name of sub-vote] | D21: 2.8 - [Name of sub-vote]
B22: 2.9 | C22: [Name of sub-vote] | D22: 2.9 - [Name of sub-vote]
B23: 2.10 | C23: [Name of sub-vote] | D23: 2.10 - [Name of sub-vote]
B24: Vote 3 | C24: Budget and Treasury
B25: 3.1 | C25: [Name of sub-vote] | D25: =CONCATENATE(B25, " - ", C25) -> 3.1 - [Name of sub-vote] | E25: 3.1 - [Name of sub-vote]
B26: 3.2 | C26: [Name of sub-vote] | D26: 3.2 - [Name of sub-vote]
B27: 3.3 | C27: [Name of sub-vote] | D27: 3.3 - [Name of sub-vote]
B28: 3.4 | C28: [Name of sub-vote] | D28: 3.4 - [Name of sub-vote]
B29: 3.5 | C29: [Name of sub-vote] | D29: 3.5 - [Name of sub-vote]
B30: 3.6 | C30: [Name of sub-vote] | D30: 3.6 - [Name of sub-vote]
B31: 3.7 | C31: [Name of sub-vote] | D31: 3.7 - [Name of sub-vote]
B32: 3.8 | C32: [Name of sub-vote] | D32: 3.8 - [Name of sub-vote]
B33: 3.9 | C33: [Name of sub-vote] | D33: 3.9 - [Name of sub-vote]
B34: 3.10 | C34: [Name of sub-vote] | D34: 3.10 - [Name of sub-vote]
B35: Vote 4 | C35: Corporate Services
B36: 4.1 | C36: [Name of sub-vote] | D36: =CONCATENATE(B36, " - ", C36) -> 4.1 - [Name of sub-vote] | E36: 4.1 - [Name of sub-vote]
B37: 4.2 | C37: [Name of sub-vote] | D37: 4.2 - [Name of sub-vote]
B38: 4.3 | C38: [Name of sub-vote] | D38: 4.3 - [Name of sub-vote]
B39: 4.4 | C39: [Name of sub-vote] | D39: 4.4 - [Name of sub-vote]
B40: 4.5 | C40: [Name of sub-vote] | D40: 4.5 - [Name of sub-vote]
B41: 4.6 | C41: [Name of sub-vote] | D41: 4.6 - [Name of sub-vote]
B42: 4.7 | C42: [Name of sub-vote] | D42: 4.7 - [Name of sub-vote]
B43: 4.8 | C43: [Name of sub-vote] | D43: 4.8 - [Name of sub-vote]
B44: 4.9 | C44: [Name of sub-vote] | D44: 4.9 - [Name of sub-vote]
B45: 4.10 | C45: [Name of sub-vote] | D45: 4.10 - [Name of sub-vote]
B46: Vote 5 | C46: Engineering Services
B47: 5.1 | C47: [Name of sub-vote] | D47: =CONCATENATE(B47, " - ", C47) -> 5.1 - [Name of sub-vote] | E47: 5.1 - [Name of sub-vote]
B48: 5.2 | C48: [Name of sub-vote] | D48: 5.2 - [Name of sub-vote]
B49: 5.3 | C49: [Name of sub-vote] | D49: 5.3 - [Name of sub-vote]
B50: 5.4 | C50: [Name of sub-vote] | D50: 5.4 - [Name of sub-vote]
B51: 5.5 | C51: [Name of sub-vote] | D51: 5.5 - [Name of sub-vote]
B52: 5.6 | C52: [Name of sub-vote] | D52: 5.6 - [Name of sub-vote]
B53: 5.7 | C53: [Name of sub-vote] | D53: 5.7 - [Name of sub-vote]
B54: 5.8 | C54: [Name of sub-vote] | D54: 5.8 - [Name of sub-vote]
B55: 5.9 | C55: [Name of sub-vote] | D55: 5.9 - [Name of sub-vote]
B56: 5.10 | C56: [Name of sub-vote] | D56: 5.10 - [Name of sub-vote]
B57: Vote 6 | C57: Community Services
B58: 6.1 | C58: [Name of sub-vote] | D58: =CONCATENATE(B58, " - ", C58) -> 6.1 - [Name of sub-vote] | E58: 6.1 - [Name of sub-vote]
B59: 6.2 | C59: [Name of sub-vote] | D59: 6.2 - [Name of sub-vote]
B60: 6.3 | C60: [Name of sub-vote] | D60: 6.3 - [Name of sub-vote]
B61: 6.4 | C61: [Name of sub-vote] | D61: 6.4 - [Name of sub-vote]
B62: 6.5 | C62: [Name of sub-vote] | D62: 6.5 - [Name of sub-vote]
B63: 6.6 | C63: [Name of sub-vote] | D63: 6.6 - [Name of sub-vote]
B64: 6.7 | C64: [Name of sub-vote] | D64: 6.7 - [Name of sub-vote]
B65: 6.8 | C65: [Name of sub-vote] | D65: 6.8 - [Name of sub-vote]
B66: 6.9 | C66: [Name of sub-vote] | D66: 6.9 - [Name of sub-vote]
B67: 6.10 | C67: [Name of sub-vote] | D67: 6.10 - [Name of sub-vote]
B68: Vote 7 | C68: Electrical Engineering
B69: 7.1 | C69: [Name of sub-vote] | D69: =CONCATENATE(B69, " - ", C69) -> 7.1 - [Name of sub-vote] | E69: 7.1 - [Name of sub-vote]
B70: 7.2 | C70: [Name of sub-vote] | D70: 7.2 - [Name of sub-vote]
B71: 7.3 | C71: [Name of sub-vote] | D71: 7.3 - [Name of sub-vote]
B72: 7.4 | C72: [Name of sub-vote] | D72: 7.4 - [Name of sub-vote]
B73: 7.5 | C73: [Name of sub-vote] | D73: 7.5 - [Name of sub-vote]
B74: 7.6 | C74: [Name of sub-vote] | D74: 7.6 - [Name of sub-vote]
B75: 7.7 | C75: [Name of sub-vote] | D75: 7.7 - [Name of sub-vote]
B76: 7.8 | C76: [Name of sub-vote] | D76: 7.8 - [Name of sub-vote]
B77: 7.9 | C77: [Name of sub-vote] | D77: 7.9 - [Name of sub-vote]
B78: 7.10 | C78: [Name of sub-vote] | D78: 7.10 - [Name of sub-vote]
B79: Vote 8 | C79: Office of the Speaker
B80: 8.1 | C80: [Name of sub-vote] | D80: =CONCATENATE(B80, " - ", C80) -> 8.1 - [Name of sub-vote] | E80: 8.1 - [Name of sub-vote]
B81: 8.2 | C81: [Name of sub-vote] | D81: 8.2 - [Name of sub-vote]
B82: 8.3 | C82: [Name of sub-vote] | D82: 8.3 - [Name of sub-vote]
B83: 8.4 | C83: [Name of sub-vote] | D83: 8.4 - [Name of sub-vote]
B84: 8.5 | C84: [Name of sub-vote] | D84: 8.5 - [Name of sub-vote]
B85: 8.6 | C85: [Name of sub-vote] | D85: 8.6 - [Name of sub-vote]
B86: 8.7 | C86: [Name of sub-vote] | D86: 8.7 - [Name of sub-vote]
B87: 8.8 | C87: [Name of sub-vote] | D87: 8.8 - [Name of sub-vote]
B88: 8.9 | C88: [Name of sub-vote] | D88: 8.9 - [Name of sub-vote]
B89: 8.10 | C89: [Name of sub-vote] | D89: 8.10 - [Name of sub-vote]
B90: Vote 9 | C90: COMMUNITY & SOCIAL SERVICES
B91: 9.1 | C91: [Name of sub-vote] | D91: =CONCATENATE(B91, " - ", C91) -> 9.1 - [Name of sub-vote] | E91: 9.1 - [Name of sub-vote]
B92: 9.2 | C92: [Name of sub-vote] | D92: 9.2 - [Name of sub-vote]
B93: 9.3 | C93: [Name of sub-vote] | D93: 9.3 - [Name of sub-vote]
B94: 9.4 | C94: [Name of sub-vote] | D94: 9.4 - [Name of sub-vote]
B95: 9.5 | C95: [Name of sub-vote] | D95: 9.5 - [Name of sub-vote]
B96: 9.6 | C96: [Name of sub-vote] | D96: 9.6 - [Name of sub-vote]
B97: 9.7 | C97: [Name of sub-vote] | D97: 9.7 - [Name of sub-vote]
B98: 9.8 | C98: [Name of sub-vote] | D98: 9.8 - [Name of sub-vote]
B99: 9.9 | C99: [Name of sub-vote] | D99: 9.9 - [Name of sub-vote]
B100: 9.10 | C100: [Name of sub-vote] | D100: 9.10 - [Name of sub-vote]
B101: Vote 10 | C101: Office of the Municipal Manager
B102: 10.1 | C102: [Name of sub-vote] | D102: =CONCATENATE(B102, " - ", C102) -> 10.1 - [Name of sub-vote] | E102: 10.1 - [Name of sub-vote]
B103: 10.2 | C103: [Name of sub-vote] | D103: 10.2 - [Name of sub-vote]
B104: 10.3 | C104: [Name of sub-vote] | D104: 10.3 - [Name of sub-vote]
B105: 10.4 | C105: [Name of sub-vote] | D105: 10.4 - [Name of sub-vote]
B106: 10.5 | C106: [Name of sub-vote] | D106: 10.5 - [Name of sub-vote]
B107: 10.6 | C107: [Name of sub-vote] | D107: 10.6 - [Name of sub-vote]
B108: 10.7 | C108: [Name of sub-vote] | D108: 10.7 - [Name of sub-vote]
B109: 10.8 | C109: [Name of sub-vote] | D109: 10.8 - [Name of sub-vote]
B110: 10.9 | C110: [Name of sub-vote] | D110: 10.9 - [Name of sub-vote]
B111: 10.10 | C111: [Name of sub-vote] | D111: 10.10 - [Name of sub-vote]
B112: Vote 11 | C112: [NAME OF VOTE 11]
B113: 11.1 | C113: [Name of sub-vote] | D113: =CONCATENATE(B113, " - ", C113) -> 11.1 - [Name of sub-vote] | E113: 11.1 - [Name of sub-vote]
B114: 11.2 | C114: [Name of sub-vote] | D114: 11.2 - [Name of sub-vote]
B115: 11.3 | C115: [Name of sub-vote] | D115: 11.3 - [Name of sub-vote]
B116: 11.4 | C116: [Name of sub-vote] | D116: 11.4 - [Name of sub-vote]
B117: 11.5 | C117: [Name of sub-vote] | D117: 11.5 - [Name of sub-vote]
B118: 11.6 | C118: [Name of sub-vote] | D118: 11.6 - [Name of sub-vote]
B119: 11.7 | C119: [Name of sub-vote] | D119: 11.7 - [Name of sub-vote]
B120: 11.8 | C120: [Name of sub-vote] | D120: 11.8 - [Name of sub-vote]
B121: 11.9 | C121: [Name of sub-vote] | D121: 11.9 - [Name of sub-vote]
B122: 11.10 | C122: [Name of sub-vote] | D122: 11.10 - [Name of sub-vote]
B123: Vote 12 | C123: [NAME OF VOTE 12]
B124: 12.1 | C124: [Name of sub-vote] | D124: =CONCATENATE(B124, " - ", C124) -> 12.1 - [Name of sub-vote] | E124: 12.1 - [Name of sub-vote]
B125: 12.2 | C125: [Name of sub-vote] | D125: 12.2 - [Name of sub-vote]
B126: 12.3 | C126: [Name of sub-vote] | D126: 12.3 - [Name of sub-vote]
B127: 12.4 | C127: [Name of sub-vote] | D127: 12.4 - [Name of sub-vote]
B128: 12.5 | C128: [Name of sub-vote] | D128: 12.5 - [Name of sub-vote]
B129: 12.6 | C129: [Name of sub-vote] | D129: 12.6 - [Name of sub-vote]
B130: 12.7 | C130: [Name of sub-vote] | D130: 12.7 - [Name of sub-vote]
B131: 12.8 | C131: [Name of sub-vote] | D131: 12.8 - [Name of sub-vote]
B132: 12.9 | C132: [Name of sub-vote] | D132: 12.9 - [Name of sub-vote]
B133: 12.10 | C133: [Name of sub-vote] | D133: 12.10 - [Name of sub-vote]
B134: Vote 13 | C134: [NAME OF VOTE 13]
B135: 13.1 | C135: [Name of sub-vote] | D135: =CONCATENATE(B135, " - ", C135) -> 13.1 - [Name of sub-vote] | E135: 13.1 - [Name of sub-vote]
B136: 13.2 | C136: [Name of sub-vote] | D136: 13.2 - [Name of sub-vote]
B137: 13.3 | C137: [Name of sub-vote] | D137: 13.3 - [Name of sub-vote]
B138: 13.4 | C138: [Name of sub-vote] | D138: 13.4 - [Name of sub-vote]
B139: 13.5 | C139: [Name of sub-vote] | D139: 13.5 - [Name of sub-vote]
B140: 13.6 | C140: [Name of sub-vote] | D140: 13.6 - [Name of sub-vote]
B141: 13.7 | C141: [Name of sub-vote] | D141: 13.7 - [Name of sub-vote]
B142: 13.8 | C142: [Name of sub-vote] | D142: 13.8 - [Name of sub-vote]
B143: 13.9 | C143: [Name of sub-vote] | D143: 13.9 - [Name of sub-vote]
B144: 13.10 | C144: [Name of sub-vote] | D144: 13.10 - [Name of sub-vote]
B145: Vote 14 | C145: [NAME OF VOTE 14]
B146: 14.1 | C146: [Name of sub-vote] | D146: =CONCATENATE(B146, " - ", C146) -> 14.1 - [Name of sub-vote] | E146: 14.1 - [Name of sub-vote]
B147: 14.2 | C147: [Name of sub-vote] | D147: 14.2 - [Name of sub-vote]
B148: 14.3 | C148: [Name of sub-vote] | D148: 14.3 - [Name of sub-vote]
B149: 14.4 | C149: [Name of sub-vote] | D149: 14.4 - [Name of sub-vote]
B150: 14.5 | C150: [Name of sub-vote] | D150: 14.5 - [Name of sub-vote]
B151: 14.6 | C151: [Name of sub-vote] | D151: 14.6 - [Name of sub-vote]
B152: 14.7 | C152: [Name of sub-vote] | D152: 14.7 - [Name of sub-vote]
B153: 14.8 | C153: [Name of sub-vote] | D153: 14.8 - [Name of sub-vote]
B154: 14.9 | C154: [Name of sub-vote] | D154: 14.9 - [Name of sub-vote]
B155: 14.10 | C155: [Name of sub-vote] | D155: 14.10 - [Name of sub-vote]
B156: Vote 15 | C156: [NAME OF VOTE 15]
B157: 15.1 | C157: [Name of sub-vote] | D157: =CONCATENATE(B157, " - ", C157) -> 15.1 - [Name of sub-vote] | E157: 15.1 - [Name of sub-vote]
B158: 15.2 | C158: [Name of sub-vote] | D158: 15.2 - [Name of sub-vote]
B159: 15.3 | C159: [Name of sub-vote] | D159: 15.3 - [Name of sub-vote]
B160: 15.4 | C160: [Name of sub-vote] | D160: 15.4 - [Name of sub-vote]
B161: 15.5 | C161: [Name of sub-vote] | D161: 15.5 - [Name of sub-vote]
B162: 15.6 | C162: [Name of sub-vote] | D162: 15.6 - [Name of sub-vote]
B163: 15.7 | C163: [Name of sub-vote] | D163: 15.7 - [Name of sub-vote]
B164: 15.8 | C164: [Name of sub-vote] | D164: 15.8 - [Name of sub-vote]
B165: 15.9 | C165: [Name of sub-vote] | D165: 15.9 - [Name of sub-vote]
B166: 15.10 | C166: [Name of sub-vote] | D166: 15.10 - [Name of sub-vote]

Sheet Contacts
A1: =muni&" - "&" Contact Information" -> Choose name from list - Contact Information
A3: A. GENERAL INFORMATION
A4: Municipality | B4: =muni -> Choose name from list | C4: =IF(B4="Choose name from List","Set name on 'Instructions' sheet", "") -> Set name on 'Instructions' sheet
A6: Grade | C6: 1 Grade in terms of the Remuneration of Public Office Bearers Act.
A8: Province | B8: =IF(B4>" ",VLOOKUP(B4,'Lookup and lists'!B29:C307,2, FALSE)," ") -> Set name on 'Instructions' sheet
A10: Web Address | B10: http://www.greatertzaneen.gov.za/
A12: e-mail Address | B12: info@tzaneen.gov.za
A14: B. CONTACT INFORMATION
A15: Postal address:
A16: P.O. Box | B16: 24
A17: City / Town | B17: Tzaneen
A18: Postal Code
A20: Street address
A21: Building
A22: Street No. & Name | B22: 1 Agatha Street
A23: City / Town | B23: Tzaneen
A24: Postal Code
A26: General Contacts
A27: Telephone number | B27: 0153078000
A28: Fax number
A30: C. POLITICAL LEADERSHIP
A31: Speaker: | C31: Secretary/PA to the Speaker:
A32: ID Number | C32: ID Number
A33: Title | C33: Title
A34: Name | C34: Name
A35: Telephone number | C35: Telephone number
A36: Cell number | C36: Cell number
A37: Fax number | C37: Fax number
A38: E-mail address | C38: E-mail address
A40: Mayor/Executive Mayor: | C40: Secretary/PA to the Mayor/Executive Mayor:
A41: ID Number | C41: ID Number
A42: Title | B42: Mr | C42: Title
A43: Name | B43: Gerson Molapisane | C43: Name
A44: Telephone number | B44: 0153078000 | C44: Telephone number
A45: Cell number | C45: Cell number
A46: Fax number | C46: Fax number
A47: E-mail address | C47: E-mail address
A49: Deputy Mayor/Executive Mayor: | C49: Secretary/PA to the Deputy Mayor/Executive Mayor:
A50: ID Number | C50: ID Number
A51: Title | C51: Title
A52: Name | C52: Name
A53: Telephone number | C53: Telephone number
A54: Cell number | C54: Cell number
A55: Fax number | C55: Fax number
A56: E-mail address | C56: E-mail address
A58: D. MANAGEMENT LEADERSHIP
A59: Acting Municipal Manager: | C59: Secretary/PA to the Municipal Manager:
A60: ID Number | C60: ID Number
A61: Title | B61: Mr (Acting Municipal Manager) | C61: Title
A62: Name | B62: Benjamin Mathebula | C62: Name
A63: Telephone number | B63: 0153078322 | C63: Telephone number
A64: Cell number | C64: Cell number
A65: Fax number | C65: Fax number
A66: E-mail address | C66: E-mail address
A68: Chief Financial Officer | C68: Secretary/PA to the Chief Financial Officer
A69: ID Number | C69: ID Number
A70: Title | B70: Miss | C70: Title
A71: Name | B71: Palesa Makhubela | C71: Name
A72: Telephone number | B72: 0153078062 | C72: Telephone number
A73: Cell number | C73: Cell number
A74: Fax number | C74: Fax number
A75: E-mail address | C75: E-mail address
A77: Official responsible for submitting financial information | C77: Official responsible for submitting financial information
A78: ID Number | C78: ID Number
A79: Title | B79: Mr (Manager Budget) | C79: Title
A80: Name | B80: Arnold Mathebula | C80: Name
A81: Telephone number | B81: 0153078061 | C81: Telephone number
A82: Cell number | C82: Cell number
A83: Fax number | C83: Fax number
A84: E-mail address | B84: arnold.mathebula@tzaneen.gov.za | C84: E-mail address
A85: Official responsible for submitting financial information | C85: Official responsible for submitting financial information
A86: ID Number | C86: ID Number
A87: Title | B87: Mr (Senior Accountant) | C87: Title
A88: Name | B88: Oupa Mbungela | C88: Name
A89: Telephone number | B89: 0153078000 | C89: Telephone number
A90: Cell number | C90: Cell number
A91: Fax number | C91: Fax number
A92: E-mail address | B92: oupa.mbungela@tzaneen.gov.za | C92: E-mail address
A93: Official responsible for submitting financial information | C93: Official responsible for submitting financial information
A94: ID Number | C94: ID Number
A95: Title | B95: Mr (Accountant) | C95: Title
A96: Name | B96: Siyakudumisa Nokwe | C96: Name
A97: Telephone number | B97: 0153078252 | C97: Telephone number
A98: Cell number | C98: Cell number
A99: Fax number | C99: Fax number
A100: E-mail address | B100: siyakudumisa@tzaneen.gov.za | C100: E-mail address
A101: Official responsible for submitting financial information | C101: Official responsible for submitting financial information
A102: ID Number | C102: ID Number
A103: Title | C103: Title
A104: Name | C104: Name
A105: Telephone number | C105: Telephone number
A106: Cell number | C106: Cell number
A107: Fax number | C107: Fax number
A108: E-mail address | C108: E-mail address
A109: Official responsible for submitting financial information | C109: Official responsible for submitting financial information
A110: ID Number | C110: ID Number
A111: Title | C111: Title
A112: Name | C112: Name
A113: Telephone number | C113: Telephone number
A114: Cell number | C114: Cell number
A115: Fax number | C115: Fax number
A116: E-mail address | C116: E-mail address
A117: Official responsible for submitting financial information | C117: Official responsible for submitting financial information
A118: ID Number | C118: ID Number
A119: Title | C119: Title
A120: Name | C120: Name
A121: Telephone number | C121: Telephone number
A122: Cell number | C122: Cell number
A123: Fax number | C123: Fax number
A124: E-mail address | C124: E-mail address
A125: Official responsible for submitting financial information | C125: Official responsible for submitting financial information
A126: ID Number | C126: ID Number
A127: Title | C127: Title
A128: Name | C128: Name
A129: Telephone number | C129: Telephone number
A130: Cell number | C130: Cell number
A131: Fax number | C131: Fax number
A132: E-mail address | C132: E-mail address
A133: Official responsible for submitting financial information
A134: ID Number
A135: Title
A136: Name
A137: Telephone number
A138: Cell number
A139: Fax number
A140: E-mail address

Sheet A1-Sum
A1: =muni&" - "&Approve1 -> Choose name from list - Table A1 Budget Summary
A2: =desc -> Description | B2: =head1b -> 2018/19 | C2: =head1A -> 2019/20 | D2: =Head1 -> 2020/21 | E2: =Head2 -> Current Year 2021/22 | I2: =Head3 -> 2022/23 Medium Term Revenue & Expenditure Framework
A3: R thousands | B3: =Head5 -> Audited Outcome | C3: =Head5 -> Audited Outcome | D3: =Head5 -> Audited Outcome | E3: =Head6 -> Original Budget | F3: =Head7 -> Adjusted Budget | G3: =Head8 -> Full Year Forecast | H3: =Head5b -> Pre-audit outcome | I3: =Head9 -> Budget Year 2022/23 | J3: =Head10 -> Budget Year +1 2023/24 | K3: =Head11 -> Budget Year +2 2024/25
A4: Financial Performance
A5: Property rates | B5: ='A4-FinPerf RE'!C5 -> 109163925 | C5: ='A4-FinPerf RE'!D5 -> 114746520.2 | D5: ='A4-FinPerf RE'!E5 -> 129625628.5 | E5: ='A4-FinPerf RE'!F5 -> 137500000 | F5: ='A4-FinPerf RE'!G5 -> 137500000 | G5: ='A4-FinPerf RE'!H5 -> 137500000 | H5: ='A4-FinPerf RE'!I5 -> 137500000 | I5: ='A4-FinPerf RE'!J5 -> 134837829 | J5: ='A4-FinPerf RE'!K5 -> 140770694 | K5: ='A4-FinPerf RE'!L5 -> 147105375
A6: Service charges | B6: =SUM('A4-FinPerf RE'!C6:C9) -> 486306408.3 | C6: =SUM('A4-FinPerf RE'!D6:D9) -> 556451662.5 | D6: =SUM('A4-FinPerf RE'!E6:E9) -> 499551897.1 | E6: =SUM('A4-FinPerf RE'!F6:F9) -> 705528611 | F6: =SUM('A4-FinPerf RE'!G6:G9) -> 705528611 | G6: =SUM('A4-FinPerf RE'!H6:H9) -> 705528611 | H6: =SUM('A4-FinPerf RE'!I6:I9) -> 710928611 | I6: =SUM('A4-FinPerf RE'!J6:J9) -> 737893774 | J6: =SUM('A4-FinPerf RE'!K6:K9) -> 770361100 | K6: =SUM('A4-FinPerf RE'!L6:L9) -> 805027350
A7: Investment revenue | B7: ='A4-FinPerf RE'!C12 -> 9615814.76 | C7: ='A4-FinPerf RE'!D12 -> 8677864.51 | D7: ='A4-FinPerf RE'!E12 -> 7227546.1 | E7: ='A4-FinPerf RE'!F12 -> 3500000 | F7: ='A4-FinPerf RE'!G12 -> 3500000 | G7: ='A4-FinPerf RE'!H12 -> 3500000 | H7: ='A4-FinPerf RE'!I12 -> 3500000 | I7: ='A4-FinPerf RE'!J12 -> 4500000 | J7: ='A4-FinPerf RE'!K12 -> 4698000 | K7: ='A4-FinPerf RE'!L12 -> 4909410
A8: Transfers recognised - operational | B8: ='A4-FinPerf RE'!C18 -> 369600821 | C8: ='A4-FinPerf RE'!D18 -> 424619589.6 | D8: ='A4-FinPerf RE'!E18 -> 529749558.3 | E8: ='A4-FinPerf RE'!F18 -> 464088050 | F8: ='A4-FinPerf RE'!G18 -> 464838050 | G8: ='A4-FinPerf RE'!H18 -> 464838050 | H8: ='A4-FinPerf RE'!I18 -> 464838050 | I8: ='A4-FinPerf RE'!J18 -> 516381180 | J8: ='A4-FinPerf RE'!K18 -> 544641176 | K8: ='A4-FinPerf RE'!L18 -> 578330616
A9: Other own revenue | B9: ='A4-FinPerf RE'!C11+'A4-FinPerf RE'!C13+'A4-FinPerf RE'!C14+'A4-FinPerf RE'!C15+'A4-FinPerf RE'!C16+'A4-FinPerf RE'!C17+'A4-FinPerf RE'!C19+'A4-FinPerf RE'!C20 -> 85377889.39 | C9: ='A4-FinPerf RE'!D11+'A4-FinPerf RE'!D13+'A4-FinPerf RE'!D14+'A4-FinPerf RE'!D15+'A4-FinPerf RE'!D16+'A4-FinPerf RE'!D17+'A4-FinPerf RE'!D19+'A4-FinPerf RE'!D20 -> 132340935.5 | D9: ='A4-FinPerf RE'!E11+'A4-FinPerf RE'!E13+'A4-FinPerf RE'!E14+'A4-FinPerf RE'!E15+'A4-FinPerf RE'!E16+'A4-FinPerf RE'!E17+'A4-FinPerf RE'!E19+'A4-FinPerf RE'!E20 -> 78571372.51 | E9: ='A4-FinPerf RE'!F11+'A4-FinPerf RE'!F13+'A4-FinPerf RE'!F14+'A4-FinPerf RE'!F15+'A4-FinPerf RE'!F16+'A4-FinPerf RE'!F17+'A4-FinPerf RE'!F19+'A4-FinPerf RE'!F20 -> 93325102 | F9: ='A4-FinPerf RE'!G11+'A4-FinPerf RE'!G13+'A4-FinPerf RE'!G14+'A4-FinPerf RE'!G15+'A4-FinPerf RE'!G16+'A4-FinPerf RE'!G17+'A4-FinPerf RE'!G19+'A4-FinPerf RE'!G20 -> 165325105 | G9: ='A4-FinPerf RE'!H11+'A4-FinPerf RE'!H13+'A4-FinPerf RE'!H14+'A4-FinPerf RE'!H15+'A4-FinPerf RE'!H16+'A4-FinPerf RE'!H17+'A4-FinPerf RE'!H19+'A4-FinPerf RE'!H20 -> 165325105 | H9: ='A4-FinPerf RE'!I11+'A4-FinPerf RE'!I13+'A4-FinPerf RE'!I14+'A4-FinPerf RE'!I15+'A4-FinPerf RE'!I16+'A4-FinPerf RE'!I17+'A4-FinPerf RE'!I19+'A4-FinPerf RE'!I20 -> 165325105 | I9: ='A4-FinPerf RE'!J11+'A4-FinPerf RE'!J13+'A4-FinPerf RE'!J14+'A4-FinPerf RE'!J15+'A4-FinPerf RE'!J16+'A4-FinPerf RE'!J17+'A4-FinPerf RE'!J19+'A4-FinPerf RE'!J20 -> 80642171 | J9: ='A4-FinPerf RE'!K11+'A4-FinPerf RE'!K13+'A4-FinPerf RE'!K14+'A4-FinPerf RE'!K15+'A4-FinPerf RE'!K16+'A4-FinPerf RE'!K17+'A4-FinPerf RE'!K19+'A4-FinPerf RE'!K20 -> 84190424 | K9: ='A4-FinPerf RE'!L11+'A4-FinPerf RE'!L13+'A4-FinPerf RE'!L14+'A4-FinPerf RE'!L15+'A4-FinPerf RE'!L16+'A4-FinPerf RE'!L17+'A4-FinPerf RE'!L19+'A4-FinPerf RE'!L20 -> 87978995
A10: ='A4-FinPerf RE'!A21 -> Total Revenue (excluding capital transfers and contributions) | B10: =SUM(B5:B9) -> 1060064858 | C10: 1236836572 | D10: 1244726002 | E10: 1403941763 | F10: 1476691766 | G10: 1476691766 | H10: 1482091766 | I10: 1474254954 | J10: 1544661394 | K10: 1623351746
A11: Employee costs | B11: ='A4-FinPerf RE'!C24 -> 214266310 | C11: ='A4-FinPerf RE'!D24 -> 311114595.2 | D11: ='A4-FinPerf RE'!E24 -> 352143965.3 | E11: ='A4-FinPerf RE'!F24 -> 349870050 | F11: ='A4-FinPerf RE'!G24 -> 362626213 | G11: ='A4-FinPerf RE'!H24 -> 362626213 | H11: ='A4-FinPerf RE'!I24 -> 362626213 | I11: ='A4-FinPerf RE'!J24 -> 367850609 | J11: ='A4-FinPerf RE'!K24 -> 384036052 | K11: ='A4-FinPerf RE'!L24 -> 401317672
A12: Remuneration of councillors | B12: ='A4-FinPerf RE'!C25 -> 26136302.58 | C12: ='A4-FinPerf RE'!D25 -> 26976533.73 | D12: ='A4-FinPerf RE'!E25 -> 27036544.36 | E12: ='A4-FinPerf RE'!F25 -> 28405898 | F12: ='A4-FinPerf RE'!G25 -> 28405898 | G12: ='A4-FinPerf RE'!H25 -> 28405898 | H12: ='A4-FinPerf RE'!I25 -> 28405898 | I12: ='A4-FinPerf RE'!J25 -> 28337493 | J12: ='A4-FinPerf RE'!K25 -> 29584341 | K12: ='A4-FinPerf RE'!L25 -> 30915636
A13: Depreciation & asset impairment | B13: ='A4-FinPerf RE'!C27 -> 132641263.5 | C13: ='A4-FinPerf RE'!D27 -> 107614714.9 | D13: ='A4-FinPerf RE'!E27 -> 109337040.5 | E13: ='A4-FinPerf RE'!F27 -> 134738731 | F13: ='A4-FinPerf RE'!G27 -> 134758934 | G13: ='A4-FinPerf RE'!H27 -> 134758934 | H13: ='A4-FinPerf RE'!I27 -> 134758934 | I13: ='A4-FinPerf RE'!J27 -> 126847579 | J13: ='A4-FinPerf RE'!K27 -> 132428876 | K13: ='A4-FinPerf RE'!L27 -> 138388176
A14: Finance charges | B14: ='A4-FinPerf RE'!C28 -> 11973760 | C14: ='A4-FinPerf RE'!D28 -> 14906807.83 | D14: ='A4-FinPerf RE'!E28 -> 19962159.62 | E14: ='A4-FinPerf RE'!F28 -> 17826562 | F14: ='A4-FinPerf RE'!G28 -> 17842659 | G14: ='A4-FinPerf RE'!H28 -> 17842659 | H14: ='A4-FinPerf RE'!I28 -> 17842659 | I14: ='A4-FinPerf RE'!J28 -> 14057048 | J14: ='A4-FinPerf RE'!K28 -> 12644770 | K14: ='A4-FinPerf RE'!L28 -> 11084838
A15: Inventory consumed and bulk purchases | B15: ='A4-FinPerf RE'!C29+'A4-FinPerf RE'!C30 -> 464167680 | C15: ='A4-FinPerf RE'!D29+'A4-FinPerf RE'!D30 -> 427059194.6 | D15: ='A4-FinPerf RE'!E29+'A4-FinPerf RE'!E30 -> 457182725.4 | E15: ='A4-FinPerf RE'!F29+'A4-FinPerf RE'!F30 -> 528796568 | F15: ='A4-FinPerf RE'!G29+'A4-FinPerf RE'!G30 -> 520129154 | G15: ='A4-FinPerf RE'!H29+'A4-FinPerf RE'!H30 -> 520129154 | H15: ='A4-FinPerf RE'!I29+'A4-FinPerf RE'!I30 -> 520129154 | I15: ='A4-FinPerf RE'!J29+'A4-FinPerf RE'!J30 -> 542139368 | J15: ='A4-FinPerf RE'!K29+'A4-FinPerf RE'!K30 -> 565993497 | K15: ='A4-FinPerf RE'!L29+'A4-FinPerf RE'!L30 -> 591463206
A16: Transfers and grants | B16: ='A4-FinPerf RE'!C32 -> 57132145 | C16: ='A4-FinPerf RE'!D32 -> 42736650.1 | D16: ='A4-FinPerf RE'!E32 -> 34977216.26 | E16: ='A4-FinPerf RE'!F32 -> 32118000 | F16: ='A4-FinPerf RE'!G32 -> 39994802 | G16: ='A4-FinPerf RE'!H32 -> 39994802 | H16: ='A4-FinPerf RE'!I32 -> 39994802 | I16: ='A4-FinPerf RE'!J32 -> 45801506 | J16: ='A4-FinPerf RE'!K32 -> 40472912 | K16: ='A4-FinPerf RE'!L32 -> 36977193
A17: Other expenditure | B17: ='A4-FinPerf RE'!C26+'A4-FinPerf RE'!C31+'A4-FinPerf RE'!C33+'A4-FinPerf RE'!C34 -> 292670337.6 | C17: ='A4-FinPerf RE'!D26+'A4-FinPerf RE'!D31+'A4-FinPerf RE'!D33+'A4-FinPerf RE'!D34 -> 181692880.9 | D17: ='A4-FinPerf RE'!E26+'A4-FinPerf RE'!E31+'A4-FinPerf RE'!E33+'A4-FinPerf RE'!E34 -> 124617323.2 | E17: ='A4-FinPerf RE'!F26+'A4-FinPerf RE'!F31+'A4-FinPerf RE'!F33+'A4-FinPerf RE'!F34 -> 235182985 | F17: ='A4-FinPerf RE'!G26+'A4-FinPerf RE'!G31+'A4-FinPerf RE'!G33+'A4-FinPerf RE'!G34 -> 229691225 | G17: ='A4-FinPerf RE'!H26+'A4-FinPerf RE'!H31+'A4-FinPerf RE'!H33+'A4-FinPerf RE'!H34 -> 229691225 | H17: ='A4-FinPerf RE'!I26+'A4-FinPerf RE'!I31+'A4-FinPerf RE'!I33+'A4-FinPerf RE'!I34 -> 229691225 | I17: ='A4-FinPerf RE'!J26+'A4-FinPerf RE'!J31+'A4-FinPerf RE'!J33+'A4-FinPerf RE'!J34 -> 275088410 | J17: ='A4-FinPerf RE'!K26+'A4-FinPerf RE'!K31+'A4-FinPerf RE'!K33+'A4-FinPerf RE'!K34 -> 287140012 | K17: ='A4-FinPerf RE'!L26+'A4-FinPerf RE'!L31+'A4-FinPerf RE'!L33+'A4-FinPerf RE'!L34 -> 300061252
A18: ='A4-FinPerf RE'!A35 -> Total Expenditure | B18: =SUM(B11:B17) -> 1198987799 | C18: =SUM(C11:C17) -> 1112101377 | D18: 1125256975 | E18: 1326938794 | F18: 1333448885 | G18: 1333448885 | H18: 1333448885 | I18: 1400122013 | J18: 1452300460 | K18: 1510207973
A19: ='A4-FinPerf RE'!A37 -> Surplus/(Deficit) | B19: =B10-B18 -> -138922940.2 | C19: 124735195.1 | D19: 119469028 | E19: 77002969 | F19: 143242881 | G19: 143242881 | H19: 148642881 | I19: 74132941 | J19: 92360934 | K19: 113143773
A20: ='A4-FinPerf RE'!A38 -> Transfers and subsidies - capital (monetary allocations) (National / Provincial and District) | B20: ='A4-FinPerf RE'!C38 -> 76150621.19 | C20: ='A4-FinPerf RE'!D38 -> 77869317.11 | D20: ='A4-FinPerf RE'!E38 -> 95741197.48 | E20: ='A4-FinPerf RE'!F38 -> 94753950 | F20: ='A4-FinPerf RE'!G38 -> 94753950 | G20: ='A4-FinPerf RE'!H38 -> 94753950 | H20: ='A4-FinPerf RE'!I38 -> 94753950 | I20: ='A4-FinPerf RE'!J38 -> 113648820 | J20: ='A4-FinPerf RE'!K38 -> 107516024 | K20: ='A4-FinPerf RE'!L38 -> 112511168
A21: ='A4-FinPerf RE'!A39&" & "&'A4-FinPerf RE'!A40 -> Transfers and subsidies - capital (monetary allocations) (National / Provincial Departmental Agencies, Households, Non-profit Institutions, Private Enterprises, Public Corporatons, Higher Educational Institutions) & Transfers and subsidies - capital (in-kind - all) | B21: ='A4-FinPerf RE'!C39+'A4-FinPerf RE'!C40 -> 0 | C21: ='A4-FinPerf RE'!D39+'A4-FinPerf RE'!D40 -> 10000000 | D21: ='A4-FinPerf RE'!E39+'A4-FinPerf RE'!E40 -> 13508391.11 | E21: ='A4-FinPerf RE'!F39+'A4-FinPerf RE'!F40 -> 0 | F21: ='A4-FinPerf RE'!G39+'A4-FinPerf RE'!G40 -> 1 | G21: ='A4-FinPerf RE'!H39+'A4-FinPerf RE'!H40 -> 1 | H21: ='A4-FinPerf RE'!I39+'A4-FinPerf RE'!I40 -> 1 | I21: ='A4-FinPerf RE'!J39+'A4-FinPerf RE'!J40 -> 0 | J21: ='A4-FinPerf RE'!K39+'A4-FinPerf RE'!K40 -> 0 | K21: ='A4-FinPerf RE'!L39+'A4-FinPerf RE'!L40 -> 0
A22: ='A4-FinPerf RE'!A41 -> Surplus/(Deficit) after capital transfers & contributions | B22: =B19+SUM(B20:B21) -> -62772319 | C22: =C19+SUM(C20:C21) -> 212604512.2 | E22: 171756919 | F22: 237996832 | G22: 237996832 | H22: 243396832 | I22: 187781761 | J22: 199876958 | K22: 225654941
A23: ='A4-FinPerf RE'!A46 -> Share of surplus/ (deficit) of associate | B23: ='A4-FinPerf RE'!C46 -> 0 | C23: ='A4-FinPerf RE'!D46 -> 0 | D23: ='A4-FinPerf RE'!E46 -> 0 | E23: ='A4-FinPerf RE'!F46 -> 0 | F23: ='A4-FinPerf RE'!G46 -> 0 | G23: ='A4-FinPerf RE'!H46 -> 0 | H23: ='A4-FinPerf RE'!I46 -> 0 | I23: ='A4-FinPerf RE'!J46 -> 0 | J23: ='A4-FinPerf RE'!K46 -> 0 | K23: ='A4-FinPerf RE'!L46 -> 0
A24: ='A4-FinPerf RE'!A47 -> Surplus/(Deficit) for the year | B24: =B22+B23 -> -62772319 | C24: =C22+C23 -> 212604512.2 | D24: 0 | E24: 171756919 | F24: 237996832 | G24: 237996832 | H24: 243396832 | I24: 187781761 | J24: 199876958 | K24: 225654941
A26: Capital expenditure & funds sources
A27: Capital expenditure | B27: ='A5-Capex'!C63 -> 103482439 | C27: ='A5-Capex'!D63 -> 190258111.3 | D27: ='A5-Capex'!E63 -> 137169872.4 | E27: ='A5-Capex'!F63 -> 130857450 | F27: ='A5-Capex'!G63 -> 142078164 | G27: ='A5-Capex'!H63 -> 142078164 | H27: ='A5-Capex'!I63 -> 142078164 | I27: ='A5-Capex'!J63 -> 164048820 | J27: ='A5-Capex'!K63 -> 181266024 | K27: ='A5-Capex'!L63 -> 158734088
A28: Transfers recognised - capital | B28: ='A5-Capex'!C70 -> 86451929 | C28: ='A5-Capex'!D70 -> 99549850.99 | D28: ='A5-Capex'!E70 -> 0.03 | E28: ='A5-Capex'!F70 -> 94753950 | F28: ='A5-Capex'!G70 -> 94753953 | G28: ='A5-Capex'!H70 -> 94753953 | H28: ='A5-Capex'!I70 -> 94753953 | I28: ='A5-Capex'!J70 -> 113648820 | J28: ='A5-Capex'!K70 -> 107516024 | K28: ='A5-Capex'!L70 -> 112511168
A30: ='A5-Capex'!A72 -> Borrowing | B30: ='A5-Capex'!C72 -> 17030510 | C30: ='A5-Capex'!D72 -> 32847672.04 | D30: ='A5-Capex'!E72 -> 901980.55 | E30: ='A5-Capex'!F72 -> 0 | F30: ='A5-Capex'!G72 -> 14020667 | G30: ='A5-Capex'!H72 -> 14020667 | H30: ='A5-Capex'!I72 -> 14020667 | I30: ='A5-Capex'!J72 -> 0 | J30: ='A5-Capex'!K72 -> 0 | K30: ='A5-Capex'!L72 -> 0
A31: ='A5-Capex'!A73 -> Internally generated funds | B31: ='A5-Capex'!C73 -> 0 | C31: ='A5-Capex'!D73 -> 57860588.31 | D31: ='A5-Capex'!E73 -> 136267891.8 | E31: ='A5-Capex'!F73 -> 36103500 | F31: ='A5-Capex'!G73 -> 33303544 | G31: ='A5-Capex'!H73 -> 33303544 | H31: ='A5-Capex'!I73 -> 33303544 | I31: ='A5-Capex'!J73 -> 50400000 | J31: ='A5-Capex'!K73 -> 73750000 | K31: ='A5-Capex'!L73 -> 46222920
A32: Total sources of capital funds | B32: =+B28+B30+B31 -> 103482439 | C32: =+C28+C30+C31 -> 190258111.3 | D32: 137169872.4 | E32: 130857450 | F32: 142078164 | G32: 142078164 | H32: 142078164 | I32: 164048820 | J32: 181266024 | K32: 158734088
A34: Financial position
A35: ='A6-FinPos'!A12 -> Total current assets | B35: ='A6-FinPos'!C12 -> 473169178.8 | C35: ='A6-FinPos'!D12 -> 679168794.2 | D35: ='A6-FinPos'!E12 -> 927953181.5 | E35: ='A6-FinPos'!F12 -> 587244041 | F35: ='A6-FinPos'!G12 -> 592755260 | G35: ='A6-FinPos'!H12 -> 592755260 | H35: ='A6-FinPos'!I12 -> 592755260 | I35: ='A6-FinPos'!J12 -> 592755245 | J35: ='A6-FinPos'!K12 -> 616533470 | K35: ='A6-FinPos'!L12 -> 639908526
A36: ='A6-FinPos'!A24 -> Total non current assets | B36: ='A6-FinPos'!C24 -> 1671375273 | C36: ='A6-FinPos'!D24 -> 1690419002 | D36: ='A6-FinPos'!E24 -> 1748204430 | E36: ='A6-FinPos'!F24 -> 2824937582 | F36: ='A6-FinPos'!G24 -> 1797188659 | G36: ='A6-FinPos'!H24 -> 1797188659 | H36: ='A6-FinPos'!I24 -> 1797188659 | I36: ='A6-FinPos'!J24 -> 1797188688 | J36: ='A6-FinPos'!K24 -> 1869076199 | K36: ='A6-FinPos'!L24 -> 1943839247
A37: ='A6-FinPos'!A34 -> Total current liabilities | B37: ='A6-FinPos'!C34 -> 330258143 | C37: ='A6-FinPos'!D34 -> 335036243.7 | D37: ='A6-FinPos'!E34 -> 372394959.8 | E37: ='A6-FinPos'!F34 -> 82175175 | F37: ='A6-FinPos'!G34 -> 340527476 | G37: ='A6-FinPos'!H34 -> 340527476 | H37: ='A6-FinPos'!I34 -> 340527476 | I37: ='A6-FinPos'!J34 -> 340527473 | J37: ='A6-FinPos'!K34 -> 354148575 | K37: ='A6-FinPos'!L34 -> 368314521
A38: ='A6-FinPos'!A39 -> Total non current liabilities | B38: ='A6-FinPos'!C39 -> 196474919 | C38: ='A6-FinPos'!D39 -> 204135550 | D38: ='A6-FinPos'!E39 -> 233156262.6 | E38: ='A6-FinPos'!F39 -> 233360365 | F38: ='A6-FinPos'!G39 -> 227828537 | G38: ='A6-FinPos'!H39 -> 227828537 | H38: ='A6-FinPos'!I39 -> 227828537 | I38: ='A6-FinPos'!J39 -> 227828541 | J38: ='A6-FinPos'!K39 -> 236941678 | K38: ='A6-FinPos'!L39 -> 246419339
A39: Community wealth/Equity | B39: ='A6-FinPos'!C48 -> 1617811390 | C39: ='A6-FinPos'!D48 -> 1830416003 | D39: ='A6-FinPos'!E48 -> 2069143980 | E39: ='A6-FinPos'!F48 -> 3091879913 | F39: ='A6-FinPos'!G48 -> 1821677906 | G39: ='A6-FinPos'!H48 -> 1821677906 | H39: ='A6-FinPos'!I48 -> 1821677906 | I39: ='A6-FinPos'!J48 -> 1821587919 | J39: ='A6-FinPos'!K48 -> 1894519416 | K39: ='A6-FinPos'!L48 -> 1969013913
A41: Cash flows
A42: Net cash from (used) operating | B42: ='A7-CFlow'!C17 -> 143031413 | C42: ='A7-CFlow'!D17 -> 181782418.5 | D42: ='A7-CFlow'!E17 -> -11802644.84 | E42: ='A7-CFlow'!F17 -> 220993381 | F42: ='A7-CFlow'!G17 -> 188724573 | G42: ='A7-CFlow'!H17 -> 188724573 | H42: ='A7-CFlow'!I17 -> 188724573 | I42: ='A7-CFlow'!J17 -> 174046969 | J42: ='A7-CFlow'!K17 -> 175717315 | K42: ='A7-CFlow'!L17 -> 149387797
A43: Net cash from (used) investing | B43: ='A7-CFlow'!C27 -> -142853946 | C43: ='A7-CFlow'!D27 -> -153383488.7 | D43: ='A7-CFlow'!E27 -> 17750018.15 | E43: ='A7-CFlow'!F27 -> -130407450 | F43: ='A7-CFlow'!G27 -> -140578120 | G43: ='A7-CFlow'!H27 -> -140578120 | H43: ='A7-CFlow'!I27 -> -140578120 | I43: ='A7-CFlow'!J27 -> -164048822 | J43: ='A7-CFlow'!K27 -> -137725478 | K43: ='A7-CFlow'!L27 -> -134886937
A44: Net cash from (used) financing | B44: ='A7-CFlow'!C36 -> 34364879 | C44: ='A7-CFlow'!D36 -> -216174.21 | D44: ='A7-CFlow'!E36 -> -12445375.61 | E44: ='A7-CFlow'!F36 -> -9998147 | F44: ='A7-CFlow'!G36 -> -18584675 | G44: ='A7-CFlow'!H36 -> -18584675 | H44: ='A7-CFlow'!I36 -> -18584675 | I44: ='A7-CFlow'!J36 -> -9998147 | J44: ='A7-CFlow'!K36 -> -36563837 | K44: ='A7-CFlow'!L36 -> -14370038
A45: =LEFT('A7-CFlow'!A40,37) -> Cash/cash equivalents at the year end | B45: ='A7-CFlow'!C40 -> 42033011 | C45: ='A7-CFlow'!D40 -> 70215766.17 | D45: ='A7-CFlow'!E40 -> 63717763.83 | E45: ='A7-CFlow'!F40 -> 114587784 | F45: ='A7-CFlow'!G40 -> 63561778 | G45: ='A7-CFlow'!H40 -> 63561778 | H45: ='A7-CFlow'!I40 -> 63561778 | I45: ='A7-CFlow'!J40 -> 34000000 | J45: ='A7-CFlow'!K40 -> 35428000 | K45: ='A7-CFlow'!L40 -> 35558822
A47: Cash backing/surplus reconciliation
A48: ='A8-ResRecon'!A4 -> Cash and investments available | B48: ='A8-ResRecon'!C8 -> 73558093.84 | C48: ='A8-ResRecon'!D8 -> 91329164.52 | D48: ='A8-ResRecon'!E8 -> 142023879.1 | E48: ='A8-ResRecon'!F8 -> 55995950 | F48: ='A8-ResRecon'!G8 -> 75013650 | G48: ='A8-ResRecon'!H8 -> 75013650 | H48: ='A8-ResRecon'!I8 -> 75013650 | I48: ='A8-ResRecon'!J8 -> 75013648 | J48: ='A8-ResRecon'!K8 -> 78082196 | K48: ='A8-ResRecon'!L8 -> 79919199
A49: ='A8-ResRecon'!A10 -> Application of cash and investments | B49: ='A8-ResRecon'!C18 -> -94727855 | C49: ='A8-ResRecon'!D18 -> -237093810.1 | D49: ='A8-ResRecon'!E18 -> 251242532.5 | E49: ='A8-ResRecon'!F18 -> -418268435 | F49: ='A8-ResRecon'!G18 -> -162847845 | G49: ='A8-ResRecon'!H18 -> -162847845 | H49: ='A8-ResRecon'!I18 -> -160598845 | I49: ='A8-ResRecon'!J18 -> -197668848 | J49: ='A8-ResRecon'!K18 -> -212444884 | K49: ='A8-ResRecon'!L18 -> -197621462
A50: Balance - surplus (shortfall) | B50: =B48-B49 -> 168285948.8 | C50: =C48-C49 -> 328422974.6 | D50: -109218653.4 | E50: 474264385 | F50: 237861495 | G50: 237861495 | H50: 235612495 | I50: 272682496 | J50: 290527080 | K50: 277540661
A52: Asset management
A53: Asset register summary (WDV) | B53: ='A9-Asset'!C165 -> 0 | C53: ='A9-Asset'!D165 -> 0 | D53: ='A9-Asset'!E165 -> 0 | E53: ='A9-Asset'!F165 -> 0 | F53: ='A9-Asset'!G165 -> 0 | G53: ='A9-Asset'!H165 -> 0 | H53: ='A9-Asset'!H165 -> 0 | I53: ='A9-Asset'!I165 -> 0 | J53: ='A9-Asset'!J165 -> 0 | K53: ='A9-Asset'!K165 -> 0
A54: ='A9-Asset'!A168 -> Depreciation | B54: ='A9-Asset'!C168 -> 132641263.5 | C54: ='A9-Asset'!D168 -> 98378041.76 | D54: ='A9-Asset'!E168 -> 106431091.1 | E54: ='A9-Asset'!F168 -> 134738731 | F54: ='A9-Asset'!G168 -> 134758934 | G54: ='A9-Asset'!H168 -> 134758934 | H54: ='A9-Asset'!H168 -> 134758934 | I54: ='A9-Asset'!I168 -> 126847579 | J54: ='A9-Asset'!J168 -> 132428876 | K54: ='A9-Asset'!K168 -> 138388176
A55: Renewal and Upgrading of Existing Assets | B55: ='A9-Asset'!C37+'A9-Asset'!C69 -> 17531610 | C55: ='A9-Asset'!D37+'A9-Asset'!D69 -> 82302328.06 | D55: ='A9-Asset'!E37+'A9-Asset'!E69 -> 101608271.4 | E55: ='A9-Asset'!F37+'A9-Asset'!F69 -> 105153950 | F55: ='A9-Asset'!G37+'A9-Asset'!G69 -> 116263183 | G55: ='A9-Asset'!H37+'A9-Asset'!H69 -> 116263183 | H55: ='A9-Asset'!H37+'A9-Asset'!H69 -> 116263183 | I55: ='A9-Asset'!I37+'A9-Asset'!I69 -> 1354637020 | J55: ='A9-Asset'!J37+'A9-Asset'!J69 -> 1098076264 | K55: ='A9-Asset'!K37+'A9-Asset'!K69 -> 1319894128
A56: Repairs and Maintenance | B56: ='A9-Asset'!C169 -> 107508345 | C56: ='A9-Asset'!D169 -> 36103874.4 | D56: ='A9-Asset'!E169 -> 45201313.46 | E56: ='A9-Asset'!F169 -> 66950837 | F56: ='A9-Asset'!G169 -> 62282084 | G56: ='A9-Asset'!H169 -> 62282084 | H56: ='A9-Asset'!H169 -> 62282084 | I56: ='A9-Asset'!I169 -> 70105337 | J56: ='A9-Asset'!J169 -> 73189968 | K56: ='A9-Asset'!K169 -> 76483516
A58: Free services
A59: Cost of Free Basic Services provided | B59: ='A10-SerDel'!C60 -> 1162662.7 | C59: ='A10-SerDel'!D60 -> 0 | D59: ='A10-SerDel'!E60 -> 439401.36 | E59: ='A10-SerDel'!F60 -> 5400000 | F59: ='A10-SerDel'!G60 -> 5400000 | G59: ='A10-SerDel'!H60 -> 5400000 | H59: ='A10-SerDel'!I60 -> 5500000 | I59: ='A10-SerDel'!I60 -> 5500000 | J59: ='A10-SerDel'!J60 -> 5742000 | K59: ='A10-SerDel'!K60 -> 6000390
A60: Revenue cost of free services provided | B60: ='A10-SerDel'!C79 -> 37975511 | C60: ='A10-SerDel'!D79 -> 36523293.59 | D60: ='A10-SerDel'!E79 -> 39752859.18 | E60: ='A10-SerDel'!F79 -> 35800000 | F60: ='A10-SerDel'!G79 -> 35800000 | G60: ='A10-SerDel'!H79 -> 35800000 | H60: ='A10-SerDel'!I79 -> 42070000 | I60: ='A10-SerDel'!I79 -> 42070000 | J60: ='A10-SerDel'!J79 -> 43921080 | K60: ='A10-SerDel'!K79 -> 45897529
A61: Households below minimum service level
A62: ='A10-SerDel'!A5 -> Water: | B62: ='A10-SerDel'!C14 -> 0 | C62: ='A10-SerDel'!D14 -> 0 | D62: ='A10-SerDel'!E14 -> 0 | E62: ='A10-SerDel'!F14 -> 0 | F62: ='A10-SerDel'!G14 -> 0 | G62: ='A10-SerDel'!H14 -> 0 | H62: ='A10-SerDel'!I14 -> 0 | I62: ='A10-SerDel'!I14 -> 0 | J62: ='A10-SerDel'!J14 -> 0 | K62: ='A10-SerDel'!K14 -> 0
A63: ='A10-SerDel'!A16 -> Sanitation/sewerage: | B63: ='A10-SerDel'!C26 -> 0 | C63: ='A10-SerDel'!D26 -> 0 | D63: ='A10-SerDel'!E26 -> 0 | E63: ='A10-SerDel'!F26 -> 0 | F63: ='A10-SerDel'!G26 -> 0 | G63: ='A10-SerDel'!H26 -> 0 | H63: ='A10-SerDel'!I26 -> 0 | I63: ='A10-SerDel'!I26 -> 0 | J63: ='A10-SerDel'!J26 -> 0 | K63: ='A10-SerDel'!K26 -> 0
A64: ='A10-SerDel'!A28 -> Energy: | B64: ='A10-SerDel'!C35 -> 0 | C64: ='A10-SerDel'!D35 -> 0 | D64: ='A10-SerDel'!E35 -> 0 | E64: ='A10-SerDel'!F35 -> 0 | F64: ='A10-SerDel'!G35 -> 0 | G64: ='A10-SerDel'!H35 -> 0 | H64: ='A10-SerDel'!I35 -> 0 | I64: ='A10-SerDel'!I35 -> 0 | J64: ='A10-SerDel'!J35 -> 0 | K64: ='A10-SerDel'!K35 -> 0
A65: ='A10-SerDel'!A37 -> Refuse: | B65: ='A10-SerDel'!C45 -> 0 | C65: ='A10-SerDel'!D45 -> 0 | D65: ='A10-SerDel'!E45 -> 0 | E65: ='A10-SerDel'!F45 -> 0 | F65: ='A10-SerDel'!G45 -> 0 | G65: ='A10-SerDel'!H45 -> 0 | H65: ='A10-SerDel'!I45 -> 0 | I65: ='A10-SerDel'!I45 -> 0 | J65: ='A10-SerDel'!J45 -> 0 | K65: ='A10-SerDel'!K45 -> 0

Sheet A2-FinPerf SC
A1: =muni&" - "&Approve3 -> Choose name from list - Table A2 Budgeted Financial Performance (revenue and expenditure by functional classification)
A2: ="Functional Classification "&desc -> Functional Classification Description | B2: =head27 -> Ref | C2: =head1b -> 2018/19 | D2: =head1A -> 2019/20 | E2: =Head1 -> 2020/21 | F2: =Head2 -> Current Year 2021/22 | I2: =Head3 -> 2022/23 Medium Term Revenue & Expenditure Framework
A3: R thousand | B3: 1 | C3: =Head5 -> Audited Outcome | D3: =Head5 -> Audited Outcome | E3: =Head5 -> Audited Outcome | F3: =Head6 -> Original Budget | G3: =Head7 -> Adjusted Budget | H3: =Head8 -> Full Year Forecast | I3: =Head9 -> Budget Year 2022/23 | J3: =Head10 -> Budget Year +1 2023/24 | K3: =Head11 -> Budget Year +2 2024/25
A4: Revenue - Functional
A5: Governance and administration | C5: =SUM(C6:C8) -> 468166271.8 | D5: =SUM(D6:D8) -> 573827117.9 | E5: 926769947.1 | F5: 575471457 | G5: 576221459 | H5: 576221459 | I5: 1298891941 | J5: 1369008101 | K5: 1445013142
A6: Executive and council | C6: =A2A!C6 -> 0 | D6: =A2A!D6 -> 298000 | E6: =A2A!E6 -> 0 | F6: =A2A!F6 -> 1100 | G6: =A2A!G6 -> 1100 | H6: =A2A!H6 -> 1100 | I6: =A2A!I6 -> 1100 | J6: =A2A!J6 -> 1148 | K6: =A2A!K6 -> 1200
A7: Finance and administration | C7: =A2A!C9 -> 468166271.8 | D7: =A2A!D9 -> 573529117.9 | E7: =A2A!E9 -> 926769947.1 | F7: =A2A!F9 -> 575470357 | G7: =A2A!G9 -> 576220359 | H7: =A2A!H9 -> 576220359 | I7: =A2A!I9 -> 1298890841 | J7: =A2A!J9 -> 1369006953 | K7: =A2A!K9 -> 1445011942
A8: Internal audit | C8: =A2A!C23 -> 0 | D8: =A2A!D23 -> 0 | E8: =A2A!E23 -> 0 | F8: =A2A!F23 -> 0 | G8: =A2A!G23 -> 0 | H8: =A2A!H23 -> 0 | I8: =A2A!I23 -> 0 | J8: =A2A!J23 -> 0 | K8: =A2A!K23 -> 0
A9: Community and public safety | C9: =SUM(C10:C14) -> 35072212.84 | D9: =SUM(D10:D14) -> 27834887.6 | E9: 16490232.4 | F9: 40390127 | G9: 40390127 | H9: 40390127 | I9: 13837541 | J9: 14446393 | K9: 15096481
A10: Community and social services | C10: =A2A!C26 -> 9603 | D10: =A2A!D26 -> 32515 | E10: =A2A!E26 -> 10799.14 | F10: =A2A!F26 -> 56136 | G10: =A2A!G26 -> 56136 | H10: =A2A!H26 -> 56136 | I10: =A2A!I26 -> 58100 | J10: =A2A!J26 -> 60656 | K10: =A2A!K26 -> 63385
A11: Sport and recreation | C11: =A2A!C48 -> 0 | D11: =A2A!D48 -> 359180.41 | E11: =A2A!E48 -> 1428241.01 | F11: =A2A!F48 -> 660766 | G11: =A2A!G48 -> 660766 | H11: =A2A!H48 -> 660766 | I11: =A2A!I48 -> 471416 | J11: =A2A!J48 -> 492158 | K11: =A2A!K48 -> 514305
A12: Public safety | C12: =A2A!C54 -> 31736170 | D12: =A2A!D54 -> 25556445 | E12: =A2A!E54 -> 13988260 | F12: =A2A!F54 -> 38001000 | G12: =A2A!G54 -> 38001000 | H12: =A2A!H54 -> 38001000 | I12: =A2A!I54 -> 12006000 | J12: =A2A!J54 -> 12534264 | K12: =A2A!K54 -> 13098306
A13: Housing | C13: =A2A!C63 -> 2724137.92 | D13: =A2A!D63 -> 1866536.49 | E13: =A2A!E63 -> 1062932.25 | F13: =A2A!F63 -> 1659225 | G13: =A2A!G63 -> 1659225 | H13: =A2A!H63 -> 1659225 | I13: =A2A!I63 -> 1289025 | J13: =A2A!J63 -> 1345743 | K13: =A2A!K63 -> 1406302
A14: Health | C14: =A2A!C66 -> 602301.92 | D14: =A2A!D66 -> 20210.7 | E14: =A2A!E66 -> 0 | F14: =A2A!F66 -> 13000 | G14: =A2A!G66 -> 13000 | H14: =A2A!H66 -> 13000 | I14: =A2A!I66 -> 13000 | J14: =A2A!J66 -> 13572 | K14: =A2A!K66 -> 14183
A15: Economic and environmental services | C15: =SUM(C16:C18) -> 129228294.3 | D15: =SUM(D16:D18) -> 107011252.1 | E15: 119944680.9 | F15: 122822518 | G15: 194822519 | H15: 194822519 | I15: 133985518 | J15: 128577704 | K15: 134528536
A16: Planning and development | C16: =A2A!C75 -> 3372625 | D16: =A2A!D75 -> 355705.99 | E16: =A2A!E75 -> -79901.07 | F16: =A2A!F75 -> 400126 | G16: =A2A!G75 -> 400126 | H16: =A2A!H75 -> 400126 | I16: =A2A!I75 -> 300126 | J16: =A2A!J75 -> 313332 | K16: =A2A!K75 -> 327432
A17: Road transport | C17: =A2A!C86 -> 125855669.3 | D17: =A2A!D86 -> 106655546.1 | E17: =A2A!E86 -> 120024582 | F17: =A2A!F86 -> 122422392 | G17: =A2A!G86 -> 194422393 | H17: =A2A!H86 -> 194422393 | I17: =A2A!I86 -> 133685392 | J17: =A2A!J86 -> 128264372 | K17: =A2A!K86 -> 134201104
A18: Environmental protection | C18: =A2A!C91 -> 0 | D18: =A2A!D91 -> 0 | E18: =A2A!E91 -> 0 | F18: =A2A!F91 -> 0 | G18: =A2A!G91 -> 0 | H18: =A2A!H91 -> 0 | I18: =A2A!I91 -> 0 | J18: =A2A!J91 -> 0 | K18: =A2A!K91 -> 0
A19: Trading services | C19: =SUM(C20:C23) -> 503748700.7 | D19: =SUM(D20:D23) -> 616032631.9 | E19: 290770730.6 | F19: 760011611 | G19: 760011612 | H19: 760011612 | I19: 141188774 | J19: =SUM(J20:J23) -> 140145220 | K19: 141224755
A20: Energy sources | C20: =A2A!C99 -> 452008851 | D20: =A2A!D99 -> 577155264.6 | E20: =A2A!E99 -> 245669569.9 | F20: =A2A!F99 -> 685641250 | G20: =A2A!G99 -> 685641250 | H20: =A2A!H99 -> 685641250 | I20: =A2A!I99 -> 65230000 | J20: =A2A!J99 -> 69264120 | K20: =A2A!K99 -> 67154005
A21: Water management | C21: =A2A!C103 -> 0 | D21: =A2A!D103 -> 0 | E21: =A2A!E103 -> 0 | F21: =A2A!F103 -> 0 | G21: =A2A!G103 -> 0 | H21: =A2A!H103 -> 0 | I21: =A2A!I103 -> 0 | J21: =A2A!J103 -> 0 | K21: =A2A!K103 -> 0
A22: Waste water management | C22: =A2A!C107 -> 0 | D22: =A2A!D107 -> 0 | E22: =A2A!E107 -> 0 | F22: =A2A!F107 -> 0 | G22: =A2A!G107 -> 0 | H22: =A2A!H107 -> 0 | I22: =A2A!I107 -> 0 | J22: =A2A!J107 -> 0 | K22: =A2A!K107 -> 0
A23: Waste management | C23: =A2A!C112 -> 51739849.69 | D23: =A2A!D112 -> 38877367.25 | E23: =A2A!E112 -> 45101160.7 | F23: =A2A!F112 -> 74370361 | G23: =A2A!G112 -> 74370362 | H23: =A2A!H112 -> 74370362 | I23: =A2A!I112 -> 75958774 | J23: =A2A!J112 -> 70881100 | K23: =A2A!K112 -> 74070750
A24: Other | B24: 4 | C24: =A2A!C117 -> 0 | D24: =A2A!D117 -> 0 | E24: =A2A!E117 -> 0 | F24: =A2A!F117 -> 0 | G24: =A2A!G117 -> 0 | H24: =A2A!H117 -> 0 | I24: =A2A!I117 -> 0 | J24: =A2A!J117 -> 0 | K24: =A2A!K117 -> 0
A25: ="Total "&A4 -> Total Revenue - Functional | B25: 2 | C25: =C5+C9+C15+C19+C24 -> 1136215480 | D25: =D5+D9+D15+D19+D24 -> 1324705889 | E25: =E5+E9+E15+E19+E24 -> 1353975591 | F25: 1498695713 | G25: 1571445717 | H25: 1571445717 | I25: =I5+I9+I15+I19+I24 -> 1587903774 | J25: 1652177418 | K25: 1735862914
A27: Expenditure - Functional
A28: Governance and administration | C28: =SUM(C29:C31) -> 383658892.3 | D28: =SUM(D29:D31) -> 277922868.6 | E28: 256051557 | F28: 321508290 | G28: 324156161 | H28: 324156161 | I28: 330864475 | J28: 345351117 | K28: 360772402
A29: Executive and council | C29: =A2A!C128 -> 42526739.66 | D29: =A2A!D128 -> 47362541.41 | E29: =A2A!E128 -> 40636349.86 | F29: =A2A!F128 -> 47525794 | G29: =A2A!G128 -> 47490469 | H29: =A2A!H128 -> 47490469 | I29: =A2A!I128 -> 48325791 | J29: =A2A!J128 -> 50452126 | K29: =A2A!K128 -> 52722469
A30: Finance and administration | C30: =A2A!C131 -> 336837691.7 | D30: =A2A!D131 -> 225722018.6 | E30: =A2A!E131 -> 210005501.6 | F30: =A2A!F131 -> 268247647 | G30: =A2A!G131 -> 270631162 | H30: =A2A!H131 -> 270631162 | I30: =A2A!I131 -> 276525819 | J30: =A2A!J131 -> 288621648 | K30: =A2A!K131 -> 301490200
A31: Internal audit | C31: =A2A!C145 -> 4294460.96 | D31: =A2A!D145 -> 4838308.57 | E31: =A2A!E145 -> 5409705.49 | F31: =A2A!F145 -> 5734849 | G31: =A2A!G145 -> 6034530 | H31: =A2A!H145 -> 6034530 | I31: =A2A!I145 -> 6012865 | J31: =A2A!J145 -> 6277343 | K31: =A2A!K145 -> 6559733
A32: Community and public safety | C32: =SUM(C33:C37) -> 58016588.24 | D32: =SUM(D33:D37) -> 76939452.91 | E32: 86760431.58 | F32: 87148830 | G32: 91034519 | H32: 91034519 | I32: 88402380 | J32: 92304738 | K32: 96457514
A33: Community and social services | C33: =A2A!C148 -> 10934244.24 | D33: =A2A!D148 -> 13453079.92 | E33: =A2A!E148 -> 13174348.47 | F33: =A2A!F148 -> 14064027 | G33: =A2A!G148 -> 14560753 | H33: =A2A!H148 -> 14560753 | I33: =A2A!I148 -> 14917765 | J33: =A2A!J148 -> 15573970 | K33: =A2A!K148 -> 16274620
A34: Sport and recreation | C34: =A2A!C170 -> 13223660 | D34: =A2A!D170 -> 22565404.38 | E34: =A2A!E170 -> 22811973.7 | F34: =A2A!F170 -> 28000708 | G34: =A2A!G170 -> 29220678 | H34: =A2A!H170 -> 29220678 | I34: =A2A!I170 -> 29195810 | J34: =A2A!J170 -> 30480428 | K34: =A2A!K170 -> 31852050
A35: Public safety | C35: =A2A!C176 -> 16742070 | D35: =A2A!D176 -> 18165575.59 | E35: =A2A!E176 -> 17382454.57 | F35: =A2A!F176 -> 18297616 | G35: =A2A!G176 -> 19253090 | H35: =A2A!H176 -> 19253090 | I35: =A2A!I176 -> 18702176 | J35: =A2A!J176 -> 19538079 | K35: =A2A!K176 -> 20416708
A36: Housing | C36: =A2A!C185 -> 7917952 | D36: =A2A!D185 -> 12113183.55 | E36: =A2A!E185 -> 15316510.12 | F36: =A2A!F185 -> 15936528 | G36: =A2A!G185 -> 16611241 | H36: =A2A!H185 -> 16611241 | I36: =A2A!I185 -> 16716417 | J36: =A2A!J185 -> 17451849 | K36: =A2A!K185 -> 18237094
A37: Health | C37: =A2A!C188 -> 9198662 | D37: =A2A!D188 -> 10642209.47 | E37: =A2A!E188 -> 18075144.72 | F37: =A2A!F188 -> 10849951 | G37: =A2A!G188 -> 11388757 | H37: =A2A!H188 -> 11388757 | I37: =A2A!I188 -> 8870212 | J37: =A2A!J188 -> 9260412 | K37: =A2A!K188 -> 9677042
A38: Economic and environmental services | C38: =SUM(C39:C41) -> 157357878.4 | D38: =SUM(D39:D41) -> 145494753.6 | E38: 163409622.9 | F38: 194796743 | G38: 197994529 | H38: 197994529 | I38: 233191195 | J38: 243261968 | K38: 254070156
A39: Planning and development | C39: =A2A!C197 -> 15559417.92 | D39: =A2A!D197 -> 15835955.4 | E39: =A2A!E197 -> 24416242.88 | F39: =A2A!F197 -> 29816905 | G39: =A2A!G197 -> 31099486 | H39: =A2A!H197 -> 31099486 | I39: =A2A!I197 -> 30512394 | J39: =A2A!J197 -> 31923041 | K39: =A2A!K197 -> 33356040
A40: Road transport | C40: =A2A!C208 -> 141798460.5 | D40: =A2A!D208 -> 129658798.2 | E40: =A2A!E208 -> 138993380 | F40: =A2A!F208 -> 164979838 | G40: =A2A!G208 -> 166895043 | H40: =A2A!H208 -> 166895043 | I40: =A2A!I208 -> 202678801 | J40: =A2A!J208 -> 211338927 | K40: =A2A!K208 -> 220714116
A41: Environmental protection | C41: =A2A!C213 -> 0 | D41: =A2A!D213 -> 0 | E41: =A2A!E213 -> 0 | F41: =A2A!F213 -> 0 | G41: =A2A!G213 -> 0 | H41: =A2A!H213 -> 0 | I41: =A2A!I213 -> 0 | J41: =A2A!J213 -> 0 | K41: =A2A!K213 -> 0
A42: Trading services | C42: =SUM(C43:C46) -> 599954439.7 | D42: =SUM(D43:D46) -> 611744302.1 | E42: 619035363 | F42: =SUM(F43:F46) -> 723484931 | G42: 720263676 | H42: 720263676 | I42: 747663963 | J42: 771382637 | K42: =SUM(K43:K46) -> 798907901
A43: Energy sources | C43: =A2A!C221 -> 511714738.9 | D43: =A2A!D221 -> 520103946.3 | E43: =A2A!E221 -> 549007498.1 | F43: =A2A!F221 -> 628353359 | G43: =A2A!G221 -> 623384755 | H43: =A2A!H221 -> 623384755 | I43: =A2A!I221 -> 650265761 | J43: =A2A!J221 -> 678118952 | K43: =A2A!K221 -> 701447531
A44: Water management | C44: =A2A!C225 -> 0 | D44: =A2A!D225 -> 0 | E44: =A2A!E225 -> 0 | F44: =A2A!F225 -> 0 | G44: =A2A!G225 -> 0 | H44: =A2A!H225 -> 0 | I44: =A2A!I225 -> 0 | J44: =A2A!J225 -> 0 | K44: =A2A!K225 -> 0
A45: Waste water management | C45: =A2A!C229 -> 3852436 | D45: =A2A!D229 -> 4297092.04 | E45: =A2A!E229 -> 6173679.2 | F45: =A2A!F229 -> 8780470 | G45: =A2A!G229 -> 8612669 | H45: =A2A!H229 -> 8612669 | I45: =A2A!I229 -> 9046490 | J45: =A2A!J229 -> 9444536 | K45: =A2A!K229 -> 9869539
A46: Waste management | C46: =A2A!C234 -> 84387264.82 | D46: =A2A!D234 -> 87343263.84 | E46: =A2A!E234 -> 63854185.76 | F46: =A2A!F234 -> 86351102 | G46: =A2A!G234 -> 88266252 | H46: =A2A!H234 -> 88266252 | I46: =A2A!I234 -> 88351712 | J46: =A2A!J234 -> 83819149 | K46: =A2A!K234 -> 87590831
A47: Other | B47: 4 | C47: =A2A!C239 -> 0 | D47: =A2A!D239 -> 0 | E47: =A2A!E239 -> 0 | F47: =A2A!F239 -> 0 | G47: =A2A!G239 -> 0 | H47: =A2A!H239 -> 0 | I47: =A2A!I239 -> 0 | J47: =A2A!J239 -> 0 | K47: =A2A!K239 -> 0
A48: ="Total "&A27 -> Total Expenditure - Functional | B48: 3 | C48: =C28+C32+C38+C42+C47 -> 1198987799 | D48: =D28+D32+D38+D42+D47 -> 1112101377 | E48: =E28+E32+E38+E42+E47 -> 1125256975 | F48: =F28+F32+F38+F42+F47 -> 1326938794 | G48: 1333448885 | H48: 1333448885 | I48: 1400122013 | J48: 1452300460 | K48: 1510207973
A49: =result -> Surplus/(Deficit) for the year | C49: =C25-C48 -> -62772319 | D49: =D25-D48 -> 212604512.2 | E49: 228718616.6 | F49: 171756919 | G49: 237996832 | H49: 237996832 | I49: 187781761 | J49: 199876958 | K49: 225654941
A50: =head27a -> References
A51: 1. Government Finance Statistics Functions and Sub-functions are standardised to assist the compilation of national and international accounts for comparison purposes
A52: 2. Total Revenue by functional classification must reconcile to Total Operating Revenue shown in Budgeted Financial Performance (revenue and expenditure)
A53: 3. Total Expenditure by Functional Classification must reconcile to Total Operating Expenditure shown in Budgeted Financial Performance (revenue and expenditure)
A54: 4. All amounts must be classified under a functional classification . The GFS function 'Other' is only for Abbatoirs, Air Transport, Forestry, Licensing and Regulation, Markets and Tourism - and if used must be supported by footnotes. Nothing else may be placed under 'Other'. Assign associate share to relevant classification.
A57: check oprev balance | C57: =C25-'A4-FinPerf RE'!C59 -> 0 | D57: =D25-'A4-FinPerf RE'!D59 -> 0 | E57: =E25-'A4-FinPerf RE'!E59 -> 0 | F57: =F25-'A4-FinPerf RE'!F59 -> 0 | G57: =G25-'A4-FinPerf RE'!G59 -> 0 | H57: =H25-'A4-FinPerf RE'!H59 -> 0 | I57: =I25-'A4-FinPerf RE'!J59 -> 0 | J57: =J25-'A4-FinPerf RE'!K59 -> 0 | K57: =K25-'A4-FinPerf RE'!L59 -> 0
A58: check opexp balance | C58: =C48-'A4-FinPerf RE'!C35 -> 0 | D58: =D48-'A4-FinPerf RE'!D35 -> 0 | E58: =E48-'A4-FinPerf RE'!E35 -> 0 | F58: =F48-'A4-FinPerf RE'!F35 -> 0 | G58: =G48-'A4-FinPerf RE'!G35 -> 0 | H58: =H48-'A4-FinPerf RE'!H35 -> 0 | I58: =I48-'A4-FinPerf RE'!J35 -> 0 | J58: =J48-'A4-FinPerf RE'!K35 -> 0 | K58: =K48-'A4-FinPerf RE'!L35 -> 0

Sheet A2A
A1: =muni&" - "&Approve3 -> Choose name from list - Table A2 Budgeted Financial Performance (revenue and expenditure by functional classification)
A2: ="Functional Classification "&desc -> Functional Classification Description | B2: =head27 -> Ref | C2: =head1b -> 2018/19 | D2: =head1A -> 2019/20 | E2: =Head1 -> 2020/21 | F2: =Head2 -> Current Year 2021/22 | I2: =Head3 -> 2022/23 Medium Term Revenue & Expenditure Framework
A3: R thousand | B3: 1 | C3: =Head5 -> Audited Outcome | D3: =Head5 -> Audited Outcome | E3: =Head5 -> Audited Outcome | F3: =Head6 -> Original Budget | G3: =Head7 -> Adjusted Budget | H3: =Head8 -> Full Year Forecast | I3: =Head9 -> Budget Year 2022/23 | J3: =Head10 -> Budget Year +1 2023/24 | K3: =Head11 -> Budget Year +2 2024/25
A4: Revenue - Functional
A5: Municipal governance and administration | C5: =C6+C9+C23 -> 468166271.8 | D5: 573827117.9 | E5: 926769947.1 | F5: 575471457 | G5: 576221459 | H5: 576221459 | I5: 1298891941 | J5: 1369008101 | K5: 1445013142
A6: Executive and council | C6: =SUM(C7:C8) -> 0 | D6: =SUM(D7:D8) -> 298000 | E6: 0 | F6: 1100 | G6: 1100 | H6: 1100 | I6: 1100 | J6: 1148 | K6: 1200
A7: Mayor and Council | C7: 0 | D7: 0 | E7: 0 | F7: 0 | G7: 0 | H7: 0 | I7: 0 | J7: 0 | K7: 0
A8: Municipal Manager, Town Secretary and Chief Executive | C8: 0 | D8: 298000 | E8: 0 | F8: 1100 | G8: 1100 | H8: 1100 | I8: 1100 | J8: 1148 | K8: 1200
A9: Finance and administration | C9: =SUM(C10:C22) -> 468166271.8 | D9: 573529117.9 | E9: 926769947.1 | F9: 575470357 | G9: 576220359 | H9: 576220359 | I9: 1298890841 | J9: 1369006953 | K9: 1445011942
A10: Administrative and Corporate Support | C10: 76582673.44 | D10: 0 | E10: 0 | F10: 0 | G10: 0 | H10: 0 | I10: 0 | J10: 0 | K10: 0
A11: Asset Management | C11: 0 | D11: 0 | E11: 0 | F11: 0 | G11: 0 | H11: 0 | I11: 0 | J11: 0 | K11: 0
A12: Finance | C12: 377972911.8 | D12: 572128627.8 | E12: 926217637.8 | F12: 575470228 | G12: 575470229 | H12: 575470229 | I12: 1298090712 | J12: 1368171618 | K12: 1444139017
A13: Fleet Management | C13: 0 | D13: 0 | E13: 357583.78 | F13: 0 | G13: 1 | H13: 1 | I13: 0 | J13: 0 | K13: 0
A14: Human Resources | C14: 13499700.07 | D14: 1400490.07 | E14: 194725.53 | F14: 0 | G14: 750000 | H14: 750000 | I14: 800000 | J14: 835200 | K14: 872784
A15: Information Technology | C15: 110986.5 | D15: 0 | E15: 0 | F15: 0 | G15: 0 | H15: 0 | I15: 0 | J15: 0 | K15: 0
A16: Legal Services | C16: 0 | D16: 0 | E16: 0 | F16: 129 | G16: 129 | H16: 129 | I16: 129 | J16: 135 | K16: 141
A17: Marketing, Customer Relations, Publicity and Media Co-ordination | C17: 0 | D17: 0 | E17: 0 | F17: 0 | G17: 0 | H17: 0 | I17: 0 | J17: 0 | K17: 0
A18: Property Services | C18: 0 | D18: 0 | E18: 0 | F18: 0 | G18: 0 | H18: 0 | I18: 0 | J18: 0 | K18: 0
A19: Risk Management | C19: 0 | D19: 0 | E19: 0 | F19: 0 | G19: 0 | H19: 0 | I19: 0 | J19: 0 | K19: 0
A20: Security Services | C20: 0 | D20: 0 | E20: 0 | F20: 0 | G20: 0 | H20: 0 | I20: 0 | J20: 0 | K20: 0
A21: Supply Chain Management | C21: 0 | D21: 0 | E21: 0 | F21: 0 | G21: 0 | H21: 0 | I21: 0 | J21: 0 | K21: 0
A22: Valuation Service | C22: 0 | D22: 0 | E22: 0 | F22: 0 | G22: 0 | H22: 0 | I22: 0 | J22: 0 | K22: 0
A23: Internal audit | C23: =SUM(C24:C24) -> 0 | D23: 0 | E23: 0 | F23: 0 | G23: 0 | H23: 0 | I23: 0 | J23: 0 | K23: 0
A24: Governance Function | C24: 0 | D24: 0 | E24: 0 | F24: 0 | G24: 0 | H24: 0 | I24: 0 | J24: 0 | K24: 0
A25: Community and public safety | C25: =C26+C48+C54+C63+C66 -> 35072212.84 | D25: 27834887.6 | E25: 16490232.4 | F25: 40390127 | G25: 40390127 | H25: 40390127 | I25: 13837541 | J25: 14446393 | K25: 15096481
A26: Community and social services | C26: =SUM(C27:C47) -> 9603 | D26: =SUM(D27:D47) -> 32515 | E26: 10799.14 | F26: 56136 | G26: 56136 | H26: 56136 | I26: 58100 | J26: 60656 | K26: 63385
A27: Aged Care | C27: 0 | D27: 0 | E27: 0 | F27: 0 | G27: 0 | H27: 0 | I27: 0 | J27: 0 | K27: 0
A28: Agricultural | C28: 0 | D28: 0 | E28: 0 | F28: 0 | G28: 0 | H28: 0 | I28: 0 | J28: 0 | K28: 0
A29: Animal Care and Diseases | C29: 0 | D29: 0 | E29: 0 | F29: 0 | G29: 0 | H29: 0 | I29: 0 | J29: 0 | K29: 0
A30: Cemeteries, Funeral Parlours and Crematoriums | C30: 0 | D30: 0 | E30: 0 | F30: 0 | G30: 0 | H30: 0 | I30: 0 | J30: 0 | K30: 0
A31: Child Care Facilities | C31: 0 | D31: 0 | E31: 0 | F31: 0 | G31: 0 | H31: 0 | I31: 0 | J31: 0 | K31: 0
A32: Community Halls and Facilities | C32: 0 | D32: 0 | E32: 0 | F32: 0 | G32: 0 | H32: 0 | I32: 0 | J32: 0 | K32: 0
A33: Consumer Protection | C33: 0 | D33: 0 | E33: 0 | F33: 0 | G33: 0 | H33: 0 | I33: 0 | J33: 0 | K33: 0
A34: Cultural Matters | C34: 0 | D34: 0 | E34: 0 | F34: 0 | G34: 0 | H34: 0 | I34: 0 | J34: 0 | K34: 0
A35: Disaster Management | C35: 0 | D35: 0 | E35: 0 | F35: 0 | G35: 0 | H35: 0 | I35: 0 | J35: 0 | K35: 0
A36: Education | C36: 0 | D36: 0 | E36: 0 | F36: 0 | G36: 0 | H36: 0 | I36: 0 | J36: 0 | K36: 0
A37: Indigenous and Customary Law | C37: 0 | D37: 0 | E37: 0 | F37: 0 | G37: 0 | H37: 0 | I37: 0 | J37: 0 | K37: 0
A38: Industrial Promotion | C38: 0 | D38: 0 | E38: 0 | F38: 0 | G38: 0 | H38: 0 | I38: 0 | J38: 0 | K38: 0
A39: Language Policy | C39: 0 | D39: 0 | E39: 0 | F39: 0 | G39: 0 | H39: 0 | I39: 0 | J39: 0 | K39: 0
A40: Libraries and Archives | C40: 9603 | D40: 32515 | E40: 10799.14 | F40: 56136 | G40: 56136 | H40: 56136 | I40: 58100 | J40: 60656 | K40: 63385
A41: Literacy Programmes | C41: 0 | D41: 0 | E41: 0 | F41: 0 | G41: 0 | H41: 0 | I41: 0 | J41: 0 | K41: 0
A42: Media Services | C42: 0 | D42: 0 | E42: 0 | F42: 0 | G42: 0 | H42: 0 | I42: 0 | J42: 0 | K42: 0
A43: Museums and Art Galleries | C43: 0 | D43: 0 | E43: 0 | F43: 0 | G43: 0 | H43: 0 | I43: 0 | J43: 0 | K43: 0
A44: Population Development | C44: 0 | D44: 0 | E44: 0 | F44: 0 | G44: 0 | H44: 0 | I44: 0 | J44: 0 | K44: 0
A45: Provincial Cultural Matters | C45: 0 | D45: 0 | E45: 0 | F45: 0 | G45: 0 | H45: 0 | I45: 0 | J45: 0 | K45: 0
A46: Theatres | C46: 0 | D46: 0 | E46: 0 | F46: 0 | G46: 0 | H46: 0 | I46: 0 | J46: 0 | K46: 0
A47: Zoo's | C47: 0 | D47: 0 | E47: 0 | F47: 0 | G47: 0 | H47: 0 | I47: 0 | J47: 0 | K47: 0
A48: Sport and recreation | C48: =SUM(C49:C53) -> 0 | D48: =SUM(D49:D53) -> 359180.41 | E48: 1428241.01 | F48: 660766 | G48: 660766 | H48: 660766 | I48: 471416 | J48: 492158 | K48: 514305
A49: Beaches and Jetties | C49: 0 | D49: 0 | E49: 0 | F49: 0 | G49: 0 | H49: 0 | I49: 0 | J49: 0 | K49: 0
A50: Casinos, Racing, Gambling, Wagering | C50: 0 | D50: 0 | E50: 0 | F50: 0 | G50: 0 | H50: 0 | I50: 0 | J50: 0 | K50: 0
A51: Community Parks (including Nurseries) | C51: 0 | D51: 0 | E51: 0 | F51: 0 | G51: 0 | H51: 0 | I51: 0 | J51: 0 | K51: 0
A52: Recreational Facilities | C52: 0 | D52: 359180.41 | E52: 1428241.01 | F52: 660766 | G52: 660766 | H52: 660766 | I52: 471416 | J52: 492158 | K52: 514305
A53: Sports Grounds and Stadiums | C53: 0 | D53: 0 | E53: 0 | F53: 0 | G53: 0 | H53: 0 | I53: 0 | J53: 0 | K53: 0
A54: Public safety | C54: =SUM(C55:C62) -> 31736170 | D54: 25556445 | E54: 13988260 | F54: 38001000 | G54: 38001000 | H54: 38001000 | I54: 12006000 | J54: 12534264 | K54: 13098306
A55: Civil Defence | C55: 0 | D55: 0 | E55: 0 | F55: 0 | G55: 0 | H55: 0 | I55: 0 | J55: 0 | K55: 0
A56: Cleansing | C56: 0 | D56: 0 | E56: 0 | F56: 0 | G56: 0 | H56: 0 | I56: 0 | J56: 0 | K56: 0
A57: Control of Public Nuisances | C57: 31736170 | D57: 25556445 | E57: 13988260 | F57: 38001000 | G57: 38001000 | H57: 38001000 | I57: 12006000 | J57: 12534264 | K57: 13098306
A58: Fencing and Fences | C58: 0 | D58: 0 | E58: 0 | F58: 0 | G58: 0 | H58: 0 | I58: 0 | J58: 0 | K58: 0
A59: Fire Fighting and Protection | C59: 0 | D59: 0 | E59: 0 | F59: 0 | G59: 0 | H59: 0 | I59: 0 | J59: 0 | K59: 0
A60: Licensing and Control of Animals | C60: 0 | D60: 0 | E60: 0 | F60: 0 | G60: 0 | H60: 0 | I60: 0 | J60: 0 | K60: 0
A61: Police Forces, Traffic and Street Parking Control | C61: 0 | D61: 0 | E61: 0 | F61: 0 | G61: 0 | H61: 0 | I61: 0 | J61: 0 | K61: 0
A62: Pounds | C62: 0 | D62: 0 | E62: 0 | F62: 0 | G62: 0 | H62: 0 | I62: 0 | J62: 0 | K62: 0
A63: Housing | C63: =SUM(C64:C65) -> 2724137.92 | D63: =SUM(D64:D65) -> 1866536.49 | E63: 1062932.25 | F63: 1659225 | G63: 1659225 | H63: 1659225 | I63: 1289025 | J63: 1345743 | K63: 1406302
A64: Housing | C64: 2724137.92 | D64: 1866536.49 | E64: 1062932.25 | F64: 1659225 | G64: 1659225 | H64: 1659225 | I64: 1289025 | J64: 1345743 | K64: 1406302
A65: Informal Settlements | C65: 0 | D65: 0 | E65: 0 | F65: 0 | G65: 0 | H65: 0 | I65: 0 | J65: 0 | K65: 0
A66: Health | C66: =SUM(C67:C73) -> 602301.92 | D66: =SUM(D67:D73) -> 20210.7 | E66: 0 | F66: 13000 | G66: 13000 | H66: 13000 | I66: 13000 | J66: 13572 | K66: 14183
A67: Ambulance | C67: 0 | D67: 0 | E67: 0 | F67: 0 | G67: 0 | H67: 0 | I67: 0 | J67: 0 | K67: 0
A68: Health Services | C68: 602301.92 | D68: 20210.7 | E68: 0 | F68: 13000 | G68: 13000 | H68: 13000 | I68: 13000 | J68: 13572 | K68: 14183
A69: Laboratory Services | C69: 0 | D69: 0 | E69: 0 | F69: 0 | G69: 0 | H69: 0 | I69: 0 | J69: 0 | K69: 0
A70: Food Control | C70: 0 | D70: 0 | E70: 0 | F70: 0 | G70: 0 | H70: 0 | I70: 0 | J70: 0 | K70: 0
A71: Health Surveillance and Prevention of Communicable Diseases including immunizations | C71: 0 | D71: 0 | E71: 0 | F71: 0 | G71: 0 | H71: 0 | I71: 0 | J71: 0 | K71: 0
A72: Vector Control | C72: 0 | D72: 0 | E72: 0 | F72: 0 | G72: 0 | H72: 0 | I72: 0 | J72: 0 | K72: 0
A73: Chemical Safety | C73: 0 | D73: 0 | E73: 0 | F73: 0 | G73: 0 | H73: 0 | I73: 0 | J73: 0 | K73: 0
A74: Economic and environmental services | C74: =C75+C86+C91 -> 129228294.3 | D74: 107011252.1 | E74: 119944680.9 | F74: 122822518 | G74: 194822519 | H74: 194822519 | I74: 133985518 | J74: 128577704 | K74: 134528536
A75: Planning and development | C75: =SUM(C76:C85) -> 3372625 | D75: =SUM(D76:D85) -> 355705.99 | E75: -79901.07 | F75: 400126 | G75: 400126 | H75: 400126 | I75: 300126 | J75: 313332 | K75: 327432
A76: Billboards | C76: 0 | D76: 0 | E76: -126478.4 | F76: 1 | G76: 1 | H76: 1 | I76: 1 | J76: 1 | K76: 1
A77: Corporate Wide Strategic Planning (IDPs, LEDs) | C77: 3139120 | D77: 72920 | E77: -391.07 | F77: 200125 | G77: 200125 | H77: 200125 | I77: 100125 | J77: 104531 | K77: 109235
A78: Central City Improvement District | C78: 0 | D78: 0 | E78: 0 | F78: 0 | G78: 0 | H78: 0 | I78: 0 | J78: 0 | K78: 0
A79: Development Facilitation | C79: 0 | D79: 0 | E79: 0 | F79: 0 | G79: 0 | H79: 0 | I79: 0 | J79: 0 | K79: 0
A80: Economic Development/Planning | C80: 0 | D80: 0 | E80: 0 | F80: 0 | G80: 0 | H80: 0 | I80: 0 | J80: 0 | K80: 0
A81: Regional Planning and Development | C81: 0 | D81: 0 | E81: 0 | F81: 0 | G81: 0 | H81: 0 | I81: 0 | J81: 0 | K81: 0
A82: Town Planning, Building Regulations and Enforcement, and City Engineer | C82: 233505 | D82: 282785.99 | E82: 46968.4 | F82: 200000 | G82: 200000 | H82: 200000 | I82: 200000 | J82: 208800 | K82: 218196
A83: Project Management Unit | C83: 0 | D83: 0 | E83: 0 | F83: 0 | G83: 0 | H83: 0 | I83: 0 | J83: 0 | K83: 0
A84: Provincial Planning | C84: 0 | D84: 0 | E84: 0 | F84: 0 | G84: 0 | H84: 0 | I84: 0 | J84: 0 | K84: 0
A85: Support to Local Municipalities | C85: 0 | D85: 0 | E85: 0 | F85: 0 | G85: 0 | H85: 0 | I85: 0 | J85: 0 | K85: 0
A86: Road transport | C86: =SUM(C87:C90) -> 125855669.3 | D86: 106655546.1 | E86: 120024582 | F86: 122422392 | G86: 194422393 | H86: 194422393 | I86: 133685392 | J86: 128264372 | K86: 134201104
A87: Public Transport | C87: 0 | D87: 0 | E87: 0 | F87: 0 | G87: 0 | H87: 0 | I87: 0 | J87: 0 | K87: 0
A88: Road and Traffic Regulation | C88: 0 | D88: 0 | E88: 0 | F88: 0 | G88: 0 | H88: 0 | I88: 0 | J88: 0 | K88: 0
A89: Roads | C89: 125855669.3 | D89: 106655546.1 | E89: 120024582 | F89: 122422392 | G89: 194422393 | H89: 194422393 | I89: 133685392 | J89: 128264372 | K89: 134201104
A90: Taxi Ranks | C90: 0 | D90: 0 | E90: 0 | F90: 0 | G90: 0 | H90: 0 | I90: 0 | J90: 0 | K90: 0
A91: Environmental protection | C91: =SUM(C92:C97) -> 0 | D91: =SUM(D92:D97) -> 0 | E91: 0 | F91: 0 | G91: 0 | H91: 0 | I91: 0 | J91: 0 | K91: 0
A92: Biodiversity and Landscape | C92: 0 | D92: 0 | E92: 0 | F92: 0 | G92: 0 | H92: 0 | I92: 0 | J92: 0 | K92: 0
A93: Coastal Protection | C93: 0 | D93: 0 | E93: 0 | F93: 0 | G93: 0 | H93: 0 | I93: 0 | J93: 0 | K93: 0
A94: Indigenous Forests | C94: 0 | D94: 0 | E94: 0 | F94: 0 | G94: 0 | H94: 0 | I94: 0 | J94: 0 | K94: 0
A95: Nature Conservation | C95: 0 | D95: 0 | E95: 0 | F95: 0 | G95: 0 | H95: 0 | I95: 0 | J95: 0 | K95: 0
A96: Pollution Control | C96: 0 | D96: 0 | E96: 0 | F96: 0 | G96: 0 | H96: 0 | I96: 0 | J96: 0 | K96: 0
A97: Soil Conservation | C97: 0 | D97: 0 | E97: 0 | F97: 0 | G97: 0 | H97: 0 | I97: 0 | J97: 0 | K97: 0
A98: Trading services | C98: =C99+C103+C107+C112 -> 503748700.7 | D98: =D99+D103+D107+D112 -> 616032631.9 | E98: 290770730.6 | F98: 760011611 | G98: 760011612 | H98: 760011612 | I98: 141188774 | J98: 140145220 | K98: =K99+K103+K107+K112 -> 141224755
A99: Energy sources | C99: =SUM(C100:C102) -> 452008851 | D99: =SUM(D100:D102) -> 577155264.6 | E99: 245669569.9 | F99: 685641250 | G99: 685641250 | H99: 685641250 | I99: 65230000 | J99: 69264120 | K99: 67154005
A100: Electricity | C100: 452008851 | D100: 577155264.6 | E100: 245669569.9 | F100: 685641250 | G100: 685641250 | H100: 685641250 | I100: 65230000 | J100: 69264120 | K100: 67154005
A101: Street Lighting and Signal Systems | C101: 0 | D101: 0 | E101: 0 | F101: 0 | G101: 0 | H101: 0 | I101: 0 | J101: 0 | K101: 0
A102: Nonelectric Energy | C102: 0 | D102: 0 | E102: 0 | F102: 0 | G102: 0 | H102: 0 | I102: 0 | J102: 0 | K102: 0
A103: Water management | C103: =SUM(C104:C106) -> 0 | D103: =SUM(D104:D106) -> 0 | E103: 0 | F103: 0 | G103: 0 | H103: 0 | I103: 0 | J103: 0 | K103: 0
A104: Water Treatment | C104: 0 | D104: 0 | E104: 0 | F104: 0 | G104: 0 | H104: 0 | I104: 0 | J104: 0 | K104: 0
A105: Water Distribution | C105: 0 | D105: 0 | E105: 0 | F105: 0 | G105: 0 | H105: 0 | I105: 0 | J105: 0 | K105: 0
A106: Water Storage | C106: 0 | D106: 0 | E106: 0 | F106: 0 | G106: 0 | H106: 0 | I106: 0 | J106: 0 | K106: 0
A107: Waste water management | C107: =SUM(C108:C111) -> 0 | D107: =SUM(D108:D111) -> 0 | E107: 0 | F107: 0 | G107: 0 | H107: 0 | I107: 0 | J107: 0 | K107: 0
A108: Public Toilets | C108: 0 | D108: 0 | E108: 0 | F108: 0 | G108: 0 | H108: 0 | I108: 0 | J108: 0 | K108: 0
A109: Sewerage | C109: 0 | D109: 0 | E109: 0 | F109: 0 | G109: 0 | H109: 0 | I109: 0 | J109: 0 | K109: 0
A110: Storm Water Management | C110: 0 | D110: 0 | E110: 0 | F110: 0 | G110: 0 | H110: 0 | I110: 0 | J110: 0 | K110: 0
A111: Waste Water Treatment | C111: 0 | D111: 0 | E111: 0 | F111: 0 | G111: 0 | H111: 0 | I111: 0 | J111: 0 | K111: 0
A112: Waste management | C112: =SUM(C113:C116) -> 51739849.69 | D112: =SUM(D113:D116) -> 38877367.25 | E112: 45101160.7 | F112: 74370361 | G112: 74370362 | H112: 74370362 | I112: 75958774 | J112: 70881100 | K112: 74070750
A113: Recycling | C113: 0 | D113: 0 | E113: 0 | F113: 0 | G113: 0 | H113: 0 | I113: 0 | J113: 0 | K113: 0
A114: Solid Waste Disposal (Landfill Sites) | C114: 0 | D114: 0 | E114: 0 | F114: 0 | G114: 0 | H114: 0 | I114: 0 | J114: 0 | K114: 0
A115: Solid Waste Removal | C115: 51739849.69 | D115: 38877367.25 | E115: 45101160.7 | F115: 74370361 | G115: 74370362 | H115: 74370362 | I115: 75958774 | J115: 70881100 | K115: 74070750
A116: Street Cleaning | C116: 0 | D116: 0 | E116: 0 | F116: 0 | G116: 0 | H116: 0 | I116: 0 | J116: 0 | K116: 0
A117: Other | C117: =SUM(C118:C123) -> 0 | D117: =SUM(D118:D123) -> 0 | E117: 0 | F117: 0 | G117: 0 | H117: 0 | I117: 0 | J117: 0 | K117: 0
A118: Abattoirs | C118: 0 | D118: 0 | E118: 0 | F118: 0 | G118: 0 | H118: 0 | I118: 0 | J118: 0 | K118: 0
A119: Air Transport | C119: 0 | D119: 0 | E119: 0 | F119: 0 | G119: 0 | H119: 0 | I119: 0 | J119: 0 | K119: 0
A120: Forestry | C120: 0 | D120: 0 | E120: 0 | F120: 0 | G120: 0 | H120: 0 | I120: 0 | J120: 0 | K120: 0
A121: Licensing and Regulation | C121: 0 | D121: 0 | E121: 0 | F121: 0 | G121: 0 | H121: 0 | I121: 0 | J121: 0 | K121: 0
A122: Markets | C122: 0 | D122: 0 | E122: 0 | F122: 0 | G122: 0 | H122: 0 | I122: 0 | J122: 0 | K122: 0
A123: Tourism | C123: 0 | D123: 0 | E123: 0 | F123: 0 | G123: 0 | H123: 0 | I123: 0 | J123: 0 | K123: 0
A124: ="Total "&A4 -> Total Revenue - Functional | B124: 2 | C124: =C5+C25+C74+C98+C117 -> 1136215480 | D124: 1324705889 | E124: 1353975591 | F124: 1498695713 | G124: 1571445717 | H124: 1571445717 | I124: 1587903774 | J124: 1652177418 | K124: 1735862914
A126: Expenditure - Functional
A127: =A5 -> Municipal governance and administration | C127: =C128+C131+C145 -> 383658892.3 | D127: 277922868.6 | E127: 256051557 | F127: 321508290 | G127: 324156161 | H127: 324156161 | I127: 330864475 | J127: 345351117 | K127: 360772402
A128: Executive and council | C128: =SUM(C129:C130) -> 42526739.66 | D128: 47362541.41 | E128: 40636349.86 | F128: 47525794 | G128: 47490469 | H128: 47490469 | I128: 48325791 | J128: 50452126 | K128: 52722469
A129: Mayor and Council | C129: 26136302.58 | D129: 27192533.38 | E129: 27408026.02 | F129: 28905898 | G129: 28905898 | H129: 28905898 | I129: 28892669 | J129: 30163945 | K129: 31521322
A130: Municipal Manager, Town Secretary and Chief Executive | C130: 16390437.08 | D130: 20170008.03 | E130: 13228323.84 | F130: 18619896 | G130: 18584571 | H130: 18584571 | I130: 19433122 | J130: 20288181 | K130: 21201147
A131: Finance and administration | C131: =SUM(C132:C144) -> 336837691.7 | D131: 225722018.6 | E131: 210005501.6 | F131: 268247647 | G131: 270631162 | H131: 270631162 | I131: 276525819 | J131: 288621648 | K131: 301490200
A132: Administrative and Corporate Support | C132: 204217612.8 | D132: 27717877.75 | E132: 26996675.81 | F132: 31248354 | G132: 32159489 | H132: 32159489 | I132: 28209845 | J132: 29450820 | K132: 30775836
A133: Asset Management | C133: 7831239 | D133: 8896676.53 | E133: 6336084.86 | F133: 6848340 | G133: 7039002 | H133: 7039002 | I133: 9476528 | J133: 9893495 | K133: 10338706
A134: Finance | C134: 32871271.58 | D134: 97189138.92 | E134: 65936401.86 | F134: 116272988 | G134: 116522571 | H134: 116522571 | I134: 121342175 | J134: 126614836 | K134: 132222145
A135: Fleet Management | C135: 14882296 | D135: 18731808.82 | E135: 19709745.74 | F135: 33809341 | G135: 34031425 | H135: 34031425 | I135: 32493062 | J135: 33922670 | K135: 35449100
A136: Human Resources | C136: 10138781.8 | D136: 10366525.41 | E136: 36980342.65 | F136: 20890371 | G136: 19313000 | H136: 19313000 | I136: 23673755 | J136: 24715315 | K136: 25827415
A137: Information Technology | C137: 25149509.74 | D137: 11015762.6 | E137: 12219846.41 | F137: 17667418 | G137: 17837979 | H137: 17837979 | I137: 18275880 | J137: 19075327 | K137: 19929212
A138: Legal Services | C138: 20662405 | D138: 25904474.07 | E138: 24446489.18 | F138: 22084330 | G138: 23637746 | H138: 23637746 | I138: 21928169 | J138: 22892921 | K138: 23923015
A139: Marketing, Customer Relations, Publicity and Media Co-ordination | C139: 8052100 | D139: 3489090.81 | E139: 3548923.5 | F139: 4652696 | G139: 4828655 | H139: 4828655 | I139: 3863051 | J139: 4032939 | K139: 4214330
A140: Property Services | C140: 6849848 | D140: 16053700.23 | E140: 7322757.27 | F140: 7465766 | G140: 7858841 | H140: 7858841 | I140: 8308824 | J140: 8674882 | K140: 9041412
A141: Risk Management | C141: 1998596.76 | D141: 1981241.55 | E141: 2248064.73 | F141: 2283280 | G141: 2358814 | H141: 2358814 | I141: 3093795 | J141: 3229923 | K141: 3375268
A142: Security Services | C142: 0 | D142: 0 | E142: 0 | F142: 0 | G142: 0 | H142: 0 | I142: 0 | J142: 0 | K142: 0
A143: Supply Chain Management | C143: 4184031 | D143: 4375721.94 | E143: 4260169.64 | F143: 5024763 | G143: 5043640 | H143: 5043640 | I143: 5860735 | J143: 6118520 | K143: 6393761
A144: Valuation Service | C144: 0 | D144: 0 | E144: 0 | F144: 0 | G144: 0 | H144: 0 | I144: 0 | J144: 0 | K144: 0
A145: Internal audit | C145: =SUM(C146:C146) -> 4294460.96 | D145: 4838308.57 | E145: 5409705.49 | F145: 5734849 | G145: 6034530 | H145: 6034530 | I145: 6012865 | J145: 6277343 | K145: 6559733
A146: Governance Function | C146: 4294460.96 | D146: 4838308.57 | E146: 5409705.49 | F146: 5734849 | G146: 6034530 | H146: 6034530 | I146: 6012865 | J146: 6277343 | K146: 6559733
A147: Community and public safety | C147: =C148+C170+C176+C185+C188 -> 58016588.24 | D147: 76939452.91 | E147: 86760431.58 | F147: 87148830 | G147: 91034519 | H147: 91034519 | I147: 88402380 | J147: 92304738 | K147: 96457514
A148: Community and social services | C148: =SUM(C149:C169) -> 10934244.24 | D148: =SUM(D149:D169) -> 13453079.92 | E148: 13174348.47 | F148: 14064027 | G148: 14560753 | H148: 14560753 | I148: 14917765 | J148: 15573970 | K148: 16274620
A149: Aged Care | C149: 0 | D149: 0 | E149: 0 | F149: 0 | G149: 0 | H149: 0 | I149: 0 | J149: 0 | K149: 0
A150: Agricultural | C150: 0 | D150: 0 | E150: 0 | F150: 0 | G150: 0 | H150: 0 | I150: 0 | J150: 0 | K150: 0
A151: Animal Care and Diseases | C151: 0 | D151: 0 | E151: 0 | F151: 0 | G151: 0 | H151: 0 | I151: 0 | J151: 0 | K151: 0
A152: Cemeteries, Funeral Parlours and Crematoriums | C152: 0 | D152: 0 | E152: 0 | F152: 0 | G152: 0 | H152: 0 | I152: 0 | J152: 0 | K152: 0
A153: Child Care Facilities | C153: 0 | D153: 0 | E153: 0 | F153: 0 | G153: 0 | H153: 0 | I153: 0 | J153: 0 | K153: 0
A154: Community Halls and Facilities | C154: 0 | D154: 0 | E154: 0 | F154: 32727 | G154: 32727 | H154: 32727 | I154: 32727 | J154: 34167 | K154: 35705
A155: Consumer Protection | C155: 0 | D155: 0 | E155: 0 | F155: 0 | G155: 0 | H155: 0 | I155: 0 | J155: 0 | K155: 0
A156: Cultural Matters | C156: 0 | D156: 0 | E156: 0 | F156: 0 | G156: 0 | H156: 0 | I156: 0 | J156: 0 | K156: 0
A157: Disaster Management | C157: 2074940.24 | D157: 3813595.18 | E157: 2582668.4 | F157: 3400046 | G157: 3473232 | H157: 3473232 | I157: 2863701 | J157: 2989614 | K157: 3124057
A158: Education | C158: 0 | D158: 0 | E158: 0 | F158: 0 | G158: 0 | H158: 0 | I158: 0 | J158: 0 | K158: 0
A159: =A37 -> Indigenous and Customary Law | C159: 0 | D159: 0 | E159: 0 | F159: 0 | G159: 0 | H159: 0 | I159: 0 | J159: 0 | K159: 0
A160: Industrial Promotion | C160: 0 | D160: 0 | E160: 0 | F160: 0 | G160: 0 | H160: 0 | I160: 0 | J160: 0 | K160: 0
A161: Language Policy | C161: 0 | D161: 0 | E161: 0 | F161: 0 | G161: 0 | H161: 0 | I161: 0 | J161: 0 | K161: 0
A162: Libraries and Archives | C162: 8859304 | D162: 9639484.74 | E162: 10591680.07 | F162: 10631254 | G162: 11054794 | H162: 11054794 | I162: 12021337 | J162: 12550189 | K162: 13114858
A163: Literacy Programmes | C163: 0 | D163: 0 | E163: 0 | F163: 0 | G163: 0 | H163: 0 | I163: 0 | J163: 0 | K163: 0
A164: Media Services | C164: 0 | D164: 0 | E164: 0 | F164: 0 | G164: 0 | H164: 0 | I164: 0 | J164: 0 | K164: 0
A165: Museums and Art Galleries | C165: 0 | D165: 0 | E165: 0 | F165: 0 | G165: 0 | H165: 0 | I165: 0 | J165: 0 | K165: 0
A166: Population Development | C166: 0 | D166: 0 | E166: 0 | F166: 0 | G166: 0 | H166: 0 | I166: 0 | J166: 0 | K166: 0
A167: Provincial Cultural Matters | C167: 0 | D167: 0 | E167: 0 | F167: 0 | G167: 0 | H167: 0 | I167: 0 | J167: 0 | K167: 0
A168: Theatres | C168: 0 | D168: 0 | E168: 0 | F168: 0 | G168: 0 | H168: 0 | I168: 0 | J168: 0 | K168: 0
A169: Zoo's | C169: 0 | D169: 0 | E169: 0 | F169: 0 | G169: 0 | H169: 0 | I169: 0 | J169: 0 | K169: 0
A170: Sport and recreation | C170: =SUM(C171:C175) -> 13223660 | D170: 22565404.38 | E170: 22811973.7 | F170: 28000708 | G170: 29220678 | H170: 29220678 | I170: 29195810 | J170: 30480428 | K170: 31852050
A171: Beaches and Jetties | C171: 0 | D171: 0 | E171: 0 | F171: 0 | G171: 0 | H171: 0 | I171: 0 | J171: 0 | K171: 0
A172: Casinos, Racing, Gambling, Wagering | C172: 0 | D172: 0 | E172: 0 | F172: 0 | G172: 0 | H172: 0 | I172: 0 | J172: 0 | K172: 0
A173: Community Parks (including Nurseries) | C173: 0 | D173: 0 | E173: 0 | F173: 0 | G173: 0 | H173: 0 | I173: 0 | J173: 0 | K173: 0
A174: Recreational Facilities | C174: 13223660 | D174: 22565404.38 | E174: 22811973.7 | F174: 28000708 | G174: 29220678 | H174: 29220678 | I174: 29195810 | J174: 30480428 | K174: 31852050
A175: Sports Grounds and Stadiums | C175: 0 | D175: 0 | E175: 0 | F175: 0 | G175: 0 | H175: 0 | I175: 0 | J175: 0 | K175: 0
A176: Public safety | C176: =SUM(C177:C184) -> 16742070 | D176: 18165575.59 | E176: 17382454.57 | F176: 18297616 | G176: 19253090 | H176: 19253090 | I176: 18702176 | J176: 19538079 | K176: 20416708
A177: Civil Defence | C177: 0 | D177: 0 | E177: 0 | F177: 0 | G177: 0 | H177: 0 | I177: 0 | J177: 0 | K177: 0
A178: Cleansing | C178: 0 | D178: 0 | E178: 0 | F178: 0 | G178: 0 | H178: 0 | I178: 0 | J178: 0 | K178: 0
A179: =A57 -> Control of Public Nuisances | C179: 16742070 | D179: 18165575.59 | E179: 17382454.57 | F179: 18297616 | G179: 19253090 | H179: 19253090 | I179: 18702176 | J179: 19538079 | K179: 20416708
A180: Fencing and Fences | C180: 0 | D180: 0 | E180: 0 | F180: 0 | G180: 0 | H180: 0 | I180: 0 | J180: 0 | K180: 0
A181: Fire Fighting and Protection | C181: 0 | D181: 0 | E181: 0 | F181: 0 | G181: 0 | H181: 0 | I181: 0 | J181: 0 | K181: 0
A182: Licensing and Control of Animals | C182: 0 | D182: 0 | E182: 0 | F182: 0 | G182: 0 | H182: 0 | I182: 0 | J182: 0 | K182: 0
A183: Police Forces, Traffic and Street Parking Control | C183: 0 | D183: 0 | E183: 0 | F183: 0 | G183: 0 | H183: 0 | I183: 0 | J183: 0 | K183: 0
A184: Pounds | C184: 0 | D184: 0 | E184: 0 | F184: 0 | G184: 0 | H184: 0 | I184: 0 | J184: 0 | K184: 0
A185: =A63 -> Housing | C185: =SUM(C186:C187) -> 7917952 | D185: 12113183.55 | E185: 15316510.12 | F185: 15936528 | G185: 16611241 | H185: 16611241 | I185: 16716417 | J185: 17451849 | K185: 18237094
A186: Housing | C186: 7917952 | D186: 12113183.55 | E186: 15316510.12 | F186: 15936528 | G186: 16611241 | H186: 16611241 | I186: 16716417 | J186: 17451849 | K186: 18237094
A187: Informal Settlements | C187: 0 | D187: 0 | E187: 0 | F187: 0 | G187: 0 | H187: 0 | I187: 0 | J187: 0 | K187: 0
A188: Health | C188: =SUM(C189:C195) -> 9198662 | D188: =SUM(D189:D195) -> 10642209.47 | E188: 18075144.72 | F188: 10849951 | G188: 11388757 | H188: 11388757 | I188: 8870212 | J188: 9260412 | K188: 9677042
A189: Ambulance | C189: 0 | D189: 0 | E189: 0 | F189: 0 | G189: 0 | H189: 0 | I189: 0 | J189: 0 | K189: 0
A190: Health Services | C190: 9198662 | D190: 10642209.47 | E190: 18075144.72 | F190: 10849951 | G190: 11388757 | H190: 11388757 | I190: 8870212 | J190: 9260412 | K190: 9677042
A191: Laboratory Services | C191: 0 | D191: 0 | E191: 0 | F191: 0 | G191: 0 | H191: 0 | I191: 0 | J191: 0 | K191: 0
A192: Food Control | C192: 0 | D192: 0 | E192: 0 | F192: 0 | G192: 0 | H192: 0 | I192: 0 | J192: 0 | K192: 0
A193: Health Surveillance and Prevention of Communicable Diseases including immunizations | C193: 0 | D193: 0 | E193: 0 | F193: 0 | G193: 0 | H193: 0 | I193: 0 | J193: 0 | K193: 0
A194: Vector Control | C194: 0 | D194: 0 | E194: 0 | F194: 0 | G194: 0 | H194: 0 | I194: 0 | J194: 0 | K194: 0
A195: Chemical Safety | C195: 0 | D195: 0 | E195: 0 | F195: 0 | G195: 0 | H195: 0 | I195: 0 | J195: 0 | K195: 0
A196: Economic and environmental services | C196: =C197+C208+C213 -> 157357878.4 | D196: 145494753.6 | E196: 163409622.9 | F196: 194796743 | G196: 197994529 | H196: 197994529 | I196: 233191195 | J196: 243261968 | K196: 254070156
A197: Planning and development | C197: =SUM(C198:C207) -> 15559417.92 | D197: =SUM(D198:D207) -> 15835955.4 | E197: 24416242.88 | F197: 29816905 | G197: 31099486 | H197: 31099486 | I197: 30512394 | J197: 31923041 | K197: 33356040
A198: Billboards | C198: 0 | D198: 0 | E198: 0 | F198: 0 | G198: 0 | H198: 0 | I198: 0 | J198: 0 | K198: 0
A199: Corporate Wide Strategic Planning (IDPs, LEDs) | C199: 9193476.92 | D199: 9336842.74 | E199: 17539050.4 | F199: 20962946 | G199: 22024350 | H199: 22024350 | I199: 20011870 | J199: 20960752 | K199: 21900721
A200: Central City Improvement District | C200: 0 | D200: 0 | E200: 0 | F200: 0 | G200: 0 | H200: 0 | I200: 0 | J200: 0 | K200: 0
A201: Development Facilitation | C201: 0 | D201: 0 | E201: 0 | F201: 0 | G201: 0 | H201: 0 | I201: 0 | J201: 0 | K201: 0
... 53 more rows

Sheet A3-FinPerf V
A1: =muni&" - "&Approve2 -> Choose name from list - Table A3 Budgeted Financial Performance (revenue and expenditure by municipal vote)
A2: =Vdesc -> Vote Description | B2: =head27 -> Ref | C2: =head1b -> 2018/19 | D2: =head1A -> 2019/20 | E2: =Head1 -> 2020/21 | F2: =Head2 -> Current Year 2021/22 | I2: =Head3 -> 2022/23 Medium Term Revenue & Expenditure Framework | L2: =Head4 -> LTFS
A3: R thousand | C3: =Head5 -> Audited Outcome | D3: =Head5 -> Audited Outcome | E3: =Head5 -> Audited Outcome | F3: =Head6 -> Original Budget | G3: =Head7 -> Adjusted Budget | H3: =Head8 -> Full Year Forecast | I3: =Head9 -> Budget Year 2022/23 | J3: =Head10 -> Budget Year +1 2023/24 | K3: =Head11 -> Budget Year +2 2024/25 | L3: =Head12 -> Forecast 2025/26 | M3: =Head13 -> Forecast 2026/27 | N3: =Head14 -> Forecast 2027/28 | O3: =Head15 -> Forecast 2028/29 | P3: =Head16 -> Forecast 2029/30 | Q3: =Head17 -> Forecast 2030/31 | R3: =Head18 -> Forecast 2031/32 | S3: =Head19 -> Forecast 2032/33 | T3: =Head20 -> Forecast 2033/34 | U3: =Head21 -> Forecast 2034/35 | V3: =Head22 -> Forecast 2035/36 | W3: =Head23 -> Forecast 2036/37
A4: Revenue by Vote | B4: 1
A5: =A3A!A5 -> Vote 1 - Executive & Council | C5: =A3A!C5 -> 76693659.94 | D5: =A3A!D5 -> 0 | E5: =A3A!E5 -> 0 | F5: =A3A!F5 -> 0 | G5: =A3A!G5 -> 0 | H5: =A3A!H5 -> 0 | I5: =A3A!I5 -> 0 | J5: =A3A!J5 -> 0 | K5: =A3A!K5 -> 0
A6: =A3A!A16 -> Vote 2 - Planning and Economic Development | C6: =A3A!C16 -> 2957642.92 | D6: =A3A!D16 -> 355705.99 | E6: =A3A!E16 -> -79901.07 | F6: =A3A!F16 -> 400126 | G6: =A3A!G16 -> 400126 | H6: =A3A!H16 -> 400126 | I6: =A3A!I16 -> 300126 | J6: =A3A!J16 -> 313332 | K6: =A3A!K16 -> 327432
A7: =A3A!A27 -> Vote 3 - Budget and Treasury | C7: =A3A!C27 -> 391472611.8 | D7: =A3A!D27 -> 572128627.8 | E7: =A3A!E27 -> 926575221.6 | F7: =A3A!F27 -> 575470228 | G7: =A3A!G27 -> 575470230 | H7: =A3A!H27 -> 575470230 | I7: =A3A!I27 -> 1298090712 | J7: =A3A!J27 -> 1368171618 | K7: =A3A!K27 -> 1444139017
A8: =A3A!A38 -> Vote 4 - Corporate Services | C8: =A3A!C38 -> 36842335 | D8: =A3A!D38 -> 1400490.07 | E8: =A3A!E38 -> 194725.53 | F8: =A3A!F38 -> 0 | G8: =A3A!G38 -> 750000 | H8: =A3A!H38 -> 750000 | I8: =A3A!I38 -> 800000 | J8: =A3A!J38 -> 835200 | K8: =A3A!K38 -> 872784
A9: =A3A!A49 -> Vote 5 - Engineering Services | C9: =A3A!C49 -> 92348531.29 | D9: =A3A!D49 -> 93962050.6 | E9: =A3A!E49 -> 110312639.5 | F9: =A3A!F49 -> 101400326 | G9: =A3A!G49 -> 101400327 | H9: =A3A!H49 -> 101400327 | I9: =A3A!I49 -> 120293126 | J9: =A3A!J49 -> 114282848 | K9: =A3A!K49 -> 119590412
A10: =A3A!A60 -> Vote 6 - Community Services | C10: =A3A!C60 -> 74287164.22 | D10: =A3A!D60 -> 79405750.35 | E10: =A3A!E60 -> 71303335.58 | F10: =A3A!F60 -> 135782554 | G10: =A3A!G60 -> 207782555 | H10: =A3A!H60 -> 207782555 | I10: =A3A!I60 -> 103188581 | J10: =A3A!J60 -> 99309017 | K10: =A3A!K60 -> 103777923
A11: =A3A!A71 -> Vote 7 - Electrical Engineering | C11: =A3A!C71 -> 461613534.4 | D11: =A3A!D71 -> 577155264.6 | E11: =A3A!E71 -> 245669569.9 | F11: =A3A!F71 -> 685641250 | G11: =A3A!G71 -> 685641250 | H11: =A3A!H71 -> 685641250 | I11: =A3A!I71 -> 65230000 | J11: =A3A!J71 -> 69264120 | K11: =A3A!K71 -> 67154005
A12: =A3A!A82 -> Vote 8 - Office of the Speaker | C12: =A3A!C82 -> 0 | D12: =A3A!D82 -> 0 | E12: =A3A!E82 -> 0 | F12: =A3A!F82 -> 0 | G12: =A3A!G82 -> 0 | H12: =A3A!H82 -> 0 | I12: =A3A!I82 -> 0 | J12: =A3A!J82 -> 0 | K12: =A3A!K82 -> 0
A13: =A3A!A93 -> Vote 9 - COMMUNITY & SOCIAL SERVICES | C13: =A3A!C93 -> 0 | D13: =A3A!D93 -> 0 | E13: =A3A!E93 -> 0 | F13: =A3A!F93 -> 0 | G13: =A3A!G93 -> 0 | H13: =A3A!H93 -> 0 | I13: =A3A!I93 -> 0 | J13: =A3A!J93 -> 0 | K13: =A3A!K93 -> 0
A14: =A3A!A104 -> Vote 10 - Office of the Municipal Manager | C14: =A3A!C104 -> 0 | D14: =A3A!D104 -> 298000 | E14: =A3A!E104 -> 0 | F14: =A3A!F104 -> 1229 | G14: =A3A!G104 -> 1229 | H14: =A3A!H104 -> 1229 | I14: =A3A!I104 -> 1229 | J14: =A3A!J104 -> 1283 | K14: =A3A!K104 -> 1341
A15: =A3A!A115 -> Vote 11 - [NAME OF VOTE 11] | C15: =A3A!C115 -> 0 | D15: =A3A!D115 -> 0 | E15: =A3A!E115 -> 0 | F15: =A3A!F115 -> 0 | G15: =A3A!G115 -> 0 | H15: =A3A!H115 -> 0 | I15: =A3A!I115 -> 0 | J15: =A3A!J115 -> 0 | K15: =A3A!K115 -> 0 | L15: =A5A!L115 -> 0
A16: =A3A!A126 -> Vote 12 - [NAME OF VOTE 12] | C16: =A3A!C126 -> 0 | D16: =A3A!D126 -> 0 | E16: =A3A!E126 -> 0 | F16: =A3A!F126 -> 0 | G16: =A3A!G126 -> 0 | H16: =A3A!H126 -> 0 | I16: =A3A!I126 -> 0 | J16: =A3A!J126 -> 0 | K16: =A3A!K126 -> 0 | L16: =A5A!L126 -> 0
A17: =A3A!A137 -> Vote 13 - [NAME OF VOTE 13] | C17: =A3A!C137 -> 0 | D17: =A3A!D137 -> 0 | E17: =A3A!E137 -> 0 | F17: =A3A!F137 -> 0 | G17: =A3A!G137 -> 0 | H17: =A3A!H137 -> 0 | I17: =A3A!I137 -> 0 | J17: =A3A!J137 -> 0 | K17: =A3A!K137 -> 0 | L17: =A5A!L137 -> 0
A18: =A3A!A148 -> Vote 14 - [NAME OF VOTE 14] | C18: =A3A!C148 -> 0 | D18: =A3A!D148 -> 0 | E18: =A3A!E148 -> 0 | F18: =A3A!F148 -> 0 | G18: =A3A!G148 -> 0 | H18: =A3A!H148 -> 0 | I18: =A3A!I148 -> 0 | J18: =A3A!J148 -> 0 | K18: =A3A!K148 -> 0 | L18: =A5A!L148 -> 0
A19: =A3A!A159 -> Vote 15 - [NAME OF VOTE 15] | C19: =A3A!C159 -> 0 | D19: =A3A!D159 -> 0 | E19: =A3A!E159 -> 0 | F19: =A3A!F159 -> 0 | G19: =A3A!G159 -> 0 | H19: =A3A!H159 -> 0 | I19: =A3A!I159 -> 0 | J19: =A3A!J159 -> 0 | K19: =A3A!K159 -> 0 | L19: =A5A!L159 -> 0
A20: Total Revenue by Vote | B20: 2 | C20: =SUM(C5:C19) -> 1136215480 | D20: =SUM(D5:D19) -> 1324705889 | E20: 1353975591 | F20: 1498695713 | G20: 1571445717 | H20: 1571445717 | I20: 1587903774 | J20: 1652177418 | K20: 1735862914
A22: Expenditure by Vote to be appropriated | B22: 1
A23: =A3A!A173 -> Vote 1 - Executive & Council | C23: =A3A!C173 -> 281786216.1 | D23: =A3A!D173 -> 0 | E23: =A3A!E173 -> 0 | F23: =A3A!F173 -> 0 | G23: =A3A!G173 -> 0 | H23: =A3A!H173 -> 0 | I23: =A3A!I173 -> 2392054 | J23: =A3A!J173 -> 2497305 | K23: =A3A!K173 -> 2609687
A24: =A3A!A184 -> Vote 2 - Planning and Economic Development | C24: =A3A!C184 -> 30327217.92 | D24: =A3A!D184 -> 27696566.36 | E24: =A3A!E184 -> 28203048.67 | F24: =A3A!F184 -> 32421715 | G24: =A3A!G184 -> 33224095 | H24: =A3A!H184 -> 33224095 | I24: =A3A!I184 -> 34248753 | J24: =A3A!J184 -> 35755822 | K24: =A3A!K184 -> 37340632
A25: =A3A!A195 -> Vote 3 - Budget and Treasury | C25: =A3A!C195 -> 59768837.58 | D25: =A3A!D195 -> 110504122.4 | E25: =A3A!E195 -> 77379208.09 | F25: =A3A!F195 -> 128287707 | G25: =A3A!G195 -> 128946829 | H25: =A3A!H195 -> 128946829 | I25: =A3A!I195 -> 134429000 | J25: =A3A!J195 -> 140277393 | K25: =A3A!K195 -> 146499425
A26: =A3A!A206 -> Vote 4 - Corporate Services | C26: =A3A!C206 -> 18751167.8 | D26: =A3A!D206 -> 52589256.57 | E26: =A3A!E206 -> 79745788.37 | F26: =A3A!F206 -> 74458839 | G26: =A3A!G206 -> 74139123 | H26: =A3A!H206 -> 74139123 | I26: =A3A!I206 -> 74022531 | J26: =A3A!J206 -> 77274401 | K26: =A3A!K206 -> 80746793
A27: =A3A!A217 -> Vote 5 - Engineering Services | C27: =A3A!C217 -> 141798460.5 | D27: =A3A!D217 -> 119608009.9 | E27: =A3A!E217 -> 130765203.8 | F27: =A3A!F217 -> 163635327 | G27: =A3A!G217 -> 165128593 | H27: =A3A!H217 -> 165128593 | I27: =A3A!I217 -> 162343022 | J27: =A3A!J217 -> 169228239 | K27: =A3A!K217 -> 176708315
A28: =A3A!A228 -> Vote 6 - Community Services | C28: =A3A!C228 -> 137079915.8 | D28: =A3A!D228 -> 193208225.7 | E28: =A3A!E228 -> 181296998.4 | F28: =A3A!F228 -> 213892592 | G28: =A3A!G228 -> 219896467 | H28: =A3A!H228 -> 219896467 | I28: =A3A!I228 -> 255624106 | J28: =A3A!J228 -> 258464320 | K28: =A3A!K228 -> 270094228
A29: =A3A!A239 -> Vote 7 - Electrical Engineering | C29: =A3A!C239 -> 508866589.9 | D29: =A3A!D239 -> 520103946.3 | E29: =A3A!E239 -> 549007498.1 | F29: =A3A!F239 -> 628353359 | G29: =A3A!G239 -> 623384755 | H29: =A3A!H239 -> 623384755 | I29: =A3A!I239 -> 650265761 | J29: =A3A!J239 -> 678118952 | K29: =A3A!K239 -> 701447531
A30: =A3A!A250 -> Vote 8 - Office of the Speaker | C30: =A3A!C250 -> 20609393.08 | D30: =A3A!D250 -> 0 | E30: =A3A!E250 -> 0 | F30: =A3A!F250 -> 0 | G30: =A3A!G250 -> 0 | H30: =A3A!H250 -> 0 | I30: =A3A!I250 -> 0 | J30: =A3A!J250 -> 0 | K30: =A3A!K250 -> 0
A31: =A3A!A261 -> Vote 9 - COMMUNITY & SOCIAL SERVICES | C31: =A3A!C261 -> 0 | D31: =A3A!D261 -> 0 | E31: =A3A!E261 -> 0 | F31: =A3A!F261 -> 0 | G31: =A3A!G261 -> 0 | H31: =A3A!H261 -> 0 | I31: =A3A!I261 -> 0 | J31: =A3A!J261 -> 0 | K31: =A3A!K261 -> 0
A32: =A3A!A272 -> Vote 10 - Office of the Municipal Manager | C32: =A3A!C272 -> 0 | D32: =A3A!D272 -> 88391250.05 | E32: =A3A!E272 -> 78859229.14 | F32: =A3A!F272 -> 85889255 | G32: =A3A!G272 -> 88729023 | H32: =A3A!H272 -> 88729023 | I32: =A3A!I272 -> 86796786 | J32: =A3A!J272 -> 90684028 | K32: =A3A!K272 -> 94761362
A33: =A3A!A283 -> Vote 11 - [NAME OF VOTE 11] | C33: =A3A!C283 -> 0 | D33: =A3A!D283 -> 0 | E33: =A3A!E283 -> 0 | F33: =A3A!F283 -> 0 | G33: =A3A!G283 -> 0 | H33: =A3A!H283 -> 0 | I33: =A3A!I283 -> 0 | J33: =A3A!J283 -> 0 | K33: =A3A!K283 -> 0 | L33: =A3A!L284 -> 0
A34: =A3A!A294 -> Vote 12 - [NAME OF VOTE 12] | C34: =A3A!C294 -> 0 | D34: =A3A!D294 -> 0 | E34: =A3A!E294 -> 0 | F34: =A3A!F294 -> 0 | G34: =A3A!G294 -> 0 | H34: =A3A!H294 -> 0 | I34: =A3A!I294 -> 0 | J34: =A3A!J294 -> 0 | K34: =A3A!K294 -> 0 | L34: =A3A!L295 -> 0
A35: =A3A!A305 -> Vote 13 - [NAME OF VOTE 13] | C35: =A3A!C305 -> 0 | D35: =A3A!D305 -> 0 | E35: =A3A!E305 -> 0 | F35: =A3A!F305 -> 0 | G35: =A3A!G305 -> 0 | H35: =A3A!H305 -> 0 | I35: =A3A!I305 -> 0 | J35: =A3A!J305 -> 0 | K35: =A3A!K305 -> 0 | L35: =A3A!L306 -> 0
A36: =A3A!A316 -> Vote 14 - [NAME OF VOTE 14] | C36: =A3A!C316 -> 0 | D36: =A3A!D316 -> 0 | E36: =A3A!E316 -> 0 | F36: =A3A!F316 -> 0 | G36: =A3A!G316 -> 0 | H36: =A3A!H316 -> 0 | I36: =A3A!I316 -> 0 | J36: =A3A!J316 -> 0 | K36: =A3A!K316 -> 0 | L36: =A3A!L317 -> 0
A37: =A3A!A327 -> Vote 15 - [NAME OF VOTE 15] | C37: =A3A!C327 -> 0 | D37: =A3A!D327 -> 0 | E37: =A3A!E327 -> 0 | F37: =A3A!F327 -> 0 | G37: =A3A!G327 -> 0 | H37: =A3A!H327 -> 0 | I37: =A3A!I327 -> 0 | J37: =A3A!J327 -> 0 | K37: =A3A!K327 -> 0 | L37: =A3A!L328 -> 0
A38: Total Expenditure by Vote | B38: 2 | C38: =SUM(C23:C37) -> 1198987799 | D38: =SUM(D23:D37) -> 1112101377 | E38: 1125256975 | F38: 1326938794 | G38: 1333448885 | H38: 1333448885 | I38: 1400122013 | J38: 1452300460 | K38: 1510207973 | L38: =SUM(L23:L29) -> 0 | M38: 0 | N38: 0 | O38: 0 | P38: 0 | Q38: 0 | R38: 0 | S38: 0 | T38: 0 | U38: 0 | V38: 0 | W38: 0
A39: =result -> Surplus/(Deficit) for the year | B39: 2 | C39: =C20-C38 -> -62772319 | D39: 212604512.2 | E39: 228718616.6 | F39: 171756919 | G39: 237996832 | H39: 237996832 | I39: 187781761 | J39: 199876958 | K39: 225654941 | L39: 0 | M39: 0 | N39: 0 | O39: 0 | P39: 0 | Q39: 0 | R39: 0 | S39: 0 | T39: 0 | U39: 0 | V39: 0 | W39: 0
A40: =head27a -> References
A41: 1. Insert 'Vote'; e.g. department, if different to functional classification structure
A42: 2. Must reconcile to Budgeted Financial Performance (revenue and expenditure)
A43: 3. Assign share in 'associate' to relevant Vote
A45: ="check "&A39 -> check Surplus/(Deficit) for the year | C45: =C39-A3A!C340 -> 0 | D45: =D39-A3A!D340 -> 0 | E45: =E39-A3A!E340 -> 0 | F45: =F39-A3A!F340 -> 0 | G45: =G39-A3A!G340 -> 0 | H45: =H39-A3A!H340 -> 0 | I45: =I39-A3A!I340 -> 0 | J45: =J39-A3A!J340 -> 0 | K45: =K39-A3A!K340 -> 0

Sheet A3A
A1: =muni&" - "&Approve2&"A" -> Choose name from list - Table A3 Budgeted Financial Performance (revenue and expenditure by municipal vote)A
A2: =Vdesc -> Vote Description | B2: =head27 -> Ref | C2: =head1b -> 2018/19 | D2: =head1A -> 2019/20 | E2: =Head1 -> 2020/21 | F2: =Head2 -> Current Year 2021/22 | I2: =Head3 -> 2022/23 Medium Term Revenue & Expenditure Framework | L2: =Head4 -> LTFS
A3: R thousand | C3: =Head5 -> Audited Outcome | D3: =Head5 -> Audited Outcome | E3: =Head5 -> Audited Outcome | F3: =Head6 -> Original Budget | G3: =Head7 -> Adjusted Budget | H3: =Head8 -> Full Year Forecast | I3: =Head9 -> Budget Year 2022/23 | J3: =Head10 -> Budget Year +1 2023/24 | K3: =Head11 -> Budget Year +2 2024/25 | L3: =Head12 -> Forecast 2025/26 | M3: =Head13 -> Forecast 2026/27 | N3: =Head14 -> Forecast 2027/28 | O3: =Head15 -> Forecast 2028/29 | P3: =Head16 -> Forecast 2029/30 | Q3: =Head17 -> Forecast 2030/31 | R3: =Head18 -> Forecast 2031/32 | S3: =Head19 -> Forecast 2032/33 | T3: =Head20 -> Forecast 2033/34 | U3: =Head21 -> Forecast 2034/35 | V3: =Head22 -> Forecast 2035/36 | W3: =Head23 -> Forecast 2036/37
A4: Revenue by Vote | B4: 1
A5: ='Org structure'!A2 -> Vote 1 - Executive & Council | C5: 76693659.94 | D5: 0 | E5: 0 | F5: 0 | G5: 0 | H5: 0 | I5: 0 | J5: 0 | K5: 0
A6: ='Org structure'!E3 -> 1.1 - [Name of sub-vote]
A7: ='Org structure'!E4 -> 0
A8: ='Org structure'!E5 -> 0
A9: ='Org structure'!E6 -> 0
A10: ='Org structure'!E7 -> 0
A11: ='Org structure'!E8 -> 0
A12: ='Org structure'!E9 -> 0
A13: ='Org structure'!E10 -> 0
A14: ='Org structure'!E11 -> 0
A15: ='Org structure'!E12 -> 0
A16: ='Org structure'!A3 -> Vote 2 - Planning and Economic Development | C16: 2957642.92 | D16: 355705.99 | E16: -79901.07 | F16: 400126 | G16: 400126 | H16: 400126 | I16: 300126 | J16: 313332 | K16: 327432
A17: ='Org structure'!E14 -> 2.1 - [Name of sub-vote]
A18: ='Org structure'!E15 -> 0
A19: ='Org structure'!E16 -> 0
A20: ='Org structure'!E17 -> 0
A21: ='Org structure'!E18 -> 0
A22: ='Org structure'!E19 -> 0
A23: ='Org structure'!E20 -> 0
A24: ='Org structure'!E21 -> 0
A25: ='Org structure'!E22 -> 0
A26: ='Org structure'!E23 -> 0
A27: ='Org structure'!A4 -> Vote 3 - Budget and Treasury | C27: 391472611.8 | D27: 572128627.8 | E27: 926575221.6 | F27: 575470228 | G27: 575470230 | H27: 575470230 | I27: 1298090712 | J27: 1368171618 | K27: 1444139017
A28: ='Org structure'!E25 -> 3.1 - [Name of sub-vote]
A29: ='Org structure'!E26 -> 0
A30: ='Org structure'!E27 -> 0
A31: ='Org structure'!E28 -> 0
A32: ='Org structure'!E29 -> 0
A33: ='Org structure'!E30 -> 0
A34: ='Org structure'!E31 -> 0
A35: ='Org structure'!E32 -> 0
A36: ='Org structure'!E33 -> 0
A37: ='Org structure'!E34 -> 0
A38: ='Org structure'!A5 -> Vote 4 - Corporate Services | C38: 36842335 | D38: 1400490.07 | E38: 194725.53 | F38: 0 | G38: 750000 | H38: 750000 | I38: 800000 | J38: 835200 | K38: 872784
A39: ='Org structure'!E36 -> 4.1 - [Name of sub-vote]
A40: ='Org structure'!E37 -> 0
A41: ='Org structure'!E38 -> 0
A42: ='Org structure'!E39 -> 0
A43: ='Org structure'!E40 -> 0
A44: ='Org structure'!E41 -> 0
A45: ='Org structure'!E42 -> 0
A46: ='Org structure'!E43 -> 0
A47: ='Org structure'!E44 -> 0
A48: ='Org structure'!E45 -> 0
A49: ='Org structure'!A6 -> Vote 5 - Engineering Services | C49: 92348531.29 | D49: 93962050.6 | E49: 110312639.5 | F49: 101400326 | G49: 101400327 | H49: 101400327 | I49: 120293126 | J49: 114282848 | K49: 119590412
A50: ='Org structure'!E47 -> 5.1 - [Name of sub-vote]
A51: ='Org structure'!E48 -> 0
A52: ='Org structure'!E49 -> 0
A53: ='Org structure'!E50 -> 0
A54: ='Org structure'!E51 -> 0
A55: ='Org structure'!E52 -> 0
A56: ='Org structure'!E53 -> 0
A57: ='Org structure'!E54 -> 0
A58: ='Org structure'!E55 -> 0
A59: ='Org structure'!E56 -> 0
A60: ='Org structure'!A7 -> Vote 6 - Community Services | C60: 74287164.22 | D60: 79405750.35 | E60: 71303335.58 | F60: 135782554 | G60: 207782555 | H60: 207782555 | I60: 103188581 | J60: 99309017 | K60: 103777923
A61: ='Org structure'!E58 -> 6.1 - [Name of sub-vote]
A62: ='Org structure'!E59 -> 0
A63: ='Org structure'!E60 -> 0
A64: ='Org structure'!E61 -> 0
A65: ='Org structure'!E62 -> 0
A66: ='Org structure'!E63 -> 0
A67: ='Org structure'!E64 -> 0
A68: ='Org structure'!E65 -> 0
A69: ='Org structure'!E66 -> 0
A70: ='Org structure'!E67 -> 0
A71: ='Org structure'!A8 -> Vote 7 - Electrical Engineering | C71: 461613534.4 | D71: 577155264.6 | E71: 245669569.9 | F71: 685641250 | G71: 685641250 | H71: 685641250 | I71: 65230000 | J71: 69264120 | K71: 67154005
A72: ='Org structure'!E69 -> 7.1 - [Name of sub-vote]
A73: ='Org structure'!E70 -> 0
A74: ='Org structure'!E71 -> 0
A75: ='Org structure'!E72 -> 0
A76: ='Org structure'!E73 -> 0
A77: ='Org structure'!E74 -> 0
A78: ='Org structure'!E75 -> 0
A79: ='Org structure'!E76 -> 0
A80: ='Org structure'!E77 -> 0
A81: ='Org structure'!E78 -> 0
A82: ='Org structure'!A9 -> Vote 8 - Office of the Speaker | C82: 0 | D82: 0 | E82: 0 | F82: 0 | G82: 0 | H82: 0 | I82: 0 | J82: 0 | K82: 0
A83: ='Org structure'!E80 -> 8.1 - [Name of sub-vote]
A84: ='Org structure'!E81 -> 0
A85: ='Org structure'!E82 -> 0
A86: ='Org structure'!E83 -> 0
A87: ='Org structure'!E84 -> 0
A88: ='Org structure'!E85 -> 0
A89: ='Org structure'!E86 -> 0
A90: ='Org structure'!E87 -> 0
A91: ='Org structure'!E88 -> 0
A92: ='Org structure'!E89 -> 0
A93: ='Org structure'!A10 -> Vote 9 - COMMUNITY & SOCIAL SERVICES | C93: 0 | D93: 0 | E93: 0 | F93: 0 | G93: 0 | H93: 0 | I93: 0 | J93: 0 | K93: 0
A94: ='Org structure'!E91 -> 9.1 - [Name of sub-vote]
A95: ='Org structure'!E92 -> 0
A96: ='Org structure'!E93 -> 0
A97: ='Org structure'!E94 -> 0
A98: ='Org structure'!E95 -> 0
A99: ='Org structure'!E96 -> 0
A100: ='Org structure'!E97 -> 0
A101: ='Org structure'!E98 -> 0
A102: ='Org structure'!E99 -> 0
A103: ='Org structure'!E100 -> 0
A104: ='Org structure'!A11 -> Vote 10 - Office of the Municipal Manager | C104: 0 | D104: 298000 | E104: 0 | F104: 1229 | G104: 1229 | H104: 1229 | I104: 1229 | J104: 1283 | K104: 1341
A105: ='Org structure'!E102 -> 10.1 - [Name of sub-vote]
A106: ='Org structure'!E103 -> 0
A107: ='Org structure'!E104 -> 0
A108: ='Org structure'!E105 -> 0
A109: ='Org structure'!E106 -> 0
A110: ='Org structure'!E107 -> 0
A111: ='Org structure'!E108 -> 0
A112: ='Org structure'!E109 -> 0
A113: ='Org structure'!E110 -> 0
A114: ='Org structure'!E111 -> 0
A115: ='Org structure'!A12 -> Vote 11 - [NAME OF VOTE 11] | C115: =SUM(C116:C125) -> 0 | D115: =SUM(D116:D125) -> 0 | E115: 0 | F115: 0 | G115: 0 | H115: 0 | I115: 0 | J115: 0 | K115: 0
A116: ='Org structure'!E113 -> 11.1 - [Name of sub-vote]
A117: ='Org structure'!E114 -> 0
A118: ='Org structure'!E115 -> 0
A119: ='Org structure'!E116 -> 0
A120: ='Org structure'!E117 -> 0
A121: ='Org structure'!E118 -> 0
A122: ='Org structure'!E119 -> 0
A123: ='Org structure'!E120 -> 0
A124: ='Org structure'!E121 -> 0
A125: ='Org structure'!E122 -> 0
A126: ='Org structure'!A13 -> Vote 12 - [NAME OF VOTE 12] | C126: =SUM(C127:C136) -> 0 | D126: =SUM(D127:D136) -> 0 | E126: 0 | F126: 0 | G126: 0 | H126: 0 | I126: 0 | J126: 0 | K126: 0
A127: ='Org structure'!E124 -> 12.1 - [Name of sub-vote]
A128: ='Org structure'!E125 -> 0
A129: ='Org structure'!E126 -> 0
A130: ='Org structure'!E127 -> 0
A131: ='Org structure'!E128 -> 0
A132: ='Org structure'!E129 -> 0
A133: ='Org structure'!E130 -> 0
A134: ='Org structure'!E131 -> 0
A135: ='Org structure'!E132 -> 0
A136: ='Org structure'!E133 -> 0
A137: ='Org structure'!A14 -> Vote 13 - [NAME OF VOTE 13] | C137: =SUM(C138:C147) -> 0 | D137: =SUM(D138:D147) -> 0 | E137: 0 | F137: 0 | G137: 0 | H137: 0 | I137: 0 | J137: 0 | K137: 0
A138: ='Org structure'!E135 -> 13.1 - [Name of sub-vote]
A139: ='Org structure'!E136 -> 0
A140: ='Org structure'!E137 -> 0
A141: ='Org structure'!E138 -> 0
A142: ='Org structure'!E139 -> 0
A143: ='Org structure'!E140 -> 0
A144: ='Org structure'!E141 -> 0
A145: ='Org structure'!E142 -> 0
A146: ='Org structure'!E143 -> 0
A147: ='Org structure'!E144 -> 0
A148: ='Org structure'!A15 -> Vote 14 - [NAME OF VOTE 14] | C148: =SUM(C149:C158) -> 0 | D148: =SUM(D149:D158) -> 0 | E148: 0 | F148: 0 | G148: 0 | H148: 0 | I148: 0 | J148: 0 | K148: 0
A149: ='Org structure'!E146 -> 14.1 - [Name of sub-vote]
A150: ='Org structure'!E147 -> 0
A151: ='Org structure'!E148 -> 0
A152: ='Org structure'!E149 -> 0
A153: ='Org structure'!E150 -> 0
A154: ='Org structure'!E151 -> 0
A155: ='Org structure'!E152 -> 0
A156: ='Org structure'!E153 -> 0
A157: ='Org structure'!E154 -> 0
A158: ='Org structure'!E155 -> 0
A159: ='Org structure'!A16 -> Vote 15 - [NAME OF VOTE 15] | C159: =SUM(C160:C169) -> 0 | D159: =SUM(D160:D169) -> 0 | E159: 0 | F159: 0 | G159: 0 | H159: 0 | I159: 0 | J159: 0 | K159: 0
A160: ='Org structure'!E157 -> 15.1 - [Name of sub-vote]
A161: ='Org structure'!E158 -> 0
A162: ='Org structure'!E159 -> 0
A163: ='Org structure'!E160 -> 0
A164: ='Org structure'!E161 -> 0
A165: ='Org structure'!E162 -> 0
A166: ='Org structure'!E163 -> 0
A167: ='Org structure'!E164 -> 0
A168: ='Org structure'!E165 -> 0
A169: ='Org structure'!E166 -> 0
A170: Total Revenue by Vote | B170: 2 | C170: =C5+C16+C27+C38+C49+C60+C71+C82+C93+C104+C115+C126+C137+C148+C159 -> 1136215480 | D170: =D5+D16+D27+D38+D49+D60+D71+D82+D93+D104+D115+D126+D137+D148+D159 -> 1324705889 | E170: =E5+E16+E27+E38+E49+E60+E71+E82+E93+E104+E115+E126+E137+E148+E159 -> 1353975591 | F170: 1498695713 | G170: 1571445717 | H170: 1571445717 | I170: =I5+I16+I27+I38+I49+I60+I71+I82+I93+I104+I115+I126+I137+I148+I159 -> 1587903774 | J170: 1652177418 | K170: 1735862914 | L170: =SUM(L78:L81) -> 0 | M170: 0 | N170: 0 | O170: 0 | P170: 0 | Q170: 0 | R170: 0 | S170: 0 | T170: 0 | U170: 0 | V170: 0 | W170: 0
A172: Expenditure by Vote | B172: 1
A173: =A5 -> Vote 1 - Executive & Council | C173: 281786216.1 | D173: 0 | E173: 0 | F173: 0 | G173: 0 | H173: 0 | I173: 2392054 | J173: 2497305 | K173: 2609687
A174: =A6 -> 1.1 - [Name of sub-vote]
A175: 0
A176: 0
A177: 0
A178: 0
A179: 0
A180: 0
A181: 0
A182: 0
A183: 0
A184: =A16 -> Vote 2 - Planning and Economic Development | C184: 30327217.92 | D184: 27696566.36 | E184: 28203048.67 | F184: 32421715 | G184: 33224095 | H184: 33224095 | I184: 34248753 | J184: 35755822 | K184: 37340632
A185: =A17 -> 2.1 - [Name of sub-vote]
A186: 0
A187: 0
A188: 0
A189: 0
A190: 0
A191: 0
A192: 0
A193: 0
A194: 0
A195: =A27 -> Vote 3 - Budget and Treasury | C195: 59768837.58 | D195: 110504122.4 | E195: 77379208.09 | F195: 128287707 | G195: 128946829 | H195: 128946829 | I195: 134429000 | J195: 140277393 | K195: 146499425
A196: 3.1 - [Name of sub-vote]
A197: 0
A198: 0
A199: 0
A200: 0
A201: 0
... 144 more rows

Sheet A4-FinPerf RE
A1: =muni&" - "&Approve4 -> Choose name from list - Table A4 Budgeted Financial Performance (revenue and expenditure)
A2: =desc -> Description | B2: =head27 -> Ref | C2: =head1b -> 2018/19 | D2: =head1A -> 2019/20 | E2: =Head1 -> 2020/21 | F2: =Head2 -> Current Year 2021/22 | J2: =Head3 -> 2022/23 Medium Term Revenue & Expenditure Framework | M2: =Head4 -> LTFS
A3: R thousand | B3: 1 | C3: =Head5 -> Audited Outcome | D3: =Head5 -> Audited Outcome | E3: =Head5 -> Audited Outcome | F3: =Head6 -> Original Budget | G3: =Head7 -> Adjusted Budget | H3: =Head8 -> Full Year Forecast | I3: =Head5b -> Pre-audit outcome | J3: =Head9 -> Budget Year 2022/23 | K3: =Head10 -> Budget Year +1 2023/24 | L3: =Head11 -> Budget Year +2 2024/25 | M3: =Head12 -> Forecast 2025/26 | N3: =Head13 -> Forecast 2026/27 | O3: =Head14 -> Forecast 2027/28 | P3: =Head15 -> Forecast 2028/29 | Q3: =Head16 -> Forecast 2029/30 | R3: =Head17 -> Forecast 2030/31 | S3: =Head18 -> Forecast 2031/32 | T3: =Head19 -> Forecast 2032/33 | U3: =Head20 -> Forecast 2033/34 | V3: =Head21 -> Forecast 2034/35 | W3: =Head22 -> Forecast 2035/36 | X3: =Head23 -> Forecast 2036/37
A4: Revenue By Source
A5: Property rates | B5: 2 | C5: ='SA1'!C9 -> 109163925 | D5: ='SA1'!D9 -> 114746520.2 | E5: ='SA1'!E9 -> 129625628.5 | F5: ='SA1'!F9 -> 137500000 | G5: ='SA1'!G9 -> 137500000 | H5: ='SA1'!H9 -> 137500000 | I5: ='SA1'!I9 -> 137500000 | J5: ='SA1'!J9 -> 134837829 | K5: ='SA1'!K9 -> 140770694 | L5: ='SA1'!L9 -> 147105375
A6: Service charges - electricity revenue | B6: 2 | C6: ='SA1'!C15 -> 449863851 | D6: ='SA1'!D15 -> 523323295.3 | E6: ='SA1'!E15 -> 461584736.4 | F6: ='SA1'!F15 -> 669621250 | G6: ='SA1'!G15 -> 669621250 | H6: ='SA1'!H15 -> 669621250 | I6: ='SA1'!I15 -> 673821250 | J6: ='SA1'!J15 -> 700000000 | K6: ='SA1'!K15 -> 730800000 | L6: ='SA1'!L15 -> 763686000
A7: Service charges - water revenue | B7: 2 | C7: ='SA1'!C21 -> 0 | D7: ='SA1'!D21 -> 0 | E7: ='SA1'!E21 -> 0 | F7: ='SA1'!F21 -> 0 | G7: ='SA1'!G21 -> 0 | H7: ='SA1'!H21 -> 0 | I7: ='SA1'!I21 -> 0 | J7: ='SA1'!J21 -> 0 | K7: ='SA1'!K21 -> 0 | L7: ='SA1'!L21 -> 0
A8: Service charges - sanitation revenue | B8: 2 | C8: ='SA1'!C27 -> 0 | D8: ='SA1'!D27 -> 0 | E8: ='SA1'!E27 -> 0 | F8: ='SA1'!F27 -> 0 | G8: ='SA1'!G27 -> 0 | H8: ='SA1'!H27 -> 0 | I8: ='SA1'!I27 -> 0 | J8: ='SA1'!J27 -> 0 | K8: ='SA1'!K27 -> 0 | L8: ='SA1'!L27 -> 0
A9: Service charges - refuse revenue | B9: 2 | C9: ='SA1'!C34 -> 36442557.3 | D9: ='SA1'!D34 -> 33128367.25 | E9: ='SA1'!E34 -> 37967160.7 | F9: ='SA1'!F34 -> 35907361 | G9: ='SA1'!G34 -> 35907361 | H9: ='SA1'!H34 -> 35907361 | I9: ='SA1'!I34 -> 37107361 | J9: ='SA1'!J34 -> 37893774 | K9: ='SA1'!K34 -> 39561100 | L9: ='SA1'!L34 -> 41341350
A11: Rental of facilities and equipment | C11: 2132695.52 | D11: 1152232.67 | E11: 222530.15 | F11: 1170100 | G11: 1170100 | H11: 1170100 | I11: 1170100 | J11: 800000 | K11: 835200 | L11: 872784
A12: Interest earned - external investments | C12: 9615814.76 | D12: 8677864.51 | E12: 7227546.1 | F12: 3500000 | G12: 3500000 | H12: 3500000 | I12: 3500000 | J12: 4500000 | K12: 4698000 | L12: 4909410
A13: Interest earned - outstanding debtors | C13: 17826054 | D13: 30117078.6 | E13: 33514368.63 | F13: 23600000 | G13: 23600000 | H13: 23600000 | I13: 23600000 | J13: 41701132 | K13: 43535980 | L13: 45495100
A14: Dividends received | C14: 0 | D14: 0 | E14: 0 | F14: 0 | G14: 0 | H14: 0 | I14: 0 | J14: 0 | K14: 0 | L14: 0
A15: Fines, penalties and forfeits | C15: 42312789.01 | D15: 26199829.77 | E15: 13988920 | F15: 38501136 | G15: 38501137 | H15: 38501137 | I15: 38501137 | J15: 12008000 | K15: 12536352 | L15: 13100488
A16: Licences and permits | C16: 1020675 | D16: 1231991.52 | E16: 210997.53 | F16: 917000 | G16: 72917000 | H16: 72917000 | I16: 72917000 | J16: 817000 | K16: 852948 | L16: 891331
A17: Agency services | C17: 9254074 | D17: 9118576.13 | E17: 10763364.46 | F17: 22664291 | G17: 22664291 | H17: 22664291 | I17: 22664291 | J17: 14664291 | K17: 15309519 | L17: 15998447
A18: Transfers and subsidies | C18: 369600821 | D18: 424619589.6 | E18: 529749558.3 | F18: 464088050 | G18: 464838050 | H18: 464838050 | I18: 464838050 | J18: 516381180 | K18: 544641176 | L18: 578330616
A19: Other revenue | B19: 2 | C19: ='SA1'!C49 -> 12831601.86 | D19: ='SA1'!D49 -> 64521226.85 | E19: ='SA1'!E49 -> 18025607.84 | F19: ='SA1'!F49 -> 6472575 | G19: ='SA1'!G49 -> 6472576 | H19: ='SA1'!H49 -> 6472576 | I19: ='SA1'!I49 -> 6472576 | J19: ='SA1'!J49 -> 10651748 | K19: ='SA1'!K49 -> 11120425 | L19: ='SA1'!L49 -> 11620845
A20: Gains | C20: 0 | D20: 0 | E20: 1845583.9 | F20: 0 | G20: 1 | H20: 1 | I20: 1 | J20: 0 | K20: 0 | L20: 0
A21: Total Revenue (excluding capital transfers and contributions) | C21: =SUM(C5:C9)+SUM(C11:C20) -> 1060064858 | D21: =SUM(D5:D9)+SUM(D11:D20) -> 1236836572 | E21: 1244726002 | F21: 1403941763 | G21: 1476691766 | H21: 1476691766 | I21: 1482091766 | J21: 1474254954 | K21: 1544661394 | L21: 1623351746 | M21: =SUM(M5:M20) -> 0 | N21: 0 | O21: 0 | P21: 0 | Q21: 0 | R21: 0 | S21: 0 | T21: 0 | U21: 0 | V21: 0 | W21: 0 | X21: 0
A23: Expenditure By Type
A24: Employee related costs | B24: 2 | C24: ='SA1'!C67 -> 214266310 | D24: ='SA1'!D67 -> 311114595.2 | E24: ='SA1'!E67 -> 352143965.3 | F24: ='SA1'!F67 -> 349870050 | G24: ='SA1'!G67 -> 362626213 | H24: ='SA1'!H67 -> 362626213 | I24: ='SA1'!I67 -> 362626213 | J24: ='SA1'!J67 -> 367850609 | K24: ='SA1'!K67 -> 384036052 | L24: ='SA1'!L67 -> 401317672
A25: Remuneration of councillors | C25: 26136302.58 | D25: 26976533.73 | E25: 27036544.36 | F25: 28405898 | G25: 28405898 | H25: 28405898 | I25: 28405898 | J25: 28337493 | K25: 29584341 | L25: 30915636
A26: Debt impairment | B26: 3 | C26: 123718681.4 | D26: 22971746.32 | E26: -42269833.25 | F26: 39690308 | G26: 39690308 | H26: 39690308 | I26: 39690308 | J26: 49600000 | K26: 51782400 | L26: 54112609
A27: Depreciation & asset impairment | B27: 2 | C27: ='SA1'!C83 -> 132641263.5 | D27: ='SA1'!D83 -> 107614714.9 | E27: ='SA1'!E83 -> 109337040.5 | F27: ='SA1'!F83 -> 134738731 | G27: ='SA1'!G83 -> 134758934 | H27: ='SA1'!H83 -> 134758934 | I27: ='SA1'!I83 -> 134758934 | J27: ='SA1'!J83 -> 126847579 | K27: ='SA1'!K83 -> 132428876 | L27: ='SA1'!L83 -> 138388176
A28: Finance charges | C28: 11973760 | D28: 14906807.83 | E28: 19962159.62 | F28: 17826562 | G28: 17842659 | H28: 17842659 | I28: 17842659 | J28: 14057048 | K28: 12644770 | L28: 11084838
A29: Bulk purchases - electricity | B29: 2 | C29: ='SA1'!C88 -> 348443870 | D29: ='SA1'!D88 -> 389694217.1 | E29: ='SA1'!E88 -> 407786362.3 | F29: ='SA1'!F88 -> 456871250 | G29: ='SA1'!G88 -> 450871250 | H29: ='SA1'!H88 -> 450871250 | I29: ='SA1'!I88 -> 450871250 | J29: ='SA1'!J88 -> 466871250 | K29: ='SA1'!K88 -> 487413585 | L29: ='SA1'!L88 -> 509347196
A30: Inventory consumed | B30: 8 | C30: 115723810 | D30: 37364977.51 | E30: 49396363.05 | F30: 71925318 | G30: 69257904 | H30: 69257904 | I30: 69257904 | J30: 75268118 | K30: 78579912 | L30: 82116010
A31: Contracted services | C31: ='SA1'!C127 -> 50079765.55 | D31: ='SA1'!D127 -> 59253544.77 | E31: ='SA1'!E127 -> 71419075.56 | F31: ='SA1'!F127 -> 75215209 | G31: ='SA1'!G127 -> 70563210 | H31: ='SA1'!H127 -> 70563210 | I31: ='SA1'!I127 -> 70563210 | J31: ='SA1'!J127 -> 76920401 | K31: ='SA1'!K127 -> 80304899 | L31: ='SA1'!L127 -> 83918619
A32: Transfers and subsidies | C32: ='SA1'!C93 -> 57132145 | D32: ='SA1'!D93 -> 42736650.1 | E32: ='SA1'!E93 -> 34977216.26 | F32: ='SA1'!F93 -> 32118000 | G32: ='SA1'!G93 -> 39994802 | H32: ='SA1'!H93 -> 39994802 | I32: ='SA1'!I93 -> 39994802 | J32: ='SA1'!J93 -> 45801506 | K32: ='SA1'!K93 -> 40472912 | L32: ='SA1'!L93 -> 36977193
A33: Other expenditure | B33: 4, 5 | C33: ='SA1'!C157 -> 116035686.6 | D33: ='SA1'!D157 -> 95744310.39 | E33: ='SA1'!E157 -> 93569134.19 | F33: ='SA1'!F157 -> 120277468 | G33: ='SA1'!G157 -> 119437707 | H33: ='SA1'!H157 -> 119437707 | I33: ='SA1'!I157 -> 119437707 | J33: ='SA1'!J157 -> 148568009 | K33: ='SA1'!K157 -> 155052713 | L33: ='SA1'!L157 -> 162030024
A34: Losses | C34: 2836204 | D34: 3723279.38 | E34: 1898946.69 | F34: 0 | G34: 0 | H34: 0 | I34: 0 | J34: 0 | K34: 0 | L34: 0
A35: Total Expenditure | C35: =SUM(C24:C34) -> 1198987799 | D35: =SUM(D24:D34) -> 1112101377 | E35: 1125256975 | F35: 1326938794 | G35: 1333448885 | H35: 1333448885 | I35: 1333448885 | J35: 1400122013 | K35: 1452300460 | L35: 1510207973 | M35: =SUM(M24:M34) -> 0 | N35: 0 | O35: 0 | P35: 0 | Q35: 0 | R35: 0 | S35: 0 | T35: 0 | U35: 0 | V35: 0 | W35: 0 | X35: 0
A37: Surplus/(Deficit) | C37: =C21-C35 -> -138922940.2 | D37: 124735195.1 | E37: 119469028 | F37: 77002969 | G37: 143242881 | H37: 143242881 | I37: 148642881 | J37: 74132941 | K37: 92360934 | L37: 113143773 | M37: =M21+M35 -> 0 | N37: 0 | O37: 0 | P37: 0 | Q37: 0 | R37: 0 | S37: 0 | T37: 0 | U37: 0 | V37: 0 | W37: 0 | X37: 0
A38: Transfers and subsidies - capital (monetary allocations) (National / Provincial and District) | C38: 76150621.19 | D38: 77869317.11 | E38: 95741197.48 | F38: 94753950 | G38: 94753950 | H38: 94753950 | I38: 94753950 | J38: 113648820 | K38: 107516024 | L38: 112511168
A39: Transfers and subsidies - capital (monetary allocations) (National / Provincial Departmental Agencies, Households, Non-profit Institutions, Private Enterprises, Public Corporatons, Higher Educational Institutions) | B39: 6 | C39: 0 | D39: 10000000 | E39: 13508391.11 | F39: 0 | G39: 1 | H39: 1 | I39: 1 | J39: 0 | K39: 0 | L39: 0
A40: Transfers and subsidies - capital (in-kind - all) | C40: 0 | D40: 0 | E40: 0 | F40: 0 | G40: 0 | H40: 0 | I40: 0 | J40: 0 | K40: 0 | L40: 0
A41: Surplus/(Deficit) after capital transfers & contributions | C41: =SUM(C37:C40) -> -62772319 | D41: 212604512.2 | E41: 228718616.6 | F41: 171756919 | G41: 237996832 | H41: 237996832 | I41: 243396832 | J41: 187781761 | K41: 199876958 | L41: 225654941
A42: Taxation | C42: 0 | D42: 0 | E42: 0 | F42: 0 | G42: 0 | H42: 0 | I42: 0 | J42: 0 | K42: 0 | L42: 0
A43: Surplus/(Deficit) after taxation | C43: =C41-C42 -> -62772319 | D43: 212604512.2 | E43: 228718616.6 | F43: 171756919 | G43: 237996832 | H43: 237996832 | I43: 243396832 | J43: 187781761 | K43: 199876958 | L43: 225654941
A44: Attributable to minorities | C44: 0 | D44: 0 | E44: 0 | F44: 0 | G44: 0 | H44: 0 | I44: 0 | J44: 0 | K44: 0 | L44: 0
A45: Surplus/(Deficit) attributable to municipality | C45: =SUM(C43:C44) -> -62772319 | D45: 212604512.2 | E45: 228718616.6 | F45: 171756919 | G45: 237996832 | H45: 237996832 | I45: 243396832 | J45: 187781761 | K45: 199876958 | L45: 225654941
A46: Share of surplus/ (deficit) of associate | B46: 7 | C46: 0 | D46: 0 | E46: 0 | F46: 0 | G46: 0 | H46: 0 | I46: 0 | J46: 0 | K46: 0 | L46: 0
A47: =result -> Surplus/(Deficit) for the year | C47: =SUM(C45:C46) -> -62772319 | D47: 212604512.2 | E47: 228718616.6 | F47: 171756919 | G47: 237996832 | H47: 237996832 | I47: 243396832 | J47: 187781761 | K47: 199876958 | L47: 225654941 | M47: =M25+M46 -> 0 | N47: 0 | O47: 0 | P47: 0 | Q47: 0 | R47: 0 | S47: 0 | T47: 0 | U47: 0 | V47: 0 | W47: 0 | X47: 0
A48: =head27a -> References
A49: 1. Classifications are revenue sources and expenditure type
A50: 2. Detail to be provided in Table SA1
A51: 3. Previously described as 'bad or doubtful debts' - amounts shown should reflect the change in the provision for debt impairment
A52: 4. Expenditure type components previously shown under repairs and maintenance should be allocated back to the originating expenditure group/item; e.g. employee costs
A53: 5. Repairs & maintenance detailed in Table A9 and Table SA34c
A54: 6. Contributions are funds provided by external organisations to assist with infrastructure development; e.g. developer contributions (detail to be provided in Table SA1)
A55: 7. Equity method ( Includes Joint Ventures)
A56: 8. All materials not part of 'bulk' e.g road making materials, pipe, cable etc.
A57: check balance | C57: =C45-'A3-FinPerf V'!C39 -> 5.960464478e-08 | D57: =D45-'A3-FinPerf V'!D39 -> -3.576278687e-07 | E57: =E45-'A3-FinPerf V'!E39 -> 3.576278687e-07 | F57: =F45-'A3-FinPerf V'!F39 -> 0 | G57: =G45-'A3-FinPerf V'!G39 -> 0 | H57: =H45-'A3-FinPerf V'!H39 -> 0 | J57: =J45-'A3-FinPerf V'!I39 -> 0 | K57: =K45-'A3-FinPerf V'!J39 -> 0 | L57: =L45-'A3-FinPerf V'!K39 -> 0
A59: Total revenue | C59: =C21+SUM(C38:C40) -> 1136215480 | D59: 1324705889 | E59: 1353975591 | F59: 1498695713 | G59: 1571445717 | H59: 1571445717 | I59: 1576845717 | J59: 1587903774 | K59: 1652177418 | L59: 1735862914

Sheet A5-Capex
A2: =Vdesc -> Vote Description | B2: =head27 -> Ref | C2: =head1b -> 2018/19 | D2: =head1A -> 2019/20 | E2: =Head1 -> 2020/21 | F2: =Head2 -> Current Year 2021/22 | J2: =Head3 -> 2022/23 Medium Term Revenue & Expenditure Framework
A3: R thousand | B3: 1 | C3: =Head5 -> Audited Outcome | D3: =Head5 -> Audited Outcome | E3: =Head5 -> Audited Outcome | F3: =Head6 -> Original Budget | G3: =Head7 -> Adjusted Budget | H3: =Head8 -> Full Year Forecast | I3: =Head5b -> Pre-audit outcome | J3: =Head9 -> Budget Year 2022/23 | K3: =Head10 -> Budget Year +1 2023/24 | L3: =Head11 -> Budget Year +2 2024/25
A4: Capital expenditure - Vote
A5: Multi-year expenditure to be appropriated | B5: 2
A6: =A5A!A6 -> Vote 1 - Executive & Council | C6: =A5A!C6 -> 0 | D6: =A5A!D6 -> 0 | E6: =A5A!E6 -> 0 | F6: =A5A!F6 -> 0 | G6: =A5A!G6 -> 0 | H6: =A5A!H6 -> 0 | I6: =A5A!I6 -> 0 | J6: =A5A!J6 -> 0 | K6: =A5A!K6 -> 0 | L6: =A5A!L6 -> 0
A7: =A5A!A17 -> Vote 2 - Planning and Economic Development | C7: =A5A!C17 -> 0 | D7: =A5A!D17 -> 0 | E7: =A5A!E17 -> 0 | F7: =A5A!F17 -> 6558500 | G7: =A5A!G17 -> 6482870 | H7: =A5A!H17 -> 6482870 | I7: =A5A!I17 -> 6482870 | J7: =A5A!J17 -> 8000000 | K7: =A5A!K17 -> 8000000 | L7: =A5A!L17 -> 8000000
A8: =A5A!A28 -> Vote 3 - Budget and Treasury | C8: =A5A!C28 -> 0 | D8: =A5A!D28 -> 0 | E8: =A5A!E28 -> 31509502.48 | F8: =A5A!F28 -> 700000 | G8: =A5A!G28 -> 700000 | H8: =A5A!H28 -> 700000 | I8: =A5A!I28 -> 700000 | J8: =A5A!J28 -> 400000 | K8: =A5A!K28 -> 0 | L8: =A5A!L28 -> 0
A9: =A5A!A39 -> Vote 4 - Corporate Services | C9: =A5A!C39 -> 0 | D9: =A5A!D39 -> 0 | E9: =A5A!E39 -> 0 | F9: =A5A!F39 -> 0 | G9: =A5A!G39 -> 0 | H9: =A5A!H39 -> 0 | I9: =A5A!I39 -> 0 | J9: =A5A!J39 -> 0 | K9: =A5A!K39 -> 0 | L9: =A5A!L39 -> 0
A10: =A5A!A50 -> Vote 5 - Engineering Services | C10: =A5A!C50 -> 0 | D10: =A5A!D50 -> 0 | E10: =A5A!E50 -> 26024141.33 | F10: =A5A!F50 -> 106123950 | G10: =A5A!G50 -> 102795832 | H10: =A5A!H50 -> 102795832 | I10: =A5A!I50 -> 102795832 | J10: =A5A!J50 -> 440595280 | K10: =A5A!K50 -> 391514096 | L10: =A5A!L50 -> 404332100
A11: =A5A!A61 -> Vote 6 - Community Services | C11: =A5A!C61 -> 0 | D11: =A5A!D61 -> 0 | E11: =A5A!E61 -> 0 | F11: =A5A!F61 -> 1325000 | G11: =A5A!G61 -> 1325000 | H11: =A5A!H61 -> 1325000 | I11: =A5A!I61 -> 1325000 | J11: =A5A!J61 -> 0 | K11: =A5A!K61 -> 0 | L11: =A5A!L61 -> 0
A12: =A5A!A72 -> Vote 7 - Electrical Engineering | C12: =A5A!C72 -> 0 | D12: =A5A!D72 -> 0 | E12: =A5A!E72 -> 0 | F12: =A5A!F72 -> 14550000 | G12: =A5A!G72 -> 10000000 | H12: =A5A!H72 -> 10000000 | I12: =A5A!I72 -> 10000000 | J12: =A5A!J72 -> 116000000 | K12: =A5A!K72 -> 140000000 | L12: =A5A!L72 -> 136000000
A13: =A5A!A83 -> Vote 8 - Office of the Speaker | C13: =A5A!C83 -> 0 | D13: =A5A!D83 -> 0 | E13: =A5A!E83 -> 0 | F13: =A5A!F83 -> 0 | G13: =A5A!G83 -> 0 | H13: =A5A!H83 -> 0 | I13: =A5A!I83 -> 0 | J13: =A5A!J83 -> 0 | K13: =A5A!K83 -> 0 | L13: =A5A!L83 -> 0
A14: =A5A!A94 -> Vote 9 - COMMUNITY & SOCIAL SERVICES | C14: =A5A!C94 -> 0 | D14: =A5A!D94 -> 0 | E14: =A5A!E94 -> 0 | F14: =A5A!F94 -> 0 | G14: =A5A!G94 -> 0 | H14: =A5A!H94 -> 0 | I14: =A5A!I94 -> 0 | J14: =A5A!J94 -> 0 | K14: =A5A!K94 -> 0 | L14: =A5A!L94 -> 0
A15: =A5A!A105 -> Vote 10 - Office of the Municipal Manager | C15: =A5A!C105 -> 0 | D15: =A5A!D105 -> 0 | E15: =A5A!E105 -> 0 | F15: =A5A!F105 -> 0 | G15: =A5A!G105 -> 0 | H15: =A5A!H105 -> 0 | I15: =A5A!I105 -> 0 | J15: =A5A!J105 -> 0 | K15: =A5A!K105 -> 0 | L15: =A5A!L105 -> 0
A16: =A5A!A116 -> Vote 11 - [NAME OF VOTE 11] | C16: =A5A!C116 -> 0 | D16: =A5A!D116 -> 0 | E16: =A5A!E116 -> 0 | F16: =A5A!F116 -> 0 | G16: =A5A!G116 -> 0 | H16: =A5A!H116 -> 0 | I16: =A5A!I116 -> 0 | J16: =A5A!J116 -> 0 | K16: =A5A!K116 -> 0 | L16: =A5A!L116 -> 0
A17: =A5A!A127 -> Vote 12 - [NAME OF VOTE 12] | C17: =A5A!C127 -> 0 | D17: =A5A!D127 -> 0 | E17: =A5A!E127 -> 0 | F17: =A5A!F127 -> 0 | G17: =A5A!G127 -> 0 | H17: =A5A!H127 -> 0 | I17: =A5A!I127 -> 0 | J17: =A5A!J127 -> 0 | K17: =A5A!K127 -> 0 | L17: =A5A!L127 -> 0
A18: =A5A!A138 -> Vote 13 - [NAME OF VOTE 13] | C18: =A5A!C138 -> 0 | D18: =A5A!D138 -> 0 | E18: =A5A!E138 -> 0 | F18: =A5A!F138 -> 0 | G18: =A5A!G138 -> 0 | H18: =A5A!H138 -> 0 | I18: =A5A!I138 -> 0 | J18: =A5A!J138 -> 0 | K18: =A5A!K138 -> 0 | L18: =A5A!L138 -> 0
A19: =A5A!A149 -> Vote 14 - [NAME OF VOTE 14] | C19: =A5A!C149 -> 0 | D19: =A5A!D149 -> 0 | E19: =A5A!E149 -> 0 | F19: =A5A!F149 -> 0 | G19: =A5A!G149 -> 0 | H19: =A5A!H149 -> 0 | I19: =A5A!I149 -> 0 | J19: =A5A!J149 -> 0 | K19: =A5A!K149 -> 0 | L19: =A5A!L149 -> 0
A20: =A5A!A160 -> Vote 15 - [NAME OF VOTE 15] | C20: =A5A!C160 -> 0 | D20: =A5A!D160 -> 0 | E20: =A5A!E160 -> 0 | F20: =A5A!F160 -> 0 | G20: =A5A!G160 -> 0 | H20: =A5A!H160 -> 0 | I20: =A5A!I160 -> 0 | J20: =A5A!J160 -> 0 | K20: =A5A!K160 -> 0 | L20: =A5A!L160 -> 0
A21: Capital multi-year expenditure sub-total | B21: 7 | C21: =SUM(C6:C20) -> 0 | D21: =SUM(D6:D20) -> 0 | E21: 57533643.81 | F21: 129257450 | G21: 121303702 | H21: =SUM(H6:H20) -> 121303702 | I21: 121303702 | J21: 564995280 | K21: 539514096 | L21: 548332100
A23: Single-year expenditure to be appropriated | B23: 2
A24: =A6 -> Vote 1 - Executive & Council | C24: =A5A!C175 -> 0 | D24: =A5A!D175 -> 0 | E24: =A5A!E175 -> 0 | F24: =A5A!F175 -> 0 | G24: =A5A!G175 -> 0 | H24: =A5A!H175 -> 0 | I24: =A5A!I175 -> 0 | J24: =A5A!J175 -> 0 | K24: =A5A!K175 -> 0 | L24: =A5A!L175 -> 0
A25: =A7 -> Vote 2 - Planning and Economic Development | C25: =A5A!C186 -> 0 | D25: =A5A!D186 -> 235000 | E25: =A5A!E186 -> 0 | F25: =A5A!F186 -> 0 | G25: =A5A!G186 -> 0 | H25: =A5A!H186 -> 0 | I25: =A5A!I186 -> 0 | J25: =A5A!J186 -> 0 | K25: =A5A!K186 -> 0 | L25: =A5A!L186 -> 0
A26: Vote 3 - Budget and Treasury | C26: =A5A!C197 -> 0 | D26: =A5A!D197 -> 309131.63 | E26: =A5A!E197 -> 852195.8 | F26: =A5A!F197 -> 0 | G26: =A5A!G197 -> 2 | H26: =A5A!H197 -> 2 | I26: =A5A!I197 -> 2 | J26: =A5A!J197 -> 0 | K26: =A5A!K197 -> 0 | L26: =A5A!L197 -> 0
A27: Vote 4 - Corporate Services | C27: =A5A!C208 -> 0 | D27: =A5A!D208 -> 0 | E27: =A5A!E208 -> 0 | F27: =A5A!F208 -> 0 | G27: =A5A!G208 -> 0 | H27: =A5A!H208 -> 0 | I27: =A5A!I208 -> 0 | J27: =A5A!J208 -> 0 | K27: =A5A!K208 -> 0 | L27: =A5A!L208 -> 0
A28: Vote 5 - Engineering Services | C28: =A5A!C219 -> 0 | D28: =A5A!D219 -> 109509558.6 | E28: =A5A!E219 -> 63052623.33 | F28: =A5A!F219 -> 0 | G28: =A5A!G219 -> 6303761 | H28: =A5A!H219 -> 6303761 | I28: =A5A!I219 -> 6303761 | J28: =A5A!J219 -> 0 | K28: =A5A!K219 -> 0 | L28: =A5A!L219 -> 0
A29: Vote 6 - Community Services | C29: =A5A!C230 -> 0 | D29: =A5A!D230 -> 3589484.72 | E29: =A5A!E230 -> 0 | F29: =A5A!F230 -> 0 | G29: =A5A!G230 -> 0 | H29: =A5A!H230 -> 0 | I29: =A5A!I230 -> 0 | J29: =A5A!J230 -> 0 | K29: =A5A!K230 -> 0 | L29: =A5A!L230 -> 0
A30: Vote 7 - Electrical Engineering | C30: =A5A!C241 -> 35543715 | D30: =A5A!D241 -> 76614936.4 | E30: =A5A!E241 -> 15731409.46 | F30: =A5A!F241 -> 1600000 | G30: =A5A!G241 -> 14470691 | H30: =A5A!H241 -> 14470691 | I30: =A5A!I241 -> 14470691 | J30: =A5A!J241 -> 0 | K30: =A5A!K241 -> 0 | L30: =A5A!L241 -> 0
A31: Vote 8 - Office of the Speaker | C31: =A5A!C252 -> 67938724 | D31: =A5A!D252 -> 0 | E31: =A5A!E252 -> 0 | F31: =A5A!F252 -> 0 | G31: =A5A!G252 -> 0 | H31: =A5A!H252 -> 0 | I31: =A5A!I252 -> 0 | J31: =A5A!J252 -> 0 | K31: =A5A!K252 -> 0 | L31: =A5A!L252 -> 0
A32: Vote 9 - COMMUNITY & SOCIAL SERVICES | C32: =A5A!C263 -> 0 | D32: =A5A!D263 -> 0 | E32: =A5A!E263 -> 0 | F32: =A5A!F263 -> 0 | G32: =A5A!G263 -> 0 | H32: =A5A!H263 -> 0 | I32: =A5A!I263 -> 0 | J32: =A5A!J263 -> 0 | K32: =A5A!K263 -> 0 | L32: =A5A!L263 -> 0
A33: Vote 10 - Office of the Municipal Manager | C33: =A5A!C274 -> 0 | D33: =A5A!D274 -> 0 | E33: =A5A!E274 -> 0 | F33: =A5A!F274 -> 0 | G33: =A5A!G274 -> 0 | H33: =A5A!H274 -> 0 | I33: =A5A!I274 -> 0 | J33: =A5A!J274 -> 0 | K33: =A5A!K274 -> 0 | L33: =A5A!L274 -> 0
A34: Vote 11 - [NAME OF VOTE 11] | C34: =A5A!C285 -> 0 | D34: =A5A!D285 -> 0 | E34: =A5A!E285 -> 0 | F34: =A5A!F285 -> 0 | G34: =A5A!G285 -> 0 | H34: =A5A!H285 -> 0 | I34: =A5A!I285 -> 0 | J34: =A5A!J285 -> 0 | K34: =A5A!K285 -> 0 | L34: =A5A!L285 -> 0
A35: Vote 12 - [NAME OF VOTE 12] | C35: =A5A!C296 -> 0 | D35: =A5A!D296 -> 0 | E35: =A5A!E296 -> 0 | F35: =A5A!F296 -> 0 | G35: =A5A!G296 -> 0 | H35: =A5A!H296 -> 0 | I35: =A5A!I296 -> 0 | J35: =A5A!J296 -> 0 | K35: =A5A!K296 -> 0 | L35: =A5A!L296 -> 0
A36: Vote 13 - [NAME OF VOTE 13] | C36: =A5A!C307 -> 0 | D36: =A5A!D307 -> 0 | E36: =A5A!E307 -> 0 | F36: =A5A!F307 -> 0 | G36: =A5A!G307 -> 0 | H36: =A5A!H307 -> 0 | I36: =A5A!I307 -> 0 | J36: =A5A!J307 -> 0 | K36: =A5A!K307 -> 0 | L36: =A5A!L307 -> 0
A37: Vote 14 - [NAME OF VOTE 14] | C37: =A5A!C318 -> 0 | D37: =A5A!D318 -> 0 | E37: =A5A!E318 -> 0 | F37: =A5A!F318 -> 0 | G37: =A5A!G318 -> 0 | H37: =A5A!H318 -> 0 | I37: =A5A!I318 -> 0 | J37: =A5A!J318 -> 0 | K37: =A5A!K318 -> 0 | L37: =A5A!L318 -> 0
A38: =A20 -> Vote 15 - [NAME OF VOTE 15] | C38: =A5A!C329 -> 0 | D38: =A5A!D329 -> 0 | E38: =A5A!E329 -> 0 | F38: =A5A!F329 -> 0 | G38: =A5A!G329 -> 0 | H38: =A5A!H329 -> 0 | I38: =A5A!I329 -> 0 | J38: =A5A!J329 -> 0 | K38: =A5A!K329 -> 0 | L38: =A5A!L329 -> 0
A39: Capital single-year expenditure sub-total | C39: =SUM(C24:C38) -> 103482439 | D39: =SUM(D24:D38) -> 190258111.3 | E39: 79636228.59 | F39: 1600000 | G39: 20774454 | H39: 20774454 | I39: 20774454 | J39: 0 | K39: 0 | L39: 0
A40: Total Capital Expenditure - Vote | C40: =C39+C21 -> 103482439 | D40: =D39+D21 -> 190258111.3 | E40: 137169872.4 | F40: 130857450 | G40: 142078156 | H40: 142078156 | I40: 142078156 | J40: 564995280 | K40: 539514096 | L40: 548332100
A42: Capital Expenditure - Functional
A43: Governance and administration | C43: =SUM(C44:C46) -> 11545415 | D43: =SUM(D44:D46) -> 309131.63 | E43: 32361698.28 | F43: 8600000 | G43: 3000010 | H43: 3000010 | I43: 3000010 | J43: 19400000 | K43: 27550000 | L43: 4500000
A44: Executive and council | C44: 6059 | D44: 0 | E44: 0 | F44: 0 | G44: 0 | H44: 0 | I44: 0 | J44: 0 | K44: 0 | L44: 0
A45: Finance and administration | C45: 11539356 | D45: 309131.63 | E45: 32361698.28 | F45: 8600000 | G45: 3000010 | H45: 3000010 | I45: 3000010 | J45: 19400000 | K45: 27550000 | L45: 4500000
A46: Internal audit | C46: 0 | D46: 0 | E46: 0 | F46: 0 | G46: 0 | H46: 0 | I46: 0 | J46: 0 | K46: 0 | L46: 0
A47: Community and public safety | C47: =SUM(C48:C52) -> 1605684 | D47: =SUM(D48:D52) -> 9204484.72 | E47: 6490611.77 | F47: 4825000 | G47: 8225000 | H47: 8225000 | I47: 8225000 | J47: 0 | K47: 1600000 | L47: 1000000
A48: Community and social services | C48: 0 | D48: 1704484.72 | E48: 0 | F48: 1325000 | G48: 1325000 | H48: 1325000 | I48: 1325000 | J48: 0 | K48: 0 | L48: 0
A49: Sport and recreation | C49: 349001 | D49: 1800000 | E49: 0 | F49: 0 | G49: 0 | H49: 0 | I49: 0 | J49: 0 | K49: 0 | L49: 0
A50: Public safety | C50: 0 | D50: 0 | E50: 0 | F50: 0 | G50: 0 | H50: 0 | I50: 0 | J50: 0 | K50: 0 | L50: 0
A51: Housing | C51: 1066513 | D51: 5700000 | E51: 6490611.77 | F51: 3500000 | G51: 6900000 | H51: 6900000 | I51: 6900000 | J51: 0 | K51: 1600000 | L51: 1000000
A52: Health | C52: 190170 | D52: 0 | E52: 0 | F52: 0 | G52: 0 | H52: 0 | I52: 0 | J52: 0 | K52: 0 | L52: 0
A53: Economic and environmental services | C53: =SUM(C54:C56) -> 54245202 | D53: =SUM(D54:D56) -> 106564558.6 | E53: 82586152.89 | F53: 101282450 | G53: 106382463 | H53: 106382463 | I53: 106382463 | J53: 115648820 | K53: 117116024 | L53: 119234088
A54: Planning and development | C54: 48501 | D54: 235000 | E54: 0 | F54: 3058500 | G54: 258500 | H54: 258500 | I54: 258500 | J54: 2000000 | K54: 2000000 | L54: 2000000
A55: Road transport | C55: 54196701 | D55: 106329558.6 | E55: 82586152.89 | F55: 98223950 | G55: 106123963 | H55: 106123963 | I55: 106123963 | J55: 113648820 | K55: 115116024 | L55: 117234088
A56: Environmental protection | C56: 0 | D56: 0 | E56: 0 | F56: 0 | G56: 0 | H56: 0 | I56: 0 | J56: 0 | K56: 0 | L56: 0
A57: Trading services | C57: =SUM(C58:C61) -> 36086138 | D57: =SUM(D58:D61) -> 74179936.4 | E57: 15731409.46 | F57: 16150000 | G57: 24470691 | H57: 24470691 | I57: 24470691 | J57: 29000000 | K57: 35000000 | L57: 34000000
A58: Energy sources | C58: 36071006 | D58: 74094936.4 | E58: 15731409.46 | F58: 16150000 | G58: 24470691 | H58: 24470691 | I58: 24470691 | J58: 29000000 | K58: 35000000 | L58: 34000000
A59: Water management | C59: 0 | D59: 0 | E59: 0 | F59: 0 | G59: 0 | H59: 0 | I59: 0 | J59: 0 | K59: 0 | L59: 0
A60: Waste water management | C60: 0 | D60: 0 | E60: 0 | F60: 0 | G60: 0 | H60: 0 | I60: 0 | J60: 0 | K60: 0 | L60: 0
A61: Waste management | C61: 15132 | D61: 85000 | E61: 0 | F61: 0 | G61: 0 | H61: 0 | I61: 0 | J61: 0 | K61: 0 | L61: 0
A62: Other | C62: 0 | D62: 0 | E62: 0 | F62: 0 | G62: 0 | H62: 0 | I62: 0 | J62: 0 | K62: 0 | L62: 0
A63: Total Capital Expenditure - Functional | B63: 3 | C63: =C43+C47+C53+C57+C62 -> 103482439 | D63: =D43+D47+D53+D57+D62 -> 190258111.3 | E63: 137169872.4 | F63: 130857450 | G63: 142078164 | H63: 142078164 | I63: 142078164 | J63: 164048820 | K63: 181266024 | L63: =L43+L47+L53+L57+L62 -> 158734088
A65: Funded by:
A66: National Government | C66: 86451929 | D66: 89549850.99 | E66: 0.03 | F66: 94753950 | G66: 94753953 | H66: 94753953 | I66: 94753953 | J66: 113648820 | K66: 107516024 | L66: 112511168
A67: Provincial Government | C67: 0 | D67: 0 | E67: 0 | F67: 0 | G67: 0 | H67: 0 | I67: 0 | J67: 0 | K67: 0 | L67: 0
A68: District Municipality | C68: 0 | D68: 0 | E68: 0 | F68: 0 | G68: 0 | H68: 0 | I68: 0 | J68: 0 | K68: 0 | L68: 0
A69: ='A4-FinPerf RE'!A39 -> Transfers and subsidies - capital (monetary allocations) (National / Provincial Departmental Agencies, Households, Non-profit Institutions, Private Enterprises, Public Corporatons, Higher Educational Institutions) | C69: 0 | D69: 10000000 | E69: 0 | F69: 0 | G69: 0 | H69: 0 | I69: 0 | J69: 0 | K69: 0 | L69: 0
A70: Transfers recognised - capital | B70: 4 | C70: =SUM(C66:C69) -> 86451929 | D70: 99549850.99 | E70: 0.03 | F70: 94753950 | G70: 94753953 | H70: 94753953 | I70: 94753953 | J70: 113648820 | K70: 107516024 | L70: 112511168
A72: Borrowing | B72: 6 | C72: 17030510 | D72: 32847672.04 | E72: 901980.55 | F72: 0 | G72: 14020667 | H72: 14020667 | I72: 14020667 | J72: 0 | K72: 0 | L72: 0
A73: Internally generated funds | C73: 0 | D73: 57860588.31 | E73: 136267891.8 | F73: 36103500 | G73: 33303544 | H73: 33303544 | I73: 33303544 | J73: 50400000 | K73: 73750000 | L73: 46222920
A74: Total Capital Funding | B74: 7 | C74: =+C70+C72+C73 -> 103482439 | D74: =+D70+D72+D73 -> 190258111.3 | E74: 137169872.4 | F74: 130857450 | G74: 142078164 | H74: 142078164 | I74: 142078164 | J74: 164048820 | K74: 181266024 | L74: 158734088
A75: =head27a -> References
A76: 1. Municipalities may choose to appropriate for capital expenditure for three years or for one year (if one year appropriation projected expenditure required for yr2 and yr3).
A77: 2. Include capital component of PPP unitary payment. Note that capital transfers are only appropriated to municipalities for the budget year
A78: 3. Capital expenditure by functional classification must reconcile to the appropriations by vote
A79: 4. Must reconcile to supporting table SA20 and to Budgeted Financial Performance (revenue and expenditure)
A81: 6. Include finance leases and PPP capital funding component of unitary payment - total borrowing/repayments to reconcile to changes in Table SA17
A82: 7. Total Capital Funding must balance with Total Capital Expenditure
A83: 8. Include any capitalised interest (MFMA section 46) as part of relevant capital budget
A85: check balance | C85: =IF((C63-C74)=0,0,"Unbalanced") -> 0 | D85: =IF((D63-D74)=0,0,"Unbalanced") -> 0 | E85: 0 | F85: 0 | G85: 0 | H85: 0 | I85: 0 | J85: 0 | K85: 0 | L85: 0

Sheet A5A
A1: =muni&" - "&Approve5 -> Choose name from list - Table A5 Budgeted Capital Expenditure by vote, functional classification and funding
A2: =Vdesc -> Vote Description | B2: =head27 -> Ref | C2: =head1b -> 2018/19 | D2: =head1A -> 2019/20 | E2: =Head1 -> 2020/21 | F2: =Head2 -> Current Year 2021/22 | J2: =Head3 -> 2022/23 Medium Term Revenue & Expenditure Framework | N2: ="Multi-year appropriation for "&Head9& " in the "&Head2A&" Annual Budget" -> Multi-year appropriation for Budget Year 2022/23 in the 2021/22 Annual Budget | R2: ="Multi-year appropriation for "&RIGHT(Head10,7)& " in the "&Head2A&" Annual Budget" -> Multi-year appropriation for 2023/24 in the 2021/22 Annual Budget | V2: New multi-year appropriations (funds for new and existing projects)
A3: R thousand | B3: 1 | C3: =Head5 -> Audited Outcome | D3: =Head5 -> Audited Outcome | E3: =Head5 -> Audited Outcome | F3: =Head6 -> Original Budget | G3: =Head7 -> Adjusted Budget | H3: =Head8 -> Full Year Forecast | I3: =Head5b -> Pre-audit outcome | J3: =Head9 -> Budget Year 2022/23 | K3: =Head10 -> Budget Year +1 2023/24 | L3: =Head11 -> Budget Year +2 2024/25 | N3: ="Appropriation for "&RIGHT(Head9,7) -> Appropriation for 2022/23 | O3: ="Adjustments in "&Head2A -> Adjustments in 2021/22 | P3: ="Downward adjustments for "&RIGHT(Head9,7) -> Downward adjustments for 2022/23 | Q3: Appropriation carried forward | R3: ="Appropriation for "&RIGHT(Head9,7) -> Appropriation for 2022/23 | S3: ="Adjustments in "&Head2A -> Adjustments in 2021/22 | T3: ="Downward adjustments for "&RIGHT(Head9,7) -> Downward adjustments for 2022/23 | U3: Appropriation carried forward | V3: =Head9 -> Budget Year 2022/23 | W3: =Head10 -> Budget Year +1 2023/24 | X3: =Head11 -> Budget Year +2 2024/25
A4: Capital expenditure - Municipal Vote
A5: Multi-year expenditure appropriation | B5: 2
A6: ='Org structure'!A2 -> Vote 1 - Executive & Council | C6: 0 | D6: 0 | E6: 0 | F6: 0 | G6: 0 | H6: 0 | I6: 0 | J6: 0 | K6: 0 | L6: 0 | N6: =SUM(N7:N16) -> 0 | O6: 0 | P6: 0 | Q6: 0 | R6: 0 | S6: 0 | T6: 0 | U6: 0 | V6: =SUM(V7:V16) -> 0 | W6: =SUM(W7:W16) -> 0 | X6: =SUM(X7:X16) -> 0
A7: ='Org structure'!E3 -> 1.1 - [Name of sub-vote] | J7: =Q7+V7 -> 0 | K7: =U7+W7 -> 0 | L7: =X7 -> 0 | Q7: =SUM(N7:P7) -> 0 | U7: =SUM(R7:T7) -> 0
A8: ='Org structure'!E4 -> 0 | J8: =Q8+V8 -> 0 | K8: =U8+W8 -> 0 | L8: =X8 -> 0 | Q8: =SUM(N8:P8) -> 0 | U8: =SUM(R8:T8) -> 0
A9: ='Org structure'!E5 -> 0 | J9: =Q9+V9 -> 0 | K9: =U9+W9 -> 0 | L9: 0 | Q9: 0 | U9: 0
A10: ='Org structure'!E6 -> 0 | J10: 0 | K10: 0 | L10: 0 | Q10: 0 | U10: 0
A11: ='Org structure'!E7 -> 0 | J11: 0 | K11: 0 | L11: =X11 -> 0 | Q11: 0 | U11: 0
A12: ='Org structure'!E8 -> 0 | J12: 0 | K12: 0 | L12: 0 | Q12: 0 | U12: 0
A13: ='Org structure'!E9 -> 0 | J13: 0 | K13: 0 | L13: 0 | Q13: 0 | U13: 0
A14: ='Org structure'!E10 -> 0 | J14: 0 | K14: 0 | L14: 0 | Q14: 0 | U14: 0
A15: ='Org structure'!E11 -> 0 | J15: 0 | K15: 0 | L15: 0 | Q15: 0 | U15: 0
A16: ='Org structure'!E12 -> 0 | J16: 0 | K16: 0 | L16: 0 | Q16: 0 | U16: 0
A17: ='Org structure'!A3 -> Vote 2 - Planning and Economic Development | C17: 0 | D17: 0 | E17: 0 | F17: 6558500 | G17: 6482870 | H17: 6482870 | I17: 6482870 | J17: 8000000 | K17: 8000000 | L17: 8000000 | N17: =SUM(N18:N27) -> 0 | O17: 0 | P17: 0 | Q17: 0 | R17: 0 | S17: 0 | T17: 0 | U17: 0 | V17: 0 | W17: 0 | X17: 0
A18: ='Org structure'!E14 -> 2.1 - [Name of sub-vote] | J18: =Q18+V18 -> 0 | K18: =U18+W18 -> 0 | L18: =X18 -> 0 | Q18: =SUM(N18:P18) -> 0 | U18: 0
A19: ='Org structure'!E15 -> 0 | J19: =Q19+V19 -> 0 | K19: =U19+W19 -> 0 | L19: 0 | Q19: 0 | U19: 0
A20: ='Org structure'!E16 -> 0 | J20: 0 | K20: 0 | L20: 0 | Q20: 0 | U20: 0
A21: ='Org structure'!E17 -> 0 | J21: 0 | K21: =U21+W21 -> 0 | L21: 0 | Q21: 0 | U21: 0
A22: ='Org structure'!E18 -> 0 | J22: 0 | K22: 0 | L22: 0 | Q22: 0 | U22: 0
A23: ='Org structure'!E19 -> 0 | J23: 0 | K23: 0 | L23: 0 | Q23: 0 | U23: 0
A24: ='Org structure'!E20 -> 0 | J24: 0 | K24: 0 | L24: 0 | Q24: 0 | U24: 0
A25: ='Org structure'!E21 -> 0 | J25: 0 | K25: 0 | L25: 0 | Q25: 0 | U25: 0
A26: ='Org structure'!E22 -> 0 | J26: 0 | K26: 0 | L26: 0 | Q26: 0 | U26: 0
A27: ='Org structure'!E23 -> 0 | J27: 0 | K27: 0 | L27: 0 | Q27: 0 | U27: 0
A28: ='Org structure'!A4 -> Vote 3 - Budget and Treasury | C28: 0 | D28: 0 | E28: 31509502.48 | F28: 700000 | G28: 700000 | H28: 700000 | I28: 700000 | J28: 400000 | K28: 0 | L28: 0 | N28: =SUM(N29:N38) -> 0 | O28: 0 | P28: 0 | Q28: 0 | R28: 0 | S28: 0 | T28: 0 | U28: 0 | V28: 0 | W28: 0 | X28: 0
A29: ='Org structure'!E25 -> 3.1 - [Name of sub-vote] | J29: =Q29+V29 -> 0 | K29: =U29+W29 -> 0 | L29: =X29 -> 0 | Q29: =SUM(N29:P29) -> 0 | U29: 0
A30: ='Org structure'!E26 -> 0 | J30: 0 | K30: 0 | L30: 0 | Q30: 0 | U30: 0
A31: ='Org structure'!E27 -> 0 | J31: 0 | K31: 0 | L31: 0 | Q31: 0 | U31: =SUM(R31:T31) -> 0
A32: ='Org structure'!E28 -> 0 | J32: 0 | K32: =U32+W32 -> 0 | L32: 0 | Q32: 0 | U32: 0
A33: ='Org structure'!E29 -> 0 | J33: =Q33+V33 -> 0 | K33: 0 | L33: 0 | Q33: 0 | U33: 0
A34: ='Org structure'!E30 -> 0 | J34: 0 | K34: 0 | L34: 0 | Q34: 0 | U34: 0
A35: ='Org structure'!E31 -> 0 | J35: 0 | K35: 0 | L35: 0 | Q35: 0 | U35: 0
A36: ='Org structure'!E32 -> 0 | J36: 0 | K36: 0 | L36: 0 | Q36: 0 | U36: 0
A37: ='Org structure'!E33 -> 0 | J37: 0 | K37: 0 | L37: 0 | Q37: 0 | U37: 0
A38: ='Org structure'!E34 -> 0 | J38: 0 | K38: 0 | L38: 0 | Q38: 0 | U38: 0
A39: ='Org structure'!A5 -> Vote 4 - Corporate Services | C39: 0 | D39: 0 | E39: 0 | F39: 0 | G39: 0 | H39: 0 | I39: 0 | J39: 0 | K39: 0 | L39: 0 | N39: =SUM(N40:N49) -> 0 | O39: 0 | P39: 0 | Q39: 0 | R39: 0 | S39: 0 | T39: 0 | U39: 0 | V39: 0 | W39: 0 | X39: 0
A40: ='Org structure'!E36 -> 4.1 - [Name of sub-vote] | J40: =Q40+V40 -> 0 | K40: =U40+W40 -> 0 | L40: =X40 -> 0 | Q40: =SUM(N40:P40) -> 0 | U40: 0
A41: ='Org structure'!E37 -> 0 | J41: 0 | K41: 0 | L41: 0 | Q41: 0 | U41: 0
A42: ='Org structure'!E38 -> 0 | J42: 0 | K42: 0 | L42: 0 | Q42: 0 | U42: 0
A43: ='Org structure'!E39 -> 0 | J43: 0 | K43: 0 | L43: 0 | Q43: 0 | U43: 0
A44: ='Org structure'!E40 -> 0 | J44: 0 | K44: 0 | L44: 0 | Q44: 0 | U44: 0
A45: ='Org structure'!E41 -> 0 | J45: 0 | K45: 0 | L45: 0 | Q45: 0 | U45: 0
A46: ='Org structure'!E42 -> 0 | J46: 0 | K46: 0 | L46: 0 | Q46: 0 | U46: 0
A47: ='Org structure'!E43 -> 0 | J47: 0 | K47: 0 | L47: 0 | Q47: 0 | U47: 0
A48: ='Org structure'!E44 -> 0 | J48: 0 | K48: 0 | L48: 0 | Q48: 0 | U48: 0
A49: ='Org structure'!E45 -> 0 | J49: 0 | K49: 0 | L49: 0 | Q49: 0 | U49: 0
A50: ='Org structure'!A6 -> Vote 5 - Engineering Services | C50: 0 | D50: 0 | E50: 26024141.33 | F50: 106123950 | G50: 102795832 | H50: 102795832 | I50: 102795832 | J50: 440595280 | K50: 391514096 | L50: 404332100 | N50: =SUM(N51:N60) -> 0 | O50: 0 | P50: 0 | Q50: 0 | R50: 0 | S50: 0 | T50: 0 | U50: 0 | V50: 0 | W50: 0 | X50: 0
A51: ='Org structure'!E47 -> 5.1 - [Name of sub-vote] | J51: =Q51+V51 -> 0 | K51: =U51+W51 -> 0 | L51: =X51 -> 0 | Q51: =SUM(N51:P51) -> 0 | U51: 0
A52: ='Org structure'!E48 -> 0 | J52: 0 | K52: 0 | L52: 0 | Q52: 0 | U52: 0
A53: ='Org structure'!E49 -> 0 | J53: 0 | K53: 0 | L53: 0 | Q53: 0 | U53: 0
A54: ='Org structure'!E50 -> 0 | J54: 0 | K54: 0 | L54: 0 | Q54: 0 | U54: 0
A55: ='Org structure'!E51 -> 0 | J55: 0 | K55: 0 | L55: 0 | Q55: 0 | U55: 0
A56: ='Org structure'!E52 -> 0 | J56: 0 | K56: 0 | L56: 0 | Q56: 0 | U56: 0
A57: ='Org structure'!E53 -> 0 | J57: 0 | K57: 0 | L57: 0 | Q57: 0 | U57: 0
A58: ='Org structure'!E54 -> 0 | J58: 0 | K58: 0 | L58: 0 | Q58: 0 | U58: 0
A59: ='Org structure'!E55 -> 0 | J59: 0 | K59: 0 | L59: 0 | Q59: 0 | U59: 0
A60: ='Org structure'!E56 -> 0 | J60: 0 | K60: 0 | L60: 0 | Q60: 0 | U60: 0
A61: ='Org structure'!A7 -> Vote 6 - Community Services | C61: 0 | D61: 0 | E61: 0 | F61: 1325000 | G61: 1325000 | H61: 1325000 | I61: 1325000 | J61: 0 | K61: 0 | L61: 0 | N61: =SUM(N62:N71) -> 0 | O61: 0 | P61: 0 | Q61: 0 | R61: 0 | S61: 0 | T61: 0 | U61: 0 | V61: 0 | W61: 0 | X61: 0
A62: ='Org structure'!E58 -> 6.1 - [Name of sub-vote] | J62: =Q62+V62 -> 0 | K62: =U62+W62 -> 0 | L62: =X62 -> 0 | Q62: =SUM(N62:P62) -> 0 | U62: 0
A63: ='Org structure'!E59 -> 0 | J63: 0 | K63: 0 | L63: 0 | Q63: 0 | U63: 0
A64: ='Org structure'!E60 -> 0 | J64: 0 | K64: 0 | L64: 0 | Q64: 0 | U64: 0
A65: ='Org structure'!E61 -> 0 | J65: 0 | K65: 0 | L65: 0 | Q65: 0 | U65: 0
A66: ='Org structure'!E62 -> 0 | J66: 0 | K66: 0 | L66: 0 | Q66: 0 | U66: 0
A67: ='Org structure'!E63 -> 0 | J67: 0 | K67: 0 | L67: 0 | Q67: 0 | U67: 0
A68: ='Org structure'!E64 -> 0 | J68: 0 | K68: 0 | L68: 0 | Q68: 0 | U68: 0
A69: ='Org structure'!E65 -> 0 | J69: 0 | K69: 0 | L69: 0 | Q69: 0 | U69: 0
A70: ='Org structure'!E66 -> 0 | J70: 0 | K70: 0 | L70: 0 | Q70: 0 | U70: 0
A71: ='Org structure'!E67 -> 0 | J71: 0 | K71: 0 | L71: 0 | Q71: 0 | U71: 0
A72: ='Org structure'!A8 -> Vote 7 - Electrical Engineering | C72: 0 | D72: 0 | E72: 0 | F72: 14550000 | G72: 10000000 | H72: 10000000 | I72: 10000000 | J72: 116000000 | K72: 140000000 | L72: 136000000 | N72: =SUM(N73:N82) -> 0 | O72: 0 | P72: 0 | Q72: 0 | R72: 0 | S72: 0 | T72: 0 | U72: 0 | V72: 0 | W72: 0 | X72: 0
A73: ='Org structure'!E69 -> 7.1 - [Name of sub-vote] | J73: =Q73+V73 -> 0 | K73: =U73+W73 -> 0 | L73: =X73 -> 0 | Q73: =SUM(N73:P73) -> 0 | U73: =SUM(R73:T73) -> 0
A74: ='Org structure'!E70 -> 0 | J74: 0 | K74: 0 | L74: 0 | Q74: 0 | U74: 0
A75: ='Org structure'!E71 -> 0 | J75: 0 | K75: 0 | L75: 0 | Q75: 0 | U75: 0
A76: ='Org structure'!E72 -> 0 | J76: 0 | K76: 0 | L76: 0 | Q76: 0 | U76: 0
A77: ='Org structure'!E73 -> 0 | J77: 0 | K77: 0 | L77: 0 | Q77: 0 | U77: 0
A78: ='Org structure'!E74 -> 0 | J78: 0 | K78: 0 | L78: 0 | Q78: 0 | U78: 0
A79: ='Org structure'!E75 -> 0 | J79: 0 | K79: 0 | L79: 0 | Q79: 0 | U79: 0
A80: ='Org structure'!E76 -> 0 | J80: 0 | K80: 0 | L80: 0 | Q80: 0 | U80: 0
A81: ='Org structure'!E77 -> 0 | J81: 0 | K81: 0 | L81: 0 | Q81: 0 | U81: 0
A82: ='Org structure'!E78 -> 0 | J82: 0 | K82: 0 | L82: 0 | Q82: 0 | U82: 0
A83: ='Org structure'!A9 -> Vote 8 - Office of the Speaker | C83: 0 | D83: 0 | E83: 0 | F83: 0 | G83: 0 | H83: 0 | I83: 0 | J83: 0 | K83: 0 | L83: 0 | N83: =SUM(N84:N93) -> 0 | O83: 0 | P83: 0 | Q83: 0 | R83: 0 | S83: 0 | T83: 0 | U83: 0 | V83: 0 | W83: 0 | X83: 0
A84: ='Org structure'!E80 -> 8.1 - [Name of sub-vote] | J84: =Q84+V84 -> 0 | K84: =U84+W84 -> 0 | L84: =X84 -> 0 | Q84: =SUM(N84:P84) -> 0 | U84: 0
A85: ='Org structure'!E81 -> 0 | J85: 0 | K85: 0 | L85: 0 | Q85: 0 | U85: 0
A86: ='Org structure'!E82 -> 0 | J86: 0 | K86: 0 | L86: 0 | Q86: 0 | U86: 0
A87: ='Org structure'!E83 -> 0 | J87: 0 | K87: 0 | L87: 0 | Q87: 0 | U87: 0
A88: ='Org structure'!E84 -> 0 | J88: 0 | K88: 0 | L88: 0 | Q88: 0 | U88: 0
A89: ='Org structure'!E85 -> 0 | J89: 0 | K89: 0 | L89: 0 | Q89: 0 | U89: 0
A90: ='Org structure'!E86 -> 0 | J90: 0 | K90: 0 | L90: 0 | Q90: 0 | U90: 0
A91: ='Org structure'!E87 -> 0 | J91: 0 | K91: 0 | L91: 0 | Q91: 0 | U91: 0
A92: ='Org structure'!E88 -> 0 | J92: 0 | K92: 0 | L92: 0 | Q92: 0 | U92: 0
A93: ='Org structure'!E89 -> 0 | J93: 0 | K93: 0 | L93: 0 | Q93: 0 | U93: 0
A94: ='Org structure'!A10 -> Vote 9 - COMMUNITY & SOCIAL SERVICES | C94: 0 | D94: 0 | E94: 0 | F94: 0 | G94: 0 | H94: 0 | I94: 0 | J94: 0 | K94: 0 | L94: 0 | N94: =SUM(N95:N104) -> 0 | O94: 0 | P94: 0 | Q94: 0 | R94: 0 | S94: 0 | T94: 0 | U94: 0 | V94: 0 | W94: 0 | X94: 0
A95: ='Org structure'!E91 -> 9.1 - [Name of sub-vote] | J95: =Q95+V95 -> 0 | K95: =U95+W95 -> 0 | L95: =X95 -> 0 | Q95: =SUM(N95:P95) -> 0 | U95: 0
A96: ='Org structure'!E92 -> 0 | J96: 0 | K96: 0 | L96: 0 | Q96: 0 | U96: 0
A97: ='Org structure'!E93 -> 0 | J97: 0 | K97: 0 | L97: 0 | Q97: 0 | U97: 0
A98: ='Org structure'!E94 -> 0 | J98: 0 | K98: 0 | L98: 0 | Q98: 0 | U98: 0
A99: ='Org structure'!E95 -> 0 | J99: 0 | K99: 0 | L99: 0 | Q99: 0 | U99: 0
A100: ='Org structure'!E96 -> 0 | J100: 0 | K100: 0 | L100: 0 | Q100: 0 | U100: 0
A101: ='Org structure'!E97 -> 0 | J101: 0 | K101: 0 | L101: 0 | Q101: 0 | U101: 0
A102: ='Org structure'!E98 -> 0 | J102: 0 | K102: 0 | L102: 0 | Q102: 0 | U102: 0
A103: ='Org structure'!E99 -> 0 | J103: 0 | K103: 0 | L103: 0 | Q103: 0 | U103: 0
A104: ='Org structure'!E100 -> 0 | J104: 0 | K104: 0 | L104: 0 | Q104: 0 | U104: 0
A105: ='Org structure'!A11 -> Vote 10 - Office of the Municipal Manager | C105: 0 | D105: 0 | E105: 0 | F105: 0 | G105: 0 | H105: 0 | I105: 0 | J105: 0 | K105: 0 | L105: 0 | N105: =SUM(N106:N115) -> 0 | O105: 0 | P105: 0 | Q105: 0 | R105: 0 | S105: 0 | T105: 0 | U105: 0 | V105: 0 | W105: 0 | X105: 0
A106: ='Org structure'!E102 -> 10.1 - [Name of sub-vote] | J106: =Q106+V106 -> 0 | K106: =U106+W106 -> 0 | L106: =X106 -> 0 | Q106: =SUM(N106:P106) -> 0 | U106: 0
A107: ='Org structure'!E103 -> 0 | J107: 0 | K107: 0 | L107: 0 | Q107: 0 | U107: 0
A108: ='Org structure'!E104 -> 0 | J108: 0 | K108: 0 | L108: 0 | Q108: 0 | U108: 0
A109: ='Org structure'!E105 -> 0 | J109: 0 | K109: 0 | L109: 0 | Q109: 0 | U109: 0
A110: ='Org structure'!E106 -> 0 | J110: 0 | K110: 0 | L110: 0 | Q110: 0 | U110: 0
A111: ='Org structure'!E107 -> 0 | J111: 0 | K111: 0 | L111: 0 | Q111: 0 | U111: 0
A112: ='Org structure'!E108 -> 0 | J112: 0 | K112: 0 | L112: 0 | Q112: 0 | U112: 0
A113: ='Org structure'!E109 -> 0 | J113: 0 | K113: 0 | L113: 0 | Q113: 0 | U113: 0
A114: ='Org structure'!E110 -> 0 | J114: 0 | K114: 0 | L114: 0 | Q114: 0 | U114: 0
A115: ='Org structure'!E111 -> 0 | J115: 0 | K115: 0 | L115: 0 | Q115: 0 | U115: 0
A116: ='Org structure'!A12 -> Vote 11 - [NAME OF VOTE 11] | C116: =SUM(C117:C126) -> 0 | D116: 0 | E116: 0 | F116: 0 | G116: 0 | H116: 0 | I116: 0 | J116: 0 | K116: 0 | L116: 0 | N116: =SUM(N117:N126) -> 0 | O116: 0 | P116: 0 | Q116: 0 | R116: 0 | S116: 0 | T116: 0 | U116: 0 | V116: 0 | W116: 0 | X116: 0
A117: ='Org structure'!E113 -> 11.1 - [Name of sub-vote] | J117: =Q117+V117 -> 0 | K117: =U117+W117 -> 0 | L117: =X117 -> 0 | Q117: =SUM(N117:P117) -> 0 | U117: 0
A118: ='Org structure'!E114 -> 0 | J118: 0 | K118: 0 | L118: 0 | Q118: 0 | U118: 0
A119: ='Org structure'!E115 -> 0 | J119: 0 | K119: 0 | L119: 0 | Q119: 0 | U119: 0
A120: ='Org structure'!E116 -> 0 | J120: 0 | K120: 0 | L120: 0 | Q120: 0 | U120: 0
A121: ='Org structure'!E117 -> 0 | J121: 0 | K121: 0 | L121: 0 | Q121: 0 | U121: 0
A122: ='Org structure'!E118 -> 0 | J122: 0 | K122: 0 | L122: 0 | Q122: 0 | U122: 0
A123: ='Org structure'!E119 -> 0 | J123: 0 | K123: 0 | L123: 0 | Q123: 0 | U123: 0
A124: ='Org structure'!E120 -> 0 | J124: 0 | K124: 0 | L124: 0 | Q124: 0 | U124: 0
A125: ='Org structure'!E121 -> 0 | J125: 0 | K125: 0 | L125: 0 | Q125: 0 | U125: 0
A126: ='Org structure'!E122 -> 0 | J126: 0 | K126: 0 | L126: 0 | Q126: 0 | U126: 0
A127: ='Org structure'!A13 -> Vote 12 - [NAME OF VOTE 12] | C127: =SUM(C128:C137) -> 0 | D127: 0 | E127: 0 | F127: 0 | G127: 0 | H127: 0 | I127: 0 | J127: 0 | K127: 0 | L127: 0 | N127: =SUM(N128:N137) -> 0 | O127: 0 | P127: 0 | Q127: 0 | R127: 0 | S127: 0 | T127: 0 | U127: 0 | V127: 0 | W127: 0 | X127: 0
A128: ='Org structure'!E124 -> 12.1 - [Name of sub-vote] | J128: =Q128+V128 -> 0 | K128: =U128+W128 -> 0 | L128: =X128 -> 0 | Q128: =SUM(N128:P128) -> 0 | U128: 0
A129: ='Org structure'!E125 -> 0 | J129: 0 | K129: 0 | L129: 0 | Q129: 0 | U129: 0
A130: ='Org structure'!E126 -> 0 | J130: 0 | K130: 0 | L130: 0 | Q130: 0 | U130: 0
A131: ='Org structure'!E127 -> 0 | J131: 0 | K131: 0 | L131: 0 | Q131: 0 | U131: 0
A132: ='Org structure'!E128 -> 0 | J132: 0 | K132: 0 | L132: 0 | Q132: 0 | U132: 0
A133: ='Org structure'!E129 -> 0 | J133: =Q133+V133 -> 0 | K133: 0 | L133: 0 | Q133: 0 | U133: 0
A134: ='Org structure'!E130 -> 0 | J134: 0 | K134: 0 | L134: 0 | Q134: 0 | U134: 0
A135: ='Org structure'!E131 -> 0 | J135: 0 | K135: 0 | L135: 0 | Q135: 0 | U135: 0
A136: ='Org structure'!E132 -> 0 | J136: 0 | K136: 0 | L136: 0 | Q136: 0 | U136: =SUM(R136:T136) -> 0
A137: ='Org structure'!E133 -> 0 | J137: 0 | K137: 0 | L137: 0 | Q137: 0 | U137: 0
A138: ='Org structure'!A14 -> Vote 13 - [NAME OF VOTE 13] | C138: =SUM(C139:C148) -> 0 | D138: 0 | E138: 0 | F138: 0 | G138: 0 | H138: 0 | I138: 0 | J138: 0 | K138: 0 | L138: 0 | N138: =SUM(N139:N148) -> 0 | O138: 0 | P138: 0 | Q138: 0 | R138: 0 | S138: 0 | T138: 0 | U138: 0 | V138: 0 | W138: 0 | X138: 0
A139: ='Org structure'!E135 -> 13.1 - [Name of sub-vote] | J139: =Q139+V139 -> 0 | K139: =U139+W139 -> 0 | L139: =X139 -> 0 | Q139: =SUM(N139:P139) -> 0 | U139: 0
A140: ='Org structure'!E136 -> 0 | J140: 0 | K140: 0 | L140: 0 | Q140: 0 | U140: 0
A141: ='Org structure'!E137 -> 0 | J141: 0 | K141: 0 | L141: 0 | Q141: 0 | U141: 0
A142: ='Org structure'!E138 -> 0 | J142: 0 | K142: 0 | L142: 0 | Q142: 0 | U142: 0
A143: ='Org structure'!E139 -> 0 | J143: 0 | K143: 0 | L143: 0 | Q143: 0 | U143: 0
A144: ='Org structure'!E140 -> 0 | J144: 0 | K144: 0 | L144: 0 | Q144: 0 | U144: 0
A145: ='Org structure'!E141 -> 0 | J145: 0 | K145: 0 | L145: 0 | Q145: 0 | U145: 0
A146: ='Org structure'!E142 -> 0 | J146: 0 | K146: 0 | L146: 0 | Q146: 0 | U146: 0
A147: ='Org structure'!E143 -> 0 | J147: 0 | K147: 0 | L147: 0 | Q147: 0 | U147: 0
A148: ='Org structure'!E144 -> 0 | J148: 0 | K148: 0 | L148: 0 | Q148: 0 | U148: 0
A149: ='Org structure'!A15 -> Vote 14 - [NAME OF VOTE 14] | C149: =SUM(C150:C159) -> 0 | D149: 0 | E149: 0 | F149: 0 | G149: 0 | H149: 0 | I149: 0 | J149: 0 | K149: 0 | L149: 0 | N149: =SUM(N150:N159) -> 0 | O149: 0 | P149: 0 | Q149: 0 | R149: 0 | S149: 0 | T149: 0 | U149: 0 | V149: 0 | W149: 0 | X149: 0
A150: ='Org structure'!E146 -> 14.1 - [Name of sub-vote] | J150: =Q150+V150 -> 0 | K150: =U150+W150 -> 0 | L150: =X150 -> 0 | Q150: =SUM(N150:P150) -> 0 | U150: 0
A151: ='Org structure'!E147 -> 0 | J151: 0 | K151: 0 | L151: 0 | Q151: 0 | U151: 0
A152: ='Org structure'!E148 -> 0 | J152: 0 | K152: 0 | L152: 0 | Q152: 0 | U152: 0
A153: ='Org structure'!E149 -> 0 | J153: 0 | K153: 0 | L153: 0 | Q153: 0 | U153: 0
A154: ='Org structure'!E150 -> 0 | J154: 0 | K154: 0 | L154: 0 | Q154: 0 | U154: 0
A155: ='Org structure'!E151 -> 0 | J155: 0 | K155: 0 | L155: 0 | Q155: 0 | U155: 0
A156: ='Org structure'!E152 -> 0 | J156: 0 | K156: 0 | L156: 0 | Q156: 0 | U156: 0
A157: ='Org structure'!E153 -> 0 | J157: 0 | K157: 0 | L157: 0 | Q157: 0 | U157: 0
A158: ='Org structure'!E154 -> 0 | J158: 0 | K158: 0 | L158: 0 | Q158: 0 | U158: 0
A159: ='Org structure'!E155 -> 0 | J159: 0 | K159: 0 | L159: 0 | Q159: 0 | U159: 0
A160: ='Org structure'!A16 -> Vote 15 - [NAME OF VOTE 15] | C160: =SUM(C161:C170) -> 0 | D160: 0 | E160: 0 | F160: 0 | G160: 0 | H160: 0 | I160: 0 | J160: 0 | K160: 0 | L160: 0 | N160: =SUM(N161:N170) -> 0 | O160: 0 | P160: 0 | Q160: 0 | R160: 0 | S160: 0 | T160: 0 | U160: 0 | V160: 0 | W160: 0 | X160: 0
A161: ='Org structure'!E157 -> 15.1 - [Name of sub-vote] | J161: =Q161+V161 -> 0 | K161: =U161+W161 -> 0 | L161: =X161 -> 0 | Q161: =SUM(N161:P161) -> 0 | U161: 0
A162: ='Org structure'!E158 -> 0 | J162: 0 | K162: 0 | L162: 0 | Q162: 0 | U162: 0
A163: ='Org structure'!E159 -> 0 | J163: 0 | K163: 0 | L163: 0 | Q163: 0 | U163: 0
A164: ='Org structure'!E160 -> 0 | J164: 0 | K164: 0 | L164: 0 | Q164: 0 | U164: 0
A165: ='Org structure'!E161 -> 0 | J165: 0 | K165: 0 | L165: 0 | Q165: 0 | U165: 0
A166: ='Org structure'!E162 -> 0 | J166: 0 | K166: 0 | L166: 0 | Q166: 0 | U166: 0
A167: ='Org structure'!E163 -> 0 | J167: 0 | K167: 0 | L167: 0 | Q167: 0 | U167: 0
A168: ='Org structure'!E164 -> 0 | J168: 0 | K168: 0 | L168: 0 | Q168: 0 | U168: 0
A169: ='Org structure'!E165 -> 0 | J169: 0 | K169: 0 | L169: 0 | Q169: 0 | U169: 0
A170: ='Org structure'!E166 -> 0 | J170: 0 | K170: 0 | L170: 0 | Q170: 0 | U170: 0
A171: Capital multi-year expenditure sub-total | C171: =C6+C17+C28+C39+C50+C61+C72+C83+C94+C105+C116+C127+C138+C149+C160 -> 0 | D171: =D6+D17+D28+D39+D50+D61+D72+D83+D94+D105+D116+D127+D138+D149+D160 -> 0 | E171: 57533643.81 | F171: 129257450 | G171: 121303702 | H171: 121303702 | I171: 121303702 | J171: 564995280 | K171: 539514096 | L171: 548332100 | N171: =N6+N17+N28+N39+N50+N61+N72+N83+N94+N105+N116+N127+N138+N149+N160 -> 0 | O171: 0 | P171: 0 | Q171: 0 | R171: 0 | S171: 0 | U171: 0 | V171: =V6+V17+V28+V39+V50+V61+V72+V83+V94+V105+V116+V127+V138+V149+V160 -> 0 | W171: =W6+W17+W28+W39+W50+W61+W72+W83+W94+W105+W116+W127+W138+W149+W160 -> 0
A173: Capital expenditure - Municipal Vote
A174: Single-year expenditure appropriation | B174: 2
A175: =A6 -> Vote 1 - Executive & Council | C175: 0 | D175: 0 | E175: 0 | F175: 0 | G175: 0 | H175: 0 | I175: 0 | J175: 0 | K175: 0 | L175: 0
A176: =A7 -> 1.1 - [Name of sub-vote]
A177: 0
A178: 0
A179: 0
A180: 0
A181: 0
A182: 0
A183: 0
A184: 0
A185: 0
A186: Vote 2 - Planning and Economic Development | C186: 0 | D186: 235000 | E186: 0 | F186: 0 | G186: 0 | H186: 0 | I186: 0 | J186: 0 | K186: 0 | L186: 0
A187: 2.1 - [Name of sub-vote]
A188: 0
A189: 0
A190: 0
A191: 0
A192: 0
A193: 0
A194: 0
A195: 0
A196: 0
A197: Vote 3 - Budget and Treasury | C197: 0 | D197: 309131.63 | E197: 852195.8 | F197: 0 | G197: 2 | H197: 2 | I197: 2 | J197: 0 | K197: 0 | L197: 0
A198: 3.1 - [Name of sub-vote]
A199: 0
A200: 0
A201: 0
... 140 more rows

Sheet A6-FinPos
A1: =muni&" - "&Approve6 -> Choose name from list - Table A6 Budgeted Financial Position
A2: =desc -> Description | B2: =head27 -> Ref | C2: =head1b -> 2018/19 | D2: =head1A -> 2019/20 | E2: =Head1 -> 2020/21 | F2: =Head2 -> Current Year 2021/22 | J2: =Head3 -> 2022/23 Medium Term Revenue & Expenditure Framework
A3: R thousand | C3: =Head5 -> Audited Outcome | D3: =Head5 -> Audited Outcome | E3: =Head5 -> Audited Outcome | F3: =Head6 -> Original Budget | G3: =Head7 -> Adjusted Budget | H3: =Head8 -> Full Year Forecast | I3: =Head5b -> Pre-audit outcome | J3: =Head9 -> Budget Year 2022/23 | K3: =Head10 -> Budget Year +1 2023/24 | L3: =Head11 -> Budget Year +2 2024/25
A4: ASSETS
A5: Current assets
A6: Cash | C6: 42033010.84 | D6: 70215766.21 | E6: 103160462.7 | F6: 34000000 | G6: 34000000 | H6: 34000000 | I6: 34000000 | J6: 34000000 | K6: 35428000 | L6: 35558824
A7: Call investment deposits | B7: 1 | C7: 0 | D7: 0 | E7: 0 | F7: 0 | G7: 0 | H7: 0 | I7: 0 | J7: 0 | K7: 0 | L7: 11
A8: Consumer debtors | B8: 1 | C8: ='SA3'!C14 -> 82703229 | D8: ='SA3'!D14 -> 546854056.9 | E8: ='SA3'!E14 -> 720181775.4 | F8: ='SA3'!F14 -> 132000000 | G8: ='SA3'!G14 -> 132000006 | H8: ='SA3'!H14 -> 132000006 | I8: ='SA3'!I14 -> 132000006 | J8: ='SA3'!J14 -> 132000000 | K8: ='SA3'!K14 -> 137280006 | L8: ='SA3'!L14 -> 142771204
A9: Other debtors | C9: 330270604 | D9: 39767189.5 | E9: 79122341.15 | F9: 401755245 | G9: 401755252 | H9: 401755252 | I9: 401755252 | J9: 401755245 | K9: 417825462 | L9: 434538481
A10: Current portion of long-term receivables | C10: 0 | D10: 0 | E10: 440762.32 | F10: 0 | G10: 1 | H10: 1 | I10: 1 | J10: 0 | K10: 1 | L10: 1
A11: Inventory | B11: 2 | C11: 18162335 | D11: 22331781.61 | E11: 25047839.94 | F11: 19488796 | G11: 25000001 | H11: 25000001 | I11: 25000001 | J11: 25000000 | K11: 26000001 | L11: 27040005
A12: Total current assets | C12: =SUM(C6:C11) -> 473169178.8 | D12: 679168794.2 | E12: 927953181.5 | F12: 587244041 | G12: 592755260 | H12: 592755260 | I12: 592755260 | J12: 592755245 | K12: 616533470 | L12: 639908526
A14: Non current assets
A15: Long-term receivables | C15: 0 | D15: 0 | E15: 0 | F15: 0 | G15: 0 | H15: 0 | I15: 0 | J15: 0 | K15: 0 | L15: 1
A16: Investments | C16: 31525083 | D16: 21113398.31 | E16: 38863416.46 | F16: 21995950 | G16: 41013650 | H16: 41013650 | I16: 41013650 | J16: 41013648 | K16: 42654196 | L16: 44360364
A17: Investment property | C17: 181746803 | D17: 181586803.4 | E17: 181586803.4 | F17: 189377053 | G17: 189377053 | H17: 189377053 | I17: 189377053 | J17: 189377053 | K17: 196952135 | L17: 204830219
A18: Investment in Associate | C18: 0 | D18: 0 | E18: 0 | F18: 0 | G18: 0 | H18: 0 | I18: 0 | J18: 0 | K18: 0 | L18: 0
A19: Property, plant and equipment | B19: 3 | C19: ='SA3'!C121 -> 1456773250 | D19: ='SA3'!D121 -> 1486773373 | E19: ='SA3'!E121 -> 1527095975 | F19: ='SA3'!F121 -> 2612366574 | G19: ='SA3'!G121 -> 1566095998 | H19: ='SA3'!H121 -> 1566095998 | I19: ='SA3'!I121 -> 1566095998 | J19: ='SA3'!J121 -> 1566096030 | K19: ='SA3'!K121 -> 1628739832 | L19: ='SA3'!L121 -> 1693889425
A21: Biological | C21: 0 | D21: 0 | E21: 0 | F21: 0 | G21: 0 | H21: 0 | I21: 0 | J21: 0 | K21: 0 | L21: 0
A22: Intangible | C22: 1135137 | D22: 744470 | E22: 457276.81 | F22: 1003005 | G22: 501000 | H22: 501000 | I22: 501000 | J22: 500999 | K22: 521040 | L22: 541882
A23: Other non-current assets | C23: 195000 | D23: 200958.15 | E23: 200958.15 | F23: 195000 | G23: 200958 | H23: 200958 | I23: 200958 | J23: 200958 | K23: 208996 | L23: 217356
A24: Total non current assets | C24: =SUM(C15:C19)+SUM(C21:C23) -> 1671375273 | D24: =SUM(D15:D19)+SUM(D21:D23) -> 1690419002 | E24: 1748204430 | F24: 2824937582 | G24: 1797188659 | H24: 1797188659 | I24: 1797188659 | J24: 1797188688 | K24: 1869076199 | L24: 1943839247
A25: TOTAL ASSETS | C25: =C12+C24 -> 2144544452 | D25: =D12+D24 -> 2369587797 | E25: =E12+E24 -> 2676157612 | F25: =F12+F24 -> 3412181623 | G25: 2389943919 | H25: 2389943919 | I25: 2389943919 | J25: 2389943933 | K25: 2485609669 | L25: 2583747773
A27: LIABILITIES
A28: Current liabilities
A29: Bank overdraft | B29: 1 | C29: 0 | D29: 0 | E29: 0 | F29: 0 | G29: 0 | H29: 0 | I29: 0 | J29: 0 | K29: 0 | L29: 0
A30: Borrowing | B30: 4 | C30: ='SA3'!C127 -> 22810651 | D30: ='SA3'!D127 -> 9851649 | E30: ='SA3'!E127 -> 14791551.49 | F30: ='SA3'!F127 -> 1714477 | G30: ='SA3'!G127 -> 10301000 | H30: ='SA3'!H127 -> 10301000 | I30: ='SA3'!I127 -> 10301000 | J30: ='SA3'!J127 -> 10301000 | K30: ='SA3'!K127 -> 10713040 | L30: ='SA3'!L127 -> 11141563
A31: Consumer deposits | C31: 27068007 | D31: 27396999.46 | E31: 28049780.86 | F31: 1100000 | G31: 28000000 | H31: 28000000 | I31: 28000000 | J31: 28000000 | K31: 29120000 | L31: 30284800
A32: Trade and other payables | B32: 4 | C32: ='SA3'!C134 -> 279430815 | D32: ='SA3'!D134 -> 296817119 | E32: ='SA3'!E134 -> 322677151.2 | F32: ='SA3'!F134 -> 78293410 | G32: ='SA3'!G134 -> 301256000 | H32: ='SA3'!H134 -> 301256000 | I32: ='SA3'!I134 -> 301256000 | J32: ='SA3'!J134 -> 301255997 | K32: ='SA3'!K134 -> 313306240 | L32: ='SA3'!L134 -> 325838492
A33: Provisions | C33: 948670 | D33: 970476.28 | E33: 6876476.28 | F33: 1067288 | G33: 970476 | H33: 970476 | I33: 970476 | J33: 970476 | K33: 1009295 | L33: 1049666
A34: Total current liabilities | C34: =SUM(C29:C33) -> 330258143 | D34: 335036243.7 | E34: 372394959.8 | F34: 82175175 | G34: 340527476 | H34: 340527476 | I34: 340527476 | J34: 340527473 | K34: 354148575 | L34: 368314521
A36: Non current liabilities
A37: Borrowing | C37: ='SA3'!C139 -> 114196650 | D37: ='SA3'!D139 -> 127366462 | E37: ='SA3'!E139 -> 140985368.2 | F37: ='SA3'!F139 -> 146759262 | G37: ='SA3'!G139 -> 135614001 | H37: ='SA3'!H139 -> 135614001 | I37: ='SA3'!I139 -> 135614001 | J37: ='SA3'!J139 -> 135614004 | K37: ='SA3'!K139 -> 141038561 | L37: ='SA3'!L139 -> 146680105
A38: Provisions | C38: ='SA3'!C146 -> 82278269 | D38: ='SA3'!D146 -> 76769088.02 | E38: ='SA3'!E146 -> 92170894.43 | F38: ='SA3'!F146 -> 86601103 | G38: ='SA3'!G146 -> 92214536 | H38: ='SA3'!H146 -> 92214536 | I38: ='SA3'!I146 -> 92214536 | J38: ='SA3'!J146 -> 92214537 | K38: ='SA3'!K146 -> 95903117 | L38: ='SA3'!L146 -> 99739234
A39: Total non current liabilities | C39: =SUM(C37:C38) -> 196474919 | D39: =SUM(D37:D38) -> 204135550 | E39: =SUM(E37:E38) -> 233156262.6 | F39: =SUM(F37:F38) -> 233360365 | G39: 227828537 | H39: 227828537 | I39: 227828537 | J39: 227828541 | K39: =SUM(K37:K38) -> 236941678 | L39: 246419339
A40: TOTAL LIABILITIES | C40: =C34+C39 -> 526733062 | D40: =D34+D39 -> 539171793.7 | E40: =E34+E39 -> 605551222.5 | F40: =F34+F39 -> 315535540 | G40: 568356013 | H40: 568356013 | I40: 568356013 | J40: 568356014 | K40: =K34+K39 -> 591090253 | L40: 614733860
A42: NET ASSETS | B42: 5 | C42: =C25-C40 -> 1617811390 | D42: 1830416003 | E42: 2070606389 | F42: 3096646083 | G42: 1821587906 | H42: 1821587906 | I42: 1821587906 | J42: 1821587919 | K42: 1894519416 | L42: 1969013913
A44: COMMUNITY WEALTH/EQUITY
A45: Accumulated Surplus/(Deficit) | C45: 1617811390 | D45: 1830416003 | E45: 2069143980 | F45: 3091879913 | G45: 1821677906 | H45: 1821677906 | I45: 1821677906 | J45: 1821587919 | K45: 1894519416 | L45: 1969013913
A46: Reserves | B46: 4 | C46: ='SA3'!C165 -> 0 | D46: ='SA3'!D165 -> 0 | E46: ='SA3'!E165 -> 0 | F46: ='SA3'!F165 -> 0 | G46: ='SA3'!G165 -> 0 | H46: ='SA3'!H165 -> 0 | I46: ='SA3'!I165 -> 0 | J46: ='SA3'!J165 -> 0 | K46: ='SA3'!K165 -> 0 | L46: ='SA3'!L165 -> 0
A48: TOTAL COMMUNITY WEALTH/EQUITY | B48: 5 | C48: =SUM(C45:C46) -> 1617811390 | D48: =SUM(D45:D46) -> 1830416003 | E48: 2069143980 | F48: 3091879913 | G48: 1821677906 | H48: 1821677906 | I48: 1821677906 | J48: 1821587919 | K48: 1894519416 | L48: 1969013913
A49: =head27a -> References
A50: 1. Detail to be provided in Table SA3
A51: 2. Include completed low cost housing to be transferred to beneficiaries within 12 months
A52: 3. Include 'Construction-work-in-progress' (disclosed separately in annual financial statements)
A53: 4. Detail to be provided in Table SA3. Includes reserves to be funded by statute.
A54: 5. Net assets must balance with Total Community Wealth/Equity
A55: check balance | C55: =IF((C42-C48)=0,0,"Unbalanced") -> Unbalanced | D55: =IF((D42-D48)=0,0,"Unbalanced") -> Unbalanced | E55: Unbalanced | F55: Unbalanced | G55: Unbalanced | H55: Unbalanced | I55: Unbalanced | J55: 0 | K55: 0 | L55: 0

Sheet A7-CFlow
A1: =muni&" - "&Approve7 -> Choose name from list - Table A7 Budgeted Cash Flows
A2: =desc -> Description | B2: =head27 -> Ref | C2: =head1b -> 2018/19 | D2: =head1A -> 2019/20 | E2: =Head1 -> 2020/21 | F2: =Head2 -> Current Year 2021/22 | J2: =Head3 -> 2022/23 Medium Term Revenue & Expenditure Framework
A3: R thousand | C3: =Head5 -> Audited Outcome | D3: =Head5 -> Audited Outcome | E3: =Head5 -> Audited Outcome | F3: =Head6 -> Original Budget | G3: =Head7 -> Adjusted Budget | H3: =Head8 -> Full Year Forecast | I3: =Head5b -> Pre-audit outcome | J3: =Head9 -> Budget Year 2022/23 | K3: =Head10 -> Budget Year +1 2023/24 | L3: =Head11 -> Budget Year +2 2024/25
A4: CASH FLOW FROM OPERATING ACTIVITIES
A5: Receipts
A6: Property rates | C6: 119183219 | D6: 125629532 | E6: 0 | F6: 123750000 | G6: 123750000 | H6: 123750000 | I6: 123750000 | J6: ='SA30'!N5 -> 128947500 | K6: ='SA30'!O5 -> 128947500 | L6: ='SA30'!P5 -> 128947500
A7: Service charges | C7: 482916173 | D7: 533445052 | E7: 0 | F7: 638655346 | G7: 638655346 | H7: 638655346 | I7: 638655346 | J7: ='SA30'!N6+'SA30'!N7+'SA30'!N8+'SA30'!N9 -> 665817007 | K7: ='SA30'!O6+'SA30'!O7+'SA30'!O8+'SA30'!O9 -> 713248755 | L7: ='SA30'!P6+'SA30'!P7+'SA30'!P8+'SA30'!P9 -> 709119860
A8: Other revenue | C8: 13193096 | D8: 12010084 | E8: 0 | F8: 35051888 | G8: 35051888 | H8: 35051888 | I8: 35051888 | J8: ='SA30'!N11+'SA30'!N15+'SA30'!N16+'SA30'!N17+'SA30'!N19 -> 21408714 | K8: ='SA30'!O11+'SA30'!O15+'SA30'!O16+'SA30'!O17+'SA30'!O19 -> 22053942 | L8: ='SA30'!P11+'SA30'!P15+'SA30'!P16+'SA30'!P17+'SA30'!P19 -> 22742870
A9: Transfers and Subsidies - Operational | B9: 1 | C9: 406469973 | D9: 367386877 | E9: 0 | F9: 464088050 | G9: 464088050 | H9: 464088050 | I9: 464088050 | J9: ='SA30'!N18 -> 478617050 | K9: ='SA30'!O18 -> 479030200 | L9: ='SA30'!P18 -> 479276854
A10: Transfers and Subsidies - Capital | B10: 1 | C10: 87699250 | D10: 87869317.09 | E10: 0 | F10: 94753950 | G10: 94753950 | H10: 94753950 | I10: 94753950 | J10: ='SA30'!N23+'SA30'!N24 -> 102603800 | K10: ='SA30'!O23+'SA30'!O24 -> 102603800 | L10: ='SA30'!P23+'SA30'!P24 -> 102603800
A11: Interest | C11: 9615814 | D11: 8677865 | E11: 0 | F11: 31940000 | G11: 31940000 | H11: 31940000 | I11: 31940000 | J11: ='SA30'!N12+'SA30'!N13 -> 59796667 | K11: ='SA30'!O12+'SA30'!O13 -> 62308127 | L11: ='SA30'!P12+'SA30'!P13 -> 65049684
A12: Dividends | C12: 0 | D12: 0 | E12: 0 | F12: 0 | G12: 0 | H12: 0 | I12: 0 | J12: ='SA30'!N14 -> 0 | K12: ='SA30'!O14 -> 0 | L12: ='SA30'!P14 -> 0
A13: Payments
A14: Suppliers and employees | C14: -907952256 | D14: -902352816 | E14: -11060687.77 | F14: -1134821291 | G14: -1166340099 | H14: -1166340099 | I14: -1166340099 | J14: =-('SA30'!N35+'SA30'!N36+'SA30'!N38+'SA30'!N39+'SA30'!N40+'SA30'!N41+'SA30'!N44+'SA30'!N50) -> -1223285215 | K14: =-('SA30'!O35+'SA30'!O36+'SA30'!O38+'SA30'!O39+'SA30'!O40+'SA30'!O41+'SA30'!O44+'SA30'!O50) -> -1279357327 | L14: =-('SA30'!P35+'SA30'!P36+'SA30'!P38+'SA30'!P39+'SA30'!P40+'SA30'!P41+'SA30'!P44+'SA30'!P50) -> -1310290738
A15: Finance charges | C15: -10961350 | D15: -13571398 | E15: -741957.07 | F15: -16326562 | G15: -16326562 | H15: -16326562 | I15: -16326562 | J15: =-('SA30'!N37) -> -14057048 | K15: =-('SA30'!O37) -> -12644770 | L15: =-('SA30'!P37) -> -11084839
A16: Transfers and Grants | B16: 1 | C16: -57132506 | D16: -37312094.57 | E16: 0 | F16: -16098000 | G16: -16848000 | H16: -16848000 | I16: -16848000 | J16: =-('SA30'!N42+'SA30'!N43) -> -45801506 | K16: =-('SA30'!O42+'SA30'!O43) -> -40472912 | L16: =-('SA30'!P42+'SA30'!P43) -> -36977194
A17: NET CASH FROM/(USED) OPERATING ACTIVITIES | C17: =SUM(C6:C12)+SUM(C14:C16) -> 143031413 | D17: 181782418.5 | E17: -11802644.84 | F17: 220993381 | G17: 188724573 | H17: 188724573 | I17: 188724573 | J17: 174046969 | K17: 175717315 | L17: 149387797
A19: CASH FLOWS FROM INVESTING ACTIVITIES
A20: Receipts
A21: Proceeds on disposal of PPE | C21: 676890 | D21: 0 | E21: 0 | F21: 0 | G21: 0 | H21: 0 | I21: 0 | J21: ='SA30'!N25 -> 0 | K21: ='SA30'!O25 -> 0 | L21: ='SA30'!P25 -> 1
C22: 0 | D22: 0 | E22: 0 | F22: 0 | G22: 0 | H22: 0 | I22: 0
A23: Decrease (increase) in non-current receivables | C23: 0 | D23: 0 | E23: 0 | F23: 0 | G23: 0 | H23: 0 | I23: 0 | J23: ='SA30'!N30 -> 0 | K23: ='SA30'!O30 -> 0 | L23: ='SA30'!P30 -> 1
A24: Decrease (increase) in non-current investments | C24: -4637684 | D24: 10411685.29 | E24: 17750018.15 | F24: 0 | G24: 1500000 | H24: 1500000 | I24: 1500000 | J24: ='SA30'!N31 -> -2 | K24: ='SA30'!O31 -> 1640548 | L24: ='SA30'!P31 -> 1706168
A25: Payments
A26: Capital assets | C26: -138893152 | D26: -163795174 | E26: 0 | F26: -130407450 | G26: -142078120 | H26: -142078120 | I26: -142078120 | J26: =-('SA30'!N48) -> -164048820 | K26: =-('SA30'!O48) -> -139366026 | L26: =-('SA30'!P48) -> -136593107
A27: NET CASH FROM/(USED) INVESTING ACTIVITIES | C27: =+C21+C23+C24+C26 -> -142853946 | D27: =+D21+D23+D24+D26 -> -153383488.7 | E27: 17750018.15 | F27: -130407450 | G27: -140578120 | H27: -140578120 | I27: -140578120 | J27: -164048822 | K27: -137725478 | L27: -134886937
A29: CASH FLOWS FROM FINANCING ACTIVITIES
A30: Receipts
A31: Short term loans | C31: 0 | D31: 0 | E31: 0 | F31: 0 | G31: 0 | H31: 0 | I31: 0 | J31: ='SA30'!N26 -> 0 | K31: ='SA30'!O26 -> 0 | L31: ='SA30'!P26 -> 0
A32: Borrowing long term/refinancing | C32: 40000000 | D32: 20000000 | E32: 0 | F32: 0 | G32: 0 | H32: 0 | I32: 0 | J32: ='SA30'!N27 -> 0 | K32: ='SA30'!O27 -> 0 | L32: ='SA30'!P27 -> 1
A33: Increase (decrease) in consumer deposits | C33: 0 | D33: 0 | E33: 0 | F33: 0 | G33: 0 | H33: 0 | I33: 0 | J33: ='SA30'!N28 -> 0 | K33: ='SA30'!O28 -> -25780000 | L33: ='SA30'!P28 -> 44800
A34: Payments
A35: Repayment of borrowing | C35: -5635121 | D35: -20216174.21 | E35: -12445375.61 | F35: -9998147 | G35: -18584675 | H35: -18584675 | I35: -18584675 | J35: =-('SA30'!N49) -> -9998147 | K35: =-('SA30'!O49) -> -10783837 | L35: =-('SA30'!P49) -> -14414839
A36: NET CASH FROM/(USED) FINANCING ACTIVITIES | C36: =SUM(C31:C33)+C35 -> 34364879 | D36: =SUM(D31:D33)+D35 -> -216174.21 | E36: -12445375.61 | F36: -9998147 | G36: -18584675 | H36: -18584675 | I36: -18584675 | J36: -9998147 | K36: -36563837 | L36: -14370038
A38: NET INCREASE/ (DECREASE) IN CASH HELD | C38: =C17+C27+C36 -> 34542346 | D38: =D17+D27+D36 -> 28182755.62 | E38: -6498002.3 | F38: 80587784 | G38: 29561778 | H38: 29561778 | I38: 29561778 | J38: 0 | K38: 1428000 | L38: 130822
A39: Cash/cash equivalents at the year begin: | B39: 2 | C39: 7490665 | D39: 42033010.55 | E39: 70215766.13 | F39: 34000000 | G39: 34000000 | H39: 34000000 | I39: 34000000 | J39: ='SA30'!N54 -> 34000000 | K39: =J40 -> 34000000 | L39: =K40 -> 35428000
A40: Cash/cash equivalents at the year end: | B40: 2 | C40: =C38+C39 -> 42033011 | D40: =D38+D39 -> 70215766.17 | E40: =E38+E39 -> 63717763.83 | F40: =F38+F39 -> 114587784 | G40: 63561778 | H40: 63561778 | I40: 63561778 | J40: 34000000 | K40: 35428000 | L40: 35558822
A41: =head27a -> References
A42: 1. Local/District municipalities to include transfers from/to District/Local Municipalities
A43: 2. Cash equivalents includes investments with maturities of 3 months or less
A44: 3. The MTREF is populated directly from SA30.
A45: Total receipts | C45: =SUM(C6:C12)+SUM(C21:C23) -> 1119754415 | D45: 1135018727 | E45: 0 | F45: 1388239234 | G45: 1388239234 | H45: 1388239234 | I45: 1388239234 | J45: 1457190738 | K45: 1508192324 | L45: 1507740570
A46: Total payments | C46: =SUM(C14:C16)+C26 -> -1114939264 | D46: =SUM(D14:D16)+D26 -> -1117031483 | E46: -11802644.84 | F46: -1297653303 | G46: -1341592781 | H46: -1341592781 | I46: -1341592781 | J46: -1447192589 | K46: -1471841035 | L46: -1494945878
C47: =C45+C46 -> 4815151 | D47: =D45+D46 -> 17987244.54 | E47: -11802644.84 | F47: 90585931 | G47: 46646453 | H47: 46646453 | I47: 46646453 | J47: 9998149 | K47: 36351289 | L47: 12794692
A48: Borrowings & investments & c.deposits | C48: =C24+C32+C33 -> 35362316 | D48: =D24+D32+D33 -> 30411685.29 | E48: 17750018.15 | F48: 0 | G48: 1500000 | H48: 1500000 | I48: 1500000 | J48: -2 | K48: -24139452 | L48: 1750969
A49: =A35 -> Repayment of borrowing | C49: =C35 -> -5635121 | D49: =D35 -> -20216174.21 | E49: -12445375.61 | F49: -9998147 | G49: -18584675 | H49: -18584675 | I49: =I35 -> -18584675 | J49: -9998147 | K49: -10783837 | L49: -14414839
C50: =C47+C48+C49 -> 34542346 | D50: =D47+D48+D49 -> 28182755.62 | E50: -6498002.3 | F50: 80587784 | G50: 29561778 | H50: 29561778 | I50: 29561778 | J50: 0 | K50: 1428000 | L50: 130822
C51: =C38-C50 -> 0 | D51: -9.685754776e-08 | E51: 0 | F51: 0 | G51: 0 | H51: 0 | I51: 0 | J51: 0 | K51: 0 | L51: 0

Sheet A8-ResRecon
A1: =muni&" - "&Approve8 -> Choose name from list - Table A8 Cash backed reserves/accumulated surplus reconciliation
A2: =desc -> Description | B2: =head27 -> Ref | C2: =head1b -> 2018/19 | D2: =head1A -> 2019/20 | E2: =Head1 -> 2020/21 | F2: =Head2 -> Current Year 2021/22 | J2: =Head3 -> 2022/23 Medium Term Revenue & Expenditure Framework
A3: R thousand | C3: =Head5 -> Audited Outcome | D3: =Head5 -> Audited Outcome | E3: =Head5 -> Audited Outcome | F3: =Head6 -> Original Budget | G3: =Head7 -> Adjusted Budget | H3: =Head8 -> Full Year Forecast | I3: =Head5b -> Pre-audit outcome | J3: =Head9 -> Budget Year 2022/23 | K3: =Head10 -> Budget Year +1 2023/24 | L3: =Head11 -> Budget Year +2 2024/25
A4: Cash and investments available
A5: =LEFT('A7-CFlow'!A40,37) -> Cash/cash equivalents at the year end | B5: 1 | C5: ='A7-CFlow'!C40 -> 42033011 | D5: ='A7-CFlow'!D40 -> 70215766.17 | E5: ='A7-CFlow'!E40 -> 63717763.83 | F5: ='A7-CFlow'!F40 -> 114587784 | G5: ='A7-CFlow'!G40 -> 63561778 | H5: ='A7-CFlow'!H40 -> 63561778 | I5: ='A7-CFlow'!I40 -> 63561778 | J5: ='A7-CFlow'!J40 -> 34000000 | K5: ='A7-CFlow'!K40 -> 35428000 | L5: ='A7-CFlow'!L40 -> 35558822
A6: Other current investments > 90 days | C6: ='A6-FinPos'!C6+'A6-FinPos'!C7-'A6-FinPos'!C29-'A8-ResRecon'!C5 -> -0.1599999964 | D6: ='A6-FinPos'!D6+'A6-FinPos'!D7-'A6-FinPos'!D29-'A8-ResRecon'!D5 -> 0.04000012577 | E6: ='A6-FinPos'!E6+'A6-FinPos'!E7-'A6-FinPos'!E29-'A8-ResRecon'!E5 -> 39442698.83 | F6: ='A6-FinPos'!F6+'A6-FinPos'!F7-'A6-FinPos'!F29-'A8-ResRecon'!F5 -> -80587784 | G6: ='A6-FinPos'!G6+'A6-FinPos'!G7-'A6-FinPos'!G29-'A8-ResRecon'!G5 -> -29561778 | H6: ='A6-FinPos'!H6+'A6-FinPos'!H7-'A6-FinPos'!H29-'A8-ResRecon'!H5 -> -29561778 | I6: ='A6-FinPos'!I6+'A6-FinPos'!I7-'A6-FinPos'!I29-'A8-ResRecon'!I5 -> -29561778 | J6: ='A6-FinPos'!J6+'A6-FinPos'!J7-'A6-FinPos'!J29-'A8-ResRecon'!J5 -> 0 | K6: ='A6-FinPos'!K6+'A6-FinPos'!K7-'A6-FinPos'!K29-'A8-ResRecon'!K5 -> 0 | L6: ='A6-FinPos'!L6+'A6-FinPos'!L7-'A6-FinPos'!L29-'A8-ResRecon'!L5 -> 13
A7: ='A6-FinPos'!A14&" - "&'A6-FinPos'!A16 -> Non current assets - Investments | B7: 1 | C7: ='A6-FinPos'!C16 -> 31525083 | D7: ='A6-FinPos'!D16 -> 21113398.31 | E7: ='A6-FinPos'!E16 -> 38863416.46 | F7: ='A6-FinPos'!F16 -> 21995950 | G7: ='A6-FinPos'!G16 -> 41013650 | H7: ='A6-FinPos'!H16 -> 41013650 | I7: ='A6-FinPos'!I16 -> 41013650 | J7: ='A6-FinPos'!J16 -> 41013648 | K7: ='A6-FinPos'!K16 -> 42654196 | L7: ='A6-FinPos'!L16 -> 44360364
A8: Cash and investments available: | C8: =SUM(C5:C7) -> 73558093.84 | D8: =SUM(D5:D7) -> 91329164.52 | E8: 142023879.1 | F8: 55995950 | G8: 75013650 | H8: 75013650 | I8: 75013650 | J8: 75013648 | K8: 78082196 | L8: 79919199
A10: Application of cash and investments
A11: ='SA3'!A132 -> Unspent conditional transfers | C11: ='SA3'!C132 -> 5076496 | D11: ='SA3'!D132 -> 5455826.2 | E11: ='SA3'!E132 -> -3631471.72 | F11: ='SA3'!F132 -> 0 | G11: ='SA3'!G132 -> 2 | H11: ='SA3'!H132 -> 2 | I11: ='SA3'!I132 -> 2 | J11: ='SA3'!J132 -> 0 | K11: ='SA3'!K132 -> 2 | L11: ='SA3'!L132 -> 10
A12: Unspent borrowing | C12: 0 | D12: 0 | E12: 0 | F12: 0 | G12: 0 | H12: 0 | I12: 0 | J12: 0 | K12: 0 | L12: 0
A13: Statutory requirements | B13: 2
A14: Other working capital requirements | B14: 3 | C14: =-C32 -> -99804351 | D14: =-D32 -> -242549636.3 | E14: 254874004.2 | F14: =-F32 -> -418268435 | G14: -162847847 | H14: -162847847 | I14: -160598847 | J14: -197668848 | K14: -212444886 | L14: -197621472
A15: Other provisions
A16: Long term investments committed | B16: 4 | C16: =C52 -> 0 | D16: =D52 -> 0 | E16: 0 | F16: 0 | G16: 0 | H16: 0 | I16: 0 | J16: 0 | K16: 0 | L16: 0
A17: Reserves to be backed by cash/investments | B17: 5
A18: ="Total "&A10&":" -> Total Application of cash and investments: | C18: =SUM(C11:C17) -> -94727855 | D18: =SUM(D11:D17) -> -237093810.1 | E18: 251242532.5 | F18: -418268435 | G18: -162847845 | H18: -162847845 | I18: -160598845 | J18: -197668848 | K18: -212444884 | L18: -197621462
A19: Surplus(shortfall) | C19: =C8-C18 -> 168285948.8 | D19: =D8-D18 -> 328422974.6 | E19: -109218653.4 | F19: 474264385 | G19: 237861495 | H19: 237861495 | I19: 235612495 | J19: 272682496 | K19: 290527080 | L19: 277540661
A20: =head27a -> References
A21: 1. Must reconcile with Budgeted Cash Flows
A22: 2. For example: VAT, taxation
A23: 3. Council approval for policy required - include sufficient working capital (e.g. allowing for a % of current debtors > 90 days as uncollectable)
A24: 4. For example: sinking fund requirements for borrowing
A25: 5. Council approval required for each reserve created and basis of cash backing of reserves
A28: Other working capital requirements
A29: Debtors | C29: =IF(ISERROR(ROUND(C35*C36,-3)),0,(ROUND(C35*C36,-3))) -> 373210000 | D29: =IF(ISERROR(ROUND(D35*D36,-3)),0,(ROUND(D35*D36,-3))) -> 489923000 | E29: 0 | F29: 454579000 | G29: 422121000 | H29: 422121000 | I29: 419872000 | J29: 456942000 | K29: 482005000 | L29: 477789000
A31: Creditors due | C31: ='SA3'!C130+'SA3'!C131 -> 273405649 | D31: ='SA3'!D130+'SA3'!D131 -> 247373363.7 | E31: ='SA3'!E130+'SA3'!E131 -> 254874004.2 | F31: ='SA3'!F130+'SA3'!F131 -> 36310565 | G31: ='SA3'!G130+'SA3'!G131 -> 259273153 | H31: ='SA3'!H130+'SA3'!H131 -> 259273153 | I31: ='SA3'!I130+'SA3'!I131 -> 259273153 | J31: ='SA3'!J130+'SA3'!J131 -> 259273152 | K31: ='SA3'!K130+'SA3'!K131 -> 269560114 | L31: ='SA3'!L130+'SA3'!L131 -> 280167528
A32: Total | C32: =C29-C31 -> 99804351 | D32: =D29-D31 -> 242549636.3 | E32: -254874004.2 | F32: 418268435 | G32: 162847847 | H32: 162847847 | I32: 160598847 | J32: 197668848 | K32: 212444886 | L32: 197621472
A34: Debtors collection assumptions
A35: Balance outstanding - debtors | C35: ='A6-FinPos'!C8+'A6-FinPos'!C9+'A6-FinPos'!C15 -> 412973833 | D35: ='A6-FinPos'!D8+'A6-FinPos'!D9+'A6-FinPos'!D15 -> 586621246.4 | E35: ='A6-FinPos'!E8+'A6-FinPos'!E9+'A6-FinPos'!E15 -> 799304116.6 | F35: ='A6-FinPos'!F8+'A6-FinPos'!F9+'A6-FinPos'!F15 -> 533755245 | G35: ='A6-FinPos'!G8+'A6-FinPos'!G9+'A6-FinPos'!G15 -> 533755258 | H35: ='A6-FinPos'!H8+'A6-FinPos'!H9+'A6-FinPos'!H15 -> 533755258 | I35: ='A6-FinPos'!I8+'A6-FinPos'!I9+'A6-FinPos'!I15 -> 533755258 | J35: ='A6-FinPos'!J8+'A6-FinPos'!J9+'A6-FinPos'!J15 -> 533755245 | K35: ='A6-FinPos'!K8+'A6-FinPos'!K9+'A6-FinPos'!K15 -> 555105468 | L35: ='A6-FinPos'!L8+'A6-FinPos'!L9+'A6-FinPos'!L15 -> 577309686
A36: Estimate of debtors collection rate | C36: =IF(ISERROR('SA10'!D10),0,('SA10'!D10)) -> 0.9037146129 | D36: =IF(ISERROR('SA10'!E10),0,('SA10'!E10)) -> 0.8351611673 | E36: =IF(ISERROR('SA10'!F10),0,('SA10'!F10)) -> 0 | F36: =IF(ISERROR('SA10'!G10),0,('SA10'!G10)) -> 0.8516623824 | G36: =IF(ISERROR('SA10'!H10),0,('SA10'!H10)) -> 0.7908506927 | H36: =IF(ISERROR('SA10'!I10),0,('SA10'!I10)) -> 0.7908506927 | I36: =IF(ISERROR('SA10'!J10),0,('SA10'!J10)) -> 0.7866380386 | J36: =IF(ISERROR('SA10'!K10),0,('SA10'!K10)) -> 0.8560894407 | K36: =IF(ISERROR('SA10'!L10),0,('SA10'!L10)) -> 0.8683119711 | L36: =IF(ISERROR('SA10'!M10),0,('SA10'!M10)) -> 0.8276132395
K39: `
A40: =A16 -> Long term investments committed
A41: Balance (Insert description; eg sinking fund) | C41: 0 | D41: 0 | E41: 0 | F41: 0 | G41: 0 | H41: 0 | I41: 0 | J41: 0 | K41: 0 | L41: 0
C52: =SUM(C41:C51) -> 0 | D52: =SUM(D41:D51) -> 0 | E52: 0 | F52: 0 | G52: 0 | H52: 0 | I52: 0 | J52: 0 | K52: 0 | L52: 0
A53: =A17 -> Reserves to be backed by cash/investments
A54: ='SA3'!A160 -> Housing Development Fund | C54: ='SA3'!C160 -> 0 | D54: ='SA3'!D160 -> 0 | E54: ='SA3'!E160 -> 0 | F54: ='SA3'!F160 -> 0 | G54: ='SA3'!G160 -> 0 | H54: ='SA3'!H160 -> 0 | I54: ='SA3'!I160 -> 0 | J54: ='SA3'!J160 -> 0 | K54: ='SA3'!K160 -> 0 | L54: ='SA3'!L160 -> 0
A55: ='SA3'!A161 -> Capital replacement
A56: ='SA3'!A162 -> Self-insurance
A57: Other (list)
C67: =SUM(C54:C65) -> 0 | D67: 0 | E67: 0 | F67: 0 | G67: 0 | H67: 0 | I67: 0 | J67: 0 | K67: 0 | L67: 0

Sheet A9-Asset
A1: =muni&" - "&Approve9 -> Choose name from list - Table A9 Asset Management
A2: =desc -> Description | B2: =head27 -> Ref | C2: =head1b -> 2018/19 | D2: =head1A -> 2019/20 | E2: =Head1 -> 2020/21 | F2: =Head2 -> Current Year 2021/22 | I2: =Head3 -> 2022/23 Medium Term Revenue & Expenditure Framework
A3: R thousand | C3: =Head5 -> Audited Outcome | D3: =Head5 -> Audited Outcome | E3: =Head5 -> Audited Outcome | F3: =Head6 -> Original Budget | G3: =Head7 -> Adjusted Budget | H3: =Head8 -> Full Year Forecast | I3: =Head9 -> Budget Year 2022/23 | J3: =Head10 -> Budget Year +1 2023/24 | K3: =Head11 -> Budget Year +2 2024/25
A4: CAPITAL EXPENDITURE
A5: Total New Assets | B5: 1 | C5: =C15+C18+C19+C22+C25+C26+SUM(C29:C35) -> 85950829 | D5: =D15+D18+D19+D22+D25+D26+SUM(D29:D35) -> 107961741.4 | E5: 35561600.97 | F5: 25703500 | G5: 25814981 | H5: 25814981 | I5: 145900000 | J5: 277350000 | K5: 137500000
A6: Roads Infrastructure | C6: =SA34a!C7 -> 53816542 | D6: =SA34a!D7 -> 42551348 | E6: =SA34a!E7 -> 8404702.15 | F6: =SA34a!F7 -> 500000 | G6: =SA34a!G7 -> 500003 | H6: =SA34a!H7 -> 500003 | I6: =SA34a!I7 -> 0 | J6: =SA34a!J7 -> 0 | K6: =SA34a!K7 -> 0
A7: Storm water Infrastructure | C7: =SA34a!C12 -> 0 | D7: =SA34a!D12 -> 561967 | E7: =SA34a!E12 -> 10518288.62 | F7: =SA34a!F12 -> 0 | G7: =SA34a!G12 -> 2 | H7: =SA34a!H12 -> 2 | I7: =SA34a!I12 -> 0 | J7: =SA34a!J12 -> 0 | K7: =SA34a!K12 -> 0
A8: Electrical Infrastructure | C8: =SA34a!C16 -> 16764784 | D8: =SA34a!D16 -> 42957028.36 | E8: =SA34a!E16 -> 5434625.61 | F8: =SA34a!F16 -> 10000000 | G8: =SA34a!G16 -> 14935414 | H8: =SA34a!H16 -> 14935414 | I8: =SA34a!I16 -> 115500000 | J8: =SA34a!J16 -> 225500000 | K8: =SA34a!K16 -> 132000000
A9: Water Supply Infrastructure | C9: =SA34a!C26 -> 0 | D9: =SA34a!D26 -> 0 | E9: =SA34a!E26 -> 0 | F9: =SA34a!F26 -> 0 | G9: =SA34a!G26 -> 0 | H9: =SA34a!H26 -> 0 | I9: =SA34a!I26 -> 0 | J9: =SA34a!J26 -> 0 | K9: =SA34a!K26 -> 0
A10: Sanitation Infrastructure | C10: =SA34a!C37 -> 0 | D10: =SA34a!D37 -> 0 | E10: =SA34a!E37 -> 0 | F10: =SA34a!F37 -> 0 | G10: =SA34a!G37 -> 0 | H10: =SA34a!H37 -> 0 | I10: =SA34a!I37 -> 0 | J10: =SA34a!J37 -> 0 | K10: =SA34a!K37 -> 0
A11: Solid Waste Infrastructure | C11: =SA34a!C44 -> 1247321 | D11: =SA34a!D44 -> 0 | E11: =SA34a!E44 -> 0 | F11: =SA34a!F44 -> 0 | G11: =SA34a!G44 -> 0 | H11: =SA34a!H44 -> 0 | I11: =SA34a!I44 -> 0 | J11: =SA34a!J44 -> 0 | K11: =SA34a!K44 -> 0
A12: Rail Infrastructure | C12: =SA34a!C52 -> 0 | D12: =SA34a!D52 -> 8150000.01 | E12: =SA34a!E52 -> 4467589.99 | F12: =SA34a!F52 -> 0 | G12: =SA34a!G52 -> 800427 | H12: =SA34a!H52 -> 800427 | I12: =SA34a!I52 -> 0 | J12: =SA34a!J52 -> 0 | K12: =SA34a!K52 -> 0
A13: Coastal Infrastructure | C13: =SA34a!C62 -> 0 | D13: =SA34a!D62 -> 0 | E13: =SA34a!E62 -> 0 | F13: =SA34a!F62 -> 0 | G13: =SA34a!G62 -> 0 | H13: =SA34a!H62 -> 0 | I13: =SA34a!I62 -> 0 | J13: =SA34a!J62 -> 0 | K13: =SA34a!K62 -> 0
A14: Information and Communication Infrastructure | C14: =SA34a!C68 -> 0 | D14: =SA34a!D68 -> 0 | E14: =SA34a!E68 -> 0 | F14: =SA34a!F68 -> 0 | G14: =SA34a!G68 -> 0 | H14: =SA34a!H68 -> 0 | I14: =SA34a!I68 -> 0 | J14: =SA34a!J68 -> 0 | K14: =SA34a!K68 -> 0
A15: Infrastructure | C15: =SUM(C6:C14) -> 71828647 | D15: =SUM(D6:D14) -> 94220343.37 | E15: 28825206.37 | F15: 10500000 | G15: 16235846 | H15: 16235846 | I15: 115500000 | J15: 225500000 | K15: 132000000
A16: Community Facilities | C16: =SA34a!C75 -> 0 | D16: =SA34a!D75 -> 5269900 | E16: =SA34a!E75 -> 0 | F16: =SA34a!F75 -> 1000000 | G16: =SA34a!G75 -> 0 | H16: =SA34a!H75 -> 0 | I16: =SA34a!I75 -> 11000000 | J16: =SA34a!J75 -> 22700000 | K16: =SA34a!K75 -> 0
A17: Sport and Recreation Facilities | C17: =SA34a!C98 -> 0 | D17: =SA34a!D98 -> 0 | E17: =SA34a!E98 -> 0 | F17: =SA34a!F98 -> 0 | G17: =SA34a!G98 -> 300000 | H17: =SA34a!H98 -> 300000 | I17: =SA34a!I98 -> 0 | J17: =SA34a!J98 -> 0 | K17: =SA34a!K98 -> 0
A18: Community Assets | C18: =SUM(C16:C17) -> 0 | D18: =SUM(D16:D17) -> 5269900 | E18: 0 | F18: 1000000 | G18: 300000 | H18: 300000 | I18: 11000000 | J18: 22700000 | K18: 0
A19: Heritage Assets | C19: =SA34a!C103 -> 0 | D19: =SA34a!D103 -> 5958.15 | E19: =SA34a!E103 -> 0 | F19: =SA34a!F103 -> 0 | G19: =SA34a!G103 -> 0 | H19: =SA34a!H103 -> 0 | I19: =SA34a!I103 -> 0 | J19: =SA34a!J103 -> 0 | K19: =SA34a!K103 -> 0
A20: Revenue Generating | C20: =SA34a!C111 -> 0 | D20: =SA34a!D111 -> 0 | E20: =SA34a!E111 -> 0 | F20: =SA34a!F111 -> 0 | G20: =SA34a!G111 -> 0 | H20: =SA34a!H111 -> 0 | I20: =SA34a!I111 -> 0 | J20: =SA34a!J111 -> 0 | K20: =SA34a!K111 -> 0
A21: Non-revenue Generating | C21: =SA34a!C114 -> 0 | D21: =SA34a!D114 -> 0 | E21: =SA34a!E114 -> 0 | F21: =SA34a!F114 -> 0 | G21: =SA34a!G114 -> 0 | H21: =SA34a!H114 -> 0 | I21: =SA34a!I114 -> 0 | J21: =SA34a!J114 -> 0 | K21: =SA34a!K114 -> 0
A22: Investment properties | C22: =SUM(C20:C21) -> 0 | D22: =SUM(D20:D21) -> 0 | E22: 0 | F22: 0 | G22: 0 | H22: 0 | I22: 0 | J22: 0 | K22: 0
A23: Operational Buildings | C23: =SA34a!C119 -> 0 | D23: =SA34a!D119 -> 3131923.57 | E23: =SA34a!E119 -> 0 | F23: =SA34a!F119 -> 2000000 | G23: =SA34a!G119 -> 2675630 | H23: =SA34a!H119 -> 2675630 | I23: =SA34a!I119 -> 0 | J23: =SA34a!J119 -> 1600000 | K23: =SA34a!K119 -> 1000000
A24: Housing | C24: =SA34a!C131 -> 0 | D24: =SA34a!D131 -> 0 | E24: =SA34a!E131 -> 0 | F24: =SA34a!F131 -> 0 | G24: =SA34a!G131 -> 0 | H24: =SA34a!H131 -> 0 | I24: =SA34a!I131 -> 0 | J24: =SA34a!J131 -> 0 | K24: =SA34a!K131 -> 0
A25: Other Assets | C25: =SUM(C23:C24) -> 0 | D25: =SUM(D23:D24) -> 3131923.57 | E25: 0 | F25: 2000000 | G25: 2675630 | H25: 2675630 | I25: 0 | J25: 1600000 | K25: 1000000
A26: Biological or Cultivated Assets | C26: =SA34a!C136 -> 0 | D26: =SA34a!D136 -> 0 | E26: =SA34a!E136 -> 0 | F26: =SA34a!F136 -> 0 | G26: =SA34a!G136 -> 0 | H26: =SA34a!H136 -> 0 | I26: =SA34a!I136 -> 0 | J26: =SA34a!J136 -> 0 | K26: =SA34a!K136 -> 0
A27: Servitudes | C27: =SA34a!C140 -> 0 | D27: =SA34a!D140 -> 0 | E27: =SA34a!E140 -> 0 | F27: =SA34a!F140 -> 0 | G27: =SA34a!G140 -> 0 | H27: =SA34a!H140 -> 0 | I27: =SA34a!I140 -> 0 | J27: =SA34a!J140 -> 0 | K27: =SA34a!K140 -> 0
A28: Licences and Rights | C28: =SA34a!C141 -> 0 | D28: =SA34a!D141 -> 0 | E28: =SA34a!E141 -> 0 | F28: =SA34a!F141 -> 0 | G28: =SA34a!G141 -> 0 | H28: =SA34a!H141 -> 0 | I28: =SA34a!I141 -> 0 | J28: =SA34a!J141 -> 0 | K28: =SA34a!K141 -> 0
A29: Intangible Assets | C29: =SUM(C27:C28) -> 0 | D29: =SUM(D27:D28) -> 0 | E29: 0 | F29: 0 | G29: 0 | H29: 0 | I29: 0 | J29: 0 | K29: 0
A30: Computer Equipment | C30: =SA34a!C149 -> 0 | D30: =SA34a!D149 -> 264520.47 | E30: =SA34a!E149 -> 0 | F30: =SA34a!F149 -> 333500 | G30: =SA34a!G149 -> 333500 | H30: =SA34a!H149 -> 333500 | I30: =SA34a!I149 -> 0 | J30: =SA34a!J149 -> 0 | K30: =SA34a!K149 -> 0
A31: Furniture and Office Equipment | C31: =SA34a!C152 -> 10276400 | D31: =SA34a!D152 -> 344131.63 | E31: =SA34a!E152 -> 852195.8 | F31: =SA34a!F152 -> 700000 | G31: =SA34a!G152 -> 700002 | H31: =SA34a!H152 -> 700002 | I31: =SA34a!I152 -> 400000 | J31: =SA34a!J152 -> 0 | K31: =SA34a!K152 -> 0
A32: Machinery and Equipment | C32: =SA34a!C155 -> 345882 | D32: =SA34a!D155 -> 4724964.24 | E32: =SA34a!E155 -> 917135.01 | F32: =SA34a!F155 -> 1350000 | G32: =SA34a!G155 -> 750002 | H32: =SA34a!H155 -> 750002 | I32: =SA34a!I155 -> 14500000 | J32: =SA34a!J155 -> 24550000 | K32: =SA34a!K155 -> 1700000
A33: Transport Assets | C33: =SA34a!C158 -> 3499900 | D33: =SA34a!D158 -> 0 | E33: =SA34a!E158 -> 4967063.79 | F33: =SA34a!F158 -> 9820000 | G33: =SA34a!G158 -> 4820001 | H33: =SA34a!H158 -> 4820001 | I33: =SA34a!I158 -> 4500000 | J33: =SA34a!J158 -> 3000000 | K33: =SA34a!K158 -> 2800000
A34: Land | C34: =SA34a!C161 -> 0 | D34: =SA34a!D161 -> 0 | E34: =SA34a!E161 -> 0 | F34: =SA34a!F161 -> 0 | G34: =SA34a!G161 -> 0 | H34: =SA34a!H161 -> 0 | I34: =SA34a!I161 -> 0 | J34: =SA34a!J161 -> 0 | K34: =SA34a!K161 -> 0
A35: Zoo's, Marine and Non-biological Animals | C35: =SA34a!C164 -> 0 | D35: =SA34a!D164 -> 0 | E35: =SA34a!E164 -> 0 | F35: =SA34a!F164 -> 0 | G35: =SA34a!G164 -> 0 | H35: =SA34a!H164 -> 0 | I35: =SA34a!I164 -> 0 | J35: =SA34a!J164 -> 0 | K35: =SA34a!K164 -> 0
A37: Total Renewal of Existing Assets | B37: 2 | C37: =C47+C50+C51+C54+C57+C58+SUM(C61:C67) -> 0 | D37: =D47+D50+D51+D54+D57+D58+SUM(D61:D67) -> 13254834.03 | E37: 11896358.18 | F37: 3400000 | G37: 6800005 | H37: 6800005 | I37: 191950000 | J37: 148500000 | K37: 198000000
A38: Roads Infrastructure | C38: =SA34b!C7 -> 0 | D38: =SA34b!D7 -> 0 | E38: =SA34b!E7 -> 0 | F38: =SA34b!F7 -> 0 | G38: =SA34b!G7 -> 5000000 | H38: =SA34b!H7 -> 5000000 | I38: =SA34b!I7 -> 0 | J38: =SA34b!J7 -> 0 | K38: =SA34b!K7 -> 0
A39: Storm water Infrastructure | C39: =SA34b!C12 -> 0 | D39: =SA34b!D12 -> 0 | E39: =SA34b!E12 -> 0 | F39: =SA34b!F12 -> 0 | G39: =SA34b!G12 -> 0 | H39: =SA34b!H12 -> 0 | I39: =SA34b!I12 -> 0 | J39: =SA34b!J12 -> 0 | K39: =SA34b!K12 -> 0
A40: Electrical Infrastructure | C40: =SA34b!C16 -> 0 | D40: =SA34b!D16 -> 6404834.03 | E40: =SA34b!E16 -> 11896358.18 | F40: =SA34b!F16 -> 600000 | G40: =SA34b!G16 -> 1800005 | H40: =SA34b!H16 -> 1800005 | I40: =SA34b!I16 -> 169950000 | J40: =SA34b!J16 -> 126500000 | K40: =SA34b!K16 -> 176000000
A41: Water Supply Infrastructure | C41: =SA34b!C26 -> 0 | D41: =SA34b!D26 -> 0 | E41: =SA34b!E26 -> 0 | F41: =SA34b!F26 -> 0 | G41: =SA34b!G26 -> 0 | H41: =SA34b!H26 -> 0 | I41: =SA34b!I26 -> 0 | J41: =SA34b!J26 -> 0 | K41: =SA34b!K26 -> 0
A42: Sanitation Infrastructure | C42: =SA34b!C37 -> 0 | D42: =SA34b!D37 -> 0 | E42: =SA34b!E37 -> 0 | F42: =SA34b!F37 -> 0 | G42: =SA34b!G37 -> 0 | H42: =SA34b!H37 -> 0 | I42: =SA34b!I37 -> 0 | J42: =SA34b!J37 -> 0 | K42: =SA34b!K37 -> 0
A43: Solid Waste Infrastructure | C43: =SA34b!C44 -> 0 | D43: =SA34b!D44 -> 0 | E43: =SA34b!E44 -> 0 | F43: =SA34b!F44 -> 0 | G43: =SA34b!G44 -> 0 | H43: =SA34b!H44 -> 0 | I43: =SA34b!I44 -> 0 | J43: =SA34b!J44 -> 0 | K43: =SA34b!K44 -> 0
A44: Rail Infrastructure | C44: =SA34b!C52 -> 0 | D44: =SA34b!D52 -> 0 | E44: =SA34b!E52 -> 0 | F44: =SA34b!F52 -> 0 | G44: =SA34b!G52 -> 0 | H44: =SA34b!H52 -> 0 | I44: =SA34b!I52 -> 0 | J44: =SA34b!J52 -> 0 | K44: =SA34b!K52 -> 0
A45: Coastal Infrastructure | C45: =SA34b!C62 -> 0 | D45: =SA34b!D62 -> 0 | E45: =SA34b!E62 -> 0 | F45: =SA34b!F62 -> 0 | G45: =SA34b!G62 -> 0 | H45: =SA34b!H62 -> 0 | I45: =SA34b!I62 -> 0 | J45: =SA34b!J62 -> 0 | K45: =SA34b!K62 -> 0
A46: Information and Communication Infrastructure | C46: =SA34b!C68 -> 0 | D46: =SA34b!D68 -> 0 | E46: =SA34b!E68 -> 0 | F46: =SA34b!F68 -> 2800000 | G46: =SA34b!G68 -> 0 | H46: =SA34b!H68 -> 0 | I46: =SA34b!I68 -> 22000000 | J46: =SA34b!J68 -> 22000000 | K46: =SA34b!K68 -> 22000000
A47: Infrastructure | C47: =SUM(C38:C46) -> 0 | D47: =SUM(D38:D46) -> 6404834.03 | E47: 11896358.18 | F47: 3400000 | G47: 6800005 | H47: 6800005 | I47: 191950000 | J47: 148500000 | K47: 198000000
A48: Community Facilities | C48: =SA34b!C75 -> 0 | D48: =SA34b!D75 -> 0 | E48: =SA34b!E75 -> 0 | F48: =SA34b!F75 -> 0 | G48: =SA34b!G75 -> 0 | H48: =SA34b!H75 -> 0 | I48: =SA34b!I75 -> 0 | J48: =SA34b!J75 -> 0 | K48: =SA34b!K75 -> 0
A49: Sport and Recreation Facilities | C49: =SA34b!C98 -> 0 | D49: =SA34b!D98 -> 0 | E49: =SA34b!E98 -> 0 | F49: =SA34b!F98 -> 0 | G49: =SA34b!G98 -> 0 | H49: =SA34b!H98 -> 0 | I49: =SA34b!I98 -> 0 | J49: =SA34b!J98 -> 0 | K49: =SA34b!K98 -> 0
A50: Community Assets | C50: =SUM(C48:C49) -> 0 | D50: =SUM(D48:D49) -> 0 | E50: 0 | F50: 0 | G50: 0 | H50: 0 | I50: 0 | J50: 0 | K50: 0
A51: Heritage Assets | C51: =SA34b!C103 -> 0 | D51: =SA34b!D103 -> 0 | E51: =SA34b!E103 -> 0 | F51: =SA34b!F103 -> 0 | G51: =SA34b!G103 -> 0 | H51: =SA34b!H103 -> 0 | I51: =SA34b!I103 -> 0 | J51: =SA34b!J103 -> 0 | K51: =SA34b!K103 -> 0
A52: Revenue Generating | C52: =SA34b!C111 -> 0 | D52: =SA34b!D111 -> 0 | E52: =SA34b!E111 -> 0 | F52: =SA34b!F111 -> 0 | G52: =SA34b!G111 -> 0 | H52: =SA34b!H111 -> 0 | I52: =SA34b!I111 -> 0 | J52: =SA34b!J111 -> 0 | K52: =SA34b!K111 -> 0
A53: Non-revenue Generating | C53: =SA34b!C114 -> 0 | D53: =SA34b!D114 -> 0 | E53: =SA34b!E114 -> 0 | F53: =SA34b!F114 -> 0 | G53: =SA34b!G114 -> 0 | H53: =SA34b!H114 -> 0 | I53: =SA34b!I114 -> 0 | J53: =SA34b!J114 -> 0 | K53: =SA34b!K114 -> 0
A54: Investment properties | C54: =SUM(C52:C53) -> 0 | D54: =SUM(D52:D53) -> 0 | E54: 0 | F54: 0 | G54: 0 | H54: 0 | I54: 0 | J54: 0 | K54: 0
A55: Operational Buildings | C55: =SA34b!C119 -> 0 | D55: =SA34b!D119 -> 0 | E55: =SA34b!E119 -> 0 | F55: =SA34b!F119 -> 0 | G55: =SA34b!G119 -> 0 | H55: =SA34b!H119 -> 0 | I55: =SA34b!I119 -> 0 | J55: =SA34b!J119 -> 0 | K55: =SA34b!K119 -> 0
A56: Housing | C56: =SA34b!C131 -> 0 | D56: =SA34b!D131 -> 0 | E56: =SA34b!E131 -> 0 | F56: =SA34b!F131 -> 0 | G56: =SA34b!G131 -> 0 | H56: =SA34b!H131 -> 0 | I56: =SA34b!I131 -> 0 | J56: =SA34b!J131 -> 0 | K56: =SA34b!K131 -> 0
A57: Other Assets | C57: =SUM(C55:C56) -> 0 | D57: =SUM(D55:D56) -> 0 | E57: 0 | F57: 0 | G57: 0 | H57: 0 | I57: 0 | J57: 0 | K57: 0
A58: Biological or Cultivated Assets | C58: =SA34b!C136 -> 0 | D58: =SA34b!D136 -> 0 | E58: =SA34b!E136 -> 0 | F58: =SA34b!F136 -> 0 | G58: =SA34b!G136 -> 0 | H58: =SA34b!H136 -> 0 | I58: =SA34b!I136 -> 0 | J58: =SA34b!J136 -> 0 | K58: =SA34b!K136 -> 0
A59: Servitudes | C59: =SA34b!C140 -> 0 | D59: =SA34b!D140 -> 0 | E59: =SA34b!E140 -> 0 | F59: =SA34b!F140 -> 0 | G59: =SA34b!G140 -> 0 | H59: =SA34b!H140 -> 0 | I59: =SA34b!I140 -> 0 | J59: =SA34b!J140 -> 0 | K59: =SA34b!K140 -> 0
A60: Licences and Rights | C60: =SA34b!C141 -> 0 | D60: =SA34b!D141 -> 0 | E60: =SA34b!E141 -> 0 | F60: =SA34b!F141 -> 0 | G60: =SA34b!G141 -> 0 | H60: =SA34b!H141 -> 0 | I60: =SA34b!I141 -> 0 | J60: =SA34b!J141 -> 0 | K60: =SA34b!K141 -> 0
A61: Intangible Assets | C61: =SUM(C59:C60) -> 0 | D61: =SUM(D59:D60) -> 0 | E61: 0 | F61: 0 | G61: 0 | H61: 0 | I61: 0 | J61: 0 | K61: 0
A62: Computer Equipment | C62: =SA34b!C149 -> 0 | D62: =SA34b!D149 -> 0 | E62: =SA34b!E149 -> 0 | F62: =SA34b!F149 -> 0 | G62: =SA34b!G149 -> 0 | H62: =SA34b!H149 -> 0 | I62: =SA34b!I149 -> 0 | J62: =SA34b!J149 -> 0 | K62: =SA34b!K149 -> 0
A63: Furniture and Office Equipment | C63: =SA34b!C152 -> 0 | D63: =SA34b!D152 -> 0 | E63: =SA34b!E152 -> 0 | F63: =SA34b!F152 -> 0 | G63: =SA34b!G152 -> 0 | H63: =SA34b!H152 -> 0 | I63: =SA34b!I152 -> 0 | J63: =SA34b!J152 -> 0 | K63: =SA34b!K152 -> 0
A64: Machinery and Equipment | C64: =SA34b!C155 -> 0 | D64: =SA34b!D155 -> 6850000 | E64: =SA34b!E155 -> 0 | F64: =SA34b!F155 -> 0 | G64: =SA34b!G155 -> 0 | H64: =SA34b!H155 -> 0 | I64: =SA34b!I155 -> 0 | J64: =SA34b!J155 -> 0 | K64: =SA34b!K155 -> 0
A65: Transport Assets | C65: =SA34b!C158 -> 0 | D65: =SA34b!D158 -> 0 | E65: =SA34b!E158 -> 0 | F65: =SA34b!F158 -> 0 | G65: =SA34b!G158 -> 0 | H65: =SA34b!H158 -> 0 | I65: =SA34b!I158 -> 0 | J65: =SA34b!J158 -> 0 | K65: =SA34b!K158 -> 0
A66: Land | C66: =SA34b!C161 -> 0 | D66: =SA34b!D161 -> 0 | E66: =SA34b!E161 -> 0 | F66: =SA34b!F161 -> 0 | G66: =SA34b!G161 -> 0 | H66: =SA34b!H161 -> 0 | I66: =SA34b!I161 -> 0 | J66: =SA34b!J161 -> 0 | K66: =SA34b!K161 -> 0
A67: Zoo's, Marine and Non-biological Animals | C67: =SA34b!C164 -> 0 | D67: =SA34b!D164 -> 0 | E67: =SA34b!E164 -> 0 | F67: =SA34b!F164 -> 0 | G67: =SA34b!G164 -> 0 | H67: =SA34b!H164 -> 0 | I67: =SA34b!I164 -> 0 | J67: =SA34b!J164 -> 0 | K67: =SA34b!K164 -> 0
A69: Total Upgrading of Existing Assets | B69: 6 | C69: =C79+C82+C83+C86+C89+C90+SUM(C93:C99) -> 17531610 | D69: =D79+D82+D83+D86+D89+D90+SUM(D93:D99) -> 69047494.03 | E69: 89711913.25 | F69: 101753950 | G69: 109463178 | H69: 109463178 | I69: 1162687020 | J69: 949576264 | K69: 1121894128
A70: Roads Infrastructure | C70: =SA34e!C7 -> 0 | D70: =SA34e!D7 -> 52193576.03 | E70: =SA34e!E7 -> 77619089.1 | F70: =SA34e!F7 -> 92753950 | G70: =SA34e!G7 -> 94753962 | H70: =SA34e!H7 -> 94753962 | I70: =SA34e!I7 -> 1107687020 | J70: =SA34e!J7 -> 906576264 | K70: =SA34e!K7 -> 1032526044
A71: Storm water Infrastructure | C71: =SA34e!C12 -> 0 | D71: =SA34e!D12 -> 0 | E71: =SA34e!E12 -> 161040.57 | F71: =SA34e!F12 -> 3500000 | G71: =SA34e!G12 -> 1 | H71: =SA34e!H12 -> 1 | I71: =SA34e!I12 -> 0 | J71: =SA34e!J12 -> 0 | K71: =SA34e!K12 -> 0
A72: Electrical Infrastructure | C72: =SA34e!C16 -> 17531610 | D72: =SA34e!D16 -> 10153918 | E72: =SA34e!E16 -> 5441171.8 | F72: =SA34e!F16 -> 0 | G72: =SA34e!G16 -> 6784845 | H72: =SA34e!H16 -> 6784845 | I72: =SA34e!I16 -> 55000000 | J72: =SA34e!J16 -> 33000000 | K72: =SA34e!K16 -> 66000000
A73: Water Supply Infrastructure | C73: =SA34e!C26 -> 0 | D73: =SA34e!D26 -> 0 | E73: =SA34e!E26 -> 0 | F73: =SA34e!F26 -> 0 | G73: =SA34e!G26 -> 0 | H73: =SA34e!H26 -> 0 | I73: =SA34e!I26 -> 0 | J73: =SA34e!J26 -> 0 | K73: =SA34e!K26 -> 0
A74: Sanitation Infrastructure | C74: =SA34e!C37 -> 0 | D74: =SA34e!D37 -> 0 | E74: =SA34e!E37 -> 0 | F74: =SA34e!F37 -> 0 | G74: =SA34e!G37 -> 0 | H74: =SA34e!H37 -> 0 | I74: =SA34e!I37 -> 0 | J74: =SA34e!J37 -> 0 | K74: =SA34e!K37 -> 0
A75: Solid Waste Infrastructure | C75: =SA34e!C44 -> 0 | D75: =SA34e!D44 -> 0 | E75: =SA34e!E44 -> 0 | F75: =SA34e!F44 -> 0 | G75: =SA34e!G44 -> 0 | H75: =SA34e!H44 -> 0 | I75: =SA34e!I44 -> 0 | J75: =SA34e!J44 -> 0 | K75: =SA34e!K44 -> 0
A76: Rail Infrastructure | C76: =SA34e!C52 -> 0 | D76: =SA34e!D52 -> 0 | E76: =SA34e!E52 -> 0 | F76: =SA34e!F52 -> 0 | G76: =SA34e!G52 -> 0 | H76: =SA34e!H52 -> 0 | I76: =SA34e!I52 -> 0 | J76: =SA34e!J52 -> 0 | K76: =SA34e!K52 -> 0
A77: Coastal Infrastructure | C77: =SA34e!C62 -> 0 | D77: =SA34e!D62 -> 0 | E77: =SA34e!E62 -> 0 | F77: =SA34e!F62 -> 0 | G77: =SA34e!G62 -> 0 | H77: =SA34e!H62 -> 0 | I77: =SA34e!I62 -> 0 | J77: =SA34e!J62 -> 0 | K77: =SA34e!K62 -> 0
A78: Information and Communication Infrastructure | C78: =SA34e!C68 -> 0 | D78: =SA34e!D68 -> 0 | E78: =SA34e!E68 -> 0 | F78: =SA34e!F68 -> 0 | G78: =SA34e!G68 -> 0 | H78: =SA34e!H68 -> 0 | I78: =SA34e!I68 -> 0 | J78: =SA34e!J68 -> 0 | K78: =SA34e!K68 -> 0
A79: Infrastructure | C79: =SUM(C70:C78) -> 17531610 | D79: 62347494.03 | E79: 83221301.47 | F79: 96253950 | G79: 101538808 | H79: 101538808 | I79: 1162687020 | J79: 939576264 | K79: 1098526044
A80: Community Facilities | C80: =SA34e!C75 -> 0 | D80: =SA34e!D75 -> 850000 | E80: =SA34e!E75 -> 0 | F80: =SA34e!F75 -> 2000000 | G80: =SA34e!G75 -> 2000000 | H80: =SA34e!H75 -> 2000000 | I80: =SA34e!I75 -> 0 | J80: =SA34e!J75 -> 10000000 | K80: =SA34e!K75 -> 23368084
A81: Sport and Recreation Facilities | C81: =SA34e!C98 -> 0 | D81: =SA34e!D98 -> 0 | E81: =SA34e!E98 -> 0 | F81: =SA34e!F98 -> 0 | G81: =SA34e!G98 -> 0 | H81: =SA34e!H98 -> 0 | I81: =SA34e!I98 -> 0 | J81: =SA34e!J98 -> 0 | K81: =SA34e!K98 -> 0
A82: Community Assets | C82: =SUM(C80:C81) -> 0 | D82: 850000 | E82: 0 | F82: 2000000 | G82: 2000000 | H82: 2000000 | I82: 0 | J82: 10000000 | K82: 23368084
A83: Heritage Assets | C83: =SA34e!C103 -> 0 | D83: =SA34e!D103 -> 0 | E83: =SA34e!E103 -> 0 | F83: =SA34e!F103 -> 0 | G83: =SA34e!G103 -> 0 | H83: =SA34e!H103 -> 0 | I83: =SA34e!I103 -> 0 | J83: =SA34e!J103 -> 0 | K83: =SA34e!K103 -> 0
A84: Revenue Generating | C84: =SA34e!C111 -> 0 | D84: =SA34e!D111 -> 0 | E84: =SA34e!E111 -> 0 | F84: =SA34e!F111 -> 0 | G84: =SA34e!G111 -> 0 | H84: =SA34e!H111 -> 0 | I84: =SA34e!I111 -> 0 | J84: =SA34e!J111 -> 0 | K84: =SA34e!K111 -> 0
A85: Non-revenue Generating | C85: =SA34e!C114 -> 0 | D85: =SA34e!D114 -> 0 | E85: =SA34e!E114 -> 0 | F85: =SA34e!F114 -> 0 | G85: =SA34e!G114 -> 0 | H85: =SA34e!H114 -> 0 | I85: =SA34e!I114 -> 0 | J85: =SA34e!J114 -> 0 | K85: =SA34e!K114 -> 0
A86: Investment properties | C86: =SUM(C84:C85) -> 0 | D86: 0 | E86: 0 | F86: 0 | G86: 0 | H86: 0 | I86: 0 | J86: 0 | K86: 0
A87: Operational Buildings | C87: =SA34e!C119 -> 0 | D87: =SA34e!D119 -> 5700000 | E87: =SA34e!E119 -> 6490611.78 | F87: =SA34e!F119 -> 3500000 | G87: =SA34e!G119 -> 5924370 | H87: =SA34e!H119 -> 5924370 | I87: =SA34e!I119 -> 0 | J87: =SA34e!J119 -> 0 | K87: =SA34e!K119 -> 0
A88: Housing | C88: =SA34e!C131 -> 0 | D88: =SA34e!D131 -> 0 | E88: =SA34e!E131 -> 0 | F88: =SA34e!F131 -> 0 | G88: =SA34e!G131 -> 0 | H88: =SA34e!H131 -> 0 | I88: =SA34e!I131 -> 0 | J88: =SA34e!J131 -> 0 | K88: =SA34e!K131 -> 0
A89: Other Assets | C89: =SUM(C87:C88) -> 0 | D89: 5700000 | E89: 6490611.78 | F89: 3500000 | G89: 5924370 | H89: 5924370 | I89: 0 | J89: 0 | K89: 0
A90: Biological or Cultivated Assets | C90: =SA34e!C136 -> 0 | D90: =SA34e!D136 -> 0 | E90: =SA34e!E136 -> 0 | F90: =SA34e!F136 -> 0 | G90: =SA34e!G136 -> 0 | H90: =SA34e!H136 -> 0 | I90: =SA34e!I136 -> 0 | J90: =SA34e!J136 -> 0 | K90: =SA34e!K136 -> 0
A91: Servitudes | C91: =SA34e!C140 -> 0 | D91: =SA34e!D140 -> 0 | E91: =SA34e!E140 -> 0 | F91: =SA34e!F140 -> 0 | G91: =SA34e!G140 -> 0 | H91: =SA34e!H140 -> 0 | I91: =SA34e!I140 -> 0 | J91: =SA34e!J140 -> 0 | K91: =SA34e!K140 -> 0
A92: Licences and Rights | C92: =SA34e!C141 -> 0 | D92: =SA34e!D141 -> 0 | E92: =SA34e!E141 -> 0 | F92: =SA34e!F141 -> 0 | G92: =SA34e!G141 -> 0 | H92: =SA34e!H141 -> 0 | I92: =SA34e!I141 -> 0 | J92: =SA34e!J141 -> 0 | K92: =SA34e!K141 -> 0
A93: Intangible Assets | C93: =SUM(C91:C92) -> 0 | D93: 0 | E93: 0 | F93: 0 | G93: 0 | H93: 0 | I93: 0 | J93: 0 | K93: 0
A94: Computer Equipment | C94: =SA34e!C149 -> 0 | D94: =SA34e!D149 -> 0 | E94: =SA34e!E149 -> 0 | F94: =SA34e!F149 -> 0 | G94: =SA34e!G149 -> 0 | H94: =SA34e!H149 -> 0 | I94: =SA34e!I149 -> 0 | J94: =SA34e!J149 -> 0 | K94: =SA34e!K149 -> 0
A95: Furniture and Office Equipment | C95: =SA34e!C152 -> 0 | D95: =SA34e!D152 -> 150000 | E95: =SA34e!E152 -> 0 | F95: =SA34e!F152 -> 0 | G95: =SA34e!G152 -> 0 | H95: =SA34e!H152 -> 0 | I95: =SA34e!I152 -> 0 | J95: =SA34e!J152 -> 0 | K95: =SA34e!K152 -> 0
A96: Machinery and Equipment | C96: =SA34e!C155 -> 0 | D96: =SA34e!D155 -> 0 | E96: =SA34e!E155 -> 0 | F96: =SA34e!F155 -> 0 | G96: =SA34e!G155 -> 0 | H96: =SA34e!H155 -> 0 | I96: =SA34e!I155 -> 0 | J96: =SA34e!J155 -> 0 | K96: =SA34e!K155 -> 0
A97: Transport Assets | C97: =SA34e!C158 -> 0 | D97: =SA34e!D158 -> 0 | E97: =SA34e!E158 -> 0 | F97: =SA34e!F158 -> 0 | G97: =SA34e!G158 -> 0 | H97: =SA34e!H158 -> 0 | I97: =SA34e!I158 -> 0 | J97: =SA34e!J158 -> 0 | K97: =SA34e!K158 -> 0
A98: Land | C98: =SA34e!C161 -> 0 | D98: =SA34e!D161 -> 0 | E98: =SA34e!E161 -> 0 | F98: =SA34e!F161 -> 0 | G98: =SA34e!G161 -> 0 | H98: =SA34e!H161 -> 0 | I98: =SA34e!I161 -> 0 | J98: =SA34e!J161 -> 0 | K98: =SA34e!K161 -> 0
A99: Zoo's, Marine and Non-biological Animals | C99: =SA34e!C164 -> 0 | D99: =SA34e!D164 -> 0 | E99: =SA34e!E164 -> 0 | F99: =SA34e!F164 -> 0 | G99: =SA34e!G164 -> 0 | H99: =SA34e!H164 -> 0 | I99: =SA34e!I164 -> 0 | J99: =SA34e!J164 -> 0 | K99: =SA34e!K164 -> 0
A101: Total Capital Expenditure | B101: 4 | C101: =+C5+C37+C69 -> 103482439 | D101: =+D5+D37+D69 -> 190264069.5 | E101: 137169872.4 | F101: 130857450 | G101: 142078164 | H101: 142078164 | I101: 1500537020 | J101: 1375426264 | K101: 1457394128
A102: Roads Infrastructure | C102: =+C6+C38+C70 -> 53816542 | D102: =+D6+D38+D70 -> 94744924.03 | E102: 86023791.25 | F102: 93253950 | G102: 100253965 | H102: 100253965 | I102: 1107687020 | J102: 906576264 | K102: 1032526044
A103: Storm water Infrastructure | C103: =+C7+C39+C71 -> 0 | D103: 561967 | E103: 10679329.19 | F103: 3500000 | G103: 3 | H103: 3 | I103: 0 | J103: 0 | K103: 0
A104: Electrical Infrastructure | C104: 34296394 | D104: 59515780.39 | E104: 22772155.59 | F104: 10600000 | G104: 23520264 | H104: 23520264 | I104: 340450000 | J104: 385000000 | K104: 374000000
A105: Water Supply Infrastructure | C105: 0 | D105: 0 | E105: 0 | F105: 0 | G105: 0 | H105: 0 | I105: 0 | J105: 0 | K105: 0
A106: Sanitation Infrastructure | C106: 0 | D106: 0 | E106: 0 | F106: 0 | G106: 0 | H106: 0 | I106: 0 | J106: 0 | K106: 0
A107: Solid Waste Infrastructure | C107: 1247321 | D107: 0 | E107: 0 | F107: 0 | G107: 0 | H107: 0 | I107: 0 | J107: 0 | K107: 0
A108: Rail Infrastructure | C108: 0 | D108: 8150000.01 | E108: 4467589.99 | F108: 0 | G108: 800427 | H108: 800427 | I108: 0 | J108: 0 | K108: 0
A109: Coastal Infrastructure | C109: 0 | D109: 0 | E109: 0 | F109: 0 | G109: 0 | H109: 0 | I109: 0 | J109: 0 | K109: 0
A110: Information and Communication Infrastructure | C110: 0 | D110: 0 | E110: 0 | F110: 2800000 | G110: 0 | H110: 0 | I110: 22000000 | J110: 22000000 | K110: 22000000
A111: Infrastructure | C111: =SUM(C102:C110) -> 89360257 | D111: =SUM(D102:D110) -> 162972671.4 | E111: 123942866 | F111: 110153950 | G111: 124574659 | H111: 124574659 | I111: 1470137020 | J111: 1313576264 | K111: 1428526044
A112: Community Facilities | C112: =+C16+C48+C80 -> 0 | D112: =+D16+D48+D80 -> 6119900 | E112: 0 | F112: 3000000 | G112: 2000000 | H112: 2000000 | I112: 11000000 | J112: 32700000 | K112: 23368084
A113: Sport and Recreation Facilities | C113: =+C17+C49+C81 -> 0 | D113: =+D17+D49+D81 -> 0 | E113: 0 | F113: 0 | G113: 300000 | H113: 300000 | I113: 0 | J113: 0 | K113: 0
A114: Community Assets | C114: =SUM(C112:C113) -> 0 | D114: =SUM(D112:D113) -> 6119900 | E114: 0 | F114: 3000000 | G114: 2300000 | H114: 2300000 | I114: 11000000 | J114: 32700000 | K114: 23368084
A115: Heritage Assets | C115: =+C19+C51+C83 -> 0 | D115: =+D19+D51+D83 -> 5958.15 | E115: 0 | F115: 0 | G115: 0 | H115: 0 | I115: 0 | J115: 0 | K115: 0
A116: Revenue Generating | C116: =+C20+C52+C84 -> 0 | D116: =+D20+D52+D84 -> 0 | E116: 0 | F116: 0 | G116: 0 | H116: 0 | I116: 0 | J116: 0 | K116: 0
A117: Non-revenue Generating | C117: =+C21+C53+C85 -> 0 | D117: =+D21+D53+D85 -> 0 | E117: 0 | F117: 0 | G117: 0 | H117: 0 | I117: 0 | J117: 0 | K117: 0
A118: Investment properties | C118: =SUM(C116:C117) -> 0 | D118: =SUM(D116:D117) -> 0 | E118: 0 | F118: 0 | G118: 0 | H118: 0 | I118: 0 | J118: 0 | K118: 0
A119: Operational Buildings | C119: =+C23+C55+C87 -> 0 | D119: =+D23+D55+D87 -> 8831923.57 | E119: 6490611.78 | F119: 5500000 | G119: 8600000 | H119: 8600000 | I119: 0 | J119: 1600000 | K119: 1000000
A120: Housing | C120: =+C24+C56+C88 -> 0 | D120: =+D24+D56+D88 -> 0 | E120: 0 | F120: 0 | G120: 0 | H120: 0 | I120: 0 | J120: 0 | K120: 0
A121: Other Assets | C121: =SUM(C119:C120) -> 0 | D121: 8831923.57 | E121: 6490611.78 | F121: 5500000 | G121: 8600000 | H121: 8600000 | I121: 0 | J121: 1600000 | K121: 1000000
A122: Biological or Cultivated Assets | C122: =+C26+C58+C90 -> 0 | D122: =+D26+D58+D90 -> 0 | E122: 0 | F122: 0 | G122: 0 | H122: 0 | I122: 0 | J122: 0 | K122: 0
A123: Servitudes | C123: =+C27+C59+C91 -> 0 | D123: =+D27+D59+D91 -> 0 | E123: 0 | F123: 0 | G123: 0 | H123: 0 | I123: 0 | J123: 0 | K123: 0
A124: Licences and Rights | C124: =+C28+C60+C92 -> 0 | D124: =+D28+D60+D92 -> 0 | E124: 0 | F124: 0 | G124: 0 | H124: 0 | I124: 0 | J124: 0 | K124: 0
A125: Intangible Assets | C125: =SUM(C123:C124) -> 0 | D125: =SUM(D123:D124) -> 0 | E125: 0 | F125: 0 | G125: 0 | H125: 0 | I125: 0 | J125: 0 | K125: 0
A126: Computer Equipment | C126: =+C30+C62+C94 -> 0 | D126: =+D30+D62+D94 -> 264520.47 | E126: 0 | F126: 333500 | G126: 333500 | H126: 333500 | I126: 0 | J126: 0 | K126: 0
A127: Furniture and Office Equipment | C127: =+C31+C63+C95 -> 10276400 | D127: 494131.63 | E127: 852195.8 | F127: 700000 | G127: 700002 | H127: 700002 | I127: 400000 | J127: 0 | K127: 0
A128: Machinery and Equipment | C128: 345882 | D128: 11574964.24 | E128: 917135.01 | F128: 1350000 | G128: 750002 | H128: 750002 | I128: 14500000 | J128: 24550000 | K128: 1700000
A129: Transport Assets | C129: 3499900 | D129: 0 | E129: 4967063.79 | F129: 9820000 | G129: 4820001 | H129: 4820001 | I129: 4500000 | J129: 3000000 | K129: 2800000
A130: Land | C130: 0 | D130: 0 | E130: 0 | F130: 0 | G130: 0 | H130: 0 | I130: 0 | J130: 0 | K130: 0
A131: Zoo's, Marine and Non-biological Animals | C131: 0 | D131: 0 | E131: 0 | F131: 0 | G131: 0 | H131: 0 | I131: 0 | J131: 0 | K131: 0
A132: TOTAL CAPITAL EXPENDITURE - Asset class | C132: =+C5+C37+C69 -> 103482439 | D132: =+D5+D37+D69 -> 190264069.5 | E132: 137169872.4 | F132: 130857450 | G132: 142078164 | H132: 142078164 | I132: 1500537020 | J132: 1375426264 | K132: 1457394128
A134: ASSET REGISTER SUMMARY - PPE (WDV) | B134: 5 | C134: =C144+C147+C148+C151+C154+C155+C158+C159+C160+C161+C162+C163+C164 -> 0 | D134: =D144+D147+D148+D151+D154+D155+D158+D159+D160+D161+D162+D163+D164 -> 0 | E134: 0 | F134: 0 | G134: 0 | H134: 0 | I134: 0 | J134: 0 | K134: 0
A135: Roads Infrastructure
A136: Storm water Infrastructure
A137: Electrical Infrastructure
A138: Water Supply Infrastructure
A139: Sanitation Infrastructure
A140: Solid Waste Infrastructure
A141: Rail Infrastructure
A142: Coastal Infrastructure
A143: Information and Communication Infrastructure
A144: Infrastructure | C144: =SUM(C135:C143) -> 0 | D144: =SUM(D135:D143) -> 0 | E144: 0 | F144: 0 | G144: 0 | H144: 0 | I144: 0 | J144: 0 | K144: 0
A147: Community Assets
A148: Heritage Assets
A151: Investment properties
A154: Other Assets
A155: Biological or Cultivated Assets
A158: Intangible Assets
A159: Computer Equipment
A160: Furniture and Office Equipment
A161: Machinery and Equipment
A162: Transport Assets
A163: Land
A164: Zoo's, Marine and Non-biological Animals
A165: TOTAL ASSET REGISTER SUMMARY - PPE (WDV) | B165: 5 | C165: =C144+C147+C148+C151+C154+C155+C158+C159+C160+C161+C162+C163+C164 -> 0 | D165: =D144+D147+D148+D151+D154+D155+D158+D159+D160+D161+D162+D163+D164 -> 0 | E165: 0 | F165: 0 | G165: 0 | H165: 0 | I165: 0 | J165: 0 | K165: 0
A167: EXPENDITURE OTHER ITEMS | C167: =SUM(C168:C169) -> 240149608.5 | D167: =SUM(D168:D169) -> 134481916.2 | E167: 151632404.5 | F167: 201689568 | G167: 197041018 | H167: 197041018 | I167: 196952916 | J167: 205618844 | K167: 214871692
A168: Depreciation | B168: 7 | C168: =SA34d!C167 -> 132641263.5 | D168: =SA34d!D167 -> 98378041.76 | E168: =SA34d!E167 -> 106431091.1 | F168: =SA34d!F167 -> 134738731 | G168: =SA34d!G167 -> 134758934 | H168: =SA34d!H167 -> 134758934 | I168: =SA34d!I167 -> 126847579 | J168: =SA34d!J167 -> 132428876 | K168: =SA34d!K167 -> 138388176
A169: Repairs and Maintenance by Asset Class | B169: 3 | C169: =C179+C182+C183+C186+C189+C190+SUM(C193:C199) -> 107508345 | D169: =D179+D182+D183+D186+D189+D190+SUM(D193:D199) -> 36103874.4 | E169: 45201313.46 | F169: 66950837 | G169: 62282084 | H169: 62282084 | I169: 70105337 | J169: 73189968 | K169: 76483516
A170: Roads Infrastructure | C170: =SA34c!C7 -> 33306052 | D170: =SA34c!D7 -> 12390863.79 | E170: =SA34c!E7 -> 12432897.19 | F170: =SA34c!F7 -> 13650000 | G170: =SA34c!G7 -> 13649998 | H170: =SA34c!H7 -> 13649998 | I170: =SA34c!I7 -> 16650000 | J170: =SA34c!J7 -> 17382600 | K170: =SA34c!K7 -> 18164818
A171: Storm water Infrastructure | C171: =SA34c!C12 -> 0 | D171: =SA34c!D12 -> 574093.92 | E171: =SA34c!E12 -> 1319708.84 | F171: =SA34c!F12 -> 1500000 | G171: =SA34c!G12 -> 1440000 | H171: =SA34c!H12 -> 1440000 | I171: =SA34c!I12 -> 1500000 | J171: =SA34c!J12 -> 1566000 | K171: =SA34c!K12 -> 1636470
A172: Electrical Infrastructure | C172: =SA34c!C16 -> 10019092 | D172: =SA34c!D16 -> 9124807.39 | E172: =SA34c!E16 -> 13307325.6 | F172: =SA34c!F16 -> 26094640 | G172: =SA34c!G16 -> 20378658 | H172: =SA34c!H16 -> 20378658 | I172: =SA34c!I16 -> 26094640 | J172: =SA34c!J16 -> 27242803 | K172: =SA34c!K16 -> 28468729
A173: Water Supply Infrastructure | C173: =SA34c!C26 -> 0 | D173: =SA34c!D26 -> 0 | E173: =SA34c!E26 -> 0 | F173: =SA34c!F26 -> 0 | G173: =SA34c!G26 -> 0 | H173: =SA34c!H26 -> 0 | I173: =SA34c!I26 -> 0 | J173: =SA34c!J26 -> 0 | K173: =SA34c!K26 -> 0
A174: Sanitation Infrastructure | C174: =SA34c!C37 -> 0 | D174: =SA34c!D37 -> 0 | E174: =SA34c!E37 -> 0 | F174: =SA34c!F37 -> 0 | G174: =SA34c!G37 -> 0 | H174: =SA34c!H37 -> 0 | I174: =SA34c!I37 -> 0 | J174: =SA34c!J37 -> 0 | K174: =SA34c!K37 -> 0
A175: Solid Waste Infrastructure | C175: =SA34c!C44 -> 0 | D175: =SA34c!D44 -> 0 | E175: =SA34c!E44 -> 0 | F175: =SA34c!F44 -> 9900 | G175: =SA34c!G44 -> 9900 | H175: =SA34c!H44 -> 9900 | I175: =SA34c!I44 -> 9900 | J175: =SA34c!J44 -> 10336 | K175: =SA34c!K44 -> 10801
A176: Rail Infrastructure | C176: =SA34c!C52 -> 513360 | D176: =SA34c!D52 -> 0 | E176: =SA34c!E52 -> 116577.6 | F176: =SA34c!F52 -> 296000 | G176: =SA34c!G52 -> 296000 | H176: =SA34c!H52 -> 296000 | I176: =SA34c!I52 -> 296000 | J176: =SA34c!J52 -> 309024 | K176: =SA34c!K52 -> 322930
A177: Coastal Infrastructure | C177: =SA34c!C62 -> 0 | D177: =SA34c!D62 -> 0 | E177: =SA34c!E62 -> 0 | F177: =SA34c!F62 -> 0 | G177: =SA34c!G62 -> 0 | H177: =SA34c!H62 -> 0 | I177: =SA34c!I62 -> 0 | J177: =SA34c!J62 -> 0 | K177: =SA34c!K62 -> 0
A178: Information and Communication Infrastructure | C178: =SA34c!C68 -> 0 | D178: =SA34c!D68 -> 0 | E178: =SA34c!E68 -> 0 | F178: =SA34c!F68 -> 0 | G178: =SA34c!G68 -> 0 | H178: =SA34c!H68 -> 0 | I178: =SA34c!I68 -> 0 | J178: =SA34c!J68 -> 0 | K178: =SA34c!K68 -> 0
A179: Infrastructure | C179: =SUM(C170:C178) -> 43838504 | D179: =SUM(D170:D178) -> 22089765.1 | E179: 27176509.23 | F179: 41550540 | G179: 35774556 | H179: 35774556 | I179: 44550540 | J179: 46510763 | K179: 48603748
A180: Community Facilities | C180: =SA34c!C75 -> 14902 | D180: =SA34c!D75 -> 0 | E180: =SA34c!E75 -> 0 | F180: =SA34c!F75 -> 0 | G180: =SA34c!G75 -> 0 | H180: =SA34c!H75 -> 0 | I180: =SA34c!I75 -> 0 | J180: =SA34c!J75 -> 0 | K180: =SA34c!K75 -> 0
A181: Sport and Recreation Facilities | C181: =SA34c!C98 -> 0 | D181: =SA34c!D98 -> 0 | E181: =SA34c!E98 -> 0 | F181: =SA34c!F98 -> 0 | G181: =SA34c!G98 -> 0 | H181: =SA34c!H98 -> 0 | I181: =SA34c!I98 -> 0 | J181: =SA34c!J98 -> 0 | K181: =SA34c!K98 -> 0
A182: Community Assets | C182: =SUM(C180:C181) -> 14902 | D182: 0 | E182: 0 | F182: 0 | G182: 0 | H182: 0 | I182: 0 | J182: 0 | K182: 0
A183: Heritage Assets | C183: =SA34c!C103 -> 0 | D183: =SA34c!D103 -> 0 | E183: =SA34c!E103 -> 0 | F183: =SA34c!F103 -> 0 | G183: =SA34c!G103 -> 0 | H183: =SA34c!H103 -> 0 | I183: =SA34c!I103 -> 0 | J183: =SA34c!J103 -> 0 | K183: =SA34c!K103 -> 0
A184: Revenue Generating | C184: =SA34c!C111 -> 0 | D184: =SA34c!D111 -> 0 | E184: =SA34c!E111 -> 0 | F184: =SA34c!F111 -> 0 | G184: =SA34c!G111 -> 0 | H184: =SA34c!H111 -> 0 | I184: =SA34c!I111 -> 0 | J184: =SA34c!J111 -> 0 | K184: =SA34c!K111 -> 0
A185: Non-revenue Generating | C185: =SA34c!C114 -> 0 | D185: =SA34c!D114 -> 0 | E185: =SA34c!E114 -> 0 | F185: =SA34c!F114 -> 0 | G185: =SA34c!G114 -> 0 | H185: =SA34c!H114 -> 0 | I185: =SA34c!I114 -> 0 | J185: =SA34c!J114 -> 0 | K185: =SA34c!K114 -> 0
A186: Investment properties | C186: =SUM(C184:C185) -> 0 | D186: 0 | E186: 0 | F186: 0 | G186: 0 | H186: 0 | I186: 0 | J186: 0 | K186: 0
A187: Operational Buildings | C187: =SA34c!C119 -> 2800941 | D187: =SA34c!D119 -> 1563844.64 | E187: =SA34c!E119 -> 1775550.54 | F187: =SA34c!F119 -> 1663363 | G187: =SA34c!G119 -> 2429856 | H187: =SA34c!H119 -> 2429856 | I187: =SA34c!I119 -> 1663363 | J187: =SA34c!J119 -> 1736551 | K187: =SA34c!K119 -> 1814698
A188: Housing | C188: =SA34c!C131 -> 0 | D188: =SA34c!D131 -> 0 | E188: =SA34c!E131 -> 0 | F188: =SA34c!F131 -> 0 | G188: =SA34c!G131 -> 0 | H188: =SA34c!H131 -> 0 | I188: =SA34c!I131 -> 0 | J188: =SA34c!J131 -> 0 | K188: =SA34c!K131 -> 0
A189: Other Assets | C189: =SUM(C187:C188) -> 2800941 | D189: 1563844.64 | E189: 1775550.54 | F189: 1663363 | G189: 2429856 | H189: 2429856 | I189: 1663363 | J189: 1736551 | K189: 1814698
A190: Biological or Cultivated Assets | C190: =SA34c!C136 -> 0 | D190: =SA34c!D136 -> 0 | E190: =SA34c!E136 -> 0 | F190: =SA34c!F136 -> 0 | G190: =SA34c!G136 -> 0 | H190: =SA34c!H136 -> 0 | I190: =SA34c!I136 -> 0 | J190: =SA34c!J136 -> 0 | K190: =SA34c!K136 -> 0
A191: Servitudes | C191: =SA34c!C140 -> 0 | D191: =SA34c!D140 -> 0 | E191: =SA34c!E140 -> 0 | F191: =SA34c!F140 -> 0 | G191: =SA34c!G140 -> 0 | H191: =SA34c!H140 -> 0 | I191: =SA34c!I140 -> 0 | J191: =SA34c!J140 -> 0 | K191: =SA34c!K140 -> 0
A192: Licences and Rights | C192: =SA34c!C141 -> 0 | D192: =SA34c!D141 -> 0 | E192: =SA34c!E141 -> 0 | F192: =SA34c!F141 -> 0 | G192: =SA34c!G141 -> 0 | H192: =SA34c!H141 -> 0 | I192: =SA34c!I141 -> 0 | J192: =SA34c!J141 -> 0 | K192: =SA34c!K141 -> 0
A193: Intangible Assets | C193: =SUM(C191:C192) -> 0 | D193: 0 | E193: 0 | F193: 0 | G193: 0 | H193: 0 | I193: 0 | J193: 0 | K193: 0
A194: Computer Equipment | C194: =SA34c!C149 -> 15136449 | D194: =SA34c!D149 -> 232524.87 | E194: =SA34c!E149 -> 876467.4 | F194: =SA34c!F149 -> 545000 | G194: =SA34c!G149 -> 545000 | H194: =SA34c!H149 -> 545000 | I194: =SA34c!I149 -> 545000 | J194: =SA34c!J149 -> 568980 | K194: =SA34c!K149 -> 594584
A195: Furniture and Office Equipment | C195: =SA34c!C152 -> 79169 | D195: =SA34c!D152 -> 1042652.61 | E195: =SA34c!E152 -> 1047546.06 | F195: =SA34c!F152 -> 1099449 | G195: =SA34c!G152 -> 1212494 | H195: =SA34c!H152 -> 1212494 | I195: =SA34c!I152 -> 1103949 | J195: =SA34c!J152 -> 1152521 | K195: =SA34c!K152 -> 1204381
A196: Machinery and Equipment | C196: =SA34c!C155 -> 69927 | D196: =SA34c!D155 -> 447826.82 | E196: =SA34c!E155 -> 788211.91 | F196: =SA34c!F155 -> 705075 | G196: =SA34c!G155 -> 1172175 | H196: =SA34c!H155 -> 1172175 | I196: =SA34c!I155 -> 855075 | J196: =SA34c!J155 -> 892697 | K196: =SA34c!K155 -> 932869
A197: Transport Assets | C197: =SA34c!C158 -> 45568453 | D197: =SA34c!D158 -> 10727260.36 | E197: =SA34c!E158 -> 13537028.32 | F197: =SA34c!F158 -> 21387410 | G197: =SA34c!G158 -> 21148003 | H197: =SA34c!H158 -> 21148003 | I197: =SA34c!I158 -> 21387410 | J197: =SA34c!J158 -> 22328456 | K197: =SA34c!K158 -> 23333236
A198: Land | C198: =SA34c!C161 -> 0 | D198: =SA34c!D161 -> 0 | E198: =SA34c!E161 -> 0 | F198: =SA34c!F161 -> 0 | G198: =SA34c!G161 -> 0 | H198: =SA34c!H161 -> 0 | I198: =SA34c!I161 -> 0 | J198: =SA34c!J161 -> 0 | K198: =SA34c!K161 -> 0
A199: Zoo's, Marine and Non-biological Animals | C199: =SA34c!C164 -> 0 | D199: =SA34c!D164 -> 0 | E199: =SA34c!E164 -> 0 | F199: =SA34c!F164 -> 0 | G199: =SA34c!G164 -> 0 | H199: =SA34c!H164 -> 0 | I199: =SA34c!I164 -> 0 | J199: =SA34c!J164 -> 0 | K199: =SA34c!K164 -> 0
A201: TOTAL EXPENDITURE OTHER ITEMS | C201: =SUM(C168:C169) -> 240149608.5 | D201: 134481916.2 | E201: 151632404.5 | F201: 201689568 | G201: 197041018 | H201: 197041018 | I201: 196952916 | J201: 205618844 | K201: 214871692
A203: Renewal and upgrading of Existing Assets as % of total capex | C203: =IF(ISERROR((C37+C69)/C132),0,((C37+C69)/C132)) -> 0.1694162813 | D203: =IF(ISERROR((D37+D69)/D132),0,((D37+D69)/D132)) -> 0.4325689463 | E203: 0.7407477287 | F203: 0.8035763344 | G203: 0.8183043736 | H203: 0.8183043736 | I203: 0.9027681436 | J203: 0.7983534216 | K203: 0.9056535241
A204: Renewal and upgrading of Existing Assets as % of deprecn | C204: =IF(ISERROR((C37+C69)/C168),0,((C37+C69)/C168)) -> 0.1321731227 | D204: =IF(ISERROR((D37+D69)/D168),0,((D37+D69)/D168)) -> 0.836592461 | E204: 0.9546859891 | F204: 0.7804285317 | G204: 0.8627493521 | H204: 0.8627493521 | I204: 10.67925009 | J204: 8.291818953 | K204: 9.537622116
A205: R&M as a % of PPE | C205: =IF(ISERROR(ROUND(C169/'A6-FinPos'!C19,3)),0,(ROUND(C169/'A6-FinPos'!C19,3))) -> 0.074 | D205: =IF(ISERROR(ROUND(D169/'A6-FinPos'!D19,3)),0,(ROUND(D169/'A6-FinPos'!D19,3))) -> 0.024 | E205: =IF(ISERROR(ROUND(E169/'A6-FinPos'!E19,3)),0,(ROUND(E169/'A6-FinPos'!E19,3))) -> 0.03 | F205: =IF(ISERROR(ROUND(F169/'A6-FinPos'!F19,3)),0,(ROUND(F169/'A6-FinPos'!F19,3))) -> 0.026 | G205: =IF(ISERROR(ROUND(G169/'A6-FinPos'!G19,3)),0,(ROUND(G169/'A6-FinPos'!G19,3))) -> 0.04 | H205: =IF(ISERROR(ROUND(H169/'A6-FinPos'!H19,3)),0,(ROUND(H169/'A6-FinPos'!H19,3))) -> 0.04 | I205: =IF(ISERROR(ROUND(I169/'A6-FinPos'!J19,3)),0,(ROUND(I169/'A6-FinPos'!J19,3))) -> 0.045 | J205: =IF(ISERROR(ROUND(J169/'A6-FinPos'!K19,3)),0,(ROUND(J169/'A6-FinPos'!K19,3))) -> 0.045 | K205: =IF(ISERROR(ROUND(K169/'A6-FinPos'!L19,3)),0,(ROUND(K169/'A6-FinPos'!L19,3))) -> 0.045
A206: Renewal and upgrading and R&M as a % of PPE | C206: =IF(ISERROR(ROUND((C37+C69+C169)/C165,2)),0,(ROUND((C37+C69+C169)/C165,2))) -> 0 | D206: =IF(ISERROR(ROUND((D37+D69+D169)/D165,2)),0,(ROUND((D37+D69+D169)/D165,2))) -> 0 | E206: 0 | F206: 0 | G206: 0 | H206: 0 | I206: 0 | J206: 0 | K206: 0
A208: =head27a -> References
A209: 1. Detail of new assets provided in Table SA34a
A210: 2. Detail of renewal of existing assets provided in Table SA34b
A211: 3. Detail of Repairs and Maintenance by Asset Class provided in Table SA34c
A212: 4. Must reconcile to total capital expenditure on Budgeted Capital Expenditure
A213: 5. Must reconcile to 'Budgeted Financial Position' (written down value)
A214: 6. Detail of upgrading of existing assets provided in Table SA34e
A215: 7. Detail of depreciation provided in Table SA34d
A217: Check balance to A6 | C217: =C165-'A6-FinPos'!D17-'A6-FinPos'!D19-'A6-FinPos'!D20-'A6-FinPos'!D21-'A6-FinPos'!D22-C148 -> -1669104646 | D217: =D165-'A6-FinPos'!E17-'A6-FinPos'!E19-'A6-FinPos'!E20-'A6-FinPos'!E21-'A6-FinPos'!E22-D148 -> -1709140055 | E217: =E165-'A6-FinPos'!F17-'A6-FinPos'!F19-'A6-FinPos'!F20-'A6-FinPos'!F21-'A6-FinPos'!F22-E148 -> -2802746632 | F217: =F165-'A6-FinPos'!G17-'A6-FinPos'!G19-'A6-FinPos'!G20-'A6-FinPos'!G21-'A6-FinPos'!G22-F148 -> -1755974051 | G217: =G165-'A6-FinPos'!H17-'A6-FinPos'!H19-'A6-FinPos'!H20-'A6-FinPos'!H21-'A6-FinPos'!H22-G148 -> -1755974051 | H217: =H165-'A6-FinPos'!I17-'A6-FinPos'!I19-'A6-FinPos'!I20-'A6-FinPos'!I21-'A6-FinPos'!I22-H148 -> -1755974051 | I217: =I165-'A6-FinPos'!J17-'A6-FinPos'!J19-'A6-FinPos'!J20-'A6-FinPos'!J21-'A6-FinPos'!J22-I148 -> -1755974082 | J217: =J165-'A6-FinPos'!K17-'A6-FinPos'!K19-'A6-FinPos'!K20-'A6-FinPos'!K21-'A6-FinPos'!K22-J148 -> -1826213007 | K217: =K165-'A6-FinPos'!L17-'A6-FinPos'!L19-'A6-FinPos'!L20-'A6-FinPos'!L21-'A6-FinPos'!L22-K148 -> -1899261526

Sheet A10-SerDel
A1: =muni&" - "&Approve10 -> Choose name from list - Table A10 Basic service delivery measurement
A2: =desc -> Description | B2: =head27 -> Ref | C2: =head1b -> 2018/19 | D2: =head1A -> 2019/20 | E2: =Head1 -> 2020/21 | F2: =Head2 -> Current Year 2021/22 | I2: =Head3 -> 2022/23 Medium Term Revenue & Expenditure Framework
C3: =Head5A -> Outcome | D3: =Head5A -> Outcome | E3: =Head5A -> Outcome | F3: =Head6 -> Original Budget | G3: =Head7 -> Adjusted Budget | H3: =Head8 -> Full Year Forecast | I3: =Head9 -> Budget Year 2022/23 | J3: =Head10 -> Budget Year +1 2023/24 | K3: =Head11 -> Budget Year +2 2024/25
A4: Household service targets | B4: 1
A5: Water:
A6: Piped water inside dwelling | C6: ='SA9'!E67 -> 0 | D6: ='SA9'!F67 -> 0 | E6: ='SA9'!G67 -> 0 | F6: ='SA9'!H67 -> 0 | G6: ='SA9'!I67 -> 0 | H6: ='SA9'!J67 -> 0 | I6: ='SA9'!K67 -> 0 | J6: ='SA9'!L67 -> 0 | K6: ='SA9'!M67 -> 0
A7: Piped water inside yard (but not in dwelling) | C7: ='SA9'!E68 -> 0 | D7: ='SA9'!F68 -> 0 | E7: ='SA9'!G68 -> 0 | F7: ='SA9'!H68 -> 0 | G7: ='SA9'!I68 -> 0 | H7: ='SA9'!J68 -> 0 | I7: ='SA9'!K68 -> 0 | J7: ='SA9'!L68 -> 0 | K7: ='SA9'!M68 -> 0
A8: Using public tap (at least min.service level) | B8: 2 | C8: ='SA9'!E69 -> 0 | D8: ='SA9'!F69 -> 0 | E8: ='SA9'!G69 -> 0 | F8: ='SA9'!H69 -> 0 | G8: ='SA9'!I69 -> 0 | H8: ='SA9'!J69 -> 0 | I8: ='SA9'!K69 -> 0 | J8: ='SA9'!L69 -> 0 | K8: ='SA9'!M69 -> 0
A9: Other water supply (at least min.service level) | B9: 4 | C9: ='SA9'!E70 -> 0 | D9: ='SA9'!F70 -> 0 | E9: ='SA9'!G70 -> 0 | F9: ='SA9'!H70 -> 0 | G9: ='SA9'!I70 -> 0 | H9: ='SA9'!J70 -> 0 | I9: ='SA9'!K70 -> 0 | J9: ='SA9'!L70 -> 0 | K9: ='SA9'!M70 -> 0
A10: Minimum Service Level and Above sub-total | C10: =SUM(C6:C9) -> 0 | D10: =SUM(D6:D9) -> 0 | E10: 0 | F10: 0 | G10: 0 | H10: 0 | I10: 0 | J10: 0 | K10: 0
A11: Using public tap (< min.service level) | B11: 3 | C11: ='SA9'!E72 -> 0 | D11: ='SA9'!F72 -> 0 | E11: ='SA9'!G72 -> 0 | F11: ='SA9'!H72 -> 0 | G11: ='SA9'!I72 -> 0 | H11: ='SA9'!J72 -> 0 | I11: ='SA9'!K72 -> 0 | J11: ='SA9'!L72 -> 0 | K11: ='SA9'!M72 -> 0
A12: Other water supply (< min.service level) | B12: =B9 -> 4 | C12: ='SA9'!E73 -> 0 | D12: ='SA9'!F73 -> 0 | E12: ='SA9'!G73 -> 0 | F12: ='SA9'!H73 -> 0 | G12: ='SA9'!I73 -> 0 | H12: ='SA9'!J73 -> 0 | I12: ='SA9'!K73 -> 0 | J12: ='SA9'!L73 -> 0 | K12: ='SA9'!M73 -> 0
A13: No water supply | C13: ='SA9'!E74 -> 0 | D13: ='SA9'!F74 -> 0 | E13: ='SA9'!G74 -> 0 | F13: ='SA9'!H74 -> 0 | G13: ='SA9'!I74 -> 0 | H13: ='SA9'!J74 -> 0 | I13: ='SA9'!K74 -> 0 | J13: ='SA9'!L74 -> 0 | K13: ='SA9'!M74 -> 0
A14: Below Minimum Service Level sub-total | C14: =SUM(C11:C13) -> 0 | D14: =SUM(D11:D13) -> 0 | E14: 0 | F14: 0 | G14: 0 | H14: 0 | I14: 0 | J14: 0 | K14: 0
A15: Total number of households | B15: 5 | C15: =C10+C14 -> 0 | D15: =D10+D14 -> 0 | E15: 0 | F15: 0 | G15: 0 | H15: 0 | I15: 0 | J15: 0 | K15: 0
A16: Sanitation/sewerage:
A17: Flush toilet (connected to sewerage) | C17: ='SA9'!E78 -> 0 | D17: ='SA9'!F78 -> 0 | E17: ='SA9'!G78 -> 0 | F17: ='SA9'!H78 -> 0 | G17: ='SA9'!I78 -> 0 | H17: ='SA9'!J78 -> 0 | I17: ='SA9'!K78 -> 0 | J17: ='SA9'!L78 -> 0 | K17: ='SA9'!M78 -> 0
A18: Flush toilet (with septic tank) | C18: ='SA9'!E79 -> 0 | D18: ='SA9'!F79 -> 0 | E18: ='SA9'!G79 -> 0 | F18: ='SA9'!H79 -> 0 | G18: ='SA9'!I79 -> 0 | H18: ='SA9'!J79 -> 0 | I18: ='SA9'!K79 -> 0 | J18: ='SA9'!L79 -> 0 | K18: ='SA9'!M79 -> 0
A19: Chemical toilet | C19: ='SA9'!E80 -> 0 | D19: ='SA9'!F80 -> 0 | E19: ='SA9'!G80 -> 0 | F19: ='SA9'!H80 -> 0 | G19: ='SA9'!I80 -> 0 | H19: ='SA9'!J80 -> 0 | I19: ='SA9'!K80 -> 0 | J19: ='SA9'!L80 -> 0 | K19: ='SA9'!M80 -> 0
A20: Pit toilet (ventilated) | C20: ='SA9'!E81 -> 0 | D20: ='SA9'!F81 -> 0 | E20: ='SA9'!G81 -> 0 | F20: ='SA9'!H81 -> 0 | G20: ='SA9'!I81 -> 0 | H20: ='SA9'!J81 -> 0 | I20: ='SA9'!K81 -> 0 | J20: ='SA9'!L81 -> 0 | K20: ='SA9'!M81 -> 0
A21: Other toilet provisions (> min.service level) | C21: ='SA9'!E82 -> 0 | D21: ='SA9'!F82 -> 0 | E21: ='SA9'!G82 -> 0 | F21: ='SA9'!H82 -> 0 | G21: ='SA9'!I82 -> 0 | H21: ='SA9'!J82 -> 0 | I21: ='SA9'!K82 -> 0 | J21: ='SA9'!L82 -> 0 | K21: ='SA9'!M82 -> 0
A22: =$A$10 -> Minimum Service Level and Above sub-total | C22: =SUM(C17:C21) -> 0 | D22: =SUM(D17:D21) -> 0 | E22: 0 | F22: 0 | G22: 0 | H22: 0 | I22: 0 | J22: 0 | K22: 0
A23: Bucket toilet | C23: ='SA9'!E84 -> 0 | D23: ='SA9'!F84 -> 0 | E23: ='SA9'!G84 -> 0 | F23: ='SA9'!H84 -> 0 | G23: ='SA9'!I84 -> 0 | H23: ='SA9'!J84 -> 0 | I23: ='SA9'!K84 -> 0 | J23: ='SA9'!L84 -> 0 | K23: ='SA9'!M84 -> 0
A24: Other toilet provisions (< min.service level) | C24: ='SA9'!E85 -> 0 | D24: ='SA9'!F85 -> 0 | E24: ='SA9'!G85 -> 0 | F24: ='SA9'!H85 -> 0 | G24: ='SA9'!I85 -> 0 | H24: ='SA9'!J85 -> 0 | I24: ='SA9'!K85 -> 0 | J24: ='SA9'!L85 -> 0 | K24: ='SA9'!M85 -> 0
A25: No toilet provisions | C25: ='SA9'!E86 -> 0 | D25: ='SA9'!F86 -> 0 | E25: ='SA9'!G86 -> 0 | F25: ='SA9'!H86 -> 0 | G25: ='SA9'!I86 -> 0 | H25: ='SA9'!J86 -> 0 | I25: ='SA9'!K86 -> 0 | J25: ='SA9'!L86 -> 0 | K25: ='SA9'!M86 -> 0
A26: =$A$14 -> Below Minimum Service Level sub-total | C26: =SUM(C23:C25) -> 0 | D26: =SUM(D23:D25) -> 0 | E26: 0 | F26: 0 | G26: 0 | H26: 0 | I26: 0 | J26: 0 | K26: 0
A27: =$A$15 -> Total number of households | B27: =$B$15 -> 5 | C27: =C22+C26 -> 0 | D27: =D22+D26 -> 0 | E27: 0 | F27: 0 | G27: 0 | H27: 0 | I27: 0 | J27: 0 | K27: 0
A28: Energy:
A29: Electricity (at least min.service level) | C29: ='SA9'!E90 -> 0 | D29: ='SA9'!F90 -> 0 | E29: ='SA9'!G90 -> 0 | F29: ='SA9'!H90 -> 0 | G29: ='SA9'!I90 -> 0 | H29: ='SA9'!J90 -> 0 | I29: ='SA9'!K90 -> 0 | J29: ='SA9'!L90 -> 0 | K29: ='SA9'!M90 -> 0
A30: Electricity - prepaid (min.service level) | C30: ='SA9'!E91 -> 0 | D30: ='SA9'!F91 -> 0 | E30: ='SA9'!G91 -> 0 | F30: ='SA9'!H91 -> 0 | G30: ='SA9'!I91 -> 0 | H30: ='SA9'!J91 -> 0 | I30: ='SA9'!K91 -> 0 | J30: ='SA9'!L91 -> 0 | K30: ='SA9'!M91 -> 0
A31: =$A$10 -> Minimum Service Level and Above sub-total | C31: =SUM(C29:C30) -> 0 | D31: =SUM(D29:D30) -> 0 | E31: 0 | F31: 0 | G31: 0 | H31: 0 | I31: 0 | J31: 0 | K31: 0
A32: Electricity (< min.service level) | C32: ='SA9'!E93 -> 0 | D32: ='SA9'!F93 -> 0 | E32: ='SA9'!G93 -> 0 | F32: ='SA9'!H93 -> 0 | G32: ='SA9'!I93 -> 0 | H32: ='SA9'!J93 -> 0 | I32: ='SA9'!K93 -> 0 | J32: ='SA9'!L93 -> 0 | K32: ='SA9'!M93 -> 0
A33: Electricity - prepaid (< min. service level) | C33: ='SA9'!E94 -> 0 | D33: ='SA9'!F94 -> 0 | E33: ='SA9'!G94 -> 0 | F33: ='SA9'!H94 -> 0 | G33: ='SA9'!I94 -> 0 | H33: ='SA9'!J94 -> 0 | I33: ='SA9'!K94 -> 0 | J33: ='SA9'!L94 -> 0 | K33: ='SA9'!M94 -> 0
A34: Other energy sources | C34: ='SA9'!E95 -> 0 | D34: ='SA9'!F95 -> 0 | E34: ='SA9'!G95 -> 0 | F34: ='SA9'!H95 -> 0 | G34: ='SA9'!I95 -> 0 | H34: ='SA9'!J95 -> 0 | I34: ='SA9'!K95 -> 0 | J34: ='SA9'!L95 -> 0 | K34: ='SA9'!M95 -> 0
A35: =$A$14 -> Below Minimum Service Level sub-total | C35: =SUM(C32:C34) -> 0 | D35: =SUM(D32:D34) -> 0 | E35: 0 | F35: 0 | G35: 0 | H35: 0 | I35: 0 | J35: 0 | K35: 0
A36: =$A$15 -> Total number of households | B36: =$B$15 -> 5 | C36: =C31+C35 -> 0 | D36: =D31+D35 -> 0 | E36: 0 | F36: 0 | G36: 0 | H36: 0 | I36: 0 | J36: 0 | K36: 0
A37: Refuse:
A38: Removed at least once a week | C38: ='SA9'!E99 -> 0 | D38: ='SA9'!F99 -> 0 | E38: ='SA9'!G99 -> 0 | F38: ='SA9'!H99 -> 0 | G38: ='SA9'!I99 -> 0 | H38: ='SA9'!J99 -> 0 | I38: ='SA9'!K99 -> 0 | J38: ='SA9'!L99 -> 0 | K38: ='SA9'!M99 -> 0
A39: =$A$10 -> Minimum Service Level and Above sub-total | C39: =SUM(C38) -> 0 | D39: =SUM(D38) -> 0 | E39: 0 | F39: 0 | G39: 0 | H39: 0 | I39: 0 | J39: 0 | K39: 0
A40: Removed less frequently than once a week | C40: ='SA9'!E101 -> 0 | D40: ='SA9'!F101 -> 0 | E40: ='SA9'!G101 -> 0 | F40: ='SA9'!H101 -> 0 | G40: ='SA9'!I101 -> 0 | H40: ='SA9'!J101 -> 0 | I40: ='SA9'!K101 -> 0 | J40: ='SA9'!L101 -> 0 | K40: ='SA9'!M101 -> 0
A41: Using communal refuse dump | C41: ='SA9'!E102 -> 0 | D41: ='SA9'!F102 -> 0 | E41: ='SA9'!G102 -> 0 | F41: ='SA9'!H102 -> 0 | G41: ='SA9'!I102 -> 0 | H41: ='SA9'!J102 -> 0 | I41: ='SA9'!K102 -> 0 | J41: ='SA9'!L102 -> 0 | K41: ='SA9'!M102 -> 0
A42: Using own refuse dump | C42: ='SA9'!E103 -> 0 | D42: ='SA9'!F103 -> 0 | E42: ='SA9'!G103 -> 0 | F42: ='SA9'!H103 -> 0 | G42: ='SA9'!I103 -> 0 | H42: ='SA9'!J103 -> 0 | I42: ='SA9'!K103 -> 0 | J42: ='SA9'!L103 -> 0 | K42: ='SA9'!M103 -> 0
A43: Other rubbish disposal | C43: ='SA9'!E104 -> 0 | D43: ='SA9'!F104 -> 0 | E43: ='SA9'!G104 -> 0 | F43: ='SA9'!H104 -> 0 | G43: ='SA9'!I104 -> 0 | H43: ='SA9'!J104 -> 0 | I43: ='SA9'!K104 -> 0 | J43: ='SA9'!L104 -> 0 | K43: ='SA9'!M104 -> 0
A44: No rubbish disposal | C44: ='SA9'!E105 -> 0 | D44: ='SA9'!F105 -> 0 | E44: ='SA9'!G105 -> 0 | F44: ='SA9'!H105 -> 0 | G44: ='SA9'!I105 -> 0 | H44: ='SA9'!J105 -> 0 | I44: ='SA9'!K105 -> 0 | J44: ='SA9'!L105 -> 0 | K44: ='SA9'!M105 -> 0
A45: =$A$14 -> Below Minimum Service Level sub-total | C45: =SUM(C40:C44) -> 0 | D45: 0 | E45: 0 | F45: 0 | G45: 0 | H45: 0 | I45: 0 | J45: 0 | K45: 0
A46: =$A$15 -> Total number of households | B46: =$B$15 -> 5 | C46: =C39+C45 -> 0 | D46: =D39+D45 -> 0 | E46: 0 | F46: 0 | G46: 0 | H46: 0 | I46: 0 | J46: 0 | K46: 0
A48: Households receiving Free Basic Service | B48: 7
A49: Water (6 kilolitres per household per month) | C49: ='SA9'!E263 -> 0 | D49: ='SA9'!F263 -> 0 | E49: ='SA9'!G263 -> 0 | F49: ='SA9'!H263 -> 0 | G49: ='SA9'!I263 -> 0 | H49: ='SA9'!J263 -> 0 | I49: ='SA9'!K263 -> 0 | J49: ='SA9'!L263 -> 0 | K49: ='SA9'!M263 -> 0
A50: Sanitation (free minimum level service) | C50: ='SA9'!E275 -> 0 | D50: ='SA9'!F275 -> 0 | E50: ='SA9'!G275 -> 0 | F50: ='SA9'!H275 -> 0 | G50: ='SA9'!I275 -> 0 | H50: ='SA9'!J275 -> 0 | I50: ='SA9'!K275 -> 0 | J50: ='SA9'!L275 -> 0 | K50: ='SA9'!M275 -> 0
A51: Electricity/other energy (50kwh per household per month) | C51: ='SA9'!E251 -> 0 | D51: ='SA9'!F251 -> 0 | E51: ='SA9'!G251 -> 0 | F51: ='SA9'!H251 -> 0 | G51: ='SA9'!I251 -> 0 | H51: ='SA9'!J251 -> 0 | I51: ='SA9'!K251 -> 0 | J51: ='SA9'!L251 -> 0 | K51: ='SA9'!M251 -> 0
A52: Refuse (removed at least once a week) | C52: ='SA9'!E287 -> 0 | D52: ='SA9'!F287 -> 0 | E52: ='SA9'!G287 -> 0 | F52: ='SA9'!H287 -> 0 | G52: ='SA9'!I287 -> 0 | H52: ='SA9'!J287 -> 0 | I52: ='SA9'!K287 -> 0 | J52: ='SA9'!L287 -> 0 | K52: ='SA9'!M287 -> 0
A54: Cost of Free Basic Services provided - Formal Settlements (R'000) | B54: 8
A55: Water (6 kilolitres per indigent household per month) | C55: ='SA1'!C20 -> 0 | D55: ='SA1'!D20 -> 0 | E55: ='SA1'!E20 -> 0 | F55: ='SA1'!F20 -> 0 | G55: ='SA1'!G20 -> 0 | H55: ='SA1'!H20 -> 0 | I55: ='SA1'!J20 -> 0 | J55: ='SA1'!K20 -> 0 | K55: ='SA1'!L20 -> 0
A56: Sanitation (free sanitation service to indigent households) | C56: ='SA1'!C26 -> 0 | D56: ='SA1'!D26 -> 0 | E56: ='SA1'!E26 -> 0 | F56: ='SA1'!F26 -> 0 | G56: ='SA1'!G26 -> 0 | H56: ='SA1'!H26 -> 0 | I56: ='SA1'!J26 -> 0 | J56: ='SA1'!K26 -> 0 | K56: ='SA1'!L26 -> 0
A57: Electricity/other energy (50kwh per indigent household per month) | C57: ='SA1'!C14 -> 0 | D57: ='SA1'!D14 -> 0 | E57: ='SA1'!E14 -> 24968.36 | F57: ='SA1'!F14 -> 4200000 | G57: ='SA1'!G14 -> 4200000 | H57: ='SA1'!H14 -> 4200000 | I57: ='SA1'!J14 -> 4200000 | J57: ='SA1'!K14 -> 4384800 | K57: ='SA1'!L14 -> 4582116
A58: Refuse (removed once a week for indigent households) | C58: ='SA1'!C33 -> 1162662.7 | D58: ='SA1'!D33 -> 0 | E58: ='SA1'!E33 -> 414433 | F58: ='SA1'!F33 -> 1200000 | G58: ='SA1'!G33 -> 1200000 | H58: ='SA1'!H33 -> 1200000 | I58: ='SA1'!J33 -> 1300000 | J58: ='SA1'!K33 -> 1357200 | K58: ='SA1'!L33 -> 1418274
A59: Cost of Free Basic Services provided - Informal Formal Settlements (R'000) | C59: ='SA9'!E260+'SA9'!E272+'SA9'!E284+'SA9'!E296 -> 0 | D59: ='SA9'!F260+'SA9'!F272+'SA9'!F284+'SA9'!F296 -> 0 | E59: ='SA9'!G260+'SA9'!G272+'SA9'!G284+'SA9'!G296 -> 0 | F59: ='SA9'!H260+'SA9'!H272+'SA9'!H284+'SA9'!H296 -> 0 | G59: ='SA9'!I260+'SA9'!I272+'SA9'!I284+'SA9'!I296 -> 0 | H59: ='SA9'!J260+'SA9'!J272+'SA9'!J284+'SA9'!J296 -> 0 | I59: ='SA9'!K260+'SA9'!K272+'SA9'!K284+'SA9'!K296 -> 0 | J59: ='SA9'!L260+'SA9'!L272+'SA9'!L284+'SA9'!L296 -> 0 | K59: ='SA9'!M260+'SA9'!M272+'SA9'!M284+'SA9'!M296 -> 0
A60: Total cost of FBS provided | C60: =SUM(C55:C59) -> 1162662.7 | D60: 0 | E60: 439401.36 | F60: 5400000 | G60: 5400000 | H60: 5400000 | I60: 5500000 | J60: 5742000 | K60: 6000390
A62: Highest level of free service provided per household
A63: Property rates (R value threshold)
A64: Water (kilolitres per household per month)
A65: Sanitation (kilolitres per household per month)
A66: Sanitation (Rand per household per month)
A67: Electricity (kwh per household per month)
A68: Refuse (average litres per week)
A69: Revenue cost of subsidised services provided (R'000) | B69: 9
A70: Property rates (tariff adjustment) ( impermissable values per section 17 of MPRA)
A71: Property rates exemptions, reductions and rebates and impermissable values in excess of section 17 of MPRA) | C71: ='SA1'!C8 -> 37975511 | D71: ='SA1'!D8 -> 36523293.59 | E71: ='SA1'!E8 -> 39752859.18 | F71: ='SA1'!F8 -> 35000000 | G71: ='SA1'!G8 -> 35000000 | H71: ='SA1'!H8 -> 35000000 | I71: ='SA1'!J8 -> 42070000 | J71: ='SA1'!K8 -> 43921080 | K71: ='SA1'!L8 -> 45897529
A72: Water (in excess of 6 kilolitres per indigent household per month) | C72: ='SA1'!C19 -> 0 | D72: ='SA1'!D19 -> 0 | E72: ='SA1'!E19 -> 0 | F72: ='SA1'!F19 -> 0 | G72: ='SA1'!G19 -> 0 | H72: ='SA1'!H19 -> 0 | I72: ='SA1'!J19 -> 0 | J72: ='SA1'!K19 -> 0 | K72: ='SA1'!L19 -> 0
A73: Sanitation (in excess of free sanitation service to indigent households) | C73: ='SA1'!C25 -> 0 | D73: ='SA1'!D25 -> 0 | E73: ='SA1'!E25 -> 0 | F73: ='SA1'!F25 -> 0 | G73: ='SA1'!G25 -> 0 | H73: ='SA1'!H25 -> 0 | I73: ='SA1'!J25 -> 0 | J73: ='SA1'!K25 -> 0 | K73: ='SA1'!L25 -> 0
A74: Electricity/other energy (in excess of 50 kwh per indigent household per month) | C74: ='SA1'!C13 -> 0 | D74: ='SA1'!D13 -> 0 | E74: ='SA1'!E13 -> 0 | F74: ='SA1'!F13 -> 200000 | G74: ='SA1'!G13 -> 200000 | H74: ='SA1'!H13 -> 200000 | I74: ='SA1'!J13 -> 0 | J74: ='SA1'!K13 -> 0 | K74: ='SA1'!L13 -> 0
A75: Refuse (in excess of one removal a week for indigent households) | C75: ='SA1'!C32 -> 0 | D75: ='SA1'!D32 -> 0 | E75: ='SA1'!E32 -> 0 | F75: ='SA1'!F32 -> 600000 | G75: ='SA1'!G32 -> 600000 | H75: ='SA1'!H32 -> 600000 | I75: ='SA1'!J32 -> 0 | J75: ='SA1'!K32 -> 0 | K75: ='SA1'!L32 -> 0
A76: Municipal Housing - rental rebates
A77: Housing - top structure subsidies | B77: 6
A78: Other
A79: Total revenue cost of subsidised services provided | C79: =SUM(C70:C78) -> 37975511 | D79: =SUM(D70:D78) -> 36523293.59 | E79: 39752859.18 | F79: 35800000 | G79: 35800000 | H79: 35800000 | I79: 42070000 | J79: =SUM(J70:J78) -> 43921080 | K79: =SUM(K70:K78) -> 45897529
A80: =head27a -> References
A81: 1. Include services provided by another entity; e.g. Eskom
A82: 2. Stand distance <= 200m from dwelling
A83: 3. Stand distance > 200m from dwelling
A84: 4. Borehole, spring, rain-water tank etc.
A85: 5. Must agree to total number of households in municipal area (informal settlements receiving services must be included)
A86: 6. Include value of subsidy provided by municipality above provincial subsidy level
A87: 7. Show number of households receiving at least these levels of services completely free (informal settlements must be included)
A88: 8. Must reflect the cost to the municipality of providing the Free Basic Service
A89: 9. Reflect the cost to the municipality in terms of 'revenue foregone' of providing free services (note this will not equal 'Revenue Foregone' on SA1)

Sheet SA1
A1: =muni&" - "&TableA1 -> Choose name from list - Supporting Table SA1 Supportinging detail to 'Budgeted Financial Performance'
A2: =desc -> Description | B2: =head27 -> Ref | C2: =head1b -> 2018/19 | D2: =head1A -> 2019/20 | E2: =Head1 -> 2020/21 | F2: =Head2 -> Current Year 2021/22 | J2: =Head3 -> 2022/23 Medium Term Revenue & Expenditure Framework
C3: =Head5 -> Audited Outcome | D3: =Head5 -> Audited Outcome | E3: =Head5 -> Audited Outcome | F3: =Head6 -> Original Budget | G3: =Head7 -> Adjusted Budget | H3: =Head8 -> Full Year Forecast | I3: =Head5b -> Pre-audit outcome | J3: =Head9 -> Budget Year 2022/23 | K3: =Head10 -> Budget Year +1 2023/24 | L3: =Head11 -> Budget Year +2 2024/25
A4: R thousand
A5: REVENUE ITEMS:
A6: ='A4-FinPerf RE'!A5 -> Property rates | B6: 6
A7: Total Property Rates | C7: 147139436 | D7: 151269813.8 | E7: 169378487.7 | F7: 172500000 | G7: 172500000 | H7: 172500000 | I7: 172500000 | J7: 176907829 | K7: 184691774 | L7: 193002904
A8: Less Revenue Foregone (exemptions, reductions and rebates and impermissable values in excess of section 17 of MPRA) | C8: 37975511 | D8: 36523293.59 | E8: 39752859.18 | F8: 35000000 | G8: 35000000 | H8: 35000000 | I8: 35000000 | J8: 42070000 | K8: 43921080 | L8: 45897529
A9: Net Property Rates | C9: =C7-C8 -> 109163925 | D9: =D7-D8 -> 114746520.2 | E9: 129625628.5 | F9: 137500000 | G9: 137500000 | H9: 137500000 | I9: 137500000 | J9: 134837829 | K9: 140770694 | L9: 147105375
A11: ='A4-FinPerf RE'!A6 -> Service charges - electricity revenue | B11: 6
A12: ="Total "&A11 -> Total Service charges - electricity revenue | C12: 449863851 | D12: 523323295.3 | E12: 461609704.8 | F12: 674021250 | G12: 674021250 | H12: 674021250 | I12: 674021250 | J12: 704200000 | K12: 735184800 | L12: 768268116
A13: Less Revenue Foregone (in excess of 50 kwh per indigent household per month) | C13: 0 | D13: 0 | E13: 0 | F13: 200000 | G13: 200000 | H13: 200000 | I13: 200000 | J13: 0 | K13: 0 | L13: 0
A14: Less Cost of Free Basis Services (50 kwh per indigent household per month) | C14: ='SA9'!E250 -> 0 | D14: ='SA9'!F250 -> 0 | E14: ='SA9'!G250 -> 24968.36 | F14: ='SA9'!H250 -> 4200000 | G14: ='SA9'!I250 -> 4200000 | H14: ='SA9'!J250 -> 4200000 | J14: ='SA9'!K250 -> 4200000 | K14: ='SA9'!L250 -> 4384800 | L14: ='SA9'!M250 -> 4582116
A15: ="Net "& A11 -> Net Service charges - electricity revenue | C15: =C12-C13-C14 -> 449863851 | D15: =D12-D13-D14 -> 523323295.3 | E15: 461584736.4 | F15: 669621250 | G15: 669621250 | H15: 669621250 | I15: 673821250 | J15: 700000000 | K15: 730800000 | L15: 763686000
A17: ='A4-FinPerf RE'!A7 -> Service charges - water revenue | B17: 6
A18: ="Total "&A17 -> Total Service charges - water revenue | C18: 0 | D18: 0 | E18: 0 | F18: 0 | G18: 0 | H18: 0 | I18: 0 | J18: 0 | K18: 0 | L18: 0
A19: Less Revenue Foregone (in excess of 6 kilolitres per indigent household per month) | C19: 0 | D19: 0 | E19: 0 | F19: 0 | G19: 0 | H19: 0 | I19: 0 | J19: 0 | K19: 0 | L19: 0
A20: Less Cost of Free Basis Services (6 kilolitres per indigent household per month) | C20: ='SA9'!E262 -> 0 | D20: ='SA9'!F262 -> 0 | E20: ='SA9'!G262 -> 0 | F20: ='SA9'!H262 -> 0 | G20: ='SA9'!I262 -> 0 | H20: ='SA9'!J262 -> 0 | J20: ='SA9'!K262 -> 0 | K20: ='SA9'!L262 -> 0 | L20: ='SA9'!M262 -> 0
A21: ="Net "& A17 -> Net Service charges - water revenue | C21: =C18-C19-C20 -> 0 | D21: =D18-D19-D20 -> 0 | E21: 0 | F21: 0 | G21: 0 | H21: 0 | I21: 0 | J21: 0 | K21: 0 | L21: 0
A23: ='A4-FinPerf RE'!A8 -> Service charges - sanitation revenue
A24: ="Total "&A23 -> Total Service charges - sanitation revenue | C24: 0 | D24: 0 | E24: 0 | F24: 0 | G24: 0 | H24: 0 | I24: 0 | J24: 0 | K24: 0 | L24: 0
A25: Less Revenue Foregone (in excess of free sanitation service to indigent households) | C25: 0 | D25: 0 | E25: 0 | F25: 0 | G25: 0 | H25: 0 | I25: 0 | J25: 0 | K25: 0 | L25: 0
A26: Less Cost of Free Basis Services (free sanitation service to indigent households) | C26: ='SA9'!E274 -> 0 | D26: ='SA9'!F274 -> 0 | E26: ='SA9'!G274 -> 0 | F26: ='SA9'!H274 -> 0 | G26: ='SA9'!I274 -> 0 | H26: ='SA9'!J274 -> 0 | J26: ='SA9'!K274 -> 0 | K26: ='SA9'!L274 -> 0 | L26: ='SA9'!M274 -> 0
A27: ="Net "& A23 -> Net Service charges - sanitation revenue | C27: =C24-C25-C26 -> 0 | D27: =D24-D25-D26 -> 0 | E27: 0 | F27: 0 | G27: 0 | H27: 0 | I27: 0 | J27: 0 | K27: 0 | L27: 0
A29: ='A4-FinPerf RE'!A9 -> Service charges - refuse revenue | B29: 6
A30: Total refuse removal revenue | C30: 37605220 | D30: 33128367.25 | E30: 38381593.7 | F30: 37707361 | G30: 37707361 | H30: 37707361 | I30: 37707361 | J30: 39193774 | K30: 40918300 | L30: 42759624
A31: Total landfill revenue | C31: 0 | D31: 0 | E31: 0 | F31: 0 | G31: 0 | H31: 0 | I31: 0 | J31: 0 | K31: 0 | L31: 0
A32: Less Revenue Foregone (in excess of one removal a week to indigent households) | C32: 0 | D32: 0 | E32: 0 | F32: 600000 | G32: 600000 | H32: 600000 | I32: 600000 | J32: 0 | K32: 0 | L32: 0
A33: Less Cost of Free Basis Services (removed once a week to indigent households) | C33: ='SA9'!E286 -> 1162662.7 | D33: ='SA9'!F286 -> 0 | E33: ='SA9'!G286 -> 414433 | F33: ='SA9'!H286 -> 1200000 | G33: ='SA9'!I286 -> 1200000 | H33: ='SA9'!J286 -> 1200000 | J33: ='SA9'!K286 -> 1300000 | K33: ='SA9'!L286 -> 1357200 | L33: ='SA9'!M286 -> 1418274
A34: ="Net "& A29 -> Net Service charges - refuse revenue | C34: =SUM(C30:C31)-C32-C33 -> 36442557.3 | D34: =SUM(D30:D31)-D32-D33 -> 33128367.25 | E34: 37967160.7 | F34: 35907361 | G34: 35907361 | H34: 35907361 | I34: 37107361 | J34: 37893774 | K34: 39561100 | L34: 41341350
A36: Other Revenue by source
A37: Fuel Levy | C37: 0 | D37: 0 | E37: 0 | F37: 0 | G37: 0 | H37: 0 | I37: 0 | J37: 0 | K37: 0 | L37: 0
A38: Other Revenue | C38: 12831601.86 | D38: 64521226.85 | E38: 18025607.84 | F38: 6472575 | G38: 6472576 | H38: 6472576 | I38: 6472576 | J38: 10651748 | K38: 11120425 | L38: 11620845
A49: Total 'Other' Revenue | B49: 1 | C49: =SUM(C37:C38) -> 12831601.86 | D49: =SUM(D37:D38) -> 64521226.85 | E49: =SUM(E37:E38) -> 18025607.84 | F49: 6472575 | G49: 6472576 | H49: 6472576 | I49: 6472576 | J49: 10651748 | K49: 11120425 | L49: 11620845
A51: EXPENDITURE ITEMS:
A52: ='A4-FinPerf RE'!A24 -> Employee related costs
A53: Basic Salaries and Wages | B53: 2 | C53: 123894842 | D53: 199973835.7 | E53: 209190952 | F53: 219191026 | G53: 220523851 | H53: 220523851 | I53: 220523851 | J53: 233370359 | K53: 243638655 | L53: 254602393
A54: Pension and UIF Contributions | C54: 27125020 | D54: 32516516.27 | E54: 34123305.67 | F54: 41165060 | G54: 38866565 | H54: 38866565 | I54: 38866565 | J54: 43124308 | K54: 45021783 | L54: 47047761
A55: Medical Aid Contributions | C55: 4485967 | D55: 8166005 | E55: 32548117.35 | F55: 20622070 | G55: 20622070 | H55: 20622070 | I55: 20622070 | J55: 22340529 | K55: 23323513 | L55: 24373071
A56: Overtime | C56: 0 | D56: 0 | E56: 0 | F56: 0 | G56: 0 | H56: 0 | I56: 0 | J56: 0 | K56: 0 | L56: 0
A57: Performance Bonus | C57: 12454206 | D57: 15702057.63 | E57: 16378387.21 | F57: 16192586 | G57: 16429227 | H57: 16429227 | I57: 16429227 | J57: 16772192 | K57: 17510175 | L57: 18298137
A58: Motor Vehicle Allowance | C58: 0 | D58: 0 | E58: 0 | F58: 0 | G58: 0 | H58: 0 | I58: 0 | J58: 0 | K58: 0 | L58: 0
A59: Cellphone Allowance | C59: 0 | D59: 0 | E59: 0 | F59: 0 | G59: 0 | H59: 0 | I59: 0 | J59: 1641486 | K59: 1713716 | L59: 1790834
A60: Housing Allowances | C60: 1722419 | D60: 1686100.63 | E60: 1570648.6 | F60: 1435237 | G60: 1447466 | H60: 1447466 | I60: 1447466 | J60: 1669974 | K60: 1743452 | L60: 1821904
A61: Other benefits and allowances | C61: 37169277 | D61: 44031158.66 | E61: 43790441.27 | F61: 46293540 | G61: 46325200 | H61: 46325200 | I61: 46325200 | J61: 43961230 | K61: 45895524 | L61: 47960821
A62: Payments in lieu of leave | C62: 7389140 | D62: 9038921.31 | E62: 14542113.15 | F62: 4970531 | G62: 18411834 | H62: 18411834 | I62: 18411834 | J62: 4970531 | K62: 5189234 | L62: 5422751
A63: Long service awards | C63: 25439 | D63: 0 | E63: 0 | F63: 0 | G63: 0 | H63: 0 | I63: 0 | J63: 0 | K63: 0 | L63: 0
A64: Post-retirement benefit obligations | B64: 4 | C64: 0 | D64: 0 | E64: 0 | F64: 0 | G64: 0 | H64: 0 | I64: 0 | J64: 0 | K64: 0 | L64: 0
A65: sub-total | B65: 5 | C65: =SUM(C53:C64) -> 214266310 | D65: =SUM(D53:D64) -> 311114595.2 | E65: 352143965.3 | F65: 349870050 | G65: 362626213 | H65: 362626213 | I65: 362626213 | J65: 367850609 | K65: 384036052 | L65: 401317672
A66: Less: Employees costs capitalised to PPE | C66: 0 | D66: 0 | E66: 0 | F66: 0 | G66: 0 | H66: 0 | I66: 0 | J66: 0 | K66: 0 | L66: 0
A67: ="Total "&A52 -> Total Employee related costs | B67: 1 | C67: =C65-C66 -> 214266310 | D67: =D65-D66 -> 311114595.2 | E67: 352143965.3 | F67: 349870050 | G67: 362626213 | H67: 362626213 | I67: 362626213 | J67: 367850609 | K67: 384036052 | L67: 401317672
A78: ='A4-FinPerf RE'!A27 -> Depreciation & asset impairment
A79: Depreciation of Property, Plant & Equipment | C79: 132641263.5 | D79: 98378041.76 | E79: 106143897.2 | F79: 134145723 | G79: 134165923 | H79: 134165923 | I79: 134165923 | J79: 126254571 | K79: 131809776 | L79: 137741216
A80: Lease amortisation | C80: 0 | D80: 0 | E80: 287193.81 | F80: 593008 | G80: 593011 | H80: 593011 | I80: 593011 | J80: 593008 | K80: 619100 | L80: 646960
A81: Capital asset impairment | C81: 0 | D81: 9236673.15 | E81: 2905949.4 | F81: 0 | G81: 0 | H81: 0 | I81: 0 | J81: 0 | K81: 0 | L81: 0
A83: ="Total "&LEFT(A78,35) -> Total Depreciation & asset impairment | B83: 1 | C83: =SUM(C79:C81) -> 132641263.5 | D83: =SUM(D79:D81) -> 107614714.9 | E83: 109337040.5 | F83: 134738731 | G83: 134758934 | H83: 134758934 | I83: 134758934 | J83: 126847579 | K83: 132428876 | L83: 138388176
A85: Bulk purchases - electricity
A86: Electricity bulk purchases | C86: 348443870 | D86: 389694217.1 | E86: 407786362.3 | F86: 456871250 | G86: 450871250 | H86: 450871250 | I86: 450871250 | J86: 466871250 | K86: 487413585 | L86: 509347196
C87: 0 | D87: 0 | E87: 0 | F87: 0 | G87: 0 | H87: 0 | I87: 0 | J87: 0 | K87: 0 | L87: 0
A88: Total bulk purchases | B88: 1 | C88: =SUM(C86:C87) -> 348443870 | D88: =SUM(D86:D87) -> 389694217.1 | E88: 407786362.3 | F88: 456871250 | G88: 450871250 | H88: 450871250 | I88: 450871250 | J88: 466871250 | K88: 487413585 | L88: 509347196
A90: Transfers and grants
A91: Cash transfers and grants | C91: ='SA21'!C32 -> 40499741 | D91: ='SA21'!D32 -> 33708094.67 | E91: ='SA21'!E32 -> 34977216.26 | F91: ='SA21'!F32 -> 32118000 | G91: ='SA21'!G32 -> 39994802 | H91: ='SA21'!H32 -> 39994802 | I91: ='SA21'!I32 -> 39994802 | J91: ='SA21'!J32 -> 45801506 | K91: ='SA21'!K32 -> 40472912 | L91: ='SA21'!L32 -> 36977193
A92: Non-cash transfers and grants | C92: ='SA21'!C63 -> 16632404 | D92: ='SA21'!D63 -> 9028555.43 | E92: ='SA21'!E63 -> 0 | F92: ='SA21'!F63 -> 0 | G92: ='SA21'!G63 -> 0 | H92: ='SA21'!H63 -> 0 | I92: ='SA21'!I63 -> 0 | J92: ='SA21'!J63 -> 0 | K92: ='SA21'!K63 -> 0 | L92: ='SA21'!L63 -> 0
A93: Total transfers and grants | B93: 1 | C93: =SUM(C91:C92) -> 57132145 | D93: =SUM(D91:D92) -> 42736650.1 | E93: 34977216.26 | F93: 32118000 | G93: 39994802 | H93: 39994802 | I93: 39994802 | J93: 45801506 | K93: 40472912 | L93: 36977193
A95: ='A4-FinPerf RE'!A31 -> Contracted services
A96: Outsourced Services | C96: 45140912.55 | D96: 51959509.63 | E96: 54849503.97 | F96: 59001540 | G96: 58431541 | H96: 58431541 | I96: 58431541 | J96: 60919609 | K96: 63600072 | L96: 66462075
A97: Consultants and Professional Services | C97: 4910793 | D97: 6479885.16 | E97: 15721038.44 | F97: 14564771 | G97: 10514771 | H97: 10514771 | I97: 10514771 | J97: 14339150 | K97: 14970073 | L97: 15643726
A98: Contractors | C98: 28060 | D98: 814149.98 | E98: 848533.15 | F98: 1648898 | G98: 1616898 | H98: 1616898 | I98: 1616898 | J98: 1661642 | K98: 1734754 | L98: 1812818
A127: Total contracted services | C127: =SUM(C96:C98) -> 50079765.55 | D127: =SUM(D96:D98) -> 59253544.77 | E127: 71419075.56 | F127: 75215209 | G127: 70563210 | H127: 70563210 | I127: 70563210 | J127: 76920401 | K127: 80304899 | L127: 83918619
A129: Other Expenditure By Type
A130: Collection costs | C130: 1215179 | D130: 1181966.35 | E130: 2305670.53 | F130: 1250000 | G130: 1220000 | H130: 1220000 | I130: 1220000 | J130: 1250000 | K130: 1305000 | L130: 1363725
A131: Contributions to 'other' provisions | C131: 0 | D131: 0 | E131: 0 | F131: 0 | G131: 0 | H131: 0 | I131: 0 | J131: 0 | K131: 0 | L131: 0
A133: Audit fees | C133: 5780394 | D133: 6474173.21 | E133: 6486844.38 | F133: 5591809 | G133: 6451809 | H133: 6451809 | I133: 6451809 | J133: 5591809 | K133: 5837849 | L133: 6100552
A136: General expenses | C136: 109040113.6 | D136: 88088170.83 | E136: 84776619.28 | F136: 113435659 | G136: 111765898 | H136: 111765898 | I136: 111765898 | J136: 141726200 | K136: 147909864 | L136: 154565747
A157: Total 'Other' Expenditure | B157: 1 | C157: =+C130+C131+C133+C136 -> 116035686.6 | D157: =+D130+D131+D133+D136 -> 95744310.39 | E157: 93569134.19 | F157: 120277468 | G157: 119437707 | H157: 119437707 | I157: 119437707 | J157: 148568009 | K157: 155052713 | L157: 162030024
A159: Repairs and Maintenance by Expenditure Item | B159: 8
